Workbook

Sheet Enter
B1: FetalGPS: Fetal Growth Percentile Software
D3: PRB
B6: Select Growth Standard
B7: INTERGROWTH21
B9: Input | M9: Output
A10: Observation | B10: GA (days) | C10: BPD (mm) | D10: AC (mm) | E10: FDL (mm) | F10: HC (mm) | G10: Given EFW (optional) | H10: Maternal Height (cm) | I10: Maternal Weight (kg) | J10: Maternal Race | K10: Parity | L10: Fetal Sex | M10: EFW | N10: Centile
A11: 1
A12: 2
A13: 3
A14: 4
A15: 5
A16: 6
A17: 7
A18: 8
A19: 9
A20: 10
A21: 11
A22: 12
A23: 13
A24: 14
A25: 15
A26: 16
A27: 17
A28: 18
A29: 19
A30: 20
A31: 21
A32: 22
A33: 23
A34: 24
A35: 25
A36: 26
A37: 27
A38: 28
A39: 29
A40: 30
A41: 31
A42: 32
A43: 33
A44: 34
A45: 35
A46: 36
A47: 37
A48: 38
A49: 39
A50: 40
A51: 41
A52: 42
A53: 43
A54: 44
A55: 45
A56: 46
A57: 47
A58: 48
A59: 49
A60: 50
A61: 51
A62: 52
A63: 53
A64: 54
A65: 55
A66: 56
A67: 57
A68: 58
A69: 59
A70: 60
A71: 61
A72: 62
A73: 63
A74: 64
A75: 65
A76: 66
A77: 67
A78: 68
A79: 69
A80: 70
A81: 71
A82: 72
A83: 73
A84: 74
A85: 75
A86: 76
A87: 77
A88: 78
A89: 79
A90: 80
A91: 81
A92: 82
A93: 83
A94: 84
A95: 85
A96: 86
A97: 87
A98: 88
A99: 89
A100: 90
A101: 91
A102: 92
A103: 93
A104: 94
A105: 95
A106: 96
A107: 97
A108: 98
A109: 99
A110: 100
A111: 101
A112: 102
A113: 103
A114: 104
A115: 105
A116: 106
A117: 107
A118: 108
A119: 109
A120: 110
A121: 111
A122: 112
A123: 113
A124: 114
A125: 115
A126: 116
A127: 117
A128: 118
A129: 119
A130: 120
A131: 121
A132: 122
A133: 123
A134: 124
A135: 125
A136: 126
A137: 127
A138: 128
A139: 129
A140: 130
A141: 131
A142: 132
A143: 133
A144: 134
A145: 135
A146: 136
A147: 137
A148: 138
A149: 139
A150: 140
A151: 141
A152: 142
A153: 143
A154: 144
A155: 145
A156: 146
A157: 147
A158: 148
A159: 149
A160: 150
A161: 151
A162: 152
A163: 153
A164: 154
A165: 155
A166: 156
A167: 157
A168: 158
A169: 159
A170: 160
A171: 161
A172: 162
A173: 163
A174: 164
A175: 165
A176: 166
A177: 167
A178: 168
A179: 169
A180: 170
A181: 171
A182: 172
A183: 173
A184: 174
A185: 175
A186: 176
A187: 177
A188: 178
A189: 179
A190: 180
A191: 181
A192: 182
A193: 183
A194: 184
A195: 185
A196: 186
A197: 187
A198: 188
A199: 189
A200: 190
A201: 191
A202: 192
A203: 193
A204: 194
... 9806 more rows

Sheet PRB (hidden)
A1: GA | B1: 2.5 | C1: 5 | D1: 10 | E1: 25 | F1: 50 | G1: 75 | H1: 90 | I1: 95 | J1: 97.5
A2: 14 | B2: =EXP((PRB!B187*1)+(PRB!C187*EFW!AD23)+(PRB!D187*EFW!AD23^2)+(PRB!E187*EFW!AD23^3)+(PRB!F187*sexm)+(PRB!G187*heightn)+(PRB!H187*weightn)+(PRB!I187*EFW!AD23*weightn)+(PRB!J187*parity1)+(PRB!K187*parity2)+(PRB!L187*parity3)+(PRB!M187*EFW!AD23*parity1)+(PRB!N187*EFW!AD23*parity2)+(PRB!O187*EFW!AD23*parity3)) -> 71.79104995 | C2: =EXP((PRB!B188*1)+(PRB!C188*EFW!AD23)+(PRB!D188*EFW!AD23^2)+(PRB!E188*EFW!AD23^3)+(PRB!F188*sexm)+(PRB!G188*heightn)+(PRB!H188*weightn)+(PRB!I188*EFW!AD23*weightn)+(PRB!J188*parity1)+(PRB!K188*parity2)+(PRB!L188*parity3)+(PRB!M188*EFW!AD23*parity1)+(PRB!N188*EFW!AD23*parity2)+(PRB!O188*EFW!AD23*parity3)) -> 74.09191758 | D2: =EXP((PRB!B189*1)+(PRB!C189*EFW!AD23)+(PRB!D189*EFW!AD23^2)+(PRB!E189*EFW!AD23^3)+(PRB!F189*sexm)+(PRB!G189*heightn)+(PRB!H189*weightn)+(PRB!I189*EFW!AD23*weightn)+(PRB!J189*parity1)+(PRB!K189*parity2)+(PRB!L189*parity3)+(PRB!M189*EFW!AD23*parity1)+(PRB!N189*EFW!AD23*parity2)+(PRB!O189*EFW!AD23*parity3)) -> 78.46715601 | E2: =EXP((PRB!B190*1)+(PRB!C190*EFW!AD23)+(PRB!D190*EFW!AD23^2)+(PRB!E190*EFW!AD23^3)+(PRB!F190*sexm)+(PRB!G190*heightn)+(PRB!H190*weightn)+(PRB!I190*EFW!AD23*weightn)+(PRB!J190*parity1)+(PRB!K190*parity2)+(PRB!L190*parity3)+(PRB!M190*EFW!AD23*parity1)+(PRB!N190*EFW!AD23*parity2)+(PRB!O190*EFW!AD23*parity3)) -> 85.81945542 | F2: =EXP((PRB!B191*1)+(PRB!C191*EFW!AD23)+(PRB!D191*EFW!AD23^2)+(PRB!E191*EFW!AD23^3)+(PRB!F191*sexm)+(PRB!G191*heightn)+(PRB!H191*weightn)+(PRB!I191*EFW!AD23*weightn)+(PRB!J191*parity1)+(PRB!K191*parity2)+(PRB!L191*parity3)+(PRB!M191*EFW!AD23*parity1)+(PRB!N191*EFW!AD23*parity2)+(PRB!O191*EFW!AD23*parity3)) -> 92.20626251 | G2: =EXP((PRB!$B$192*1)+(PRB!$C$192*EFW!AD23)+(PRB!$D$192*EFW!AD23^2)+(PRB!$E$192*EFW!AD23^3)+(PRB!$F$192*sexm)+(PRB!$G$192*heightn)+(PRB!$H$192*weightn)+(PRB!$I$192*EFW!AD23*weightn)+(PRB!$J$192*parity1)+(PRB!$K$192*parity2)+(PRB!$L$192*parity3)+(PRB!$M$192*EFW!AD23*parity1)+(PRB!$N$192*EFW!AD23*parity2)+(PRB!$O$192*EFW!AD23*parity3)) -> 101.3165604 | H2: =EXP((PRB!$B$193*1)+(PRB!$C$193*EFW!AD23)+(PRB!$D$193*EFW!AD23^2)+(PRB!$E$193*EFW!AD23^3)+(PRB!$F$193*sexm)+(PRB!$G$193*heightn)+(PRB!$H$193*weightn)+(PRB!$I$193*EFW!AD23*weightn)+(PRB!$J$193*parity1)+(PRB!$K$193*parity2)+(PRB!$L$193*parity3)+(PRB!$M$193*EFW!AD23*parity1)+(PRB!$N$193*EFW!AD23*parity2)+(PRB!$O$193*EFW!AD23*parity3)) -> 109.8857959 | I2: =EXP((PRB!$B$194*1)+(PRB!$C$194*EFW!AD23)+(PRB!$D$194*EFW!AD23^2)+(PRB!$E$194*EFW!AD23^3)+(PRB!$F$194*sexm)+(PRB!$G$194*heightn)+(PRB!$H$194*weightn)+(PRB!$I$194*EFW!AD23*weightn)+(PRB!$J$194*parity1)+(PRB!$K$194*parity2)+(PRB!$L$194*parity3)+(PRB!$M$194*EFW!AD23*parity1)+(PRB!$N$194*EFW!AD23*parity2)+(PRB!$O$194*EFW!AD23*parity3)) -> 117.0409429 | J2: =EXP((PRB!$B$195*1)+(PRB!$C$195*EFW!AD23)+(PRB!$D$195*EFW!AD23^2)+(PRB!$E$195*EFW!AD23^3)+(PRB!$F$195*sexm)+(PRB!$G$195*heightn)+(PRB!$H$195*weightn)+(PRB!$I$195*EFW!AD23*weightn)+(PRB!$J$195*parity1)+(PRB!$K$195*parity2)+(PRB!$L$195*parity3)+(PRB!$M$195*EFW!AD23*parity1)+(PRB!$N$195*EFW!AD23*parity2)+(PRB!$O$195*EFW!AD23*parity3)) -> 121.0644733 | K2: 181.2791873 | L2: 48.987936 | M2: 0 | N2: FEMALE
A3: 14.14285714 | B3: =EXP((PRB!B187*1)+(PRB!C187*EFW!AD24)+(PRB!D187*EFW!AD24^2)+(PRB!E187*EFW!AD24^3)+(PRB!F187*sexm)+(PRB!G187*heightn)+(PRB!H187*weightn)+(PRB!I187*EFW!AD24*weightn)+(PRB!J187*parity1)+(PRB!K187*parity2)+(PRB!L187*parity3)+(PRB!M187*EFW!AD24*parity1)+(PRB!N187*EFW!AD24*parity2)+(PRB!O187*EFW!AD24*parity3)) -> 74.31113697 | C3: =EXP((PRB!B188*1)+(PRB!C188*EFW!AD24)+(PRB!D188*EFW!AD24^2)+(PRB!E188*EFW!AD24^3)+(PRB!F188*sexm)+(PRB!G188*heightn)+(PRB!H188*weightn)+(PRB!I188*EFW!AD24*weightn)+(PRB!J188*parity1)+(PRB!K188*parity2)+(PRB!L188*parity3)+(PRB!M188*EFW!AD24*parity1)+(PRB!N188*EFW!AD24*parity2)+(PRB!O188*EFW!AD24*parity3)) -> 76.7099636 | D3: =EXP((PRB!B189*1)+(PRB!C189*EFW!AD24)+(PRB!D189*EFW!AD24^2)+(PRB!E189*EFW!AD24^3)+(PRB!F189*sexm)+(PRB!G189*heightn)+(PRB!H189*weightn)+(PRB!I189*EFW!AD24*weightn)+(PRB!J189*parity1)+(PRB!K189*parity2)+(PRB!L189*parity3)+(PRB!M189*EFW!AD24*parity1)+(PRB!N189*EFW!AD24*parity2)+(PRB!O189*EFW!AD24*parity3)) -> 81.20200448 | E3: =EXP((PRB!B190*1)+(PRB!C190*EFW!AD24)+(PRB!D190*EFW!AD24^2)+(PRB!E190*EFW!AD24^3)+(PRB!F190*sexm)+(PRB!G190*heightn)+(PRB!H190*weightn)+(PRB!I190*EFW!AD24*weightn)+(PRB!J190*parity1)+(PRB!K190*parity2)+(PRB!L190*parity3)+(PRB!M190*EFW!AD24*parity1)+(PRB!N190*EFW!AD24*parity2)+(PRB!O190*EFW!AD24*parity3)) -> 88.74733135 | F3: =EXP((PRB!B191*1)+(PRB!C191*EFW!AD24)+(PRB!D191*EFW!AD24^2)+(PRB!E191*EFW!AD24^3)+(PRB!F191*sexm)+(PRB!G191*heightn)+(PRB!H191*weightn)+(PRB!I191*EFW!AD24*weightn)+(PRB!J191*parity1)+(PRB!K191*parity2)+(PRB!L191*parity3)+(PRB!M191*EFW!AD24*parity1)+(PRB!N191*EFW!AD24*parity2)+(PRB!O191*EFW!AD24*parity3)) -> 95.36059829 | G3: =EXP((PRB!$B$192*1)+(PRB!$C$192*EFW!AD24)+(PRB!$D$192*EFW!AD24^2)+(PRB!$E$192*EFW!AD24^3)+(PRB!$F$192*sexm)+(PRB!$G$192*heightn)+(PRB!$H$192*weightn)+(PRB!$I$192*EFW!AD24*weightn)+(PRB!$J$192*parity1)+(PRB!$K$192*parity2)+(PRB!$L$192*parity3)+(PRB!$M$192*EFW!AD24*parity1)+(PRB!$N$192*EFW!AD24*parity2)+(PRB!$O$192*EFW!AD24*parity3)) -> 104.7161179 | H3: =EXP((PRB!$B$193*1)+(PRB!$C$193*EFW!AD24)+(PRB!$D$193*EFW!AD24^2)+(PRB!$E$193*EFW!AD24^3)+(PRB!$F$193*sexm)+(PRB!$G$193*heightn)+(PRB!$H$193*weightn)+(PRB!$I$193*EFW!AD24*weightn)+(PRB!$J$193*parity1)+(PRB!$K$193*parity2)+(PRB!$L$193*parity3)+(PRB!$M$193*EFW!AD24*parity1)+(PRB!$N$193*EFW!AD24*parity2)+(PRB!$O$193*EFW!AD24*parity3)) -> 113.5527341 | I3: =EXP((PRB!$B$194*1)+(PRB!$C$194*EFW!AD24)+(PRB!$D$194*EFW!AD24^2)+(PRB!$E$194*EFW!AD24^3)+(PRB!$F$194*sexm)+(PRB!$G$194*heightn)+(PRB!$H$194*weightn)+(PRB!$I$194*EFW!AD24*weightn)+(PRB!$J$194*parity1)+(PRB!$K$194*parity2)+(PRB!$L$194*parity3)+(PRB!$M$194*EFW!AD24*parity1)+(PRB!$N$194*EFW!AD24*parity2)+(PRB!$O$194*EFW!AD24*parity3)) -> 120.8511774 | J3: =EXP((PRB!$B$195*1)+(PRB!$C$195*EFW!AD24)+(PRB!$D$195*EFW!AD24^2)+(PRB!$E$195*EFW!AD24^3)+(PRB!$F$195*sexm)+(PRB!$G$195*heightn)+(PRB!$H$195*weightn)+(PRB!$I$195*EFW!AD24*weightn)+(PRB!$J$195*parity1)+(PRB!$K$195*parity2)+(PRB!$L$195*parity3)+(PRB!$M$195*EFW!AD24*parity1)+(PRB!$N$195*EFW!AD24*parity2)+(PRB!$O$195*EFW!AD24*parity3)) -> 124.9691072
A4: 14.28571429 | B4: =EXP((PRB!B187*1)+(PRB!C187*EFW!AD25)+(PRB!D187*EFW!AD25^2)+(PRB!E187*EFW!AD25^3)+(PRB!F187*sexm)+(PRB!G187*heightn)+(PRB!H187*weightn)+(PRB!I187*EFW!AD25*weightn)+(PRB!J187*parity1)+(PRB!K187*parity2)+(PRB!L187*parity3)+(PRB!M187*EFW!AD25*parity1)+(PRB!N187*EFW!AD25*parity2)+(PRB!O187*EFW!AD25*parity3)) -> 76.90533205 | C4: =EXP((PRB!B188*1)+(PRB!C188*EFW!AD25)+(PRB!D188*EFW!AD25^2)+(PRB!E188*EFW!AD25^3)+(PRB!F188*sexm)+(PRB!G188*heightn)+(PRB!H188*weightn)+(PRB!I188*EFW!AD25*weightn)+(PRB!J188*parity1)+(PRB!K188*parity2)+(PRB!L188*parity3)+(PRB!M188*EFW!AD25*parity1)+(PRB!N188*EFW!AD25*parity2)+(PRB!O188*EFW!AD25*parity3)) -> 79.40528775 | D4: =EXP((PRB!B189*1)+(PRB!C189*EFW!AD25)+(PRB!D189*EFW!AD25^2)+(PRB!E189*EFW!AD25^3)+(PRB!F189*sexm)+(PRB!G189*heightn)+(PRB!H189*weightn)+(PRB!I189*EFW!AD25*weightn)+(PRB!J189*parity1)+(PRB!K189*parity2)+(PRB!L189*parity3)+(PRB!M189*EFW!AD25*parity1)+(PRB!N189*EFW!AD25*parity2)+(PRB!O189*EFW!AD25*parity3)) -> 84.01681473 | E4: =EXP((PRB!B190*1)+(PRB!C190*EFW!AD25)+(PRB!D190*EFW!AD25^2)+(PRB!E190*EFW!AD25^3)+(PRB!F190*sexm)+(PRB!G190*heightn)+(PRB!H190*weightn)+(PRB!I190*EFW!AD25*weightn)+(PRB!J190*parity1)+(PRB!K190*parity2)+(PRB!L190*parity3)+(PRB!M190*EFW!AD25*parity1)+(PRB!N190*EFW!AD25*parity2)+(PRB!O190*EFW!AD25*parity3)) -> 91.75959667 | F4: =EXP((PRB!B191*1)+(PRB!C191*EFW!AD25)+(PRB!D191*EFW!AD25^2)+(PRB!E191*EFW!AD25^3)+(PRB!F191*sexm)+(PRB!G191*heightn)+(PRB!H191*weightn)+(PRB!I191*EFW!AD25*weightn)+(PRB!J191*parity1)+(PRB!K191*parity2)+(PRB!L191*parity3)+(PRB!M191*EFW!AD25*parity1)+(PRB!N191*EFW!AD25*parity2)+(PRB!O191*EFW!AD25*parity3)) -> 98.60573043 | G4: =EXP((PRB!$B$192*1)+(PRB!$C$192*EFW!AD25)+(PRB!$D$192*EFW!AD25^2)+(PRB!$E$192*EFW!AD25^3)+(PRB!$F$192*sexm)+(PRB!$G$192*heightn)+(PRB!$H$192*weightn)+(PRB!$I$192*EFW!AD25*weightn)+(PRB!$J$192*parity1)+(PRB!$K$192*parity2)+(PRB!$L$192*parity3)+(PRB!$M$192*EFW!AD25*parity1)+(PRB!$N$192*EFW!AD25*parity2)+(PRB!$O$192*EFW!AD25*parity3)) -> 108.2122536 | H4: =EXP((PRB!$B$193*1)+(PRB!$C$193*EFW!AD25)+(PRB!$D$193*EFW!AD25^2)+(PRB!$E$193*EFW!AD25^3)+(PRB!$F$193*sexm)+(PRB!$G$193*heightn)+(PRB!$H$193*weightn)+(PRB!$I$193*EFW!AD25*weightn)+(PRB!$J$193*parity1)+(PRB!$K$193*parity2)+(PRB!$L$193*parity3)+(PRB!$M$193*EFW!AD25*parity1)+(PRB!$N$193*EFW!AD25*parity2)+(PRB!$O$193*EFW!AD25*parity3)) -> 117.3231863 | I4: =EXP((PRB!$B$194*1)+(PRB!$C$194*EFW!AD25)+(PRB!$D$194*EFW!AD25^2)+(PRB!$E$194*EFW!AD25^3)+(PRB!$F$194*sexm)+(PRB!$G$194*heightn)+(PRB!$H$194*weightn)+(PRB!$I$194*EFW!AD25*weightn)+(PRB!$J$194*parity1)+(PRB!$K$194*parity2)+(PRB!$L$194*parity3)+(PRB!$M$194*EFW!AD25*parity1)+(PRB!$N$194*EFW!AD25*parity2)+(PRB!$O$194*EFW!AD25*parity3)) -> 124.7677145 | J4: =EXP((PRB!$B$195*1)+(PRB!$C$195*EFW!AD25)+(PRB!$D$195*EFW!AD25^2)+(PRB!$E$195*EFW!AD25^3)+(PRB!$F$195*sexm)+(PRB!$G$195*heightn)+(PRB!$H$195*weightn)+(PRB!$I$195*EFW!AD25*weightn)+(PRB!$J$195*parity1)+(PRB!$K$195*parity2)+(PRB!$L$195*parity3)+(PRB!$M$195*EFW!AD25*parity1)+(PRB!$N$195*EFW!AD25*parity2)+(PRB!$O$195*EFW!AD25*parity3)) -> 128.9827623
A5: 14.42857143 | B5: =EXP((PRB!B187*1)+(PRB!C187*EFW!AD26)+(PRB!D187*EFW!AD26^2)+(PRB!E187*EFW!AD26^3)+(PRB!F187*sexm)+(PRB!G187*heightn)+(PRB!H187*weightn)+(PRB!I187*EFW!AD26*weightn)+(PRB!J187*parity1)+(PRB!K187*parity2)+(PRB!L187*parity3)+(PRB!M187*EFW!AD26*parity1)+(PRB!N187*EFW!AD26*parity2)+(PRB!O187*EFW!AD26*parity3)) -> 79.57526991 | C5: =EXP((PRB!B188*1)+(PRB!C188*EFW!AD26)+(PRB!D188*EFW!AD26^2)+(PRB!E188*EFW!AD26^3)+(PRB!F188*sexm)+(PRB!G188*heightn)+(PRB!H188*weightn)+(PRB!I188*EFW!AD26*weightn)+(PRB!J188*parity1)+(PRB!K188*parity2)+(PRB!L188*parity3)+(PRB!M188*EFW!AD26*parity1)+(PRB!N188*EFW!AD26*parity2)+(PRB!O188*EFW!AD26*parity3)) -> 82.17959358 | D5: =EXP((PRB!B189*1)+(PRB!C189*EFW!AD26)+(PRB!D189*EFW!AD26^2)+(PRB!E189*EFW!AD26^3)+(PRB!F189*sexm)+(PRB!G189*heightn)+(PRB!H189*weightn)+(PRB!I189*EFW!AD26*weightn)+(PRB!J189*parity1)+(PRB!K189*parity2)+(PRB!L189*parity3)+(PRB!M189*EFW!AD26*parity1)+(PRB!N189*EFW!AD26*parity2)+(PRB!O189*EFW!AD26*parity3)) -> 86.91334835 | E5: =EXP((PRB!B190*1)+(PRB!C190*EFW!AD26)+(PRB!D190*EFW!AD26^2)+(PRB!E190*EFW!AD26^3)+(PRB!F190*sexm)+(PRB!G190*heightn)+(PRB!H190*weightn)+(PRB!I190*EFW!AD26*weightn)+(PRB!J190*parity1)+(PRB!K190*parity2)+(PRB!L190*parity3)+(PRB!M190*EFW!AD26*parity1)+(PRB!N190*EFW!AD26*parity2)+(PRB!O190*EFW!AD26*parity3)) -> 94.85810923 | F5: =EXP((PRB!B191*1)+(PRB!C191*EFW!AD26)+(PRB!D191*EFW!AD26^2)+(PRB!E191*EFW!AD26^3)+(PRB!F191*sexm)+(PRB!G191*heightn)+(PRB!H191*weightn)+(PRB!I191*EFW!AD26*weightn)+(PRB!J191*parity1)+(PRB!K191*parity2)+(PRB!L191*parity3)+(PRB!M191*EFW!AD26*parity1)+(PRB!N191*EFW!AD26*parity2)+(PRB!O191*EFW!AD26*parity3)) -> 101.9436406 | G5: =EXP((PRB!$B$192*1)+(PRB!$C$192*EFW!AD26)+(PRB!$D$192*EFW!AD26^2)+(PRB!$E$192*EFW!AD26^3)+(PRB!$F$192*sexm)+(PRB!$G$192*heightn)+(PRB!$H$192*weightn)+(PRB!$I$192*EFW!AD26*weightn)+(PRB!$J$192*parity1)+(PRB!$K$192*parity2)+(PRB!$L$192*parity3)+(PRB!$M$192*EFW!AD26*parity1)+(PRB!$N$192*EFW!AD26*parity2)+(PRB!$O$192*EFW!AD26*parity3)) -> 111.8070706 | H5: =EXP((PRB!$B$193*1)+(PRB!$C$193*EFW!AD26)+(PRB!$D$193*EFW!AD26^2)+(PRB!$E$193*EFW!AD26^3)+(PRB!$F$193*sexm)+(PRB!$G$193*heightn)+(PRB!$H$193*weightn)+(PRB!$I$193*EFW!AD26*weightn)+(PRB!$J$193*parity1)+(PRB!$K$193*parity2)+(PRB!$L$193*parity3)+(PRB!$M$193*EFW!AD26*parity1)+(PRB!$N$193*EFW!AD26*parity2)+(PRB!$O$193*EFW!AD26*parity3)) -> 121.1993882 | I5: =EXP((PRB!$B$194*1)+(PRB!$C$194*EFW!AD26)+(PRB!$D$194*EFW!AD26^2)+(PRB!$E$194*EFW!AD26^3)+(PRB!$F$194*sexm)+(PRB!$G$194*heightn)+(PRB!$H$194*weightn)+(PRB!$I$194*EFW!AD26*weightn)+(PRB!$J$194*parity1)+(PRB!$K$194*parity2)+(PRB!$L$194*parity3)+(PRB!$M$194*EFW!AD26*parity1)+(PRB!$N$194*EFW!AD26*parity2)+(PRB!$O$194*EFW!AD26*parity3)) -> 128.7928749 | J5: =EXP((PRB!$B$195*1)+(PRB!$C$195*EFW!AD26)+(PRB!$D$195*EFW!AD26^2)+(PRB!$E$195*EFW!AD26^3)+(PRB!$F$195*sexm)+(PRB!$G$195*heightn)+(PRB!$H$195*weightn)+(PRB!$I$195*EFW!AD26*weightn)+(PRB!$J$195*parity1)+(PRB!$K$195*parity2)+(PRB!$L$195*parity3)+(PRB!$M$195*EFW!AD26*parity1)+(PRB!$N$195*EFW!AD26*parity2)+(PRB!$O$195*EFW!AD26*parity3)) -> 133.1078613
A6: 14.57142857 | B6: =EXP((PRB!B187*1)+(PRB!C187*EFW!AD27)+(PRB!D187*EFW!AD27^2)+(PRB!E187*EFW!AD27^3)+(PRB!F187*sexm)+(PRB!G187*heightn)+(PRB!H187*weightn)+(PRB!I187*EFW!AD27*weightn)+(PRB!J187*parity1)+(PRB!K187*parity2)+(PRB!L187*parity3)+(PRB!M187*EFW!AD27*parity1)+(PRB!N187*EFW!AD27*parity2)+(PRB!O187*EFW!AD27*parity3)) -> 82.32260244 | C6: =EXP((PRB!B188*1)+(PRB!C188*EFW!AD27)+(PRB!D188*EFW!AD27^2)+(PRB!E188*EFW!AD27^3)+(PRB!F188*sexm)+(PRB!G188*heightn)+(PRB!H188*weightn)+(PRB!I188*EFW!AD27*weightn)+(PRB!J188*parity1)+(PRB!K188*parity2)+(PRB!L188*parity3)+(PRB!M188*EFW!AD27*parity1)+(PRB!N188*EFW!AD27*parity2)+(PRB!O188*EFW!AD27*parity3)) -> 85.03460228 | D6: =EXP((PRB!B189*1)+(PRB!C189*EFW!AD27)+(PRB!D189*EFW!AD27^2)+(PRB!E189*EFW!AD27^3)+(PRB!F189*sexm)+(PRB!G189*heightn)+(PRB!H189*weightn)+(PRB!I189*EFW!AD27*weightn)+(PRB!J189*parity1)+(PRB!K189*parity2)+(PRB!L189*parity3)+(PRB!M189*EFW!AD27*parity1)+(PRB!N189*EFW!AD27*parity2)+(PRB!O189*EFW!AD27*parity3)) -> 89.89338597 | E6: =EXP((PRB!B190*1)+(PRB!C190*EFW!AD27)+(PRB!D190*EFW!AD27^2)+(PRB!E190*EFW!AD27^3)+(PRB!F190*sexm)+(PRB!G190*heightn)+(PRB!H190*weightn)+(PRB!I190*EFW!AD27*weightn)+(PRB!J190*parity1)+(PRB!K190*parity2)+(PRB!L190*parity3)+(PRB!M190*EFW!AD27*parity1)+(PRB!N190*EFW!AD27*parity2)+(PRB!O190*EFW!AD27*parity3)) -> 98.0447482 | F6: =EXP((PRB!B191*1)+(PRB!C191*EFW!AD27)+(PRB!D191*EFW!AD27^2)+(PRB!E191*EFW!AD27^3)+(PRB!F191*sexm)+(PRB!G191*heightn)+(PRB!H191*weightn)+(PRB!I191*EFW!AD27*weightn)+(PRB!J191*parity1)+(PRB!K191*parity2)+(PRB!L191*parity3)+(PRB!M191*EFW!AD27*parity1)+(PRB!N191*EFW!AD27*parity2)+(PRB!O191*EFW!AD27*parity3)) -> 105.3763324 | G6: =EXP((PRB!$B$192*1)+(PRB!$C$192*EFW!AD27)+(PRB!$D$192*EFW!AD27^2)+(PRB!$E$192*EFW!AD27^3)+(PRB!$F$192*sexm)+(PRB!$G$192*heightn)+(PRB!$H$192*weightn)+(PRB!$I$192*EFW!AD27*weightn)+(PRB!$J$192*parity1)+(PRB!$K$192*parity2)+(PRB!$L$192*parity3)+(PRB!$M$192*EFW!AD27*parity1)+(PRB!$N$192*EFW!AD27*parity2)+(PRB!$O$192*EFW!AD27*parity3)) -> 115.502696 | H6: =EXP((PRB!$B$193*1)+(PRB!$C$193*EFW!AD27)+(PRB!$D$193*EFW!AD27^2)+(PRB!$E$193*EFW!AD27^3)+(PRB!$F$193*sexm)+(PRB!$G$193*heightn)+(PRB!$H$193*weightn)+(PRB!$I$193*EFW!AD27*weightn)+(PRB!$J$193*parity1)+(PRB!$K$193*parity2)+(PRB!$L$193*parity3)+(PRB!$M$193*EFW!AD27*parity1)+(PRB!$N$193*EFW!AD27*parity2)+(PRB!$O$193*EFW!AD27*parity3)) -> 125.1836002 | I6: =EXP((PRB!$B$194*1)+(PRB!$C$194*EFW!AD27)+(PRB!$D$194*EFW!AD27^2)+(PRB!$E$194*EFW!AD27^3)+(PRB!$F$194*sexm)+(PRB!$G$194*heightn)+(PRB!$H$194*weightn)+(PRB!$I$194*EFW!AD27*weightn)+(PRB!$J$194*parity1)+(PRB!$K$194*parity2)+(PRB!$L$194*parity3)+(PRB!$M$194*EFW!AD27*parity1)+(PRB!$N$194*EFW!AD27*parity2)+(PRB!$O$194*EFW!AD27*parity3)) -> 132.9290081 | J6: =EXP((PRB!$B$195*1)+(PRB!$C$195*EFW!AD27)+(PRB!$D$195*EFW!AD27^2)+(PRB!$E$195*EFW!AD27^3)+(PRB!$F$195*sexm)+(PRB!$G$195*heightn)+(PRB!$H$195*weightn)+(PRB!$I$195*EFW!AD27*weightn)+(PRB!$J$195*parity1)+(PRB!$K$195*parity2)+(PRB!$L$195*parity3)+(PRB!$M$195*EFW!AD27*parity1)+(PRB!$N$195*EFW!AD27*parity2)+(PRB!$O$195*EFW!AD27*parity3)) -> 137.3468593
A7: 14.71428571 | B7: =EXP((PRB!B187*1)+(PRB!C187*EFW!AD28)+(PRB!D187*EFW!AD28^2)+(PRB!E187*EFW!AD28^3)+(PRB!F187*sexm)+(PRB!G187*heightn)+(PRB!H187*weightn)+(PRB!I187*EFW!AD28*weightn)+(PRB!J187*parity1)+(PRB!K187*parity2)+(PRB!L187*parity3)+(PRB!M187*EFW!AD28*parity1)+(PRB!N187*EFW!AD28*parity2)+(PRB!O187*EFW!AD28*parity3)) -> 85.14899823 | C7: =EXP((PRB!B188*1)+(PRB!C188*EFW!AD28)+(PRB!D188*EFW!AD28^2)+(PRB!E188*EFW!AD28^3)+(PRB!F188*sexm)+(PRB!G188*heightn)+(PRB!H188*weightn)+(PRB!I188*EFW!AD28*weightn)+(PRB!J188*parity1)+(PRB!K188*parity2)+(PRB!L188*parity3)+(PRB!M188*EFW!AD28*parity1)+(PRB!N188*EFW!AD28*parity2)+(PRB!O188*EFW!AD28*parity3)) -> 87.9720522 | D7: =EXP((PRB!B189*1)+(PRB!C189*EFW!AD28)+(PRB!D189*EFW!AD28^2)+(PRB!E189*EFW!AD28^3)+(PRB!F189*sexm)+(PRB!G189*heightn)+(PRB!H189*weightn)+(PRB!I189*EFW!AD28*weightn)+(PRB!J189*parity1)+(PRB!K189*parity2)+(PRB!L189*parity3)+(PRB!M189*EFW!AD28*parity1)+(PRB!N189*EFW!AD28*parity2)+(PRB!O189*EFW!AD28*parity3)) -> 92.95872686 | E7: =EXP((PRB!B190*1)+(PRB!C190*EFW!AD28)+(PRB!D190*EFW!AD28^2)+(PRB!E190*EFW!AD28^3)+(PRB!F190*sexm)+(PRB!G190*heightn)+(PRB!H190*weightn)+(PRB!I190*EFW!AD28*weightn)+(PRB!J190*parity1)+(PRB!K190*parity2)+(PRB!L190*parity3)+(PRB!M190*EFW!AD28*parity1)+(PRB!N190*EFW!AD28*parity2)+(PRB!O190*EFW!AD28*parity3)) -> 101.3214137 | F7: =EXP((PRB!B191*1)+(PRB!C191*EFW!AD28)+(PRB!D191*EFW!AD28^2)+(PRB!E191*EFW!AD28^3)+(PRB!F191*sexm)+(PRB!G191*heightn)+(PRB!H191*weightn)+(PRB!I191*EFW!AD28*weightn)+(PRB!J191*parity1)+(PRB!K191*parity2)+(PRB!L191*parity3)+(PRB!M191*EFW!AD28*parity1)+(PRB!N191*EFW!AD28*parity2)+(PRB!O191*EFW!AD28*parity3)) -> 108.9058309 | G7: =EXP((PRB!$B$192*1)+(PRB!$C$192*EFW!AD28)+(PRB!$D$192*EFW!AD28^2)+(PRB!$E$192*EFW!AD28^3)+(PRB!$F$192*sexm)+(PRB!$G$192*heightn)+(PRB!$H$192*weightn)+(PRB!$I$192*EFW!AD28*weightn)+(PRB!$J$192*parity1)+(PRB!$K$192*parity2)+(PRB!$L$192*parity3)+(PRB!$M$192*EFW!AD28*parity1)+(PRB!$N$192*EFW!AD28*parity2)+(PRB!$O$192*EFW!AD28*parity3)) -> 119.3012807 | H7: =EXP((PRB!$B$193*1)+(PRB!$C$193*EFW!AD28)+(PRB!$D$193*EFW!AD28^2)+(PRB!$E$193*EFW!AD28^3)+(PRB!$F$193*sexm)+(PRB!$G$193*heightn)+(PRB!$H$193*weightn)+(PRB!$I$193*EFW!AD28*weightn)+(PRB!$J$193*parity1)+(PRB!$K$193*parity2)+(PRB!$L$193*parity3)+(PRB!$M$193*EFW!AD28*parity1)+(PRB!$N$193*EFW!AD28*parity2)+(PRB!$O$193*EFW!AD28*parity3)) -> 129.2781077 | I7: =EXP((PRB!$B$194*1)+(PRB!$C$194*EFW!AD28)+(PRB!$D$194*EFW!AD28^2)+(PRB!$E$194*EFW!AD28^3)+(PRB!$F$194*sexm)+(PRB!$G$194*heightn)+(PRB!$H$194*weightn)+(PRB!$I$194*EFW!AD28*weightn)+(PRB!$J$194*parity1)+(PRB!$K$194*parity2)+(PRB!$L$194*parity3)+(PRB!$M$194*EFW!AD28*parity1)+(PRB!$N$194*EFW!AD28*parity2)+(PRB!$O$194*EFW!AD28*parity3)) -> 137.1784919 | J7: =EXP((PRB!$B$195*1)+(PRB!$C$195*EFW!AD28)+(PRB!$D$195*EFW!AD28^2)+(PRB!$E$195*EFW!AD28^3)+(PRB!$F$195*sexm)+(PRB!$G$195*heightn)+(PRB!$H$195*weightn)+(PRB!$I$195*EFW!AD28*weightn)+(PRB!$J$195*parity1)+(PRB!$K$195*parity2)+(PRB!$L$195*parity3)+(PRB!$M$195*EFW!AD28*parity1)+(PRB!$N$195*EFW!AD28*parity2)+(PRB!$O$195*EFW!AD28*parity3)) -> 141.7022431
A8: 14.85714286 | B8: =EXP((PRB!B187*1)+(PRB!C187*EFW!AD29)+(PRB!D187*EFW!AD29^2)+(PRB!E187*EFW!AD29^3)+(PRB!F187*sexm)+(PRB!G187*heightn)+(PRB!H187*weightn)+(PRB!I187*EFW!AD29*weightn)+(PRB!J187*parity1)+(PRB!K187*parity2)+(PRB!L187*parity3)+(PRB!M187*EFW!AD29*parity1)+(PRB!N187*EFW!AD29*parity2)+(PRB!O187*EFW!AD29*parity3)) -> 88.05614211 | C8: =EXP((PRB!B188*1)+(PRB!C188*EFW!AD29)+(PRB!D188*EFW!AD29^2)+(PRB!E188*EFW!AD29^3)+(PRB!F188*sexm)+(PRB!G188*heightn)+(PRB!H188*weightn)+(PRB!I188*EFW!AD29*weightn)+(PRB!J188*parity1)+(PRB!K188*parity2)+(PRB!L188*parity3)+(PRB!M188*EFW!AD29*parity1)+(PRB!N188*EFW!AD29*parity2)+(PRB!O188*EFW!AD29*parity3)) -> 90.99369836 | D8: =EXP((PRB!B189*1)+(PRB!C189*EFW!AD29)+(PRB!D189*EFW!AD29^2)+(PRB!E189*EFW!AD29^3)+(PRB!F189*sexm)+(PRB!G189*heightn)+(PRB!H189*weightn)+(PRB!I189*EFW!AD29*weightn)+(PRB!J189*parity1)+(PRB!K189*parity2)+(PRB!L189*parity3)+(PRB!M189*EFW!AD29*parity1)+(PRB!N189*EFW!AD29*parity2)+(PRB!O189*EFW!AD29*parity3)) -> 96.11118843 | E8: =EXP((PRB!B190*1)+(PRB!C190*EFW!AD29)+(PRB!D190*EFW!AD29^2)+(PRB!E190*EFW!AD29^3)+(PRB!F190*sexm)+(PRB!G190*heightn)+(PRB!H190*weightn)+(PRB!I190*EFW!AD29*weightn)+(PRB!J190*parity1)+(PRB!K190*parity2)+(PRB!L190*parity3)+(PRB!M190*EFW!AD29*parity1)+(PRB!N190*EFW!AD29*parity2)+(PRB!O190*EFW!AD29*parity3)) -> 104.6900262 | F8: =EXP((PRB!B191*1)+(PRB!C191*EFW!AD29)+(PRB!D191*EFW!AD29^2)+(PRB!E191*EFW!AD29^3)+(PRB!F191*sexm)+(PRB!G191*heightn)+(PRB!H191*weightn)+(PRB!I191*EFW!AD29*weightn)+(PRB!J191*parity1)+(PRB!K191*parity2)+(PRB!L191*parity3)+(PRB!M191*EFW!AD29*parity1)+(PRB!N191*EFW!AD29*parity2)+(PRB!O191*EFW!AD29*parity3)) -> 112.534182 | G8: =EXP((PRB!$B$192*1)+(PRB!$C$192*EFW!AD29)+(PRB!$D$192*EFW!AD29^2)+(PRB!$E$192*EFW!AD29^3)+(PRB!$F$192*sexm)+(PRB!$G$192*heightn)+(PRB!$H$192*weightn)+(PRB!$I$192*EFW!AD29*weightn)+(PRB!$J$192*parity1)+(PRB!$K$192*parity2)+(PRB!$L$192*parity3)+(PRB!$M$192*EFW!AD29*parity1)+(PRB!$N$192*EFW!AD29*parity2)+(PRB!$O$192*EFW!AD29*parity3)) -> 123.2049988 | H8: =EXP((PRB!$B$193*1)+(PRB!$C$193*EFW!AD29)+(PRB!$D$193*EFW!AD29^2)+(PRB!$E$193*EFW!AD29^3)+(PRB!$F$193*sexm)+(PRB!$G$193*heightn)+(PRB!$H$193*weightn)+(PRB!$I$193*EFW!AD29*weightn)+(PRB!$J$193*parity1)+(PRB!$K$193*parity2)+(PRB!$L$193*parity3)+(PRB!$M$193*EFW!AD29*parity1)+(PRB!$N$193*EFW!AD29*parity2)+(PRB!$O$193*EFW!AD29*parity3)) -> 133.4852204 | I8: =EXP((PRB!$B$194*1)+(PRB!$C$194*EFW!AD29)+(PRB!$D$194*EFW!AD29^2)+(PRB!$E$194*EFW!AD29^3)+(PRB!$F$194*sexm)+(PRB!$G$194*heightn)+(PRB!$H$194*weightn)+(PRB!$I$194*EFW!AD29*weightn)+(PRB!$J$194*parity1)+(PRB!$K$194*parity2)+(PRB!$L$194*parity3)+(PRB!$M$194*EFW!AD29*parity1)+(PRB!$N$194*EFW!AD29*parity2)+(PRB!$O$194*EFW!AD29*parity3)) -> 141.5437318 | J8: =EXP((PRB!$B$195*1)+(PRB!$C$195*EFW!AD29)+(PRB!$D$195*EFW!AD29^2)+(PRB!$E$195*EFW!AD29^3)+(PRB!$F$195*sexm)+(PRB!$G$195*heightn)+(PRB!$H$195*weightn)+(PRB!$I$195*EFW!AD29*weightn)+(PRB!$J$195*parity1)+(PRB!$K$195*parity2)+(PRB!$L$195*parity3)+(PRB!$M$195*EFW!AD29*parity1)+(PRB!$N$195*EFW!AD29*parity2)+(PRB!$O$195*EFW!AD29*parity3)) -> 146.1765314
A9: 15 | B9: =EXP((PRB!B187*1)+(PRB!C187*EFW!AD30)+(PRB!D187*EFW!AD30^2)+(PRB!E187*EFW!AD30^3)+(PRB!F187*sexm)+(PRB!G187*heightn)+(PRB!H187*weightn)+(PRB!I187*EFW!AD30*weightn)+(PRB!J187*parity1)+(PRB!K187*parity2)+(PRB!L187*parity3)+(PRB!M187*EFW!AD30*parity1)+(PRB!N187*EFW!AD30*parity2)+(PRB!O187*EFW!AD30*parity3)) -> 91.04573462 | C9: =EXP((PRB!B188*1)+(PRB!C188*EFW!AD30)+(PRB!D188*EFW!AD30^2)+(PRB!E188*EFW!AD30^3)+(PRB!F188*sexm)+(PRB!G188*heightn)+(PRB!H188*weightn)+(PRB!I188*EFW!AD30*weightn)+(PRB!J188*parity1)+(PRB!K188*parity2)+(PRB!L188*parity3)+(PRB!M188*EFW!AD30*parity1)+(PRB!N188*EFW!AD30*parity2)+(PRB!O188*EFW!AD30*parity3)) -> 94.10131194 | D9: =EXP((PRB!B189*1)+(PRB!C189*EFW!AD30)+(PRB!D189*EFW!AD30^2)+(PRB!E189*EFW!AD30^3)+(PRB!F189*sexm)+(PRB!G189*heightn)+(PRB!H189*weightn)+(PRB!I189*EFW!AD30*weightn)+(PRB!J189*parity1)+(PRB!K189*parity2)+(PRB!L189*parity3)+(PRB!M189*EFW!AD30*parity1)+(PRB!N189*EFW!AD30*parity2)+(PRB!O189*EFW!AD30*parity3)) -> 99.35260574 | E9: =EXP((PRB!B190*1)+(PRB!C190*EFW!AD30)+(PRB!D190*EFW!AD30^2)+(PRB!E190*EFW!AD30^3)+(PRB!F190*sexm)+(PRB!G190*heightn)+(PRB!H190*weightn)+(PRB!I190*EFW!AD30*weightn)+(PRB!J190*parity1)+(PRB!K190*parity2)+(PRB!L190*parity3)+(PRB!M190*EFW!AD30*parity1)+(PRB!N190*EFW!AD30*parity2)+(PRB!O190*EFW!AD30*parity3)) -> 108.1525263 | F9: =EXP((PRB!B191*1)+(PRB!C191*EFW!AD30)+(PRB!D191*EFW!AD30^2)+(PRB!E191*EFW!AD30^3)+(PRB!F191*sexm)+(PRB!G191*heightn)+(PRB!H191*weightn)+(PRB!I191*EFW!AD30*weightn)+(PRB!J191*parity1)+(PRB!K191*parity2)+(PRB!L191*parity3)+(PRB!M191*EFW!AD30*parity1)+(PRB!N191*EFW!AD30*parity2)+(PRB!O191*EFW!AD30*parity3)) -> 116.2634522 | G9: =EXP((PRB!$B$192*1)+(PRB!$C$192*EFW!AD30)+(PRB!$D$192*EFW!AD30^2)+(PRB!$E$192*EFW!AD30^3)+(PRB!$F$192*sexm)+(PRB!$G$192*heightn)+(PRB!$H$192*weightn)+(PRB!$I$192*EFW!AD30*weightn)+(PRB!$J$192*parity1)+(PRB!$K$192*parity2)+(PRB!$L$192*parity3)+(PRB!$M$192*EFW!AD30*parity1)+(PRB!$N$192*EFW!AD30*parity2)+(PRB!$O$192*EFW!AD30*parity3)) -> 127.2160469 | H9: =EXP((PRB!$B$193*1)+(PRB!$C$193*EFW!AD30)+(PRB!$D$193*EFW!AD30^2)+(PRB!$E$193*EFW!AD30^3)+(PRB!$F$193*sexm)+(PRB!$G$193*heightn)+(PRB!$H$193*weightn)+(PRB!$I$193*EFW!AD30*weightn)+(PRB!$J$193*parity1)+(PRB!$K$193*parity2)+(PRB!$L$193*parity3)+(PRB!$M$193*EFW!AD30*parity1)+(PRB!$N$193*EFW!AD30*parity2)+(PRB!$O$193*EFW!AD30*parity3)) -> 137.8072713 | I9: =EXP((PRB!$B$194*1)+(PRB!$C$194*EFW!AD30)+(PRB!$D$194*EFW!AD30^2)+(PRB!$E$194*EFW!AD30^3)+(PRB!$F$194*sexm)+(PRB!$G$194*heightn)+(PRB!$H$194*weightn)+(PRB!$I$194*EFW!AD30*weightn)+(PRB!$J$194*parity1)+(PRB!$K$194*parity2)+(PRB!$L$194*parity3)+(PRB!$M$194*EFW!AD30*parity1)+(PRB!$N$194*EFW!AD30*parity2)+(PRB!$O$194*EFW!AD30*parity3)) -> 146.0271609 | J9: =EXP((PRB!$B$195*1)+(PRB!$C$195*EFW!AD30)+(PRB!$D$195*EFW!AD30^2)+(PRB!$E$195*EFW!AD30^3)+(PRB!$F$195*sexm)+(PRB!$G$195*heightn)+(PRB!$H$195*weightn)+(PRB!$I$195*EFW!AD30*weightn)+(PRB!$J$195*parity1)+(PRB!$K$195*parity2)+(PRB!$L$195*parity3)+(PRB!$M$195*EFW!AD30*parity1)+(PRB!$N$195*EFW!AD30*parity2)+(PRB!$O$195*EFW!AD30*parity3)) -> 150.7722737
A10: 15.14285714 | B10: =EXP((PRB!B187*1)+(PRB!C187*EFW!AD31)+(PRB!D187*EFW!AD31^2)+(PRB!E187*EFW!AD31^3)+(PRB!F187*sexm)+(PRB!G187*heightn)+(PRB!H187*weightn)+(PRB!I187*EFW!AD31*weightn)+(PRB!J187*parity1)+(PRB!K187*parity2)+(PRB!L187*parity3)+(PRB!M187*EFW!AD31*parity1)+(PRB!N187*EFW!AD31*parity2)+(PRB!O187*EFW!AD31*parity3)) -> 94.11949147 | C10: =EXP((PRB!B188*1)+(PRB!C188*EFW!AD31)+(PRB!D188*EFW!AD31^2)+(PRB!E188*EFW!AD31^3)+(PRB!F188*sexm)+(PRB!G188*heightn)+(PRB!H188*weightn)+(PRB!I188*EFW!AD31*weightn)+(PRB!J188*parity1)+(PRB!K188*parity2)+(PRB!L188*parity3)+(PRB!M188*EFW!AD31*parity1)+(PRB!N188*EFW!AD31*parity2)+(PRB!O188*EFW!AD31*parity3)) -> 97.29667964 | D10: =EXP((PRB!B189*1)+(PRB!C189*EFW!AD31)+(PRB!D189*EFW!AD31^2)+(PRB!E189*EFW!AD31^3)+(PRB!F189*sexm)+(PRB!G189*heightn)+(PRB!H189*weightn)+(PRB!I189*EFW!AD31*weightn)+(PRB!J189*parity1)+(PRB!K189*parity2)+(PRB!L189*parity3)+(PRB!M189*EFW!AD31*parity1)+(PRB!N189*EFW!AD31*parity2)+(PRB!O189*EFW!AD31*parity3)) -> 102.684831 | E10: =EXP((PRB!B190*1)+(PRB!C190*EFW!AD31)+(PRB!D190*EFW!AD31^2)+(PRB!E190*EFW!AD31^3)+(PRB!F190*sexm)+(PRB!G190*heightn)+(PRB!H190*weightn)+(PRB!I190*EFW!AD31*weightn)+(PRB!J190*parity1)+(PRB!K190*parity2)+(PRB!L190*parity3)+(PRB!M190*EFW!AD31*parity1)+(PRB!N190*EFW!AD31*parity2)+(PRB!O190*EFW!AD31*parity3)) -> 111.7108741 | F10: =EXP((PRB!B191*1)+(PRB!C191*EFW!AD31)+(PRB!D191*EFW!AD31^2)+(PRB!E191*EFW!AD31^3)+(PRB!F191*sexm)+(PRB!G191*heightn)+(PRB!H191*weightn)+(PRB!I191*EFW!AD31*weightn)+(PRB!J191*parity1)+(PRB!K191*parity2)+(PRB!L191*parity3)+(PRB!M191*EFW!AD31*parity1)+(PRB!N191*EFW!AD31*parity2)+(PRB!O191*EFW!AD31*parity3)) -> 120.0957278 | G10: =EXP((PRB!$B$192*1)+(PRB!$C$192*EFW!AD31)+(PRB!$D$192*EFW!AD31^2)+(PRB!$E$192*EFW!AD31^3)+(PRB!$F$192*sexm)+(PRB!$G$192*heightn)+(PRB!$H$192*weightn)+(PRB!$I$192*EFW!AD31*weightn)+(PRB!$J$192*parity1)+(PRB!$K$192*parity2)+(PRB!$L$192*parity3)+(PRB!$M$192*EFW!AD31*parity1)+(PRB!$N$192*EFW!AD31*parity2)+(PRB!$O$192*EFW!AD31*parity3)) -> 131.336644 | H10: =EXP((PRB!$B$193*1)+(PRB!$C$193*EFW!AD31)+(PRB!$D$193*EFW!AD31^2)+(PRB!$E$193*EFW!AD31^3)+(PRB!$F$193*sexm)+(PRB!$G$193*heightn)+(PRB!$H$193*weightn)+(PRB!$I$193*EFW!AD31*weightn)+(PRB!$J$193*parity1)+(PRB!$K$193*parity2)+(PRB!$L$193*parity3)+(PRB!$M$193*EFW!AD31*parity1)+(PRB!$N$193*EFW!AD31*parity2)+(PRB!$O$193*EFW!AD31*parity3)) -> 142.2466168 | I10: =EXP((PRB!$B$194*1)+(PRB!$C$194*EFW!AD31)+(PRB!$D$194*EFW!AD31^2)+(PRB!$E$194*EFW!AD31^3)+(PRB!$F$194*sexm)+(PRB!$G$194*heightn)+(PRB!$H$194*weightn)+(PRB!$I$194*EFW!AD31*weightn)+(PRB!$J$194*parity1)+(PRB!$K$194*parity2)+(PRB!$L$194*parity3)+(PRB!$M$194*EFW!AD31*parity1)+(PRB!$N$194*EFW!AD31*parity2)+(PRB!$O$194*EFW!AD31*parity3)) -> 150.631239 | J10: =EXP((PRB!$B$195*1)+(PRB!$C$195*EFW!AD31)+(PRB!$D$195*EFW!AD31^2)+(PRB!$E$195*EFW!AD31^3)+(PRB!$F$195*sexm)+(PRB!$G$195*heightn)+(PRB!$H$195*weightn)+(PRB!$I$195*EFW!AD31*weightn)+(PRB!$J$195*parity1)+(PRB!$K$195*parity2)+(PRB!$L$195*parity3)+(PRB!$M$195*EFW!AD31*parity1)+(PRB!$N$195*EFW!AD31*parity2)+(PRB!$O$195*EFW!AD31*parity3)) -> 155.4920503
A11: 15.28571429 | B11: =EXP((PRB!B187*1)+(PRB!C187*EFW!AD32)+(PRB!D187*EFW!AD32^2)+(PRB!E187*EFW!AD32^3)+(PRB!F187*sexm)+(PRB!G187*heightn)+(PRB!H187*weightn)+(PRB!I187*EFW!AD32*weightn)+(PRB!J187*parity1)+(PRB!K187*parity2)+(PRB!L187*parity3)+(PRB!M187*EFW!AD32*parity1)+(PRB!N187*EFW!AD32*parity2)+(PRB!O187*EFW!AD32*parity3)) -> 97.27914299 | C11: =EXP((PRB!B188*1)+(PRB!C188*EFW!AD32)+(PRB!D188*EFW!AD32^2)+(PRB!E188*EFW!AD32^3)+(PRB!F188*sexm)+(PRB!G188*heightn)+(PRB!H188*weightn)+(PRB!I188*EFW!AD32*weightn)+(PRB!J188*parity1)+(PRB!K188*parity2)+(PRB!L188*parity3)+(PRB!M188*EFW!AD32*parity1)+(PRB!N188*EFW!AD32*parity2)+(PRB!O188*EFW!AD32*parity3)) -> 100.5816032 | D11: =EXP((PRB!B189*1)+(PRB!C189*EFW!AD32)+(PRB!D189*EFW!AD32^2)+(PRB!E189*EFW!AD32^3)+(PRB!F189*sexm)+(PRB!G189*heightn)+(PRB!H189*weightn)+(PRB!I189*EFW!AD32*weightn)+(PRB!J189*parity1)+(PRB!K189*parity2)+(PRB!L189*parity3)+(PRB!M189*EFW!AD32*parity1)+(PRB!N189*EFW!AD32*parity2)+(PRB!O189*EFW!AD32*parity3)) -> 106.1097329 | E11: =EXP((PRB!B190*1)+(PRB!C190*EFW!AD32)+(PRB!D190*EFW!AD32^2)+(PRB!E190*EFW!AD32^3)+(PRB!F190*sexm)+(PRB!G190*heightn)+(PRB!H190*weightn)+(PRB!I190*EFW!AD32*weightn)+(PRB!J190*parity1)+(PRB!K190*parity2)+(PRB!L190*parity3)+(PRB!M190*EFW!AD32*parity1)+(PRB!N190*EFW!AD32*parity2)+(PRB!O190*EFW!AD32*parity3)) -> 115.3670487 | F11: =EXP((PRB!B191*1)+(PRB!C191*EFW!AD32)+(PRB!D191*EFW!AD32^2)+(PRB!E191*EFW!AD32^3)+(PRB!F191*sexm)+(PRB!G191*heightn)+(PRB!H191*weightn)+(PRB!I191*EFW!AD32*weightn)+(PRB!J191*parity1)+(PRB!K191*parity2)+(PRB!L191*parity3)+(PRB!M191*EFW!AD32*parity1)+(PRB!N191*EFW!AD32*parity2)+(PRB!O191*EFW!AD32*parity3)) -> 124.0331146 | G11: =EXP((PRB!$B$192*1)+(PRB!$C$192*EFW!AD32)+(PRB!$D$192*EFW!AD32^2)+(PRB!$E$192*EFW!AD32^3)+(PRB!$F$192*sexm)+(PRB!$G$192*heightn)+(PRB!$H$192*weightn)+(PRB!$I$192*EFW!AD32*weightn)+(PRB!$J$192*parity1)+(PRB!$K$192*parity2)+(PRB!$L$192*parity3)+(PRB!$M$192*EFW!AD32*parity1)+(PRB!$N$192*EFW!AD32*parity2)+(PRB!$O$192*EFW!AD32*parity3)) -> 135.5690306 | H11: =EXP((PRB!$B$193*1)+(PRB!$C$193*EFW!AD32)+(PRB!$D$193*EFW!AD32^2)+(PRB!$E$193*EFW!AD32^3)+(PRB!$F$193*sexm)+(PRB!$G$193*heightn)+(PRB!$H$193*weightn)+(PRB!$I$193*EFW!AD32*weightn)+(PRB!$J$193*parity1)+(PRB!$K$193*parity2)+(PRB!$L$193*parity3)+(PRB!$M$193*EFW!AD32*parity1)+(PRB!$N$193*EFW!AD32*parity2)+(PRB!$O$193*EFW!AD32*parity3)) -> 146.8056357 | I11: =EXP((PRB!$B$194*1)+(PRB!$C$194*EFW!AD32)+(PRB!$D$194*EFW!AD32^2)+(PRB!$E$194*EFW!AD32^3)+(PRB!$F$194*sexm)+(PRB!$G$194*heightn)+(PRB!$H$194*weightn)+(PRB!$I$194*EFW!AD32*weightn)+(PRB!$J$194*parity1)+(PRB!$K$194*parity2)+(PRB!$L$194*parity3)+(PRB!$M$194*EFW!AD32*parity1)+(PRB!$N$194*EFW!AD32*parity2)+(PRB!$O$194*EFW!AD32*parity3)) -> 155.3584524 | J11: =EXP((PRB!$B$195*1)+(PRB!$C$195*EFW!AD32)+(PRB!$D$195*EFW!AD32^2)+(PRB!$E$195*EFW!AD32^3)+(PRB!$F$195*sexm)+(PRB!$G$195*heightn)+(PRB!$H$195*weightn)+(PRB!$I$195*EFW!AD32*weightn)+(PRB!$J$195*parity1)+(PRB!$K$195*parity2)+(PRB!$L$195*parity3)+(PRB!$M$195*EFW!AD32*parity1)+(PRB!$N$195*EFW!AD32*parity2)+(PRB!$O$195*EFW!AD32*parity3)) -> 160.3384719
A12: 15.42857143 | B12: =EXP((PRB!B187*1)+(PRB!C187*EFW!AD33)+(PRB!D187*EFW!AD33^2)+(PRB!E187*EFW!AD33^3)+(PRB!F187*sexm)+(PRB!G187*heightn)+(PRB!H187*weightn)+(PRB!I187*EFW!AD33*weightn)+(PRB!J187*parity1)+(PRB!K187*parity2)+(PRB!L187*parity3)+(PRB!M187*EFW!AD33*parity1)+(PRB!N187*EFW!AD33*parity2)+(PRB!O187*EFW!AD33*parity3)) -> 100.5264335 | C12: =EXP((PRB!B188*1)+(PRB!C188*EFW!AD33)+(PRB!D188*EFW!AD33^2)+(PRB!E188*EFW!AD33^3)+(PRB!F188*sexm)+(PRB!G188*heightn)+(PRB!H188*weightn)+(PRB!I188*EFW!AD33*weightn)+(PRB!J188*parity1)+(PRB!K188*parity2)+(PRB!L188*parity3)+(PRB!M188*EFW!AD33*parity1)+(PRB!N188*EFW!AD33*parity2)+(PRB!O188*EFW!AD33*parity3)) -> 103.9578987 | D12: =EXP((PRB!B189*1)+(PRB!C189*EFW!AD33)+(PRB!D189*EFW!AD33^2)+(PRB!E189*EFW!AD33^3)+(PRB!F189*sexm)+(PRB!G189*heightn)+(PRB!H189*weightn)+(PRB!I189*EFW!AD33*weightn)+(PRB!J189*parity1)+(PRB!K189*parity2)+(PRB!L189*parity3)+(PRB!M189*EFW!AD33*parity1)+(PRB!N189*EFW!AD33*parity2)+(PRB!O189*EFW!AD33*parity3)) -> 109.6291962 | E12: =EXP((PRB!B190*1)+(PRB!C190*EFW!AD33)+(PRB!D190*EFW!AD33^2)+(PRB!E190*EFW!AD33^3)+(PRB!F190*sexm)+(PRB!G190*heightn)+(PRB!H190*weightn)+(PRB!I190*EFW!AD33*weightn)+(PRB!J190*parity1)+(PRB!K190*parity2)+(PRB!L190*parity3)+(PRB!M190*EFW!AD33*parity1)+(PRB!N190*EFW!AD33*parity2)+(PRB!O190*EFW!AD33*parity3)) -> 119.1230476 | F12: =EXP((PRB!B191*1)+(PRB!C191*EFW!AD33)+(PRB!D191*EFW!AD33^2)+(PRB!E191*EFW!AD33^3)+(PRB!F191*sexm)+(PRB!G191*heightn)+(PRB!H191*weightn)+(PRB!I191*EFW!AD33*weightn)+(PRB!J191*parity1)+(PRB!K191*parity2)+(PRB!L191*parity3)+(PRB!M191*EFW!AD33*parity1)+(PRB!N191*EFW!AD33*parity2)+(PRB!O191*EFW!AD33*parity3)) -> 128.0777369 | G12: =EXP((PRB!$B$192*1)+(PRB!$C$192*EFW!AD33)+(PRB!$D$192*EFW!AD33^2)+(PRB!$E$192*EFW!AD33^3)+(PRB!$F$192*sexm)+(PRB!$G$192*heightn)+(PRB!$H$192*weightn)+(PRB!$I$192*EFW!AD33*weightn)+(PRB!$J$192*parity1)+(PRB!$K$192*parity2)+(PRB!$L$192*parity3)+(PRB!$M$192*EFW!AD33*parity1)+(PRB!$N$192*EFW!AD33*parity2)+(PRB!$O$192*EFW!AD33*parity3)) -> 139.9154683 | H12: =EXP((PRB!$B$193*1)+(PRB!$C$193*EFW!AD33)+(PRB!$D$193*EFW!AD33^2)+(PRB!$E$193*EFW!AD33^3)+(PRB!$F$193*sexm)+(PRB!$G$193*heightn)+(PRB!$H$193*weightn)+(PRB!$I$193*EFW!AD33*weightn)+(PRB!$J$193*parity1)+(PRB!$K$193*parity2)+(PRB!$L$193*parity3)+(PRB!$M$193*EFW!AD33*parity1)+(PRB!$N$193*EFW!AD33*parity2)+(PRB!$O$193*EFW!AD33*parity3)) -> 151.4867287 | I12: =EXP((PRB!$B$194*1)+(PRB!$C$194*EFW!AD33)+(PRB!$D$194*EFW!AD33^2)+(PRB!$E$194*EFW!AD33^3)+(PRB!$F$194*sexm)+(PRB!$G$194*heightn)+(PRB!$H$194*weightn)+(PRB!$I$194*EFW!AD33*weightn)+(PRB!$J$194*parity1)+(PRB!$K$194*parity2)+(PRB!$L$194*parity3)+(PRB!$M$194*EFW!AD33*parity1)+(PRB!$N$194*EFW!AD33*parity2)+(PRB!$O$194*EFW!AD33*parity3)) -> 160.2113132 | J12: =EXP((PRB!$B$195*1)+(PRB!$C$195*EFW!AD33)+(PRB!$D$195*EFW!AD33^2)+(PRB!$E$195*EFW!AD33^3)+(PRB!$F$195*sexm)+(PRB!$G$195*heightn)+(PRB!$H$195*weightn)+(PRB!$I$195*EFW!AD33*weightn)+(PRB!$J$195*parity1)+(PRB!$K$195*parity2)+(PRB!$L$195*parity3)+(PRB!$M$195*EFW!AD33*parity1)+(PRB!$N$195*EFW!AD33*parity2)+(PRB!$O$195*EFW!AD33*parity3)) -> 165.3141787
A13: 15.57142857 | B13: =EXP((PRB!B187*1)+(PRB!C187*EFW!AD34)+(PRB!D187*EFW!AD34^2)+(PRB!E187*EFW!AD34^3)+(PRB!F187*sexm)+(PRB!G187*heightn)+(PRB!H187*weightn)+(PRB!I187*EFW!AD34*weightn)+(PRB!J187*parity1)+(PRB!K187*parity2)+(PRB!L187*parity3)+(PRB!M187*EFW!AD34*parity1)+(PRB!N187*EFW!AD34*parity2)+(PRB!O187*EFW!AD34*parity3)) -> 103.8631208 | C13: =EXP((PRB!B188*1)+(PRB!C188*EFW!AD34)+(PRB!D188*EFW!AD34^2)+(PRB!E188*EFW!AD34^3)+(PRB!F188*sexm)+(PRB!G188*heightn)+(PRB!H188*weightn)+(PRB!I188*EFW!AD34*weightn)+(PRB!J188*parity1)+(PRB!K188*parity2)+(PRB!L188*parity3)+(PRB!M188*EFW!AD34*parity1)+(PRB!N188*EFW!AD34*parity2)+(PRB!O188*EFW!AD34*parity3)) -> 107.427396 | D13: =EXP((PRB!B189*1)+(PRB!C189*EFW!AD34)+(PRB!D189*EFW!AD34^2)+(PRB!E189*EFW!AD34^3)+(PRB!F189*sexm)+(PRB!G189*heightn)+(PRB!H189*weightn)+(PRB!I189*EFW!AD34*weightn)+(PRB!J189*parity1)+(PRB!K189*parity2)+(PRB!L189*parity3)+(PRB!M189*EFW!AD34*parity1)+(PRB!N189*EFW!AD34*parity2)+(PRB!O189*EFW!AD34*parity3)) -> 113.245121 | E13: =EXP((PRB!B190*1)+(PRB!C190*EFW!AD34)+(PRB!D190*EFW!AD34^2)+(PRB!E190*EFW!AD34^3)+(PRB!F190*sexm)+(PRB!G190*heightn)+(PRB!H190*weightn)+(PRB!I190*EFW!AD34*weightn)+(PRB!J190*parity1)+(PRB!K190*parity2)+(PRB!L190*parity3)+(PRB!M190*EFW!AD34*parity1)+(PRB!N190*EFW!AD34*parity2)+(PRB!O190*EFW!AD34*parity3)) -> 122.9808864 | F13: =EXP((PRB!B191*1)+(PRB!C191*EFW!AD34)+(PRB!D191*EFW!AD34^2)+(PRB!E191*EFW!AD34^3)+(PRB!F191*sexm)+(PRB!G191*heightn)+(PRB!H191*weightn)+(PRB!I191*EFW!AD34*weightn)+(PRB!J191*parity1)+(PRB!K191*parity2)+(PRB!L191*parity3)+(PRB!M191*EFW!AD34*parity1)+(PRB!N191*EFW!AD34*parity2)+(PRB!O191*EFW!AD34*parity3)) -> 132.2317374 | G13: =EXP((PRB!$B$192*1)+(PRB!$C$192*EFW!AD34)+(PRB!$D$192*EFW!AD34^2)+(PRB!$E$192*EFW!AD34^3)+(PRB!$F$192*sexm)+(PRB!$G$192*heightn)+(PRB!$H$192*weightn)+(PRB!$I$192*EFW!AD34*weightn)+(PRB!$J$192*parity1)+(PRB!$K$192*parity2)+(PRB!$L$192*parity3)+(PRB!$M$192*EFW!AD34*parity1)+(PRB!$N$192*EFW!AD34*parity2)+(PRB!$O$192*EFW!AD34*parity3)) -> 144.3782391 | H13: =EXP((PRB!$B$193*1)+(PRB!$C$193*EFW!AD34)+(PRB!$D$193*EFW!AD34^2)+(PRB!$E$193*EFW!AD34^3)+(PRB!$F$193*sexm)+(PRB!$G$193*heightn)+(PRB!$H$193*weightn)+(PRB!$I$193*EFW!AD34*weightn)+(PRB!$J$193*parity1)+(PRB!$K$193*parity2)+(PRB!$L$193*parity3)+(PRB!$M$193*EFW!AD34*parity1)+(PRB!$N$193*EFW!AD34*parity2)+(PRB!$O$193*EFW!AD34*parity3)) -> 156.2923176 | I13: =EXP((PRB!$B$194*1)+(PRB!$C$194*EFW!AD34)+(PRB!$D$194*EFW!AD34^2)+(PRB!$E$194*EFW!AD34^3)+(PRB!$F$194*sexm)+(PRB!$G$194*heightn)+(PRB!$H$194*weightn)+(PRB!$I$194*EFW!AD34*weightn)+(PRB!$J$194*parity1)+(PRB!$K$194*parity2)+(PRB!$L$194*parity3)+(PRB!$M$194*EFW!AD34*parity1)+(PRB!$N$194*EFW!AD34*parity2)+(PRB!$O$194*EFW!AD34*parity3)) -> 165.1923587 | J13: =EXP((PRB!$B$195*1)+(PRB!$C$195*EFW!AD34)+(PRB!$D$195*EFW!AD34^2)+(PRB!$E$195*EFW!AD34^3)+(PRB!$F$195*sexm)+(PRB!$G$195*heightn)+(PRB!$H$195*weightn)+(PRB!$I$195*EFW!AD34*weightn)+(PRB!$J$195*parity1)+(PRB!$K$195*parity2)+(PRB!$L$195*parity3)+(PRB!$M$195*EFW!AD34*parity1)+(PRB!$N$195*EFW!AD34*parity2)+(PRB!$O$195*EFW!AD34*parity3)) -> 170.4218404
A14: 15.71428571 | B14: =EXP((PRB!B187*1)+(PRB!C187*EFW!AD35)+(PRB!D187*EFW!AD35^2)+(PRB!E187*EFW!AD35^3)+(PRB!F187*sexm)+(PRB!G187*heightn)+(PRB!H187*weightn)+(PRB!I187*EFW!AD35*weightn)+(PRB!J187*parity1)+(PRB!K187*parity2)+(PRB!L187*parity3)+(PRB!M187*EFW!AD35*parity1)+(PRB!N187*EFW!AD35*parity2)+(PRB!O187*EFW!AD35*parity3)) -> 107.2909755 | C14: =EXP((PRB!B188*1)+(PRB!C188*EFW!AD35)+(PRB!D188*EFW!AD35^2)+(PRB!E188*EFW!AD35^3)+(PRB!F188*sexm)+(PRB!G188*heightn)+(PRB!H188*weightn)+(PRB!I188*EFW!AD35*weightn)+(PRB!J188*parity1)+(PRB!K188*parity2)+(PRB!L188*parity3)+(PRB!M188*EFW!AD35*parity1)+(PRB!N188*EFW!AD35*parity2)+(PRB!O188*EFW!AD35*parity3)) -> 110.9919381 | D14: =EXP((PRB!B189*1)+(PRB!C189*EFW!AD35)+(PRB!D189*EFW!AD35^2)+(PRB!E189*EFW!AD35^3)+(PRB!F189*sexm)+(PRB!G189*heightn)+(PRB!H189*weightn)+(PRB!I189*EFW!AD35*weightn)+(PRB!J189*parity1)+(PRB!K189*parity2)+(PRB!L189*parity3)+(PRB!M189*EFW!AD35*parity1)+(PRB!N189*EFW!AD35*parity2)+(PRB!O189*EFW!AD35*parity3)) -> 116.9594223 | E14: =EXP((PRB!B190*1)+(PRB!C190*EFW!AD35)+(PRB!D190*EFW!AD35^2)+(PRB!E190*EFW!AD35^3)+(PRB!F190*sexm)+(PRB!G190*heightn)+(PRB!H190*weightn)+(PRB!I190*EFW!AD35*weightn)+(PRB!J190*parity1)+(PRB!K190*parity2)+(PRB!L190*parity3)+(PRB!M190*EFW!AD35*parity1)+(PRB!N190*EFW!AD35*parity2)+(PRB!O190*EFW!AD35*parity3)) -> 126.9425977 | F14: =EXP((PRB!B191*1)+(PRB!C191*EFW!AD35)+(PRB!D191*EFW!AD35^2)+(PRB!E191*EFW!AD35^3)+(PRB!F191*sexm)+(PRB!G191*heightn)+(PRB!H191*weightn)+(PRB!I191*EFW!AD35*weightn)+(PRB!J191*parity1)+(PRB!K191*parity2)+(PRB!L191*parity3)+(PRB!M191*EFW!AD35*parity1)+(PRB!N191*EFW!AD35*parity2)+(PRB!O191*EFW!AD35*parity3)) -> 136.497276 | G14: =EXP((PRB!$B$192*1)+(PRB!$C$192*EFW!AD35)+(PRB!$D$192*EFW!AD35^2)+(PRB!$E$192*EFW!AD35^3)+(PRB!$F$192*sexm)+(PRB!$G$192*heightn)+(PRB!$H$192*weightn)+(PRB!$I$192*EFW!AD35*weightn)+(PRB!$J$192*parity1)+(PRB!$K$192*parity2)+(PRB!$L$192*parity3)+(PRB!$M$192*EFW!AD35*parity1)+(PRB!$N$192*EFW!AD35*parity2)+(PRB!$O$192*EFW!AD35*parity3)) -> 148.9596447 | H14: =EXP((PRB!$B$193*1)+(PRB!$C$193*EFW!AD35)+(PRB!$D$193*EFW!AD35^2)+(PRB!$E$193*EFW!AD35^3)+(PRB!$F$193*sexm)+(PRB!$G$193*heightn)+(PRB!$H$193*weightn)+(PRB!$I$193*EFW!AD35*weightn)+(PRB!$J$193*parity1)+(PRB!$K$193*parity2)+(PRB!$L$193*parity3)+(PRB!$M$193*EFW!AD35*parity1)+(PRB!$N$193*EFW!AD35*parity2)+(PRB!$O$193*EFW!AD35*parity3)) -> 161.2248446 | I14: =EXP((PRB!$B$194*1)+(PRB!$C$194*EFW!AD35)+(PRB!$D$194*EFW!AD35^2)+(PRB!$E$194*EFW!AD35^3)+(PRB!$F$194*sexm)+(PRB!$G$194*heightn)+(PRB!$H$194*weightn)+(PRB!$I$194*EFW!AD35*weightn)+(PRB!$J$194*parity1)+(PRB!$K$194*parity2)+(PRB!$L$194*parity3)+(PRB!$M$194*EFW!AD35*parity1)+(PRB!$N$194*EFW!AD35*parity2)+(PRB!$O$194*EFW!AD35*parity3)) -> 170.304151 | J14: =EXP((PRB!$B$195*1)+(PRB!$C$195*EFW!AD35)+(PRB!$D$195*EFW!AD35^2)+(PRB!$E$195*EFW!AD35^3)+(PRB!$F$195*sexm)+(PRB!$G$195*heightn)+(PRB!$H$195*weightn)+(PRB!$I$195*EFW!AD35*weightn)+(PRB!$J$195*parity1)+(PRB!$K$195*parity2)+(PRB!$L$195*parity3)+(PRB!$M$195*EFW!AD35*parity1)+(PRB!$N$195*EFW!AD35*parity2)+(PRB!$O$195*EFW!AD35*parity3)) -> 175.6641552
A15: 15.85714286 | B15: =EXP((PRB!B187*1)+(PRB!C187*EFW!AD36)+(PRB!D187*EFW!AD36^2)+(PRB!E187*EFW!AD36^3)+(PRB!F187*sexm)+(PRB!G187*heightn)+(PRB!H187*weightn)+(PRB!I187*EFW!AD36*weightn)+(PRB!J187*parity1)+(PRB!K187*parity2)+(PRB!L187*parity3)+(PRB!M187*EFW!AD36*parity1)+(PRB!N187*EFW!AD36*parity2)+(PRB!O187*EFW!AD36*parity3)) -> 110.8117801 | C15: =EXP((PRB!B188*1)+(PRB!C188*EFW!AD36)+(PRB!D188*EFW!AD36^2)+(PRB!E188*EFW!AD36^3)+(PRB!F188*sexm)+(PRB!G188*heightn)+(PRB!H188*weightn)+(PRB!I188*EFW!AD36*weightn)+(PRB!J188*parity1)+(PRB!K188*parity2)+(PRB!L188*parity3)+(PRB!M188*EFW!AD36*parity1)+(PRB!N188*EFW!AD36*parity2)+(PRB!O188*EFW!AD36*parity3)) -> 114.6533802 | D15: =EXP((PRB!B189*1)+(PRB!C189*EFW!AD36)+(PRB!D189*EFW!AD36^2)+(PRB!E189*EFW!AD36^3)+(PRB!F189*sexm)+(PRB!G189*heightn)+(PRB!H189*weightn)+(PRB!I189*EFW!AD36*weightn)+(PRB!J189*parity1)+(PRB!K189*parity2)+(PRB!L189*parity3)+(PRB!M189*EFW!AD36*parity1)+(PRB!N189*EFW!AD36*parity2)+(PRB!O189*EFW!AD36*parity3)) -> 120.7740289 | E15: =EXP((PRB!B190*1)+(PRB!C190*EFW!AD36)+(PRB!D190*EFW!AD36^2)+(PRB!E190*EFW!AD36^3)+(PRB!F190*sexm)+(PRB!G190*heightn)+(PRB!H190*weightn)+(PRB!I190*EFW!AD36*weightn)+(PRB!J190*parity1)+(PRB!K190*parity2)+(PRB!L190*parity3)+(PRB!M190*EFW!AD36*parity1)+(PRB!N190*EFW!AD36*parity2)+(PRB!O190*EFW!AD36*parity3)) -> 131.010231 | F15: =EXP((PRB!B191*1)+(PRB!C191*EFW!AD36)+(PRB!D191*EFW!AD36^2)+(PRB!E191*EFW!AD36^3)+(PRB!F191*sexm)+(PRB!G191*heightn)+(PRB!H191*weightn)+(PRB!I191*EFW!AD36*weightn)+(PRB!J191*parity1)+(PRB!K191*parity2)+(PRB!L191*parity3)+(PRB!M191*EFW!AD36*parity1)+(PRB!N191*EFW!AD36*parity2)+(PRB!O191*EFW!AD36*parity3)) -> 140.8765297 | G15: =EXP((PRB!$B$192*1)+(PRB!$C$192*EFW!AD36)+(PRB!$D$192*EFW!AD36^2)+(PRB!$E$192*EFW!AD36^3)+(PRB!$F$192*sexm)+(PRB!$G$192*heightn)+(PRB!$H$192*weightn)+(PRB!$I$192*EFW!AD36*weightn)+(PRB!$J$192*parity1)+(PRB!$K$192*parity2)+(PRB!$L$192*parity3)+(PRB!$M$192*EFW!AD36*parity1)+(PRB!$N$192*EFW!AD36*parity2)+(PRB!$O$192*EFW!AD36*parity3)) -> 153.6620058 | H15: =EXP((PRB!$B$193*1)+(PRB!$C$193*EFW!AD36)+(PRB!$D$193*EFW!AD36^2)+(PRB!$E$193*EFW!AD36^3)+(PRB!$F$193*sexm)+(PRB!$G$193*heightn)+(PRB!$H$193*weightn)+(PRB!$I$193*EFW!AD36*weightn)+(PRB!$J$193*parity1)+(PRB!$K$193*parity2)+(PRB!$L$193*parity3)+(PRB!$M$193*EFW!AD36*parity1)+(PRB!$N$193*EFW!AD36*parity2)+(PRB!$O$193*EFW!AD36*parity3)) -> 166.2867721 | I15: =EXP((PRB!$B$194*1)+(PRB!$C$194*EFW!AD36)+(PRB!$D$194*EFW!AD36^2)+(PRB!$E$194*EFW!AD36^3)+(PRB!$F$194*sexm)+(PRB!$G$194*heightn)+(PRB!$H$194*weightn)+(PRB!$I$194*EFW!AD36*weightn)+(PRB!$J$194*parity1)+(PRB!$K$194*parity2)+(PRB!$L$194*parity3)+(PRB!$M$194*EFW!AD36*parity1)+(PRB!$N$194*EFW!AD36*parity2)+(PRB!$O$194*EFW!AD36*parity3)) -> 175.5492758 | J15: =EXP((PRB!$B$195*1)+(PRB!$C$195*EFW!AD36)+(PRB!$D$195*EFW!AD36^2)+(PRB!$E$195*EFW!AD36^3)+(PRB!$F$195*sexm)+(PRB!$G$195*heightn)+(PRB!$H$195*weightn)+(PRB!$I$195*EFW!AD36*weightn)+(PRB!$J$195*parity1)+(PRB!$K$195*parity2)+(PRB!$L$195*parity3)+(PRB!$M$195*EFW!AD36*parity1)+(PRB!$N$195*EFW!AD36*parity2)+(PRB!$O$195*EFW!AD36*parity3)) -> 181.0438493
A16: 16 | B16: =EXP((PRB!B187*1)+(PRB!C187*EFW!AD37)+(PRB!D187*EFW!AD37^2)+(PRB!E187*EFW!AD37^3)+(PRB!F187*sexm)+(PRB!G187*heightn)+(PRB!H187*weightn)+(PRB!I187*EFW!AD37*weightn)+(PRB!J187*parity1)+(PRB!K187*parity2)+(PRB!L187*parity3)+(PRB!M187*EFW!AD37*parity1)+(PRB!N187*EFW!AD37*parity2)+(PRB!O187*EFW!AD37*parity3)) -> 114.4273288 | C16: =EXP((PRB!B188*1)+(PRB!C188*EFW!AD37)+(PRB!D188*EFW!AD37^2)+(PRB!E188*EFW!AD37^3)+(PRB!F188*sexm)+(PRB!G188*heightn)+(PRB!H188*weightn)+(PRB!I188*EFW!AD37*weightn)+(PRB!J188*parity1)+(PRB!K188*parity2)+(PRB!L188*parity3)+(PRB!M188*EFW!AD37*parity1)+(PRB!N188*EFW!AD37*parity2)+(PRB!O188*EFW!AD37*parity3)) -> 118.4135894 | D16: =EXP((PRB!B189*1)+(PRB!C189*EFW!AD37)+(PRB!D189*EFW!AD37^2)+(PRB!E189*EFW!AD37^3)+(PRB!F189*sexm)+(PRB!G189*heightn)+(PRB!H189*weightn)+(PRB!I189*EFW!AD37*weightn)+(PRB!J189*parity1)+(PRB!K189*parity2)+(PRB!L189*parity3)+(PRB!M189*EFW!AD37*parity1)+(PRB!N189*EFW!AD37*parity2)+(PRB!O189*EFW!AD37*parity3)) -> 124.6908833 | E16: =EXP((PRB!B190*1)+(PRB!C190*EFW!AD37)+(PRB!D190*EFW!AD37^2)+(PRB!E190*EFW!AD37^3)+(PRB!F190*sexm)+(PRB!G190*heightn)+(PRB!H190*weightn)+(PRB!I190*EFW!AD37*weightn)+(PRB!J190*parity1)+(PRB!K190*parity2)+(PRB!L190*parity3)+(PRB!M190*EFW!AD37*parity1)+(PRB!N190*EFW!AD37*parity2)+(PRB!O190*EFW!AD37*parity3)) -> 135.1858517 | F16: =EXP((PRB!B191*1)+(PRB!C191*EFW!AD37)+(PRB!D191*EFW!AD37^2)+(PRB!E191*EFW!AD37^3)+(PRB!F191*sexm)+(PRB!G191*heightn)+(PRB!H191*weightn)+(PRB!I191*EFW!AD37*weightn)+(PRB!J191*parity1)+(PRB!K191*parity2)+(PRB!L191*parity3)+(PRB!M191*EFW!AD37*parity1)+(PRB!N191*EFW!AD37*parity2)+(PRB!O191*EFW!AD37*parity3)) -> 145.3716912 | G16: =EXP((PRB!$B$192*1)+(PRB!$C$192*EFW!AD37)+(PRB!$D$192*EFW!AD37^2)+(PRB!$E$192*EFW!AD37^3)+(PRB!$F$192*sexm)+(PRB!$G$192*heightn)+(PRB!$H$192*weightn)+(PRB!$I$192*EFW!AD37*weightn)+(PRB!$J$192*parity1)+(PRB!$K$192*parity2)+(PRB!$L$192*parity3)+(PRB!$M$192*EFW!AD37*parity1)+(PRB!$N$192*EFW!AD37*parity2)+(PRB!$O$192*EFW!AD37*parity3)) -> 158.4876616 | H16: =EXP((PRB!$B$193*1)+(PRB!$C$193*EFW!AD37)+(PRB!$D$193*EFW!AD37^2)+(PRB!$E$193*EFW!AD37^3)+(PRB!$F$193*sexm)+(PRB!$G$193*heightn)+(PRB!$H$193*weightn)+(PRB!$I$193*EFW!AD37*weightn)+(PRB!$J$193*parity1)+(PRB!$K$193*parity2)+(PRB!$L$193*parity3)+(PRB!$M$193*EFW!AD37*parity1)+(PRB!$N$193*EFW!AD37*parity2)+(PRB!$O$193*EFW!AD37*parity3)) -> 171.4805809 | I16: =EXP((PRB!$B$194*1)+(PRB!$C$194*EFW!AD37)+(PRB!$D$194*EFW!AD37^2)+(PRB!$E$194*EFW!AD37^3)+(PRB!$F$194*sexm)+(PRB!$G$194*heightn)+(PRB!$H$194*weightn)+(PRB!$I$194*EFW!AD37*weightn)+(PRB!$J$194*parity1)+(PRB!$K$194*parity2)+(PRB!$L$194*parity3)+(PRB!$M$194*EFW!AD37*parity1)+(PRB!$N$194*EFW!AD37*parity2)+(PRB!$O$194*EFW!AD37*parity3)) -> 180.9303422 | J16: =EXP((PRB!$B$195*1)+(PRB!$C$195*EFW!AD37)+(PRB!$D$195*EFW!AD37^2)+(PRB!$E$195*EFW!AD37^3)+(PRB!$F$195*sexm)+(PRB!$G$195*heightn)+(PRB!$H$195*weightn)+(PRB!$I$195*EFW!AD37*weightn)+(PRB!$J$195*parity1)+(PRB!$K$195*parity2)+(PRB!$L$195*parity3)+(PRB!$M$195*EFW!AD37*parity1)+(PRB!$N$195*EFW!AD37*parity2)+(PRB!$O$195*EFW!AD37*parity3)) -> 186.5636762
A17: 16.14285714 | B17: =EXP((PRB!B187*1)+(PRB!C187*EFW!AD38)+(PRB!D187*EFW!AD38^2)+(PRB!E187*EFW!AD38^3)+(PRB!F187*sexm)+(PRB!G187*heightn)+(PRB!H187*weightn)+(PRB!I187*EFW!AD38*weightn)+(PRB!J187*parity1)+(PRB!K187*parity2)+(PRB!L187*parity3)+(PRB!M187*EFW!AD38*parity1)+(PRB!N187*EFW!AD38*parity2)+(PRB!O187*EFW!AD38*parity3)) -> 118.1394263 | C17: =EXP((PRB!B188*1)+(PRB!C188*EFW!AD38)+(PRB!D188*EFW!AD38^2)+(PRB!E188*EFW!AD38^3)+(PRB!F188*sexm)+(PRB!G188*heightn)+(PRB!H188*weightn)+(PRB!I188*EFW!AD38*weightn)+(PRB!J188*parity1)+(PRB!K188*parity2)+(PRB!L188*parity3)+(PRB!M188*EFW!AD38*parity1)+(PRB!N188*EFW!AD38*parity2)+(PRB!O188*EFW!AD38*parity3)) -> 122.2744437 | D17: =EXP((PRB!B189*1)+(PRB!C189*EFW!AD38)+(PRB!D189*EFW!AD38^2)+(PRB!E189*EFW!AD38^3)+(PRB!F189*sexm)+(PRB!G189*heightn)+(PRB!H189*weightn)+(PRB!I189*EFW!AD38*weightn)+(PRB!J189*parity1)+(PRB!K189*parity2)+(PRB!L189*parity3)+(PRB!M189*EFW!AD38*parity1)+(PRB!N189*EFW!AD38*parity2)+(PRB!O189*EFW!AD38*parity3)) -> 128.7119406 | E17: =EXP((PRB!B190*1)+(PRB!C190*EFW!AD38)+(PRB!D190*EFW!AD38^2)+(PRB!E190*EFW!AD38^3)+(PRB!F190*sexm)+(PRB!G190*heightn)+(PRB!H190*weightn)+(PRB!I190*EFW!AD38*weightn)+(PRB!J190*parity1)+(PRB!K190*parity2)+(PRB!L190*parity3)+(PRB!M190*EFW!AD38*parity1)+(PRB!N190*EFW!AD38*parity2)+(PRB!O190*EFW!AD38*parity3)) -> 139.4715407 | F17: =EXP((PRB!B191*1)+(PRB!C191*EFW!AD38)+(PRB!D191*EFW!AD38^2)+(PRB!E191*EFW!AD38^3)+(PRB!F191*sexm)+(PRB!G191*heightn)+(PRB!H191*weightn)+(PRB!I191*EFW!AD38*weightn)+(PRB!J191*parity1)+(PRB!K191*parity2)+(PRB!L191*parity3)+(PRB!M191*EFW!AD38*parity1)+(PRB!N191*EFW!AD38*parity2)+(PRB!O191*EFW!AD38*parity3)) -> 149.9849688 | G17: =EXP((PRB!$B$192*1)+(PRB!$C$192*EFW!AD38)+(PRB!$D$192*EFW!AD38^2)+(PRB!$E$192*EFW!AD38^3)+(PRB!$F$192*sexm)+(PRB!$G$192*heightn)+(PRB!$H$192*weightn)+(PRB!$I$192*EFW!AD38*weightn)+(PRB!$J$192*parity1)+(PRB!$K$192*parity2)+(PRB!$L$192*parity3)+(PRB!$M$192*EFW!AD38*parity1)+(PRB!$N$192*EFW!AD38*parity2)+(PRB!$O$192*EFW!AD38*parity3)) -> 163.4389688 | H17: =EXP((PRB!$B$193*1)+(PRB!$C$193*EFW!AD38)+(PRB!$D$193*EFW!AD38^2)+(PRB!$E$193*EFW!AD38^3)+(PRB!$F$193*sexm)+(PRB!$G$193*heightn)+(PRB!$H$193*weightn)+(PRB!$I$193*EFW!AD38*weightn)+(PRB!$J$193*parity1)+(PRB!$K$193*parity2)+(PRB!$L$193*parity3)+(PRB!$M$193*EFW!AD38*parity1)+(PRB!$N$193*EFW!AD38*parity2)+(PRB!$O$193*EFW!AD38*parity3)) -> 176.8087704 | I17: =EXP((PRB!$B$194*1)+(PRB!$C$194*EFW!AD38)+(PRB!$D$194*EFW!AD38^2)+(PRB!$E$194*EFW!AD38^3)+(PRB!$F$194*sexm)+(PRB!$G$194*heightn)+(PRB!$H$194*weightn)+(PRB!$I$194*EFW!AD38*weightn)+(PRB!$J$194*parity1)+(PRB!$K$194*parity2)+(PRB!$L$194*parity3)+(PRB!$M$194*EFW!AD38*parity1)+(PRB!$N$194*EFW!AD38*parity2)+(PRB!$O$194*EFW!AD38*parity3)) -> 186.4499819 | J17: =EXP((PRB!$B$195*1)+(PRB!$C$195*EFW!AD38)+(PRB!$D$195*EFW!AD38^2)+(PRB!$E$195*EFW!AD38^3)+(PRB!$F$195*sexm)+(PRB!$G$195*heightn)+(PRB!$H$195*weightn)+(PRB!$I$195*EFW!AD38*weightn)+(PRB!$J$195*parity1)+(PRB!$K$195*parity2)+(PRB!$L$195*parity3)+(PRB!$M$195*EFW!AD38*parity1)+(PRB!$N$195*EFW!AD38*parity2)+(PRB!$O$195*EFW!AD38*parity3)) -> 192.2264162
A18: 16.28571429 | B18: =EXP((PRB!B187*1)+(PRB!C187*EFW!AD39)+(PRB!D187*EFW!AD39^2)+(PRB!E187*EFW!AD39^3)+(PRB!F187*sexm)+(PRB!G187*heightn)+(PRB!H187*weightn)+(PRB!I187*EFW!AD39*weightn)+(PRB!J187*parity1)+(PRB!K187*parity2)+(PRB!L187*parity3)+(PRB!M187*EFW!AD39*parity1)+(PRB!N187*EFW!AD39*parity2)+(PRB!O187*EFW!AD39*parity3)) -> 121.9498873 | C18: =EXP((PRB!B188*1)+(PRB!C188*EFW!AD39)+(PRB!D188*EFW!AD39^2)+(PRB!E188*EFW!AD39^3)+(PRB!F188*sexm)+(PRB!G188*heightn)+(PRB!H188*weightn)+(PRB!I188*EFW!AD39*weightn)+(PRB!J188*parity1)+(PRB!K188*parity2)+(PRB!L188*parity3)+(PRB!M188*EFW!AD39*parity1)+(PRB!N188*EFW!AD39*parity2)+(PRB!O188*EFW!AD39*parity3)) -> 126.2378313 | D18: =EXP((PRB!B189*1)+(PRB!C189*EFW!AD39)+(PRB!D189*EFW!AD39^2)+(PRB!E189*EFW!AD39^3)+(PRB!F189*sexm)+(PRB!G189*heightn)+(PRB!H189*weightn)+(PRB!I189*EFW!AD39*weightn)+(PRB!J189*parity1)+(PRB!K189*parity2)+(PRB!L189*parity3)+(PRB!M189*EFW!AD39*parity1)+(PRB!N189*EFW!AD39*parity2)+(PRB!O189*EFW!AD39*parity3)) -> 132.8391678 | E18: =EXP((PRB!B190*1)+(PRB!C190*EFW!AD39)+(PRB!D190*EFW!AD39^2)+(PRB!E190*EFW!AD39^3)+(PRB!F190*sexm)+(PRB!G190*heightn)+(PRB!H190*weightn)+(PRB!I190*EFW!AD39*weightn)+(PRB!J190*parity1)+(PRB!K190*parity2)+(PRB!L190*parity3)+(PRB!M190*EFW!AD39*parity1)+(PRB!N190*EFW!AD39*parity2)+(PRB!O190*EFW!AD39*parity3)) -> 143.8693934 | F18: =EXP((PRB!B191*1)+(PRB!C191*EFW!AD39)+(PRB!D191*EFW!AD39^2)+(PRB!E191*EFW!AD39^3)+(PRB!F191*sexm)+(PRB!G191*heightn)+(PRB!H191*weightn)+(PRB!I191*EFW!AD39*weightn)+(PRB!J191*parity1)+(PRB!K191*parity2)+(PRB!L191*parity3)+(PRB!M191*EFW!AD39*parity1)+(PRB!N191*EFW!AD39*parity2)+(PRB!O191*EFW!AD39*parity3)) -> 154.7185853 | G18: =EXP((PRB!$B$192*1)+(PRB!$C$192*EFW!AD39)+(PRB!$D$192*EFW!AD39^2)+(PRB!$E$192*EFW!AD39^3)+(PRB!$F$192*sexm)+(PRB!$G$192*heightn)+(PRB!$H$192*weightn)+(PRB!$I$192*EFW!AD39*weightn)+(PRB!$J$192*parity1)+(PRB!$K$192*parity2)+(PRB!$L$192*parity3)+(PRB!$M$192*EFW!AD39*parity1)+(PRB!$N$192*EFW!AD39*parity2)+(PRB!$O$192*EFW!AD39*parity3)) -> 168.518301 | H18: =EXP((PRB!$B$193*1)+(PRB!$C$193*EFW!AD39)+(PRB!$D$193*EFW!AD39^2)+(PRB!$E$193*EFW!AD39^3)+(PRB!$F$193*sexm)+(PRB!$G$193*heightn)+(PRB!$H$193*weightn)+(PRB!$I$193*EFW!AD39*weightn)+(PRB!$J$193*parity1)+(PRB!$K$193*parity2)+(PRB!$L$193*parity3)+(PRB!$M$193*EFW!AD39*parity1)+(PRB!$N$193*EFW!AD39*parity2)+(PRB!$O$193*EFW!AD39*parity3)) -> 182.2738573 | I18: =EXP((PRB!$B$194*1)+(PRB!$C$194*EFW!AD39)+(PRB!$D$194*EFW!AD39^2)+(PRB!$E$194*EFW!AD39^3)+(PRB!$F$194*sexm)+(PRB!$G$194*heightn)+(PRB!$H$194*weightn)+(PRB!$I$194*EFW!AD39*weightn)+(PRB!$J$194*parity1)+(PRB!$K$194*parity2)+(PRB!$L$194*parity3)+(PRB!$M$194*EFW!AD39*parity1)+(PRB!$N$194*EFW!AD39*parity2)+(PRB!$O$194*EFW!AD39*parity3)) -> 192.1108481 | J18: =EXP((PRB!$B$195*1)+(PRB!$C$195*EFW!AD39)+(PRB!$D$195*EFW!AD39^2)+(PRB!$E$195*EFW!AD39^3)+(PRB!$F$195*sexm)+(PRB!$G$195*heightn)+(PRB!$H$195*weightn)+(PRB!$I$195*EFW!AD39*weightn)+(PRB!$J$195*parity1)+(PRB!$K$195*parity2)+(PRB!$L$195*parity3)+(PRB!$M$195*EFW!AD39*parity1)+(PRB!$N$195*EFW!AD39*parity2)+(PRB!$O$195*EFW!AD39*parity3)) -> 198.0348755
A19: 16.42857143 | B19: =EXP((PRB!B187*1)+(PRB!C187*EFW!AD40)+(PRB!D187*EFW!AD40^2)+(PRB!E187*EFW!AD40^3)+(PRB!F187*sexm)+(PRB!G187*heightn)+(PRB!H187*weightn)+(PRB!I187*EFW!AD40*weightn)+(PRB!J187*parity1)+(PRB!K187*parity2)+(PRB!L187*parity3)+(PRB!M187*EFW!AD40*parity1)+(PRB!N187*EFW!AD40*parity2)+(PRB!O187*EFW!AD40*parity3)) -> 125.8605359 | C19: =EXP((PRB!B188*1)+(PRB!C188*EFW!AD40)+(PRB!D188*EFW!AD40^2)+(PRB!E188*EFW!AD40^3)+(PRB!F188*sexm)+(PRB!G188*heightn)+(PRB!H188*weightn)+(PRB!I188*EFW!AD40*weightn)+(PRB!J188*parity1)+(PRB!K188*parity2)+(PRB!L188*parity3)+(PRB!M188*EFW!AD40*parity1)+(PRB!N188*EFW!AD40*parity2)+(PRB!O188*EFW!AD40*parity3)) -> 130.3056497 | D19: =EXP((PRB!B189*1)+(PRB!C189*EFW!AD40)+(PRB!D189*EFW!AD40^2)+(PRB!E189*EFW!AD40^3)+(PRB!F189*sexm)+(PRB!G189*heightn)+(PRB!H189*weightn)+(PRB!I189*EFW!AD40*weightn)+(PRB!J189*parity1)+(PRB!K189*parity2)+(PRB!L189*parity3)+(PRB!M189*EFW!AD40*parity1)+(PRB!N189*EFW!AD40*parity2)+(PRB!O189*EFW!AD40*parity3)) -> 137.0745433 | E19: =EXP((PRB!B190*1)+(PRB!C190*EFW!AD40)+(PRB!D190*EFW!AD40^2)+(PRB!E190*EFW!AD40^3)+(PRB!F190*sexm)+(PRB!G190*heightn)+(PRB!H190*weightn)+(PRB!I190*EFW!AD40*weightn)+(PRB!J190*parity1)+(PRB!K190*parity2)+(PRB!L190*parity3)+(PRB!M190*EFW!AD40*parity1)+(PRB!N190*EFW!AD40*parity2)+(PRB!O190*EFW!AD40*parity3)) -> 148.3815191 | F19: =EXP((PRB!B191*1)+(PRB!C191*EFW!AD40)+(PRB!D191*EFW!AD40^2)+(PRB!E191*EFW!AD40^3)+(PRB!F191*sexm)+(PRB!G191*heightn)+(PRB!H191*weightn)+(PRB!I191*EFW!AD40*weightn)+(PRB!J191*parity1)+(PRB!K191*parity2)+(PRB!L191*parity3)+(PRB!M191*EFW!AD40*parity1)+(PRB!N191*EFW!AD40*parity2)+(PRB!O191*EFW!AD40*parity3)) -> 159.5747773 | G19: =EXP((PRB!$B$192*1)+(PRB!$C$192*EFW!AD40)+(PRB!$D$192*EFW!AD40^2)+(PRB!$E$192*EFW!AD40^3)+(PRB!$F$192*sexm)+(PRB!$G$192*heightn)+(PRB!$H$192*weightn)+(PRB!$I$192*EFW!AD40*weightn)+(PRB!$J$192*parity1)+(PRB!$K$192*parity2)+(PRB!$L$192*parity3)+(PRB!$M$192*EFW!AD40*parity1)+(PRB!$N$192*EFW!AD40*parity2)+(PRB!$O$192*EFW!AD40*parity3)) -> 173.7280476 | H19: =EXP((PRB!$B$193*1)+(PRB!$C$193*EFW!AD40)+(PRB!$D$193*EFW!AD40^2)+(PRB!$E$193*EFW!AD40^3)+(PRB!$F$193*sexm)+(PRB!$G$193*heightn)+(PRB!$H$193*weightn)+(PRB!$I$193*EFW!AD40*weightn)+(PRB!$J$193*parity1)+(PRB!$K$193*parity2)+(PRB!$L$193*parity3)+(PRB!$M$193*EFW!AD40*parity1)+(PRB!$N$193*EFW!AD40*parity2)+(PRB!$O$193*EFW!AD40*parity3)) -> 187.8783747 | I19: =EXP((PRB!$B$194*1)+(PRB!$C$194*EFW!AD40)+(PRB!$D$194*EFW!AD40^2)+(PRB!$E$194*EFW!AD40^3)+(PRB!$F$194*sexm)+(PRB!$G$194*heightn)+(PRB!$H$194*weightn)+(PRB!$I$194*EFW!AD40*weightn)+(PRB!$J$194*parity1)+(PRB!$K$194*parity2)+(PRB!$L$194*parity3)+(PRB!$M$194*EFW!AD40*parity1)+(PRB!$N$194*EFW!AD40*parity2)+(PRB!$O$194*EFW!AD40*parity3)) -> 197.9156152 | J19: =EXP((PRB!$B$195*1)+(PRB!$C$195*EFW!AD40)+(PRB!$D$195*EFW!AD40^2)+(PRB!$E$195*EFW!AD40^3)+(PRB!$F$195*sexm)+(PRB!$G$195*heightn)+(PRB!$H$195*weightn)+(PRB!$I$195*EFW!AD40*weightn)+(PRB!$J$195*parity1)+(PRB!$K$195*parity2)+(PRB!$L$195*parity3)+(PRB!$M$195*EFW!AD40*parity1)+(PRB!$N$195*EFW!AD40*parity2)+(PRB!$O$195*EFW!AD40*parity3)) -> 203.9918854
A20: 16.57142857 | B20: =EXP((PRB!B187*1)+(PRB!C187*EFW!AD41)+(PRB!D187*EFW!AD41^2)+(PRB!E187*EFW!AD41^3)+(PRB!F187*sexm)+(PRB!G187*heightn)+(PRB!H187*weightn)+(PRB!I187*EFW!AD41*weightn)+(PRB!J187*parity1)+(PRB!K187*parity2)+(PRB!L187*parity3)+(PRB!M187*EFW!AD41*parity1)+(PRB!N187*EFW!AD41*parity2)+(PRB!O187*EFW!AD41*parity3)) -> 129.8732042 | C20: =EXP((PRB!B188*1)+(PRB!C188*EFW!AD41)+(PRB!D188*EFW!AD41^2)+(PRB!E188*EFW!AD41^3)+(PRB!F188*sexm)+(PRB!G188*heightn)+(PRB!H188*weightn)+(PRB!I188*EFW!AD41*weightn)+(PRB!J188*parity1)+(PRB!K188*parity2)+(PRB!L188*parity3)+(PRB!M188*EFW!AD41*parity1)+(PRB!N188*EFW!AD41*parity2)+(PRB!O188*EFW!AD41*parity3)) -> 134.4798052 | D20: =EXP((PRB!B189*1)+(PRB!C189*EFW!AD41)+(PRB!D189*EFW!AD41^2)+(PRB!E189*EFW!AD41^3)+(PRB!F189*sexm)+(PRB!G189*heightn)+(PRB!H189*weightn)+(PRB!I189*EFW!AD41*weightn)+(PRB!J189*parity1)+(PRB!K189*parity2)+(PRB!L189*parity3)+(PRB!M189*EFW!AD41*parity1)+(PRB!N189*EFW!AD41*parity2)+(PRB!O189*EFW!AD41*parity3)) -> 141.4200557 | E20: =EXP((PRB!B190*1)+(PRB!C190*EFW!AD41)+(PRB!D190*EFW!AD41^2)+(PRB!E190*EFW!AD41^3)+(PRB!F190*sexm)+(PRB!G190*heightn)+(PRB!H190*weightn)+(PRB!I190*EFW!AD41*weightn)+(PRB!J190*parity1)+(PRB!K190*parity2)+(PRB!L190*parity3)+(PRB!M190*EFW!AD41*parity1)+(PRB!N190*EFW!AD41*parity2)+(PRB!O190*EFW!AD41*parity3)) -> 153.0100403 | F20: =EXP((PRB!B191*1)+(PRB!C191*EFW!AD41)+(PRB!D191*EFW!AD41^2)+(PRB!E191*EFW!AD41^3)+(PRB!F191*sexm)+(PRB!G191*heightn)+(PRB!H191*weightn)+(PRB!I191*EFW!AD41*weightn)+(PRB!J191*parity1)+(PRB!K191*parity2)+(PRB!L191*parity3)+(PRB!M191*EFW!AD41*parity1)+(PRB!N191*EFW!AD41*parity2)+(PRB!O191*EFW!AD41*parity3)) -> 164.5557944 | G20: =EXP((PRB!$B$192*1)+(PRB!$C$192*EFW!AD41)+(PRB!$D$192*EFW!AD41^2)+(PRB!$E$192*EFW!AD41^3)+(PRB!$F$192*sexm)+(PRB!$G$192*heightn)+(PRB!$H$192*weightn)+(PRB!$I$192*EFW!AD41*weightn)+(PRB!$J$192*parity1)+(PRB!$K$192*parity2)+(PRB!$L$192*parity3)+(PRB!$M$192*EFW!AD41*parity1)+(PRB!$N$192*EFW!AD41*parity2)+(PRB!$O$192*EFW!AD41*parity3)) -> 179.0706134 | H20: =EXP((PRB!$B$193*1)+(PRB!$C$193*EFW!AD41)+(PRB!$D$193*EFW!AD41^2)+(PRB!$E$193*EFW!AD41^3)+(PRB!$F$193*sexm)+(PRB!$G$193*heightn)+(PRB!$H$193*weightn)+(PRB!$I$193*EFW!AD41*weightn)+(PRB!$J$193*parity1)+(PRB!$K$193*parity2)+(PRB!$L$193*parity3)+(PRB!$M$193*EFW!AD41*parity1)+(PRB!$N$193*EFW!AD41*parity2)+(PRB!$O$193*EFW!AD41*parity3)) -> 193.6248714 | I20: =EXP((PRB!$B$194*1)+(PRB!$C$194*EFW!AD41)+(PRB!$D$194*EFW!AD41^2)+(PRB!$E$194*EFW!AD41^3)+(PRB!$F$194*sexm)+(PRB!$G$194*heightn)+(PRB!$H$194*weightn)+(PRB!$I$194*EFW!AD41*weightn)+(PRB!$J$194*parity1)+(PRB!$K$194*parity2)+(PRB!$L$194*parity3)+(PRB!$M$194*EFW!AD41*parity1)+(PRB!$N$194*EFW!AD41*parity2)+(PRB!$O$194*EFW!AD41*parity3)) -> 203.8669775 | J20: =EXP((PRB!$B$195*1)+(PRB!$C$195*EFW!AD41)+(PRB!$D$195*EFW!AD41^2)+(PRB!$E$195*EFW!AD41^3)+(PRB!$F$195*sexm)+(PRB!$G$195*heightn)+(PRB!$H$195*weightn)+(PRB!$I$195*EFW!AD41*weightn)+(PRB!$J$195*parity1)+(PRB!$K$195*parity2)+(PRB!$L$195*parity3)+(PRB!$M$195*EFW!AD41*parity1)+(PRB!$N$195*EFW!AD41*parity2)+(PRB!$O$195*EFW!AD41*parity3)) -> 210.1003016
A21: 16.71428571 | B21: =EXP((PRB!B187*1)+(PRB!C187*EFW!AD42)+(PRB!D187*EFW!AD42^2)+(PRB!E187*EFW!AD42^3)+(PRB!F187*sexm)+(PRB!G187*heightn)+(PRB!H187*weightn)+(PRB!I187*EFW!AD42*weightn)+(PRB!J187*parity1)+(PRB!K187*parity2)+(PRB!L187*parity3)+(PRB!M187*EFW!AD42*parity1)+(PRB!N187*EFW!AD42*parity2)+(PRB!O187*EFW!AD42*parity3)) -> 133.9897323 | C21: =EXP((PRB!B188*1)+(PRB!C188*EFW!AD42)+(PRB!D188*EFW!AD42^2)+(PRB!E188*EFW!AD42^3)+(PRB!F188*sexm)+(PRB!G188*heightn)+(PRB!H188*weightn)+(PRB!I188*EFW!AD42*weightn)+(PRB!J188*parity1)+(PRB!K188*parity2)+(PRB!L188*parity3)+(PRB!M188*EFW!AD42*parity1)+(PRB!N188*EFW!AD42*parity2)+(PRB!O188*EFW!AD42*parity3)) -> 138.7622118 | D21: =EXP((PRB!B189*1)+(PRB!C189*EFW!AD42)+(PRB!D189*EFW!AD42^2)+(PRB!E189*EFW!AD42^3)+(PRB!F189*sexm)+(PRB!G189*heightn)+(PRB!H189*weightn)+(PRB!I189*EFW!AD42*weightn)+(PRB!J189*parity1)+(PRB!K189*parity2)+(PRB!L189*parity3)+(PRB!M189*EFW!AD42*parity1)+(PRB!N189*EFW!AD42*parity2)+(PRB!O189*EFW!AD42*parity3)) -> 145.8777034 | E21: =EXP((PRB!B190*1)+(PRB!C190*EFW!AD42)+(PRB!D190*EFW!AD42^2)+(PRB!E190*EFW!AD42^3)+(PRB!F190*sexm)+(PRB!G190*heightn)+(PRB!H190*weightn)+(PRB!I190*EFW!AD42*weightn)+(PRB!J190*parity1)+(PRB!K190*parity2)+(PRB!L190*parity3)+(PRB!M190*EFW!AD42*parity1)+(PRB!N190*EFW!AD42*parity2)+(PRB!O190*EFW!AD42*parity3)) -> 157.7570916 | F21: =EXP((PRB!B191*1)+(PRB!C191*EFW!AD42)+(PRB!D191*EFW!AD42^2)+(PRB!E191*EFW!AD42^3)+(PRB!F191*sexm)+(PRB!G191*heightn)+(PRB!H191*weightn)+(PRB!I191*EFW!AD42*weightn)+(PRB!J191*parity1)+(PRB!K191*parity2)+(PRB!L191*parity3)+(PRB!M191*EFW!AD42*parity1)+(PRB!N191*EFW!AD42*parity2)+(PRB!O191*EFW!AD42*parity3)) -> 169.6638981 | G21: =EXP((PRB!$B$192*1)+(PRB!$C$192*EFW!AD42)+(PRB!$D$192*EFW!AD42^2)+(PRB!$E$192*EFW!AD42^3)+(PRB!$F$192*sexm)+(PRB!$G$192*heightn)+(PRB!$H$192*weightn)+(PRB!$I$192*EFW!AD42*weightn)+(PRB!$J$192*parity1)+(PRB!$K$192*parity2)+(PRB!$L$192*parity3)+(PRB!$M$192*EFW!AD42*parity1)+(PRB!$N$192*EFW!AD42*parity2)+(PRB!$O$192*EFW!AD42*parity3)) -> 184.5484175 | H21: =EXP((PRB!$B$193*1)+(PRB!$C$193*EFW!AD42)+(PRB!$D$193*EFW!AD42^2)+(PRB!$E$193*EFW!AD42^3)+(PRB!$F$193*sexm)+(PRB!$G$193*heightn)+(PRB!$H$193*weightn)+(PRB!$I$193*EFW!AD42*weightn)+(PRB!$J$193*parity1)+(PRB!$K$193*parity2)+(PRB!$L$193*parity3)+(PRB!$M$193*EFW!AD42*parity1)+(PRB!$N$193*EFW!AD42*parity2)+(PRB!$O$193*EFW!AD42*parity3)) -> 199.5159108 | I21: =EXP((PRB!$B$194*1)+(PRB!$C$194*EFW!AD42)+(PRB!$D$194*EFW!AD42^2)+(PRB!$E$194*EFW!AD42^3)+(PRB!$F$194*sexm)+(PRB!$G$194*heightn)+(PRB!$H$194*weightn)+(PRB!$I$194*EFW!AD42*weightn)+(PRB!$J$194*parity1)+(PRB!$K$194*parity2)+(PRB!$L$194*parity3)+(PRB!$M$194*EFW!AD42*parity1)+(PRB!$N$194*EFW!AD42*parity2)+(PRB!$O$194*EFW!AD42*parity3)) -> 209.9676483 | J21: =EXP((PRB!$B$195*1)+(PRB!$C$195*EFW!AD42)+(PRB!$D$195*EFW!AD42^2)+(PRB!$E$195*EFW!AD42^3)+(PRB!$F$195*sexm)+(PRB!$G$195*heightn)+(PRB!$H$195*weightn)+(PRB!$I$195*EFW!AD42*weightn)+(PRB!$J$195*parity1)+(PRB!$K$195*parity2)+(PRB!$L$195*parity3)+(PRB!$M$195*EFW!AD42*parity1)+(PRB!$N$195*EFW!AD42*parity2)+(PRB!$O$195*EFW!AD42*parity3)) -> 216.3630032
A22: 16.85714286 | B22: =EXP((PRB!B187*1)+(PRB!C187*EFW!AD43)+(PRB!D187*EFW!AD43^2)+(PRB!E187*EFW!AD43^3)+(PRB!F187*sexm)+(PRB!G187*heightn)+(PRB!H187*weightn)+(PRB!I187*EFW!AD43*weightn)+(PRB!J187*parity1)+(PRB!K187*parity2)+(PRB!L187*parity3)+(PRB!M187*EFW!AD43*parity1)+(PRB!N187*EFW!AD43*parity2)+(PRB!O187*EFW!AD43*parity3)) -> 138.2119668 | C22: =EXP((PRB!B188*1)+(PRB!C188*EFW!AD43)+(PRB!D188*EFW!AD43^2)+(PRB!E188*EFW!AD43^3)+(PRB!F188*sexm)+(PRB!G188*heightn)+(PRB!H188*weightn)+(PRB!I188*EFW!AD43*weightn)+(PRB!J188*parity1)+(PRB!K188*parity2)+(PRB!L188*parity3)+(PRB!M188*EFW!AD43*parity1)+(PRB!N188*EFW!AD43*parity2)+(PRB!O188*EFW!AD43*parity3)) -> 143.1547902 | D22: =EXP((PRB!B189*1)+(PRB!C189*EFW!AD43)+(PRB!D189*EFW!AD43^2)+(PRB!E189*EFW!AD43^3)+(PRB!F189*sexm)+(PRB!G189*heightn)+(PRB!H189*weightn)+(PRB!I189*EFW!AD43*weightn)+(PRB!J189*parity1)+(PRB!K189*parity2)+(PRB!L189*parity3)+(PRB!M189*EFW!AD43*parity1)+(PRB!N189*EFW!AD43*parity2)+(PRB!O189*EFW!AD43*parity3)) -> 150.4494935 | E22: =EXP((PRB!B190*1)+(PRB!C190*EFW!AD43)+(PRB!D190*EFW!AD43^2)+(PRB!E190*EFW!AD43^3)+(PRB!F190*sexm)+(PRB!G190*heightn)+(PRB!H190*weightn)+(PRB!I190*EFW!AD43*weightn)+(PRB!J190*parity1)+(PRB!K190*parity2)+(PRB!L190*parity3)+(PRB!M190*EFW!AD43*parity1)+(PRB!N190*EFW!AD43*parity2)+(PRB!O190*EFW!AD43*parity3)) -> 162.6248195 | F22: =EXP((PRB!B191*1)+(PRB!C191*EFW!AD43)+(PRB!D191*EFW!AD43^2)+(PRB!E191*EFW!AD43^3)+(PRB!F191*sexm)+(PRB!G191*heightn)+(PRB!H191*weightn)+(PRB!I191*EFW!AD43*weightn)+(PRB!J191*parity1)+(PRB!K191*parity2)+(PRB!L191*parity3)+(PRB!M191*EFW!AD43*parity1)+(PRB!N191*EFW!AD43*parity2)+(PRB!O191*EFW!AD43*parity3)) -> 174.9013614 | G22: =EXP((PRB!$B$192*1)+(PRB!$C$192*EFW!AD43)+(PRB!$D$192*EFW!AD43^2)+(PRB!$E$192*EFW!AD43^3)+(PRB!$F$192*sexm)+(PRB!$G$192*heightn)+(PRB!$H$192*weightn)+(PRB!$I$192*EFW!AD43*weightn)+(PRB!$J$192*parity1)+(PRB!$K$192*parity2)+(PRB!$L$192*parity3)+(PRB!$M$192*EFW!AD43*parity1)+(PRB!$N$192*EFW!AD43*parity2)+(PRB!$O$192*EFW!AD43*parity3)) -> 190.1638921 | H22: =EXP((PRB!$B$193*1)+(PRB!$C$193*EFW!AD43)+(PRB!$D$193*EFW!AD43^2)+(PRB!$E$193*EFW!AD43^3)+(PRB!$F$193*sexm)+(PRB!$G$193*heightn)+(PRB!$H$193*weightn)+(PRB!$I$193*EFW!AD43*weightn)+(PRB!$J$193*parity1)+(PRB!$K$193*parity2)+(PRB!$L$193*parity3)+(PRB!$M$193*EFW!AD43*parity1)+(PRB!$N$193*EFW!AD43*parity2)+(PRB!$O$193*EFW!AD43*parity3)) -> 205.5540701 | I22: =EXP((PRB!$B$194*1)+(PRB!$C$194*EFW!AD43)+(PRB!$D$194*EFW!AD43^2)+(PRB!$E$194*EFW!AD43^3)+(PRB!$F$194*sexm)+(PRB!$G$194*heightn)+(PRB!$H$194*weightn)+(PRB!$I$194*EFW!AD43*weightn)+(PRB!$J$194*parity1)+(PRB!$K$194*parity2)+(PRB!$L$194*parity3)+(PRB!$M$194*EFW!AD43*parity1)+(PRB!$N$194*EFW!AD43*parity2)+(PRB!$O$194*EFW!AD43*parity3)) -> 216.2203595 | J22: =EXP((PRB!$B$195*1)+(PRB!$C$195*EFW!AD43)+(PRB!$D$195*EFW!AD43^2)+(PRB!$E$195*EFW!AD43^3)+(PRB!$F$195*sexm)+(PRB!$G$195*heightn)+(PRB!$H$195*weightn)+(PRB!$I$195*EFW!AD43*weightn)+(PRB!$J$195*parity1)+(PRB!$K$195*parity2)+(PRB!$L$195*parity3)+(PRB!$M$195*EFW!AD43*parity1)+(PRB!$N$195*EFW!AD43*parity2)+(PRB!$O$195*EFW!AD43*parity3)) -> 222.782892
A23: 17 | B23: =EXP((PRB!B187*1)+(PRB!C187*EFW!AD44)+(PRB!D187*EFW!AD44^2)+(PRB!E187*EFW!AD44^3)+(PRB!F187*sexm)+(PRB!G187*heightn)+(PRB!H187*weightn)+(PRB!I187*EFW!AD44*weightn)+(PRB!J187*parity1)+(PRB!K187*parity2)+(PRB!L187*parity3)+(PRB!M187*EFW!AD44*parity1)+(PRB!N187*EFW!AD44*parity2)+(PRB!O187*EFW!AD44*parity3)) -> 142.5417601 | C23: =EXP((PRB!B188*1)+(PRB!C188*EFW!AD44)+(PRB!D188*EFW!AD44^2)+(PRB!E188*EFW!AD44^3)+(PRB!F188*sexm)+(PRB!G188*heightn)+(PRB!H188*weightn)+(PRB!I188*EFW!AD44*weightn)+(PRB!J188*parity1)+(PRB!K188*parity2)+(PRB!L188*parity3)+(PRB!M188*EFW!AD44*parity1)+(PRB!N188*EFW!AD44*parity2)+(PRB!O188*EFW!AD44*parity3)) -> 147.6594674 | D23: =EXP((PRB!B189*1)+(PRB!C189*EFW!AD44)+(PRB!D189*EFW!AD44^2)+(PRB!E189*EFW!AD44^3)+(PRB!F189*sexm)+(PRB!G189*heightn)+(PRB!H189*weightn)+(PRB!I189*EFW!AD44*weightn)+(PRB!J189*parity1)+(PRB!K189*parity2)+(PRB!L189*parity3)+(PRB!M189*EFW!AD44*parity1)+(PRB!N189*EFW!AD44*parity2)+(PRB!O189*EFW!AD44*parity3)) -> 155.1374409 | E23: =EXP((PRB!B190*1)+(PRB!C190*EFW!AD44)+(PRB!D190*EFW!AD44^2)+(PRB!E190*EFW!AD44^3)+(PRB!F190*sexm)+(PRB!G190*heightn)+(PRB!H190*weightn)+(PRB!I190*EFW!AD44*weightn)+(PRB!J190*parity1)+(PRB!K190*parity2)+(PRB!L190*parity3)+(PRB!M190*EFW!AD44*parity1)+(PRB!N190*EFW!AD44*parity2)+(PRB!O190*EFW!AD44*parity3)) -> 167.6153809 | F23: =EXP((PRB!B191*1)+(PRB!C191*EFW!AD44)+(PRB!D191*EFW!AD44^2)+(PRB!E191*EFW!AD44^3)+(PRB!F191*sexm)+(PRB!G191*heightn)+(PRB!H191*weightn)+(PRB!I191*EFW!AD44*weightn)+(PRB!J191*parity1)+(PRB!K191*parity2)+(PRB!L191*parity3)+(PRB!M191*EFW!AD44*parity1)+(PRB!N191*EFW!AD44*parity2)+(PRB!O191*EFW!AD44*parity3)) -> 180.2704673 | G23: =EXP((PRB!$B$192*1)+(PRB!$C$192*EFW!AD44)+(PRB!$D$192*EFW!AD44^2)+(PRB!$E$192*EFW!AD44^3)+(PRB!$F$192*sexm)+(PRB!$G$192*heightn)+(PRB!$H$192*weightn)+(PRB!$I$192*EFW!AD44*weightn)+(PRB!$J$192*parity1)+(PRB!$K$192*parity2)+(PRB!$L$192*parity3)+(PRB!$M$192*EFW!AD44*parity1)+(PRB!$N$192*EFW!AD44*parity2)+(PRB!$O$192*EFW!AD44*parity3)) -> 195.9194822 | H23: =EXP((PRB!$B$193*1)+(PRB!$C$193*EFW!AD44)+(PRB!$D$193*EFW!AD44^2)+(PRB!$E$193*EFW!AD44^3)+(PRB!$F$193*sexm)+(PRB!$G$193*heightn)+(PRB!$H$193*weightn)+(PRB!$I$193*EFW!AD44*weightn)+(PRB!$J$193*parity1)+(PRB!$K$193*parity2)+(PRB!$L$193*parity3)+(PRB!$M$193*EFW!AD44*parity1)+(PRB!$N$193*EFW!AD44*parity2)+(PRB!$O$193*EFW!AD44*parity3)) -> 211.7419392 | I23: =EXP((PRB!$B$194*1)+(PRB!$C$194*EFW!AD44)+(PRB!$D$194*EFW!AD44^2)+(PRB!$E$194*EFW!AD44^3)+(PRB!$F$194*sexm)+(PRB!$G$194*heightn)+(PRB!$H$194*weightn)+(PRB!$I$194*EFW!AD44*weightn)+(PRB!$J$194*parity1)+(PRB!$K$194*parity2)+(PRB!$L$194*parity3)+(PRB!$M$194*EFW!AD44*parity1)+(PRB!$N$194*EFW!AD44*parity2)+(PRB!$O$194*EFW!AD44*parity3)) -> 222.6278599 | J23: =EXP((PRB!$B$195*1)+(PRB!$C$195*EFW!AD44)+(PRB!$D$195*EFW!AD44^2)+(PRB!$E$195*EFW!AD44^3)+(PRB!$F$195*sexm)+(PRB!$G$195*heightn)+(PRB!$H$195*weightn)+(PRB!$I$195*EFW!AD44*weightn)+(PRB!$J$195*parity1)+(PRB!$K$195*parity2)+(PRB!$L$195*parity3)+(PRB!$M$195*EFW!AD44*parity1)+(PRB!$N$195*EFW!AD44*parity2)+(PRB!$O$195*EFW!AD44*parity3)) -> 229.3628911
A24: 17.14285714 | B24: =EXP((PRB!B187*1)+(PRB!C187*EFW!AD45)+(PRB!D187*EFW!AD45^2)+(PRB!E187*EFW!AD45^3)+(PRB!F187*sexm)+(PRB!G187*heightn)+(PRB!H187*weightn)+(PRB!I187*EFW!AD45*weightn)+(PRB!J187*parity1)+(PRB!K187*parity2)+(PRB!L187*parity3)+(PRB!M187*EFW!AD45*parity1)+(PRB!N187*EFW!AD45*parity2)+(PRB!O187*EFW!AD45*parity3)) -> 146.9809698 | C24: =EXP((PRB!B188*1)+(PRB!C188*EFW!AD45)+(PRB!D188*EFW!AD45^2)+(PRB!E188*EFW!AD45^3)+(PRB!F188*sexm)+(PRB!G188*heightn)+(PRB!H188*weightn)+(PRB!I188*EFW!AD45*weightn)+(PRB!J188*parity1)+(PRB!K188*parity2)+(PRB!L188*parity3)+(PRB!M188*EFW!AD45*parity1)+(PRB!N188*EFW!AD45*parity2)+(PRB!O188*EFW!AD45*parity3)) -> 152.2781754 | D24: =EXP((PRB!B189*1)+(PRB!C189*EFW!AD45)+(PRB!D189*EFW!AD45^2)+(PRB!E189*EFW!AD45^3)+(PRB!F189*sexm)+(PRB!G189*heightn)+(PRB!H189*weightn)+(PRB!I189*EFW!AD45*weightn)+(PRB!J189*parity1)+(PRB!K189*parity2)+(PRB!L189*parity3)+(PRB!M189*EFW!AD45*parity1)+(PRB!N189*EFW!AD45*parity2)+(PRB!O189*EFW!AD45*parity3)) -> 159.9435677 | E24: =EXP((PRB!B190*1)+(PRB!C190*EFW!AD45)+(PRB!D190*EFW!AD45^2)+(PRB!E190*EFW!AD45^3)+(PRB!F190*sexm)+(PRB!G190*heightn)+(PRB!H190*weightn)+(PRB!I190*EFW!AD45*weightn)+(PRB!J190*parity1)+(PRB!K190*parity2)+(PRB!L190*parity3)+(PRB!M190*EFW!AD45*parity1)+(PRB!N190*EFW!AD45*parity2)+(PRB!O190*EFW!AD45*parity3)) -> 172.7309425 | F24: =EXP((PRB!B191*1)+(PRB!C191*EFW!AD45)+(PRB!D191*EFW!AD45^2)+(PRB!E191*EFW!AD45^3)+(PRB!F191*sexm)+(PRB!G191*heightn)+(PRB!H191*weightn)+(PRB!I191*EFW!AD45*weightn)+(PRB!J191*parity1)+(PRB!K191*parity2)+(PRB!L191*parity3)+(PRB!M191*EFW!AD45*parity1)+(PRB!N191*EFW!AD45*parity2)+(PRB!O191*EFW!AD45*parity3)) -> 185.7735084 | G24: =EXP((PRB!$B$192*1)+(PRB!$C$192*EFW!AD45)+(PRB!$D$192*EFW!AD45^2)+(PRB!$E$192*EFW!AD45^3)+(PRB!$F$192*sexm)+(PRB!$G$192*heightn)+(PRB!$H$192*weightn)+(PRB!$I$192*EFW!AD45*weightn)+(PRB!$J$192*parity1)+(PRB!$K$192*parity2)+(PRB!$L$192*parity3)+(PRB!$M$192*EFW!AD45*parity1)+(PRB!$N$192*EFW!AD45*parity2)+(PRB!$O$192*EFW!AD45*parity3)) -> 201.817644 | H24: =EXP((PRB!$B$193*1)+(PRB!$C$193*EFW!AD45)+(PRB!$D$193*EFW!AD45^2)+(PRB!$E$193*EFW!AD45^3)+(PRB!$F$193*sexm)+(PRB!$G$193*heightn)+(PRB!$H$193*weightn)+(PRB!$I$193*EFW!AD45*weightn)+(PRB!$J$193*parity1)+(PRB!$K$193*parity2)+(PRB!$L$193*parity3)+(PRB!$M$193*EFW!AD45*parity1)+(PRB!$N$193*EFW!AD45*parity2)+(PRB!$O$193*EFW!AD45*parity3)) -> 218.0821195 | I24: =EXP((PRB!$B$194*1)+(PRB!$C$194*EFW!AD45)+(PRB!$D$194*EFW!AD45^2)+(PRB!$E$194*EFW!AD45^3)+(PRB!$F$194*sexm)+(PRB!$G$194*heightn)+(PRB!$H$194*weightn)+(PRB!$I$194*EFW!AD45*weightn)+(PRB!$J$194*parity1)+(PRB!$K$194*parity2)+(PRB!$L$194*parity3)+(PRB!$M$194*EFW!AD45*parity1)+(PRB!$N$194*EFW!AD45*parity2)+(PRB!$O$194*EFW!AD45*parity3)) -> 229.192915 | J24: =EXP((PRB!$B$195*1)+(PRB!$C$195*EFW!AD45)+(PRB!$D$195*EFW!AD45^2)+(PRB!$E$195*EFW!AD45^3)+(PRB!$F$195*sexm)+(PRB!$G$195*heightn)+(PRB!$H$195*weightn)+(PRB!$I$195*EFW!AD45*weightn)+(PRB!$J$195*parity1)+(PRB!$K$195*parity2)+(PRB!$L$195*parity3)+(PRB!$M$195*EFW!AD45*parity1)+(PRB!$N$195*EFW!AD45*parity2)+(PRB!$O$195*EFW!AD45*parity3)) -> 236.1059445
A25: 17.28571429 | B25: =EXP((PRB!B187*1)+(PRB!C187*EFW!AD46)+(PRB!D187*EFW!AD46^2)+(PRB!E187*EFW!AD46^3)+(PRB!F187*sexm)+(PRB!G187*heightn)+(PRB!H187*weightn)+(PRB!I187*EFW!AD46*weightn)+(PRB!J187*parity1)+(PRB!K187*parity2)+(PRB!L187*parity3)+(PRB!M187*EFW!AD46*parity1)+(PRB!N187*EFW!AD46*parity2)+(PRB!O187*EFW!AD46*parity3)) -> 151.5314574 | C25: =EXP((PRB!B188*1)+(PRB!C188*EFW!AD46)+(PRB!D188*EFW!AD46^2)+(PRB!E188*EFW!AD46^3)+(PRB!F188*sexm)+(PRB!G188*heightn)+(PRB!H188*weightn)+(PRB!I188*EFW!AD46*weightn)+(PRB!J188*parity1)+(PRB!K188*parity2)+(PRB!L188*parity3)+(PRB!M188*EFW!AD46*parity1)+(PRB!N188*EFW!AD46*parity2)+(PRB!O188*EFW!AD46*parity3)) -> 157.0128503 | D25: =EXP((PRB!B189*1)+(PRB!C189*EFW!AD46)+(PRB!D189*EFW!AD46^2)+(PRB!E189*EFW!AD46^3)+(PRB!F189*sexm)+(PRB!G189*heightn)+(PRB!H189*weightn)+(PRB!I189*EFW!AD46*weightn)+(PRB!J189*parity1)+(PRB!K189*parity2)+(PRB!L189*parity3)+(PRB!M189*EFW!AD46*parity1)+(PRB!N189*EFW!AD46*parity2)+(PRB!O189*EFW!AD46*parity3)) -> 164.869902 | E25: =EXP((PRB!B190*1)+(PRB!C190*EFW!AD46)+(PRB!D190*EFW!AD46^2)+(PRB!E190*EFW!AD46^3)+(PRB!F190*sexm)+(PRB!G190*heightn)+(PRB!H190*weightn)+(PRB!I190*EFW!AD46*weightn)+(PRB!J190*parity1)+(PRB!K190*parity2)+(PRB!L190*parity3)+(PRB!M190*EFW!AD46*parity1)+(PRB!N190*EFW!AD46*parity2)+(PRB!O190*EFW!AD46*parity3)) -> 177.9736798 | F25: =EXP((PRB!B191*1)+(PRB!C191*EFW!AD46)+(PRB!D191*EFW!AD46^2)+(PRB!E191*EFW!AD46^3)+(PRB!F191*sexm)+(PRB!G191*heightn)+(PRB!H191*weightn)+(PRB!I191*EFW!AD46*weightn)+(PRB!J191*parity1)+(PRB!K191*parity2)+(PRB!L191*parity3)+(PRB!M191*EFW!AD46*parity1)+(PRB!N191*EFW!AD46*parity2)+(PRB!O191*EFW!AD46*parity3)) -> 191.4127857 | G25: =EXP((PRB!$B$192*1)+(PRB!$C$192*EFW!AD46)+(PRB!$D$192*EFW!AD46^2)+(PRB!$E$192*EFW!AD46^3)+(PRB!$F$192*sexm)+(PRB!$G$192*heightn)+(PRB!$H$192*weightn)+(PRB!$I$192*EFW!AD46*weightn)+(PRB!$J$192*parity1)+(PRB!$K$192*parity2)+(PRB!$L$192*parity3)+(PRB!$M$192*EFW!AD46*parity1)+(PRB!$N$192*EFW!AD46*parity2)+(PRB!$O$192*EFW!AD46*parity3)) -> 207.8608443 | H25: =EXP((PRB!$B$193*1)+(PRB!$C$193*EFW!AD46)+(PRB!$D$193*EFW!AD46^2)+(PRB!$E$193*EFW!AD46^3)+(PRB!$F$193*sexm)+(PRB!$G$193*heightn)+(PRB!$H$193*weightn)+(PRB!$I$193*EFW!AD46*weightn)+(PRB!$J$193*parity1)+(PRB!$K$193*parity2)+(PRB!$L$193*parity3)+(PRB!$M$193*EFW!AD46*parity1)+(PRB!$N$193*EFW!AD46*parity2)+(PRB!$O$193*EFW!AD46*parity3)) -> 224.5772234 | I25: =EXP((PRB!$B$194*1)+(PRB!$C$194*EFW!AD46)+(PRB!$D$194*EFW!AD46^2)+(PRB!$E$194*EFW!AD46^3)+(PRB!$F$194*sexm)+(PRB!$G$194*heightn)+(PRB!$H$194*weightn)+(PRB!$I$194*EFW!AD46*weightn)+(PRB!$J$194*parity1)+(PRB!$K$194*parity2)+(PRB!$L$194*parity3)+(PRB!$M$194*EFW!AD46*parity1)+(PRB!$N$194*EFW!AD46*parity2)+(PRB!$O$194*EFW!AD46*parity3)) -> 235.9183051 | J25: =EXP((PRB!$B$195*1)+(PRB!$C$195*EFW!AD46)+(PRB!$D$195*EFW!AD46^2)+(PRB!$E$195*EFW!AD46^3)+(PRB!$F$195*sexm)+(PRB!$G$195*heightn)+(PRB!$H$195*weightn)+(PRB!$I$195*EFW!AD46*weightn)+(PRB!$J$195*parity1)+(PRB!$K$195*parity2)+(PRB!$L$195*parity3)+(PRB!$M$195*EFW!AD46*parity1)+(PRB!$N$195*EFW!AD46*parity2)+(PRB!$O$195*EFW!AD46*parity3)) -> 243.0150158
A26: 17.42857143 | B26: =EXP((PRB!B187*1)+(PRB!C187*EFW!AD47)+(PRB!D187*EFW!AD47^2)+(PRB!E187*EFW!AD47^3)+(PRB!F187*sexm)+(PRB!G187*heightn)+(PRB!H187*weightn)+(PRB!I187*EFW!AD47*weightn)+(PRB!J187*parity1)+(PRB!K187*parity2)+(PRB!L187*parity3)+(PRB!M187*EFW!AD47*parity1)+(PRB!N187*EFW!AD47*parity2)+(PRB!O187*EFW!AD47*parity3)) -> 156.1950876 | C26: =EXP((PRB!B188*1)+(PRB!C188*EFW!AD47)+(PRB!D188*EFW!AD47^2)+(PRB!E188*EFW!AD47^3)+(PRB!F188*sexm)+(PRB!G188*heightn)+(PRB!H188*weightn)+(PRB!I188*EFW!AD47*weightn)+(PRB!J188*parity1)+(PRB!K188*parity2)+(PRB!L188*parity3)+(PRB!M188*EFW!AD47*parity1)+(PRB!N188*EFW!AD47*parity2)+(PRB!O188*EFW!AD47*parity3)) -> 161.8654316 | D26: =EXP((PRB!B189*1)+(PRB!C189*EFW!AD47)+(PRB!D189*EFW!AD47^2)+(PRB!E189*EFW!AD47^3)+(PRB!F189*sexm)+(PRB!G189*heightn)+(PRB!H189*weightn)+(PRB!I189*EFW!AD47*weightn)+(PRB!J189*parity1)+(PRB!K189*parity2)+(PRB!L189*parity3)+(PRB!M189*EFW!AD47*parity1)+(PRB!N189*EFW!AD47*parity2)+(PRB!O189*EFW!AD47*parity3)) -> 169.918477 | E26: =EXP((PRB!B190*1)+(PRB!C190*EFW!AD47)+(PRB!D190*EFW!AD47^2)+(PRB!E190*EFW!AD47^3)+(PRB!F190*sexm)+(PRB!G190*heightn)+(PRB!H190*weightn)+(PRB!I190*EFW!AD47*weightn)+(PRB!J190*parity1)+(PRB!K190*parity2)+(PRB!L190*parity3)+(PRB!M190*EFW!AD47*parity1)+(PRB!N190*EFW!AD47*parity2)+(PRB!O190*EFW!AD47*parity3)) -> 183.3457764 | F26: =EXP((PRB!B191*1)+(PRB!C191*EFW!AD47)+(PRB!D191*EFW!AD47^2)+(PRB!E191*EFW!AD47^3)+(PRB!F191*sexm)+(PRB!G191*heightn)+(PRB!H191*weightn)+(PRB!I191*EFW!AD47*weightn)+(PRB!J191*parity1)+(PRB!K191*parity2)+(PRB!L191*parity3)+(PRB!M191*EFW!AD47*parity1)+(PRB!N191*EFW!AD47*parity2)+(PRB!O191*EFW!AD47*parity3)) -> 197.1906075 | G26: =EXP((PRB!$B$192*1)+(PRB!$C$192*EFW!AD47)+(PRB!$D$192*EFW!AD47^2)+(PRB!$E$192*EFW!AD47^3)+(PRB!$F$192*sexm)+(PRB!$G$192*heightn)+(PRB!$H$192*weightn)+(PRB!$I$192*EFW!AD47*weightn)+(PRB!$J$192*parity1)+(PRB!$K$192*parity2)+(PRB!$L$192*parity3)+(PRB!$M$192*EFW!AD47*parity1)+(PRB!$N$192*EFW!AD47*parity2)+(PRB!$O$192*EFW!AD47*parity3)) -> 214.0515592 | H26: =EXP((PRB!$B$193*1)+(PRB!$C$193*EFW!AD47)+(PRB!$D$193*EFW!AD47^2)+(PRB!$E$193*EFW!AD47^3)+(PRB!$F$193*sexm)+(PRB!$G$193*heightn)+(PRB!$H$193*weightn)+(PRB!$I$193*EFW!AD47*weightn)+(PRB!$J$193*parity1)+(PRB!$K$193*parity2)+(PRB!$L$193*parity3)+(PRB!$M$193*EFW!AD47*parity1)+(PRB!$N$193*EFW!AD47*parity2)+(PRB!$O$193*EFW!AD47*parity3)) -> 231.2298723 | I26: =EXP((PRB!$B$194*1)+(PRB!$C$194*EFW!AD47)+(PRB!$D$194*EFW!AD47^2)+(PRB!$E$194*EFW!AD47^3)+(PRB!$F$194*sexm)+(PRB!$G$194*heightn)+(PRB!$H$194*weightn)+(PRB!$I$194*EFW!AD47*weightn)+(PRB!$J$194*parity1)+(PRB!$K$194*parity2)+(PRB!$L$194*parity3)+(PRB!$M$194*EFW!AD47*parity1)+(PRB!$N$194*EFW!AD47*parity2)+(PRB!$O$194*EFW!AD47*parity3)) -> 242.8068249 | J26: =EXP((PRB!$B$195*1)+(PRB!$C$195*EFW!AD47)+(PRB!$D$195*EFW!AD47^2)+(PRB!$E$195*EFW!AD47^3)+(PRB!$F$195*sexm)+(PRB!$G$195*heightn)+(PRB!$H$195*weightn)+(PRB!$I$195*EFW!AD47*weightn)+(PRB!$J$195*parity1)+(PRB!$K$195*parity2)+(PRB!$L$195*parity3)+(PRB!$M$195*EFW!AD47*parity1)+(PRB!$N$195*EFW!AD47*parity2)+(PRB!$O$195*EFW!AD47*parity3)) -> 250.0930868
A27: 17.57142857 | B27: =EXP((PRB!B187*1)+(PRB!C187*EFW!AD48)+(PRB!D187*EFW!AD48^2)+(PRB!E187*EFW!AD48^3)+(PRB!F187*sexm)+(PRB!G187*heightn)+(PRB!H187*weightn)+(PRB!I187*EFW!AD48*weightn)+(PRB!J187*parity1)+(PRB!K187*parity2)+(PRB!L187*parity3)+(PRB!M187*EFW!AD48*parity1)+(PRB!N187*EFW!AD48*parity2)+(PRB!O187*EFW!AD48*parity3)) -> 160.9737272 | C27: =EXP((PRB!B188*1)+(PRB!C188*EFW!AD48)+(PRB!D188*EFW!AD48^2)+(PRB!E188*EFW!AD48^3)+(PRB!F188*sexm)+(PRB!G188*heightn)+(PRB!H188*weightn)+(PRB!I188*EFW!AD48*weightn)+(PRB!J188*parity1)+(PRB!K188*parity2)+(PRB!L188*parity3)+(PRB!M188*EFW!AD48*parity1)+(PRB!N188*EFW!AD48*parity2)+(PRB!O188*EFW!AD48*parity3)) -> 166.8378609 | D27: =EXP((PRB!B189*1)+(PRB!C189*EFW!AD48)+(PRB!D189*EFW!AD48^2)+(PRB!E189*EFW!AD48^3)+(PRB!F189*sexm)+(PRB!G189*heightn)+(PRB!H189*weightn)+(PRB!I189*EFW!AD48*weightn)+(PRB!J189*parity1)+(PRB!K189*parity2)+(PRB!L189*parity3)+(PRB!M189*EFW!AD48*parity1)+(PRB!N189*EFW!AD48*parity2)+(PRB!O189*EFW!AD48*parity3)) -> 175.0913303 | E27: =EXP((PRB!B190*1)+(PRB!C190*EFW!AD48)+(PRB!D190*EFW!AD48^2)+(PRB!E190*EFW!AD48^3)+(PRB!F190*sexm)+(PRB!G190*heightn)+(PRB!H190*weightn)+(PRB!I190*EFW!AD48*weightn)+(PRB!J190*parity1)+(PRB!K190*parity2)+(PRB!L190*parity3)+(PRB!M190*EFW!AD48*parity1)+(PRB!N190*EFW!AD48*parity2)+(PRB!O190*EFW!AD48*parity3)) -> 188.8494227 | F27: =EXP((PRB!B191*1)+(PRB!C191*EFW!AD48)+(PRB!D191*EFW!AD48^2)+(PRB!E191*EFW!AD48^3)+(PRB!F191*sexm)+(PRB!G191*heightn)+(PRB!H191*weightn)+(PRB!I191*EFW!AD48*weightn)+(PRB!J191*parity1)+(PRB!K191*parity2)+(PRB!L191*parity3)+(PRB!M191*EFW!AD48*parity1)+(PRB!N191*EFW!AD48*parity2)+(PRB!O191*EFW!AD48*parity3)) -> 203.1092886 | G27: =EXP((PRB!$B$192*1)+(PRB!$C$192*EFW!AD48)+(PRB!$D$192*EFW!AD48^2)+(PRB!$E$192*EFW!AD48^3)+(PRB!$F$192*sexm)+(PRB!$G$192*heightn)+(PRB!$H$192*weightn)+(PRB!$I$192*EFW!AD48*weightn)+(PRB!$J$192*parity1)+(PRB!$K$192*parity2)+(PRB!$L$192*parity3)+(PRB!$M$192*EFW!AD48*parity1)+(PRB!$N$192*EFW!AD48*parity2)+(PRB!$O$192*EFW!AD48*parity3)) -> 220.3922734 | H27: =EXP((PRB!$B$193*1)+(PRB!$C$193*EFW!AD48)+(PRB!$D$193*EFW!AD48^2)+(PRB!$E$193*EFW!AD48^3)+(PRB!$F$193*sexm)+(PRB!$G$193*heightn)+(PRB!$H$193*weightn)+(PRB!$I$193*EFW!AD48*weightn)+(PRB!$J$193*parity1)+(PRB!$K$193*parity2)+(PRB!$L$193*parity3)+(PRB!$M$193*EFW!AD48*parity1)+(PRB!$N$193*EFW!AD48*parity2)+(PRB!$O$193*EFW!AD48*parity3)) -> 238.0426964 | I27: =EXP((PRB!$B$194*1)+(PRB!$C$194*EFW!AD48)+(PRB!$D$194*EFW!AD48^2)+(PRB!$E$194*EFW!AD48^3)+(PRB!$F$194*sexm)+(PRB!$G$194*heightn)+(PRB!$H$194*weightn)+(PRB!$I$194*EFW!AD48*weightn)+(PRB!$J$194*parity1)+(PRB!$K$194*parity2)+(PRB!$L$194*parity3)+(PRB!$M$194*EFW!AD48*parity1)+(PRB!$N$194*EFW!AD48*parity2)+(PRB!$O$194*EFW!AD48*parity3)) -> 249.861282 | J27: =EXP((PRB!$B$195*1)+(PRB!$C$195*EFW!AD48)+(PRB!$D$195*EFW!AD48^2)+(PRB!$E$195*EFW!AD48^3)+(PRB!$F$195*sexm)+(PRB!$G$195*heightn)+(PRB!$H$195*weightn)+(PRB!$I$195*EFW!AD48*weightn)+(PRB!$J$195*parity1)+(PRB!$K$195*parity2)+(PRB!$L$195*parity3)+(PRB!$M$195*EFW!AD48*parity1)+(PRB!$N$195*EFW!AD48*parity2)+(PRB!$O$195*EFW!AD48*parity3)) -> 257.3431568
A28: 17.71428571 | B28: =EXP((PRB!B187*1)+(PRB!C187*EFW!AD49)+(PRB!D187*EFW!AD49^2)+(PRB!E187*EFW!AD49^3)+(PRB!F187*sexm)+(PRB!G187*heightn)+(PRB!H187*weightn)+(PRB!I187*EFW!AD49*weightn)+(PRB!J187*parity1)+(PRB!K187*parity2)+(PRB!L187*parity3)+(PRB!M187*EFW!AD49*parity1)+(PRB!N187*EFW!AD49*parity2)+(PRB!O187*EFW!AD49*parity3)) -> 165.8692441 | C28: =EXP((PRB!B188*1)+(PRB!C188*EFW!AD49)+(PRB!D188*EFW!AD49^2)+(PRB!E188*EFW!AD49^3)+(PRB!F188*sexm)+(PRB!G188*heightn)+(PRB!H188*weightn)+(PRB!I188*EFW!AD49*weightn)+(PRB!J188*parity1)+(PRB!K188*parity2)+(PRB!L188*parity3)+(PRB!M188*EFW!AD49*parity1)+(PRB!N188*EFW!AD49*parity2)+(PRB!O188*EFW!AD49*parity3)) -> 171.932081 | D28: =EXP((PRB!B189*1)+(PRB!C189*EFW!AD49)+(PRB!D189*EFW!AD49^2)+(PRB!E189*EFW!AD49^3)+(PRB!F189*sexm)+(PRB!G189*heightn)+(PRB!H189*weightn)+(PRB!I189*EFW!AD49*weightn)+(PRB!J189*parity1)+(PRB!K189*parity2)+(PRB!L189*parity3)+(PRB!M189*EFW!AD49*parity1)+(PRB!N189*EFW!AD49*parity2)+(PRB!O189*EFW!AD49*parity3)) -> 180.3905025 | E28: =EXP((PRB!B190*1)+(PRB!C190*EFW!AD49)+(PRB!D190*EFW!AD49^2)+(PRB!E190*EFW!AD49^3)+(PRB!F190*sexm)+(PRB!G190*heightn)+(PRB!H190*weightn)+(PRB!I190*EFW!AD49*weightn)+(PRB!J190*parity1)+(PRB!K190*parity2)+(PRB!L190*parity3)+(PRB!M190*EFW!AD49*parity1)+(PRB!N190*EFW!AD49*parity2)+(PRB!O190*EFW!AD49*parity3)) -> 194.4868152 | F28: =EXP((PRB!B191*1)+(PRB!C191*EFW!AD49)+(PRB!D191*EFW!AD49^2)+(PRB!E191*EFW!AD49^3)+(PRB!F191*sexm)+(PRB!G191*heightn)+(PRB!H191*weightn)+(PRB!I191*EFW!AD49*weightn)+(PRB!J191*parity1)+(PRB!K191*parity2)+(PRB!L191*parity3)+(PRB!M191*EFW!AD49*parity1)+(PRB!N191*EFW!AD49*parity2)+(PRB!O191*EFW!AD49*parity3)) -> 209.1711489 | G28: =EXP((PRB!$B$192*1)+(PRB!$C$192*EFW!AD49)+(PRB!$D$192*EFW!AD49^2)+(PRB!$E$192*EFW!AD49^3)+(PRB!$F$192*sexm)+(PRB!$G$192*heightn)+(PRB!$H$192*weightn)+(PRB!$I$192*EFW!AD49*weightn)+(PRB!$J$192*parity1)+(PRB!$K$192*parity2)+(PRB!$L$192*parity3)+(PRB!$M$192*EFW!AD49*parity1)+(PRB!$N$192*EFW!AD49*parity2)+(PRB!$O$192*EFW!AD49*parity3)) -> 226.8854785 | H28: =EXP((PRB!$B$193*1)+(PRB!$C$193*EFW!AD49)+(PRB!$D$193*EFW!AD49^2)+(PRB!$E$193*EFW!AD49^3)+(PRB!$F$193*sexm)+(PRB!$G$193*heightn)+(PRB!$H$193*weightn)+(PRB!$I$193*EFW!AD49*weightn)+(PRB!$J$193*parity1)+(PRB!$K$193*parity2)+(PRB!$L$193*parity3)+(PRB!$M$193*EFW!AD49*parity1)+(PRB!$N$193*EFW!AD49*parity2)+(PRB!$O$193*EFW!AD49*parity3)) -> 245.018333 | I28: =EXP((PRB!$B$194*1)+(PRB!$C$194*EFW!AD49)+(PRB!$D$194*EFW!AD49^2)+(PRB!$E$194*EFW!AD49^3)+(PRB!$F$194*sexm)+(PRB!$G$194*heightn)+(PRB!$H$194*weightn)+(PRB!$I$194*EFW!AD49*weightn)+(PRB!$J$194*parity1)+(PRB!$K$194*parity2)+(PRB!$L$194*parity3)+(PRB!$M$194*EFW!AD49*parity1)+(PRB!$N$194*EFW!AD49*parity2)+(PRB!$O$194*EFW!AD49*parity3)) -> 257.0844959 | J28: =EXP((PRB!$B$195*1)+(PRB!$C$195*EFW!AD49)+(PRB!$D$195*EFW!AD49^2)+(PRB!$E$195*EFW!AD49^3)+(PRB!$F$195*sexm)+(PRB!$G$195*heightn)+(PRB!$H$195*weightn)+(PRB!$I$195*EFW!AD49*weightn)+(PRB!$J$195*parity1)+(PRB!$K$195*parity2)+(PRB!$L$195*parity3)+(PRB!$M$195*EFW!AD49*parity1)+(PRB!$N$195*EFW!AD49*parity2)+(PRB!$O$195*EFW!AD49*parity3)) -> 264.7682413
A29: 17.85714286 | B29: =EXP((PRB!B187*1)+(PRB!C187*EFW!AD50)+(PRB!D187*EFW!AD50^2)+(PRB!E187*EFW!AD50^3)+(PRB!F187*sexm)+(PRB!G187*heightn)+(PRB!H187*weightn)+(PRB!I187*EFW!AD50*weightn)+(PRB!J187*parity1)+(PRB!K187*parity2)+(PRB!L187*parity3)+(PRB!M187*EFW!AD50*parity1)+(PRB!N187*EFW!AD50*parity2)+(PRB!O187*EFW!AD50*parity3)) -> 170.8835063 | C29: =EXP((PRB!B188*1)+(PRB!C188*EFW!AD50)+(PRB!D188*EFW!AD50^2)+(PRB!E188*EFW!AD50^3)+(PRB!F188*sexm)+(PRB!G188*heightn)+(PRB!H188*weightn)+(PRB!I188*EFW!AD50*weightn)+(PRB!J188*parity1)+(PRB!K188*parity2)+(PRB!L188*parity3)+(PRB!M188*EFW!AD50*parity1)+(PRB!N188*EFW!AD50*parity2)+(PRB!O188*EFW!AD50*parity3)) -> 177.1500351 | D29: =EXP((PRB!B189*1)+(PRB!C189*EFW!AD50)+(PRB!D189*EFW!AD50^2)+(PRB!E189*EFW!AD50^3)+(PRB!F189*sexm)+(PRB!G189*heightn)+(PRB!H189*weightn)+(PRB!I189*EFW!AD50*weightn)+(PRB!J189*parity1)+(PRB!K189*parity2)+(PRB!L189*parity3)+(PRB!M189*EFW!AD50*parity1)+(PRB!N189*EFW!AD50*parity2)+(PRB!O189*EFW!AD50*parity3)) -> 185.8180365 | E29: =EXP((PRB!B190*1)+(PRB!C190*EFW!AD50)+(PRB!D190*EFW!AD50^2)+(PRB!E190*EFW!AD50^3)+(PRB!F190*sexm)+(PRB!G190*heightn)+(PRB!H190*weightn)+(PRB!I190*EFW!AD50*weightn)+(PRB!J190*parity1)+(PRB!K190*parity2)+(PRB!L190*parity3)+(PRB!M190*EFW!AD50*parity1)+(PRB!N190*EFW!AD50*parity2)+(PRB!O190*EFW!AD50*parity3)) -> 200.2601552 | F29: =EXP((PRB!B191*1)+(PRB!C191*EFW!AD50)+(PRB!D191*EFW!AD50^2)+(PRB!E191*EFW!AD50^3)+(PRB!F191*sexm)+(PRB!G191*heightn)+(PRB!H191*weightn)+(PRB!I191*EFW!AD50*weightn)+(PRB!J191*parity1)+(PRB!K191*parity2)+(PRB!L191*parity3)+(PRB!M191*EFW!AD50*parity1)+(PRB!N191*EFW!AD50*parity2)+(PRB!O191*EFW!AD50*parity3)) -> 215.3785128 | G29: =EXP((PRB!$B$192*1)+(PRB!$C$192*EFW!AD50)+(PRB!$D$192*EFW!AD50^2)+(PRB!$E$192*EFW!AD50^3)+(PRB!$F$192*sexm)+(PRB!$G$192*heightn)+(PRB!$H$192*weightn)+(PRB!$I$192*EFW!AD50*weightn)+(PRB!$J$192*parity1)+(PRB!$K$192*parity2)+(PRB!$L$192*parity3)+(PRB!$M$192*EFW!AD50*parity1)+(PRB!$N$192*EFW!AD50*parity2)+(PRB!$O$192*EFW!AD50*parity3)) -> 233.5336725 | H29: =EXP((PRB!$B$193*1)+(PRB!$C$193*EFW!AD50)+(PRB!$D$193*EFW!AD50^2)+(PRB!$E$193*EFW!AD50^3)+(PRB!$F$193*sexm)+(PRB!$G$193*heightn)+(PRB!$H$193*weightn)+(PRB!$I$193*EFW!AD50*weightn)+(PRB!$J$193*parity1)+(PRB!$K$193*parity2)+(PRB!$L$193*parity3)+(PRB!$M$193*EFW!AD50*parity1)+(PRB!$N$193*EFW!AD50*parity2)+(PRB!$O$193*EFW!AD50*parity3)) -> 252.1594252 | I29: =EXP((PRB!$B$194*1)+(PRB!$C$194*EFW!AD50)+(PRB!$D$194*EFW!AD50^2)+(PRB!$E$194*EFW!AD50^3)+(PRB!$F$194*sexm)+(PRB!$G$194*heightn)+(PRB!$H$194*weightn)+(PRB!$I$194*EFW!AD50*weightn)+(PRB!$J$194*parity1)+(PRB!$K$194*parity2)+(PRB!$L$194*parity3)+(PRB!$M$194*EFW!AD50*parity1)+(PRB!$N$194*EFW!AD50*parity2)+(PRB!$O$194*EFW!AD50*parity3)) -> 264.4792966 | J29: =EXP((PRB!$B$195*1)+(PRB!$C$195*EFW!AD50)+(PRB!$D$195*EFW!AD50^2)+(PRB!$E$195*EFW!AD50^3)+(PRB!$F$195*sexm)+(PRB!$G$195*heightn)+(PRB!$H$195*weightn)+(PRB!$I$195*EFW!AD50*weightn)+(PRB!$J$195*parity1)+(PRB!$K$195*parity2)+(PRB!$L$195*parity3)+(PRB!$M$195*EFW!AD50*parity1)+(PRB!$N$195*EFW!AD50*parity2)+(PRB!$O$195*EFW!AD50*parity3)) -> 272.3713708
A30: 18 | B30: =EXP((PRB!B187*1)+(PRB!C187*EFW!AD51)+(PRB!D187*EFW!AD51^2)+(PRB!E187*EFW!AD51^3)+(PRB!F187*sexm)+(PRB!G187*heightn)+(PRB!H187*weightn)+(PRB!I187*EFW!AD51*weightn)+(PRB!J187*parity1)+(PRB!K187*parity2)+(PRB!L187*parity3)+(PRB!M187*EFW!AD51*parity1)+(PRB!N187*EFW!AD51*parity2)+(PRB!O187*EFW!AD51*parity3)) -> 176.0183811 | C30: =EXP((PRB!B188*1)+(PRB!C188*EFW!AD51)+(PRB!D188*EFW!AD51^2)+(PRB!E188*EFW!AD51^3)+(PRB!F188*sexm)+(PRB!G188*heightn)+(PRB!H188*weightn)+(PRB!I188*EFW!AD51*weightn)+(PRB!J188*parity1)+(PRB!K188*parity2)+(PRB!L188*parity3)+(PRB!M188*EFW!AD51*parity1)+(PRB!N188*EFW!AD51*parity2)+(PRB!O188*EFW!AD51*parity3)) -> 182.4936655 | D30: =EXP((PRB!B189*1)+(PRB!C189*EFW!AD51)+(PRB!D189*EFW!AD51^2)+(PRB!E189*EFW!AD51^3)+(PRB!F189*sexm)+(PRB!G189*heightn)+(PRB!H189*weightn)+(PRB!I189*EFW!AD51*weightn)+(PRB!J189*parity1)+(PRB!K189*parity2)+(PRB!L189*parity3)+(PRB!M189*EFW!AD51*parity1)+(PRB!N189*EFW!AD51*parity2)+(PRB!O189*EFW!AD51*parity3)) -> 191.3759761 | E30: =EXP((PRB!B190*1)+(PRB!C190*EFW!AD51)+(PRB!D190*EFW!AD51^2)+(PRB!E190*EFW!AD51^3)+(PRB!F190*sexm)+(PRB!G190*heightn)+(PRB!H190*weightn)+(PRB!I190*EFW!AD51*weightn)+(PRB!J190*parity1)+(PRB!K190*parity2)+(PRB!L190*parity3)+(PRB!M190*EFW!AD51*parity1)+(PRB!N190*EFW!AD51*parity2)+(PRB!O190*EFW!AD51*parity3)) -> 206.1716481 | F30: =EXP((PRB!B191*1)+(PRB!C191*EFW!AD51)+(PRB!D191*EFW!AD51^2)+(PRB!E191*EFW!AD51^3)+(PRB!F191*sexm)+(PRB!G191*heightn)+(PRB!H191*weightn)+(PRB!I191*EFW!AD51*weightn)+(PRB!J191*parity1)+(PRB!K191*parity2)+(PRB!L191*parity3)+(PRB!M191*EFW!AD51*parity1)+(PRB!N191*EFW!AD51*parity2)+(PRB!O191*EFW!AD51*parity3)) -> 221.7337078 | G30: =EXP((PRB!$B$192*1)+(PRB!$C$192*EFW!AD51)+(PRB!$D$192*EFW!AD51^2)+(PRB!$E$192*EFW!AD51^3)+(PRB!$F$192*sexm)+(PRB!$G$192*heightn)+(PRB!$H$192*weightn)+(PRB!$I$192*EFW!AD51*weightn)+(PRB!$J$192*parity1)+(PRB!$K$192*parity2)+(PRB!$L$192*parity3)+(PRB!$M$192*EFW!AD51*parity1)+(PRB!$N$192*EFW!AD51*parity2)+(PRB!$O$192*EFW!AD51*parity3)) -> 240.3393581 | H30: =EXP((PRB!$B$193*1)+(PRB!$C$193*EFW!AD51)+(PRB!$D$193*EFW!AD51^2)+(PRB!$E$193*EFW!AD51^3)+(PRB!$F$193*sexm)+(PRB!$G$193*heightn)+(PRB!$H$193*weightn)+(PRB!$I$193*EFW!AD51*weightn)+(PRB!$J$193*parity1)+(PRB!$K$193*parity2)+(PRB!$L$193*parity3)+(PRB!$M$193*EFW!AD51*parity1)+(PRB!$N$193*EFW!AD51*parity2)+(PRB!$O$193*EFW!AD51*parity3)) -> 259.4686212 | I30: =EXP((PRB!$B$194*1)+(PRB!$C$194*EFW!AD51)+(PRB!$D$194*EFW!AD51^2)+(PRB!$E$194*EFW!AD51^3)+(PRB!$F$194*sexm)+(PRB!$G$194*heightn)+(PRB!$H$194*weightn)+(PRB!$I$194*EFW!AD51*weightn)+(PRB!$J$194*parity1)+(PRB!$K$194*parity2)+(PRB!$L$194*parity3)+(PRB!$M$194*EFW!AD51*parity1)+(PRB!$N$194*EFW!AD51*parity2)+(PRB!$O$194*EFW!AD51*parity3)) -> 272.0485236 | J30: =EXP((PRB!$B$195*1)+(PRB!$C$195*EFW!AD51)+(PRB!$D$195*EFW!AD51^2)+(PRB!$E$195*EFW!AD51^3)+(PRB!$F$195*sexm)+(PRB!$G$195*heightn)+(PRB!$H$195*weightn)+(PRB!$I$195*EFW!AD51*weightn)+(PRB!$J$195*parity1)+(PRB!$K$195*parity2)+(PRB!$L$195*parity3)+(PRB!$M$195*EFW!AD51*parity1)+(PRB!$N$195*EFW!AD51*parity2)+(PRB!$O$195*EFW!AD51*parity3)) -> 280.1555891
A31: 18.14285714 | B31: =EXP((PRB!B187*1)+(PRB!C187*EFW!AD52)+(PRB!D187*EFW!AD52^2)+(PRB!E187*EFW!AD52^3)+(PRB!F187*sexm)+(PRB!G187*heightn)+(PRB!H187*weightn)+(PRB!I187*EFW!AD52*weightn)+(PRB!J187*parity1)+(PRB!K187*parity2)+(PRB!L187*parity3)+(PRB!M187*EFW!AD52*parity1)+(PRB!N187*EFW!AD52*parity2)+(PRB!O187*EFW!AD52*parity3)) -> 181.2757336 | C31: =EXP((PRB!B188*1)+(PRB!C188*EFW!AD52)+(PRB!D188*EFW!AD52^2)+(PRB!E188*EFW!AD52^3)+(PRB!F188*sexm)+(PRB!G188*heightn)+(PRB!H188*weightn)+(PRB!I188*EFW!AD52*weightn)+(PRB!J188*parity1)+(PRB!K188*parity2)+(PRB!L188*parity3)+(PRB!M188*EFW!AD52*parity1)+(PRB!N188*EFW!AD52*parity2)+(PRB!O188*EFW!AD52*parity3)) -> 187.9649124 | D31: =EXP((PRB!B189*1)+(PRB!C189*EFW!AD52)+(PRB!D189*EFW!AD52^2)+(PRB!E189*EFW!AD52^3)+(PRB!F189*sexm)+(PRB!G189*heightn)+(PRB!H189*weightn)+(PRB!I189*EFW!AD52*weightn)+(PRB!J189*parity1)+(PRB!K189*parity2)+(PRB!L189*parity3)+(PRB!M189*EFW!AD52*parity1)+(PRB!N189*EFW!AD52*parity2)+(PRB!O189*EFW!AD52*parity3)) -> 197.0663657 | E31: =EXP((PRB!B190*1)+(PRB!C190*EFW!AD52)+(PRB!D190*EFW!AD52^2)+(PRB!E190*EFW!AD52^3)+(PRB!F190*sexm)+(PRB!G190*heightn)+(PRB!H190*weightn)+(PRB!I190*EFW!AD52*weightn)+(PRB!J190*parity1)+(PRB!K190*parity2)+(PRB!L190*parity3)+(PRB!M190*EFW!AD52*parity1)+(PRB!N190*EFW!AD52*parity2)+(PRB!O190*EFW!AD52*parity3)) -> 212.2235017 | F31: =EXP((PRB!B191*1)+(PRB!C191*EFW!AD52)+(PRB!D191*EFW!AD52^2)+(PRB!E191*EFW!AD52^3)+(PRB!F191*sexm)+(PRB!G191*heightn)+(PRB!H191*weightn)+(PRB!I191*EFW!AD52*weightn)+(PRB!J191*parity1)+(PRB!K191*parity2)+(PRB!L191*parity3)+(PRB!M191*EFW!AD52*parity1)+(PRB!N191*EFW!AD52*parity2)+(PRB!O191*EFW!AD52*parity3)) -> 228.2390634 | G31: =EXP((PRB!$B$192*1)+(PRB!$C$192*EFW!AD52)+(PRB!$D$192*EFW!AD52^2)+(PRB!$E$192*EFW!AD52^3)+(PRB!$F$192*sexm)+(PRB!$G$192*heightn)+(PRB!$H$192*weightn)+(PRB!$I$192*EFW!AD52*weightn)+(PRB!$J$192*parity1)+(PRB!$K$192*parity2)+(PRB!$L$192*parity3)+(PRB!$M$192*EFW!AD52*parity1)+(PRB!$N$192*EFW!AD52*parity2)+(PRB!$O$192*EFW!AD52*parity3)) -> 247.3050421 | H31: =EXP((PRB!$B$193*1)+(PRB!$C$193*EFW!AD52)+(PRB!$D$193*EFW!AD52^2)+(PRB!$E$193*EFW!AD52^3)+(PRB!$F$193*sexm)+(PRB!$G$193*heightn)+(PRB!$H$193*weightn)+(PRB!$I$193*EFW!AD52*weightn)+(PRB!$J$193*parity1)+(PRB!$K$193*parity2)+(PRB!$L$193*parity3)+(PRB!$M$193*EFW!AD52*parity1)+(PRB!$N$193*EFW!AD52*parity2)+(PRB!$O$193*EFW!AD52*parity3)) -> 266.9485724 | I31: =EXP((PRB!$B$194*1)+(PRB!$C$194*EFW!AD52)+(PRB!$D$194*EFW!AD52^2)+(PRB!$E$194*EFW!AD52^3)+(PRB!$F$194*sexm)+(PRB!$G$194*heightn)+(PRB!$H$194*weightn)+(PRB!$I$194*EFW!AD52*weightn)+(PRB!$J$194*parity1)+(PRB!$K$194*parity2)+(PRB!$L$194*parity3)+(PRB!$M$194*EFW!AD52*parity1)+(PRB!$N$194*EFW!AD52*parity2)+(PRB!$O$194*EFW!AD52*parity3)) -> 279.7950245 | J31: =EXP((PRB!$B$195*1)+(PRB!$C$195*EFW!AD52)+(PRB!$D$195*EFW!AD52^2)+(PRB!$E$195*EFW!AD52^3)+(PRB!$F$195*sexm)+(PRB!$G$195*heightn)+(PRB!$H$195*weightn)+(PRB!$I$195*EFW!AD52*weightn)+(PRB!$J$195*parity1)+(PRB!$K$195*parity2)+(PRB!$L$195*parity3)+(PRB!$M$195*EFW!AD52*parity1)+(PRB!$N$195*EFW!AD52*parity2)+(PRB!$O$195*EFW!AD52*parity3)) -> 288.1239528
A32: 18.28571429 | B32: =EXP((PRB!B187*1)+(PRB!C187*EFW!AD53)+(PRB!D187*EFW!AD53^2)+(PRB!E187*EFW!AD53^3)+(PRB!F187*sexm)+(PRB!G187*heightn)+(PRB!H187*weightn)+(PRB!I187*EFW!AD53*weightn)+(PRB!J187*parity1)+(PRB!K187*parity2)+(PRB!L187*parity3)+(PRB!M187*EFW!AD53*parity1)+(PRB!N187*EFW!AD53*parity2)+(PRB!O187*EFW!AD53*parity3)) -> 186.6574259 | C32: =EXP((PRB!B188*1)+(PRB!C188*EFW!AD53)+(PRB!D188*EFW!AD53^2)+(PRB!E188*EFW!AD53^3)+(PRB!F188*sexm)+(PRB!G188*heightn)+(PRB!H188*weightn)+(PRB!I188*EFW!AD53*weightn)+(PRB!J188*parity1)+(PRB!K188*parity2)+(PRB!L188*parity3)+(PRB!M188*EFW!AD53*parity1)+(PRB!N188*EFW!AD53*parity2)+(PRB!O188*EFW!AD53*parity3)) -> 193.5657133 | D32: =EXP((PRB!B189*1)+(PRB!C189*EFW!AD53)+(PRB!D189*EFW!AD53^2)+(PRB!E189*EFW!AD53^3)+(PRB!F189*sexm)+(PRB!G189*heightn)+(PRB!H189*weightn)+(PRB!I189*EFW!AD53*weightn)+(PRB!J189*parity1)+(PRB!K189*parity2)+(PRB!L189*parity3)+(PRB!M189*EFW!AD53*parity1)+(PRB!N189*EFW!AD53*parity2)+(PRB!O189*EFW!AD53*parity3)) -> 202.891248 | E32: =EXP((PRB!B190*1)+(PRB!C190*EFW!AD53)+(PRB!D190*EFW!AD53^2)+(PRB!E190*EFW!AD53^3)+(PRB!F190*sexm)+(PRB!G190*heightn)+(PRB!H190*weightn)+(PRB!I190*EFW!AD53*weightn)+(PRB!J190*parity1)+(PRB!K190*parity2)+(PRB!L190*parity3)+(PRB!M190*EFW!AD53*parity1)+(PRB!N190*EFW!AD53*parity2)+(PRB!O190*EFW!AD53*parity3)) -> 218.417926 | F32: =EXP((PRB!B191*1)+(PRB!C191*EFW!AD53)+(PRB!D191*EFW!AD53^2)+(PRB!E191*EFW!AD53^3)+(PRB!F191*sexm)+(PRB!G191*heightn)+(PRB!H191*weightn)+(PRB!I191*EFW!AD53*weightn)+(PRB!J191*parity1)+(PRB!K191*parity2)+(PRB!L191*parity3)+(PRB!M191*EFW!AD53*parity1)+(PRB!N191*EFW!AD53*parity2)+(PRB!O191*EFW!AD53*parity3)) -> 234.8969098 | G32: =EXP((PRB!$B$192*1)+(PRB!$C$192*EFW!AD53)+(PRB!$D$192*EFW!AD53^2)+(PRB!$E$192*EFW!AD53^3)+(PRB!$F$192*sexm)+(PRB!$G$192*heightn)+(PRB!$H$192*weightn)+(PRB!$I$192*EFW!AD53*weightn)+(PRB!$J$192*parity1)+(PRB!$K$192*parity2)+(PRB!$L$192*parity3)+(PRB!$M$192*EFW!AD53*parity1)+(PRB!$N$192*EFW!AD53*parity2)+(PRB!$O$192*EFW!AD53*parity3)) -> 254.4332335 | H32: =EXP((PRB!$B$193*1)+(PRB!$C$193*EFW!AD53)+(PRB!$D$193*EFW!AD53^2)+(PRB!$E$193*EFW!AD53^3)+(PRB!$F$193*sexm)+(PRB!$G$193*heightn)+(PRB!$H$193*weightn)+(PRB!$I$193*EFW!AD53*weightn)+(PRB!$J$193*parity1)+(PRB!$K$193*parity2)+(PRB!$L$193*parity3)+(PRB!$M$193*EFW!AD53*parity1)+(PRB!$N$193*EFW!AD53*parity2)+(PRB!$O$193*EFW!AD53*parity3)) -> 274.6019327 | I32: =EXP((PRB!$B$194*1)+(PRB!$C$194*EFW!AD53)+(PRB!$D$194*EFW!AD53^2)+(PRB!$E$194*EFW!AD53^3)+(PRB!$F$194*sexm)+(PRB!$G$194*heightn)+(PRB!$H$194*weightn)+(PRB!$I$194*EFW!AD53*weightn)+(PRB!$J$194*parity1)+(PRB!$K$194*parity2)+(PRB!$L$194*parity3)+(PRB!$M$194*EFW!AD53*parity1)+(PRB!$N$194*EFW!AD53*parity2)+(PRB!$O$194*EFW!AD53*parity3)) -> 287.7216536 | J32: =EXP((PRB!$B$195*1)+(PRB!$C$195*EFW!AD53)+(PRB!$D$195*EFW!AD53^2)+(PRB!$E$195*EFW!AD53^3)+(PRB!$F$195*sexm)+(PRB!$G$195*heightn)+(PRB!$H$195*weightn)+(PRB!$I$195*EFW!AD53*weightn)+(PRB!$J$195*parity1)+(PRB!$K$195*parity2)+(PRB!$L$195*parity3)+(PRB!$M$195*EFW!AD53*parity1)+(PRB!$N$195*EFW!AD53*parity2)+(PRB!$O$195*EFW!AD53*parity3)) -> 296.2795292
A33: 18.42857143 | B33: =EXP((PRB!B187*1)+(PRB!C187*EFW!AD54)+(PRB!D187*EFW!AD54^2)+(PRB!E187*EFW!AD54^3)+(PRB!F187*sexm)+(PRB!G187*heightn)+(PRB!H187*weightn)+(PRB!I187*EFW!AD54*weightn)+(PRB!J187*parity1)+(PRB!K187*parity2)+(PRB!L187*parity3)+(PRB!M187*EFW!AD54*parity1)+(PRB!N187*EFW!AD54*parity2)+(PRB!O187*EFW!AD54*parity3)) -> 192.1653161 | C33: =EXP((PRB!B188*1)+(PRB!C188*EFW!AD54)+(PRB!D188*EFW!AD54^2)+(PRB!E188*EFW!AD54^3)+(PRB!F188*sexm)+(PRB!G188*heightn)+(PRB!H188*weightn)+(PRB!I188*EFW!AD54*weightn)+(PRB!J188*parity1)+(PRB!K188*parity2)+(PRB!L188*parity3)+(PRB!M188*EFW!AD54*parity1)+(PRB!N188*EFW!AD54*parity2)+(PRB!O188*EFW!AD54*parity3)) -> 199.2980015 | D33: =EXP((PRB!B189*1)+(PRB!C189*EFW!AD54)+(PRB!D189*EFW!AD54^2)+(PRB!E189*EFW!AD54^3)+(PRB!F189*sexm)+(PRB!G189*heightn)+(PRB!H189*weightn)+(PRB!I189*EFW!AD54*weightn)+(PRB!J189*parity1)+(PRB!K189*parity2)+(PRB!L189*parity3)+(PRB!M189*EFW!AD54*parity1)+(PRB!N189*EFW!AD54*parity2)+(PRB!O189*EFW!AD54*parity3)) -> 208.8526643 | E33: =EXP((PRB!B190*1)+(PRB!C190*EFW!AD54)+(PRB!D190*EFW!AD54^2)+(PRB!E190*EFW!AD54^3)+(PRB!F190*sexm)+(PRB!G190*heightn)+(PRB!H190*weightn)+(PRB!I190*EFW!AD54*weightn)+(PRB!J190*parity1)+(PRB!K190*parity2)+(PRB!L190*parity3)+(PRB!M190*EFW!AD54*parity1)+(PRB!N190*EFW!AD54*parity2)+(PRB!O190*EFW!AD54*parity3)) -> 224.7571312 | F33: =EXP((PRB!B191*1)+(PRB!C191*EFW!AD54)+(PRB!D191*EFW!AD54^2)+(PRB!E191*EFW!AD54^3)+(PRB!F191*sexm)+(PRB!G191*heightn)+(PRB!H191*weightn)+(PRB!I191*EFW!AD54*weightn)+(PRB!J191*parity1)+(PRB!K191*parity2)+(PRB!L191*parity3)+(PRB!M191*EFW!AD54*parity1)+(PRB!N191*EFW!AD54*parity2)+(PRB!O191*EFW!AD54*parity3)) -> 241.7095773 | G33: =EXP((PRB!$B$192*1)+(PRB!$C$192*EFW!AD54)+(PRB!$D$192*EFW!AD54^2)+(PRB!$E$192*EFW!AD54^3)+(PRB!$F$192*sexm)+(PRB!$G$192*heightn)+(PRB!$H$192*weightn)+(PRB!$I$192*EFW!AD54*weightn)+(PRB!$J$192*parity1)+(PRB!$K$192*parity2)+(PRB!$L$192*parity3)+(PRB!$M$192*EFW!AD54*parity1)+(PRB!$N$192*EFW!AD54*parity2)+(PRB!$O$192*EFW!AD54*parity3)) -> 261.7264425 | H33: =EXP((PRB!$B$193*1)+(PRB!$C$193*EFW!AD54)+(PRB!$D$193*EFW!AD54^2)+(PRB!$E$193*EFW!AD54^3)+(PRB!$F$193*sexm)+(PRB!$G$193*heightn)+(PRB!$H$193*weightn)+(PRB!$I$193*EFW!AD54*weightn)+(PRB!$J$193*parity1)+(PRB!$K$193*parity2)+(PRB!$L$193*parity3)+(PRB!$M$193*EFW!AD54*parity1)+(PRB!$N$193*EFW!AD54*parity2)+(PRB!$O$193*EFW!AD54*parity3)) -> 282.4313566 | I33: =EXP((PRB!$B$194*1)+(PRB!$C$194*EFW!AD54)+(PRB!$D$194*EFW!AD54^2)+(PRB!$E$194*EFW!AD54^3)+(PRB!$F$194*sexm)+(PRB!$G$194*heightn)+(PRB!$H$194*weightn)+(PRB!$I$194*EFW!AD54*weightn)+(PRB!$J$194*parity1)+(PRB!$K$194*parity2)+(PRB!$L$194*parity3)+(PRB!$M$194*EFW!AD54*parity1)+(PRB!$N$194*EFW!AD54*parity2)+(PRB!$O$194*EFW!AD54*parity3)) -> 295.8312704 | J33: =EXP((PRB!$B$195*1)+(PRB!$C$195*EFW!AD54)+(PRB!$D$195*EFW!AD54^2)+(PRB!$E$195*EFW!AD54^3)+(PRB!$F$195*sexm)+(PRB!$G$195*heightn)+(PRB!$H$195*weightn)+(PRB!$I$195*EFW!AD54*weightn)+(PRB!$J$195*parity1)+(PRB!$K$195*parity2)+(PRB!$L$195*parity3)+(PRB!$M$195*EFW!AD54*parity1)+(PRB!$N$195*EFW!AD54*parity2)+(PRB!$O$195*EFW!AD54*parity3)) -> 304.6253951
A34: 18.57142857 | B34: =EXP((PRB!B187*1)+(PRB!C187*EFW!AD55)+(PRB!D187*EFW!AD55^2)+(PRB!E187*EFW!AD55^3)+(PRB!F187*sexm)+(PRB!G187*heightn)+(PRB!H187*weightn)+(PRB!I187*EFW!AD55*weightn)+(PRB!J187*parity1)+(PRB!K187*parity2)+(PRB!L187*parity3)+(PRB!M187*EFW!AD55*parity1)+(PRB!N187*EFW!AD55*parity2)+(PRB!O187*EFW!AD55*parity3)) -> 197.8012568 | C34: =EXP((PRB!B188*1)+(PRB!C188*EFW!AD55)+(PRB!D188*EFW!AD55^2)+(PRB!E188*EFW!AD55^3)+(PRB!F188*sexm)+(PRB!G188*heightn)+(PRB!H188*weightn)+(PRB!I188*EFW!AD55*weightn)+(PRB!J188*parity1)+(PRB!K188*parity2)+(PRB!L188*parity3)+(PRB!M188*EFW!AD55*parity1)+(PRB!N188*EFW!AD55*parity2)+(PRB!O188*EFW!AD55*parity3)) -> 205.1637051 | D34: =EXP((PRB!B189*1)+(PRB!C189*EFW!AD55)+(PRB!D189*EFW!AD55^2)+(PRB!E189*EFW!AD55^3)+(PRB!F189*sexm)+(PRB!G189*heightn)+(PRB!H189*weightn)+(PRB!I189*EFW!AD55*weightn)+(PRB!J189*parity1)+(PRB!K189*parity2)+(PRB!L189*parity3)+(PRB!M189*EFW!AD55*parity1)+(PRB!N189*EFW!AD55*parity2)+(PRB!O189*EFW!AD55*parity3)) -> 214.9526521 | E34: =EXP((PRB!B190*1)+(PRB!C190*EFW!AD55)+(PRB!D190*EFW!AD55^2)+(PRB!E190*EFW!AD55^3)+(PRB!F190*sexm)+(PRB!G190*heightn)+(PRB!H190*weightn)+(PRB!I190*EFW!AD55*weightn)+(PRB!J190*parity1)+(PRB!K190*parity2)+(PRB!L190*parity3)+(PRB!M190*EFW!AD55*parity1)+(PRB!N190*EFW!AD55*parity2)+(PRB!O190*EFW!AD55*parity3)) -> 231.2433271 | F34: =EXP((PRB!B191*1)+(PRB!C191*EFW!AD55)+(PRB!D191*EFW!AD55^2)+(PRB!E191*EFW!AD55^3)+(PRB!F191*sexm)+(PRB!G191*heightn)+(PRB!H191*weightn)+(PRB!I191*EFW!AD55*weightn)+(PRB!J191*parity1)+(PRB!K191*parity2)+(PRB!L191*parity3)+(PRB!M191*EFW!AD55*parity1)+(PRB!N191*EFW!AD55*parity2)+(PRB!O191*EFW!AD55*parity3)) -> 248.6793941 | G34: =EXP((PRB!$B$192*1)+(PRB!$C$192*EFW!AD55)+(PRB!$D$192*EFW!AD55^2)+(PRB!$E$192*EFW!AD55^3)+(PRB!$F$192*sexm)+(PRB!$G$192*heightn)+(PRB!$H$192*weightn)+(PRB!$I$192*EFW!AD55*weightn)+(PRB!$J$192*parity1)+(PRB!$K$192*parity2)+(PRB!$L$192*parity3)+(PRB!$M$192*EFW!AD55*parity1)+(PRB!$N$192*EFW!AD55*parity2)+(PRB!$O$192*EFW!AD55*parity3)) -> 269.1871796 | H34: =EXP((PRB!$B$193*1)+(PRB!$C$193*EFW!AD55)+(PRB!$D$193*EFW!AD55^2)+(PRB!$E$193*EFW!AD55^3)+(PRB!$F$193*sexm)+(PRB!$G$193*heightn)+(PRB!$H$193*weightn)+(PRB!$I$193*EFW!AD55*weightn)+(PRB!$J$193*parity1)+(PRB!$K$193*parity2)+(PRB!$L$193*parity3)+(PRB!$M$193*EFW!AD55*parity1)+(PRB!$N$193*EFW!AD55*parity2)+(PRB!$O$193*EFW!AD55*parity3)) -> 290.4394982 | I34: =EXP((PRB!$B$194*1)+(PRB!$C$194*EFW!AD55)+(PRB!$D$194*EFW!AD55^2)+(PRB!$E$194*EFW!AD55^3)+(PRB!$F$194*sexm)+(PRB!$G$194*heightn)+(PRB!$H$194*weightn)+(PRB!$I$194*EFW!AD55*weightn)+(PRB!$J$194*parity1)+(PRB!$K$194*parity2)+(PRB!$L$194*parity3)+(PRB!$M$194*EFW!AD55*parity1)+(PRB!$N$194*EFW!AD55*parity2)+(PRB!$O$194*EFW!AD55*parity3)) -> 304.1267387 | J34: =EXP((PRB!$B$195*1)+(PRB!$C$195*EFW!AD55)+(PRB!$D$195*EFW!AD55^2)+(PRB!$E$195*EFW!AD55^3)+(PRB!$F$195*sexm)+(PRB!$G$195*heightn)+(PRB!$H$195*weightn)+(PRB!$I$195*EFW!AD55*weightn)+(PRB!$J$195*parity1)+(PRB!$K$195*parity2)+(PRB!$L$195*parity3)+(PRB!$M$195*EFW!AD55*parity1)+(PRB!$N$195*EFW!AD55*parity2)+(PRB!$O$195*EFW!AD55*parity3)) -> 313.1646354
A35: 18.71428571 | B35: =EXP((PRB!B187*1)+(PRB!C187*EFW!AD56)+(PRB!D187*EFW!AD56^2)+(PRB!E187*EFW!AD56^3)+(PRB!F187*sexm)+(PRB!G187*heightn)+(PRB!H187*weightn)+(PRB!I187*EFW!AD56*weightn)+(PRB!J187*parity1)+(PRB!K187*parity2)+(PRB!L187*parity3)+(PRB!M187*EFW!AD56*parity1)+(PRB!N187*EFW!AD56*parity2)+(PRB!O187*EFW!AD56*parity3)) -> 203.5670943 | C35: =EXP((PRB!B188*1)+(PRB!C188*EFW!AD56)+(PRB!D188*EFW!AD56^2)+(PRB!E188*EFW!AD56^3)+(PRB!F188*sexm)+(PRB!G188*heightn)+(PRB!H188*weightn)+(PRB!I188*EFW!AD56*weightn)+(PRB!J188*parity1)+(PRB!K188*parity2)+(PRB!L188*parity3)+(PRB!M188*EFW!AD56*parity1)+(PRB!N188*EFW!AD56*parity2)+(PRB!O188*EFW!AD56*parity3)) -> 211.1647457 | D35: =EXP((PRB!B189*1)+(PRB!C189*EFW!AD56)+(PRB!D189*EFW!AD56^2)+(PRB!E189*EFW!AD56^3)+(PRB!F189*sexm)+(PRB!G189*heightn)+(PRB!H189*weightn)+(PRB!I189*EFW!AD56*weightn)+(PRB!J189*parity1)+(PRB!K189*parity2)+(PRB!L189*parity3)+(PRB!M189*EFW!AD56*parity1)+(PRB!N189*EFW!AD56*parity2)+(PRB!O189*EFW!AD56*parity3)) -> 221.1932447 | E35: =EXP((PRB!B190*1)+(PRB!C190*EFW!AD56)+(PRB!D190*EFW!AD56^2)+(PRB!E190*EFW!AD56^3)+(PRB!F190*sexm)+(PRB!G190*heightn)+(PRB!H190*weightn)+(PRB!I190*EFW!AD56*weightn)+(PRB!J190*parity1)+(PRB!K190*parity2)+(PRB!L190*parity3)+(PRB!M190*EFW!AD56*parity1)+(PRB!N190*EFW!AD56*parity2)+(PRB!O190*EFW!AD56*parity3)) -> 237.8787215 | F35: =EXP((PRB!B191*1)+(PRB!C191*EFW!AD56)+(PRB!D191*EFW!AD56^2)+(PRB!E191*EFW!AD56^3)+(PRB!F191*sexm)+(PRB!G191*heightn)+(PRB!H191*weightn)+(PRB!I191*EFW!AD56*weightn)+(PRB!J191*parity1)+(PRB!K191*parity2)+(PRB!L191*parity3)+(PRB!M191*EFW!AD56*parity1)+(PRB!N191*EFW!AD56*parity2)+(PRB!O191*EFW!AD56*parity3)) -> 255.8086861 | G35: =EXP((PRB!$B$192*1)+(PRB!$C$192*EFW!AD56)+(PRB!$D$192*EFW!AD56^2)+(PRB!$E$192*EFW!AD56^3)+(PRB!$F$192*sexm)+(PRB!$G$192*heightn)+(PRB!$H$192*weightn)+(PRB!$I$192*EFW!AD56*weightn)+(PRB!$J$192*parity1)+(PRB!$K$192*parity2)+(PRB!$L$192*parity3)+(PRB!$M$192*EFW!AD56*parity1)+(PRB!$N$192*EFW!AD56*parity2)+(PRB!$O$192*EFW!AD56*parity3)) -> 276.8179537 | H35: =EXP((PRB!$B$193*1)+(PRB!$C$193*EFW!AD56)+(PRB!$D$193*EFW!AD56^2)+(PRB!$E$193*EFW!AD56^3)+(PRB!$F$193*sexm)+(PRB!$G$193*heightn)+(PRB!$H$193*weightn)+(PRB!$I$193*EFW!AD56*weightn)+(PRB!$J$193*parity1)+(PRB!$K$193*parity2)+(PRB!$L$193*parity3)+(PRB!$M$193*EFW!AD56*parity1)+(PRB!$N$193*EFW!AD56*parity2)+(PRB!$O$193*EFW!AD56*parity3)) -> 298.6290099 | I35: =EXP((PRB!$B$194*1)+(PRB!$C$194*EFW!AD56)+(PRB!$D$194*EFW!AD56^2)+(PRB!$E$194*EFW!AD56^3)+(PRB!$F$194*sexm)+(PRB!$G$194*heightn)+(PRB!$H$194*weightn)+(PRB!$I$194*EFW!AD56*weightn)+(PRB!$J$194*parity1)+(PRB!$K$194*parity2)+(PRB!$L$194*parity3)+(PRB!$M$194*EFW!AD56*parity1)+(PRB!$N$194*EFW!AD56*parity2)+(PRB!$O$194*EFW!AD56*parity3)) -> 312.6109246 | J35: =EXP((PRB!$B$195*1)+(PRB!$C$195*EFW!AD56)+(PRB!$D$195*EFW!AD56^2)+(PRB!$E$195*EFW!AD56^3)+(PRB!$F$195*sexm)+(PRB!$G$195*heightn)+(PRB!$H$195*weightn)+(PRB!$I$195*EFW!AD56*weightn)+(PRB!$J$195*parity1)+(PRB!$K$195*parity2)+(PRB!$L$195*parity3)+(PRB!$M$195*EFW!AD56*parity1)+(PRB!$N$195*EFW!AD56*parity2)+(PRB!$O$195*EFW!AD56*parity3)) -> 321.9003416
A36: 18.85714286 | B36: =EXP((PRB!B187*1)+(PRB!C187*EFW!AD57)+(PRB!D187*EFW!AD57^2)+(PRB!E187*EFW!AD57^3)+(PRB!F187*sexm)+(PRB!G187*heightn)+(PRB!H187*weightn)+(PRB!I187*EFW!AD57*weightn)+(PRB!J187*parity1)+(PRB!K187*parity2)+(PRB!L187*parity3)+(PRB!M187*EFW!AD57*parity1)+(PRB!N187*EFW!AD57*parity2)+(PRB!O187*EFW!AD57*parity3)) -> 209.4646673 | C36: =EXP((PRB!B188*1)+(PRB!C188*EFW!AD57)+(PRB!D188*EFW!AD57^2)+(PRB!E188*EFW!AD57^3)+(PRB!F188*sexm)+(PRB!G188*heightn)+(PRB!H188*weightn)+(PRB!I188*EFW!AD57*weightn)+(PRB!J188*parity1)+(PRB!K188*parity2)+(PRB!L188*parity3)+(PRB!M188*EFW!AD57*parity1)+(PRB!N188*EFW!AD57*parity2)+(PRB!O188*EFW!AD57*parity3)) -> 217.3030375 | D36: =EXP((PRB!B189*1)+(PRB!C189*EFW!AD57)+(PRB!D189*EFW!AD57^2)+(PRB!E189*EFW!AD57^3)+(PRB!F189*sexm)+(PRB!G189*heightn)+(PRB!H189*weightn)+(PRB!I189*EFW!AD57*weightn)+(PRB!J189*parity1)+(PRB!K189*parity2)+(PRB!L189*parity3)+(PRB!M189*EFW!AD57*parity1)+(PRB!N189*EFW!AD57*parity2)+(PRB!O189*EFW!AD57*parity3)) -> 227.5764699 | E36: =EXP((PRB!B190*1)+(PRB!C190*EFW!AD57)+(PRB!D190*EFW!AD57^2)+(PRB!E190*EFW!AD57^3)+(PRB!F190*sexm)+(PRB!G190*heightn)+(PRB!H190*weightn)+(PRB!I190*EFW!AD57*weightn)+(PRB!J190*parity1)+(PRB!K190*parity2)+(PRB!L190*parity3)+(PRB!M190*EFW!AD57*parity1)+(PRB!N190*EFW!AD57*parity2)+(PRB!O190*EFW!AD57*parity3)) -> 244.6655195 | F36: =EXP((PRB!B191*1)+(PRB!C191*EFW!AD57)+(PRB!D191*EFW!AD57^2)+(PRB!E191*EFW!AD57^3)+(PRB!F191*sexm)+(PRB!G191*heightn)+(PRB!H191*weightn)+(PRB!I191*EFW!AD57*weightn)+(PRB!J191*parity1)+(PRB!K191*parity2)+(PRB!L191*parity3)+(PRB!M191*EFW!AD57*parity1)+(PRB!N191*EFW!AD57*parity2)+(PRB!O191*EFW!AD57*parity3)) -> 263.0997748 | G36: =EXP((PRB!$B$192*1)+(PRB!$C$192*EFW!AD57)+(PRB!$D$192*EFW!AD57^2)+(PRB!$E$192*EFW!AD57^3)+(PRB!$F$192*sexm)+(PRB!$G$192*heightn)+(PRB!$H$192*weightn)+(PRB!$I$192*EFW!AD57*weightn)+(PRB!$J$192*parity1)+(PRB!$K$192*parity2)+(PRB!$L$192*parity3)+(PRB!$M$192*EFW!AD57*parity1)+(PRB!$N$192*EFW!AD57*parity2)+(PRB!$O$192*EFW!AD57*parity3)) -> 284.6212708 | H36: =EXP((PRB!$B$193*1)+(PRB!$C$193*EFW!AD57)+(PRB!$D$193*EFW!AD57^2)+(PRB!$E$193*EFW!AD57^3)+(PRB!$F$193*sexm)+(PRB!$G$193*heightn)+(PRB!$H$193*weightn)+(PRB!$I$193*EFW!AD57*weightn)+(PRB!$J$193*parity1)+(PRB!$K$193*parity2)+(PRB!$L$193*parity3)+(PRB!$M$193*EFW!AD57*parity1)+(PRB!$N$193*EFW!AD57*parity2)+(PRB!$O$193*EFW!AD57*parity3)) -> 307.0025404 | I36: =EXP((PRB!$B$194*1)+(PRB!$C$194*EFW!AD57)+(PRB!$D$194*EFW!AD57^2)+(PRB!$E$194*EFW!AD57^3)+(PRB!$F$194*sexm)+(PRB!$G$194*heightn)+(PRB!$H$194*weightn)+(PRB!$I$194*EFW!AD57*weightn)+(PRB!$J$194*parity1)+(PRB!$K$194*parity2)+(PRB!$L$194*parity3)+(PRB!$M$194*EFW!AD57*parity1)+(PRB!$N$194*EFW!AD57*parity2)+(PRB!$O$194*EFW!AD57*parity3)) -> 321.2866953 | J36: =EXP((PRB!$B$195*1)+(PRB!$C$195*EFW!AD57)+(PRB!$D$195*EFW!AD57^2)+(PRB!$E$195*EFW!AD57^3)+(PRB!$F$195*sexm)+(PRB!$G$195*heightn)+(PRB!$H$195*weightn)+(PRB!$I$195*EFW!AD57*weightn)+(PRB!$J$195*parity1)+(PRB!$K$195*parity2)+(PRB!$L$195*parity3)+(PRB!$M$195*EFW!AD57*parity1)+(PRB!$N$195*EFW!AD57*parity2)+(PRB!$O$195*EFW!AD57*parity3)) -> 330.8356102
A37: 19 | B37: =EXP((PRB!B187*1)+(PRB!C187*EFW!AD58)+(PRB!D187*EFW!AD58^2)+(PRB!E187*EFW!AD58^3)+(PRB!F187*sexm)+(PRB!G187*heightn)+(PRB!H187*weightn)+(PRB!I187*EFW!AD58*weightn)+(PRB!J187*parity1)+(PRB!K187*parity2)+(PRB!L187*parity3)+(PRB!M187*EFW!AD58*parity1)+(PRB!N187*EFW!AD58*parity2)+(PRB!O187*EFW!AD58*parity3)) -> 215.4958054 | C37: =EXP((PRB!B188*1)+(PRB!C188*EFW!AD58)+(PRB!D188*EFW!AD58^2)+(PRB!E188*EFW!AD58^3)+(PRB!F188*sexm)+(PRB!G188*heightn)+(PRB!H188*weightn)+(PRB!I188*EFW!AD58*weightn)+(PRB!J188*parity1)+(PRB!K188*parity2)+(PRB!L188*parity3)+(PRB!M188*EFW!AD58*parity1)+(PRB!N188*EFW!AD58*parity2)+(PRB!O188*EFW!AD58*parity3)) -> 223.580486 | D37: =EXP((PRB!B189*1)+(PRB!C189*EFW!AD58)+(PRB!D189*EFW!AD58^2)+(PRB!E189*EFW!AD58^3)+(PRB!F189*sexm)+(PRB!G189*heightn)+(PRB!H189*weightn)+(PRB!I189*EFW!AD58*weightn)+(PRB!J189*parity1)+(PRB!K189*parity2)+(PRB!L189*parity3)+(PRB!M189*EFW!AD58*parity1)+(PRB!N189*EFW!AD58*parity2)+(PRB!O189*EFW!AD58*parity3)) -> 234.1043486 | E37: =EXP((PRB!B190*1)+(PRB!C190*EFW!AD58)+(PRB!D190*EFW!AD58^2)+(PRB!E190*EFW!AD58^3)+(PRB!F190*sexm)+(PRB!G190*heightn)+(PRB!H190*weightn)+(PRB!I190*EFW!AD58*weightn)+(PRB!J190*parity1)+(PRB!K190*parity2)+(PRB!L190*parity3)+(PRB!M190*EFW!AD58*parity1)+(PRB!N190*EFW!AD58*parity2)+(PRB!O190*EFW!AD58*parity3)) -> 251.6059218 | F37: =EXP((PRB!B191*1)+(PRB!C191*EFW!AD58)+(PRB!D191*EFW!AD58^2)+(PRB!E191*EFW!AD58^3)+(PRB!F191*sexm)+(PRB!G191*heightn)+(PRB!H191*weightn)+(PRB!I191*EFW!AD58*weightn)+(PRB!J191*parity1)+(PRB!K191*parity2)+(PRB!L191*parity3)+(PRB!M191*EFW!AD58*parity1)+(PRB!N191*EFW!AD58*parity2)+(PRB!O191*EFW!AD58*parity3)) -> 270.5549767 | G37: =EXP((PRB!$B$192*1)+(PRB!$C$192*EFW!AD58)+(PRB!$D$192*EFW!AD58^2)+(PRB!$E$192*EFW!AD58^3)+(PRB!$F$192*sexm)+(PRB!$G$192*heightn)+(PRB!$H$192*weightn)+(PRB!$I$192*EFW!AD58*weightn)+(PRB!$J$192*parity1)+(PRB!$K$192*parity2)+(PRB!$L$192*parity3)+(PRB!$M$192*EFW!AD58*parity1)+(PRB!$N$192*EFW!AD58*parity2)+(PRB!$O$192*EFW!AD58*parity3)) -> 292.5996332 | H37: =EXP((PRB!$B$193*1)+(PRB!$C$193*EFW!AD58)+(PRB!$D$193*EFW!AD58^2)+(PRB!$E$193*EFW!AD58^3)+(PRB!$F$193*sexm)+(PRB!$G$193*heightn)+(PRB!$H$193*weightn)+(PRB!$I$193*EFW!AD58*weightn)+(PRB!$J$193*parity1)+(PRB!$K$193*parity2)+(PRB!$L$193*parity3)+(PRB!$M$193*EFW!AD58*parity1)+(PRB!$N$193*EFW!AD58*parity2)+(PRB!$O$193*EFW!AD58*parity3)) -> 315.5627339 | I37: =EXP((PRB!$B$194*1)+(PRB!$C$194*EFW!AD58)+(PRB!$D$194*EFW!AD58^2)+(PRB!$E$194*EFW!AD58^3)+(PRB!$F$194*sexm)+(PRB!$G$194*heightn)+(PRB!$H$194*weightn)+(PRB!$I$194*EFW!AD58*weightn)+(PRB!$J$194*parity1)+(PRB!$K$194*parity2)+(PRB!$L$194*parity3)+(PRB!$M$194*EFW!AD58*parity1)+(PRB!$N$194*EFW!AD58*parity2)+(PRB!$O$194*EFW!AD58*parity3)) -> 330.1569173 | J37: =EXP((PRB!$B$195*1)+(PRB!$C$195*EFW!AD58)+(PRB!$D$195*EFW!AD58^2)+(PRB!$E$195*EFW!AD58^3)+(PRB!$F$195*sexm)+(PRB!$G$195*heightn)+(PRB!$H$195*weightn)+(PRB!$I$195*EFW!AD58*weightn)+(PRB!$J$195*parity1)+(PRB!$K$195*parity2)+(PRB!$L$195*parity3)+(PRB!$M$195*EFW!AD58*parity1)+(PRB!$N$195*EFW!AD58*parity2)+(PRB!$O$195*EFW!AD58*parity3)) -> 339.973541
A38: 19.14285714 | B38: =EXP((PRB!B187*1)+(PRB!C187*EFW!AD59)+(PRB!D187*EFW!AD59^2)+(PRB!E187*EFW!AD59^3)+(PRB!F187*sexm)+(PRB!G187*heightn)+(PRB!H187*weightn)+(PRB!I187*EFW!AD59*weightn)+(PRB!J187*parity1)+(PRB!K187*parity2)+(PRB!L187*parity3)+(PRB!M187*EFW!AD59*parity1)+(PRB!N187*EFW!AD59*parity2)+(PRB!O187*EFW!AD59*parity3)) -> 221.6623286 | C38: =EXP((PRB!B188*1)+(PRB!C188*EFW!AD59)+(PRB!D188*EFW!AD59^2)+(PRB!E188*EFW!AD59^3)+(PRB!F188*sexm)+(PRB!G188*heightn)+(PRB!H188*weightn)+(PRB!I188*EFW!AD59*weightn)+(PRB!J188*parity1)+(PRB!K188*parity2)+(PRB!L188*parity3)+(PRB!M188*EFW!AD59*parity1)+(PRB!N188*EFW!AD59*parity2)+(PRB!O188*EFW!AD59*parity3)) -> 229.9989866 | D38: =EXP((PRB!B189*1)+(PRB!C189*EFW!AD59)+(PRB!D189*EFW!AD59^2)+(PRB!E189*EFW!AD59^3)+(PRB!F189*sexm)+(PRB!G189*heightn)+(PRB!H189*weightn)+(PRB!I189*EFW!AD59*weightn)+(PRB!J189*parity1)+(PRB!K189*parity2)+(PRB!L189*parity3)+(PRB!M189*EFW!AD59*parity1)+(PRB!N189*EFW!AD59*parity2)+(PRB!O189*EFW!AD59*parity3)) -> 240.7788939 | E38: =EXP((PRB!B190*1)+(PRB!C190*EFW!AD59)+(PRB!D190*EFW!AD59^2)+(PRB!E190*EFW!AD59^3)+(PRB!F190*sexm)+(PRB!G190*heightn)+(PRB!H190*weightn)+(PRB!I190*EFW!AD59*weightn)+(PRB!J190*parity1)+(PRB!K190*parity2)+(PRB!L190*parity3)+(PRB!M190*EFW!AD59*parity1)+(PRB!N190*EFW!AD59*parity2)+(PRB!O190*EFW!AD59*parity3)) -> 258.7021234 | F38: =EXP((PRB!B191*1)+(PRB!C191*EFW!AD59)+(PRB!D191*EFW!AD59^2)+(PRB!E191*EFW!AD59^3)+(PRB!F191*sexm)+(PRB!G191*heightn)+(PRB!H191*weightn)+(PRB!I191*EFW!AD59*weightn)+(PRB!J191*parity1)+(PRB!K191*parity2)+(PRB!L191*parity3)+(PRB!M191*EFW!AD59*parity1)+(PRB!N191*EFW!AD59*parity2)+(PRB!O191*EFW!AD59*parity3)) -> 278.1766015 | G38: =EXP((PRB!$B$192*1)+(PRB!$C$192*EFW!AD59)+(PRB!$D$192*EFW!AD59^2)+(PRB!$E$192*EFW!AD59^3)+(PRB!$F$192*sexm)+(PRB!$G$192*heightn)+(PRB!$H$192*weightn)+(PRB!$I$192*EFW!AD59*weightn)+(PRB!$J$192*parity1)+(PRB!$K$192*parity2)+(PRB!$L$192*parity3)+(PRB!$M$192*EFW!AD59*parity1)+(PRB!$N$192*EFW!AD59*parity2)+(PRB!$O$192*EFW!AD59*parity3)) -> 300.7555374 | H38: =EXP((PRB!$B$193*1)+(PRB!$C$193*EFW!AD59)+(PRB!$D$193*EFW!AD59^2)+(PRB!$E$193*EFW!AD59^3)+(PRB!$F$193*sexm)+(PRB!$G$193*heightn)+(PRB!$H$193*weightn)+(PRB!$I$193*EFW!AD59*weightn)+(PRB!$J$193*parity1)+(PRB!$K$193*parity2)+(PRB!$L$193*parity3)+(PRB!$M$193*EFW!AD59*parity1)+(PRB!$N$193*EFW!AD59*parity2)+(PRB!$O$193*EFW!AD59*parity3)) -> 324.3122282 | I38: =EXP((PRB!$B$194*1)+(PRB!$C$194*EFW!AD59)+(PRB!$D$194*EFW!AD59^2)+(PRB!$E$194*EFW!AD59^3)+(PRB!$F$194*sexm)+(PRB!$G$194*heightn)+(PRB!$H$194*weightn)+(PRB!$I$194*EFW!AD59*weightn)+(PRB!$J$194*parity1)+(PRB!$K$194*parity2)+(PRB!$L$194*parity3)+(PRB!$M$194*EFW!AD59*parity1)+(PRB!$N$194*EFW!AD59*parity2)+(PRB!$O$194*EFW!AD59*parity3)) -> 339.2244551 | J38: =EXP((PRB!$B$195*1)+(PRB!$C$195*EFW!AD59)+(PRB!$D$195*EFW!AD59^2)+(PRB!$E$195*EFW!AD59^3)+(PRB!$F$195*sexm)+(PRB!$G$195*heightn)+(PRB!$H$195*weightn)+(PRB!$I$195*EFW!AD59*weightn)+(PRB!$J$195*parity1)+(PRB!$K$195*parity2)+(PRB!$L$195*parity3)+(PRB!$M$195*EFW!AD59*parity1)+(PRB!$N$195*EFW!AD59*parity2)+(PRB!$O$195*EFW!AD59*parity3)) -> 349.3172354
A39: 19.28571429 | B39: =EXP((PRB!B187*1)+(PRB!C187*EFW!AD60)+(PRB!D187*EFW!AD60^2)+(PRB!E187*EFW!AD60^3)+(PRB!F187*sexm)+(PRB!G187*heightn)+(PRB!H187*weightn)+(PRB!I187*EFW!AD60*weightn)+(PRB!J187*parity1)+(PRB!K187*parity2)+(PRB!L187*parity3)+(PRB!M187*EFW!AD60*parity1)+(PRB!N187*EFW!AD60*parity2)+(PRB!O187*EFW!AD60*parity3)) -> 227.9660456 | C39: =EXP((PRB!B188*1)+(PRB!C188*EFW!AD60)+(PRB!D188*EFW!AD60^2)+(PRB!E188*EFW!AD60^3)+(PRB!F188*sexm)+(PRB!G188*heightn)+(PRB!H188*weightn)+(PRB!I188*EFW!AD60*weightn)+(PRB!J188*parity1)+(PRB!K188*parity2)+(PRB!L188*parity3)+(PRB!M188*EFW!AD60*parity1)+(PRB!N188*EFW!AD60*parity2)+(PRB!O188*EFW!AD60*parity3)) -> 236.5604236 | D39: =EXP((PRB!B189*1)+(PRB!C189*EFW!AD60)+(PRB!D189*EFW!AD60^2)+(PRB!E189*EFW!AD60^3)+(PRB!F189*sexm)+(PRB!G189*heightn)+(PRB!H189*weightn)+(PRB!I189*EFW!AD60*weightn)+(PRB!J189*parity1)+(PRB!K189*parity2)+(PRB!L189*parity3)+(PRB!M189*EFW!AD60*parity1)+(PRB!N189*EFW!AD60*parity2)+(PRB!O189*EFW!AD60*parity3)) -> 247.6021094 | E39: =EXP((PRB!B190*1)+(PRB!C190*EFW!AD60)+(PRB!D190*EFW!AD60^2)+(PRB!E190*EFW!AD60^3)+(PRB!F190*sexm)+(PRB!G190*heightn)+(PRB!H190*weightn)+(PRB!I190*EFW!AD60*weightn)+(PRB!J190*parity1)+(PRB!K190*parity2)+(PRB!L190*parity3)+(PRB!M190*EFW!AD60*parity1)+(PRB!N190*EFW!AD60*parity2)+(PRB!O190*EFW!AD60*parity3)) -> 265.956313 | F39: =EXP((PRB!B191*1)+(PRB!C191*EFW!AD60)+(PRB!D191*EFW!AD60^2)+(PRB!E191*EFW!AD60^3)+(PRB!F191*sexm)+(PRB!G191*heightn)+(PRB!H191*weightn)+(PRB!I191*EFW!AD60*weightn)+(PRB!J191*parity1)+(PRB!K191*parity2)+(PRB!L191*parity3)+(PRB!M191*EFW!AD60*parity1)+(PRB!N191*EFW!AD60*parity2)+(PRB!O191*EFW!AD60*parity3)) -> 285.9669508 | G39: =EXP((PRB!$B$192*1)+(PRB!$C$192*EFW!AD60)+(PRB!$D$192*EFW!AD60^2)+(PRB!$E$192*EFW!AD60^3)+(PRB!$F$192*sexm)+(PRB!$G$192*heightn)+(PRB!$H$192*weightn)+(PRB!$I$192*EFW!AD60*weightn)+(PRB!$J$192*parity1)+(PRB!$K$192*parity2)+(PRB!$L$192*parity3)+(PRB!$M$192*EFW!AD60*parity1)+(PRB!$N$192*EFW!AD60*parity2)+(PRB!$O$192*EFW!AD60*parity3)) -> 309.0914729 | H39: =EXP((PRB!$B$193*1)+(PRB!$C$193*EFW!AD60)+(PRB!$D$193*EFW!AD60^2)+(PRB!$E$193*EFW!AD60^3)+(PRB!$F$193*sexm)+(PRB!$G$193*heightn)+(PRB!$H$193*weightn)+(PRB!$I$193*EFW!AD60*weightn)+(PRB!$J$193*parity1)+(PRB!$K$193*parity2)+(PRB!$L$193*parity3)+(PRB!$M$193*EFW!AD60*parity1)+(PRB!$N$193*EFW!AD60*parity2)+(PRB!$O$193*EFW!AD60*parity3)) -> 333.2536534 | I39: =EXP((PRB!$B$194*1)+(PRB!$C$194*EFW!AD60)+(PRB!$D$194*EFW!AD60^2)+(PRB!$E$194*EFW!AD60^3)+(PRB!$F$194*sexm)+(PRB!$G$194*heightn)+(PRB!$H$194*weightn)+(PRB!$I$194*EFW!AD60*weightn)+(PRB!$J$194*parity1)+(PRB!$K$194*parity2)+(PRB!$L$194*parity3)+(PRB!$M$194*EFW!AD60*parity1)+(PRB!$N$194*EFW!AD60*parity2)+(PRB!$O$194*EFW!AD60*parity3)) -> 348.4921696 | J39: =EXP((PRB!$B$195*1)+(PRB!$C$195*EFW!AD60)+(PRB!$D$195*EFW!AD60^2)+(PRB!$E$195*EFW!AD60^3)+(PRB!$F$195*sexm)+(PRB!$G$195*heightn)+(PRB!$H$195*weightn)+(PRB!$I$195*EFW!AD60*weightn)+(PRB!$J$195*parity1)+(PRB!$K$195*parity2)+(PRB!$L$195*parity3)+(PRB!$M$195*EFW!AD60*parity1)+(PRB!$N$195*EFW!AD60*parity2)+(PRB!$O$195*EFW!AD60*parity3)) -> 358.8697949
A40: 19.42857143 | B40: =EXP((PRB!B187*1)+(PRB!C187*EFW!AD61)+(PRB!D187*EFW!AD61^2)+(PRB!E187*EFW!AD61^3)+(PRB!F187*sexm)+(PRB!G187*heightn)+(PRB!H187*weightn)+(PRB!I187*EFW!AD61*weightn)+(PRB!J187*parity1)+(PRB!K187*parity2)+(PRB!L187*parity3)+(PRB!M187*EFW!AD61*parity1)+(PRB!N187*EFW!AD61*parity2)+(PRB!O187*EFW!AD61*parity3)) -> 234.4087523 | C40: =EXP((PRB!B188*1)+(PRB!C188*EFW!AD61)+(PRB!D188*EFW!AD61^2)+(PRB!E188*EFW!AD61^3)+(PRB!F188*sexm)+(PRB!G188*heightn)+(PRB!H188*weightn)+(PRB!I188*EFW!AD61*weightn)+(PRB!J188*parity1)+(PRB!K188*parity2)+(PRB!L188*parity3)+(PRB!M188*EFW!AD61*parity1)+(PRB!N188*EFW!AD61*parity2)+(PRB!O188*EFW!AD61*parity3)) -> 243.2666692 | D40: =EXP((PRB!B189*1)+(PRB!C189*EFW!AD61)+(PRB!D189*EFW!AD61^2)+(PRB!E189*EFW!AD61^3)+(PRB!F189*sexm)+(PRB!G189*heightn)+(PRB!H189*weightn)+(PRB!I189*EFW!AD61*weightn)+(PRB!J189*parity1)+(PRB!K189*parity2)+(PRB!L189*parity3)+(PRB!M189*EFW!AD61*parity1)+(PRB!N189*EFW!AD61*parity2)+(PRB!O189*EFW!AD61*parity3)) -> 254.5759884 | E40: =EXP((PRB!B190*1)+(PRB!C190*EFW!AD61)+(PRB!D190*EFW!AD61^2)+(PRB!E190*EFW!AD61^3)+(PRB!F190*sexm)+(PRB!G190*heightn)+(PRB!H190*weightn)+(PRB!I190*EFW!AD61*weightn)+(PRB!J190*parity1)+(PRB!K190*parity2)+(PRB!L190*parity3)+(PRB!M190*EFW!AD61*parity1)+(PRB!N190*EFW!AD61*parity2)+(PRB!O190*EFW!AD61*parity3)) -> 273.3706706 | F40: =EXP((PRB!B191*1)+(PRB!C191*EFW!AD61)+(PRB!D191*EFW!AD61^2)+(PRB!E191*EFW!AD61^3)+(PRB!F191*sexm)+(PRB!G191*heightn)+(PRB!H191*weightn)+(PRB!I191*EFW!AD61*weightn)+(PRB!J191*parity1)+(PRB!K191*parity2)+(PRB!L191*parity3)+(PRB!M191*EFW!AD61*parity1)+(PRB!N191*EFW!AD61*parity2)+(PRB!O191*EFW!AD61*parity3)) -> 293.9283173 | G40: =EXP((PRB!$B$192*1)+(PRB!$C$192*EFW!AD61)+(PRB!$D$192*EFW!AD61^2)+(PRB!$E$192*EFW!AD61^3)+(PRB!$F$192*sexm)+(PRB!$G$192*heightn)+(PRB!$H$192*weightn)+(PRB!$I$192*EFW!AD61*weightn)+(PRB!$J$192*parity1)+(PRB!$K$192*parity2)+(PRB!$L$192*parity3)+(PRB!$M$192*EFW!AD61*parity1)+(PRB!$N$192*EFW!AD61*parity2)+(PRB!$O$192*EFW!AD61*parity3)) -> 317.609921 | H40: =EXP((PRB!$B$193*1)+(PRB!$C$193*EFW!AD61)+(PRB!$D$193*EFW!AD61^2)+(PRB!$E$193*EFW!AD61^3)+(PRB!$F$193*sexm)+(PRB!$G$193*heightn)+(PRB!$H$193*weightn)+(PRB!$I$193*EFW!AD61*weightn)+(PRB!$J$193*parity1)+(PRB!$K$193*parity2)+(PRB!$L$193*parity3)+(PRB!$M$193*EFW!AD61*parity1)+(PRB!$N$193*EFW!AD61*parity2)+(PRB!$O$193*EFW!AD61*parity3)) -> 342.3896301 | I40: =EXP((PRB!$B$194*1)+(PRB!$C$194*EFW!AD61)+(PRB!$D$194*EFW!AD61^2)+(PRB!$E$194*EFW!AD61^3)+(PRB!$F$194*sexm)+(PRB!$G$194*heightn)+(PRB!$H$194*weightn)+(PRB!$I$194*EFW!AD61*weightn)+(PRB!$J$194*parity1)+(PRB!$K$194*parity2)+(PRB!$L$194*parity3)+(PRB!$M$194*EFW!AD61*parity1)+(PRB!$N$194*EFW!AD61*parity2)+(PRB!$O$194*EFW!AD61*parity3)) -> 357.9629161 | J40: =EXP((PRB!$B$195*1)+(PRB!$C$195*EFW!AD61)+(PRB!$D$195*EFW!AD61^2)+(PRB!$E$195*EFW!AD61^3)+(PRB!$F$195*sexm)+(PRB!$G$195*heightn)+(PRB!$H$195*weightn)+(PRB!$I$195*EFW!AD61*weightn)+(PRB!$J$195*parity1)+(PRB!$K$195*parity2)+(PRB!$L$195*parity3)+(PRB!$M$195*EFW!AD61*parity1)+(PRB!$N$195*EFW!AD61*parity2)+(PRB!$O$195*EFW!AD61*parity3)) -> 368.6343191
A41: 19.57142857 | B41: =EXP((PRB!B187*1)+(PRB!C187*EFW!AD62)+(PRB!D187*EFW!AD62^2)+(PRB!E187*EFW!AD62^3)+(PRB!F187*sexm)+(PRB!G187*heightn)+(PRB!H187*weightn)+(PRB!I187*EFW!AD62*weightn)+(PRB!J187*parity1)+(PRB!K187*parity2)+(PRB!L187*parity3)+(PRB!M187*EFW!AD62*parity1)+(PRB!N187*EFW!AD62*parity2)+(PRB!O187*EFW!AD62*parity3)) -> 240.9922311 | C41: =EXP((PRB!B188*1)+(PRB!C188*EFW!AD62)+(PRB!D188*EFW!AD62^2)+(PRB!E188*EFW!AD62^3)+(PRB!F188*sexm)+(PRB!G188*heightn)+(PRB!H188*weightn)+(PRB!I188*EFW!AD62*weightn)+(PRB!J188*parity1)+(PRB!K188*parity2)+(PRB!L188*parity3)+(PRB!M188*EFW!AD62*parity1)+(PRB!N188*EFW!AD62*parity2)+(PRB!O188*EFW!AD62*parity3)) -> 250.1195816 | D41: =EXP((PRB!B189*1)+(PRB!C189*EFW!AD62)+(PRB!D189*EFW!AD62^2)+(PRB!E189*EFW!AD62^3)+(PRB!F189*sexm)+(PRB!G189*heightn)+(PRB!H189*weightn)+(PRB!I189*EFW!AD62*weightn)+(PRB!J189*parity1)+(PRB!K189*parity2)+(PRB!L189*parity3)+(PRB!M189*EFW!AD62*parity1)+(PRB!N189*EFW!AD62*parity2)+(PRB!O189*EFW!AD62*parity3)) -> 261.7025125 | E41: =EXP((PRB!B190*1)+(PRB!C190*EFW!AD62)+(PRB!D190*EFW!AD62^2)+(PRB!E190*EFW!AD62^3)+(PRB!F190*sexm)+(PRB!G190*heightn)+(PRB!H190*weightn)+(PRB!I190*EFW!AD62*weightn)+(PRB!J190*parity1)+(PRB!K190*parity2)+(PRB!L190*parity3)+(PRB!M190*EFW!AD62*parity1)+(PRB!N190*EFW!AD62*parity2)+(PRB!O190*EFW!AD62*parity3)) -> 280.9473672 | F41: =EXP((PRB!B191*1)+(PRB!C191*EFW!AD62)+(PRB!D191*EFW!AD62^2)+(PRB!E191*EFW!AD62^3)+(PRB!F191*sexm)+(PRB!G191*heightn)+(PRB!H191*weightn)+(PRB!I191*EFW!AD62*weightn)+(PRB!J191*parity1)+(PRB!K191*parity2)+(PRB!L191*parity3)+(PRB!M191*EFW!AD62*parity1)+(PRB!N191*EFW!AD62*parity2)+(PRB!O191*EFW!AD62*parity3)) -> 302.0629825 | G41: =EXP((PRB!$B$192*1)+(PRB!$C$192*EFW!AD62)+(PRB!$D$192*EFW!AD62^2)+(PRB!$E$192*EFW!AD62^3)+(PRB!$F$192*sexm)+(PRB!$G$192*heightn)+(PRB!$H$192*weightn)+(PRB!$I$192*EFW!AD62*weightn)+(PRB!$J$192*parity1)+(PRB!$K$192*parity2)+(PRB!$L$192*parity3)+(PRB!$M$192*EFW!AD62*parity1)+(PRB!$N$192*EFW!AD62*parity2)+(PRB!$O$192*EFW!AD62*parity3)) -> 326.3133527 | H41: =EXP((PRB!$B$193*1)+(PRB!$C$193*EFW!AD62)+(PRB!$D$193*EFW!AD62^2)+(PRB!$E$193*EFW!AD62^3)+(PRB!$F$193*sexm)+(PRB!$G$193*heightn)+(PRB!$H$193*weightn)+(PRB!$I$193*EFW!AD62*weightn)+(PRB!$J$193*parity1)+(PRB!$K$193*parity2)+(PRB!$L$193*parity3)+(PRB!$M$193*EFW!AD62*parity1)+(PRB!$N$193*EFW!AD62*parity2)+(PRB!$O$193*EFW!AD62*parity3)) -> 351.7227682 | I41: =EXP((PRB!$B$194*1)+(PRB!$C$194*EFW!AD62)+(PRB!$D$194*EFW!AD62^2)+(PRB!$E$194*EFW!AD62^3)+(PRB!$F$194*sexm)+(PRB!$G$194*heightn)+(PRB!$H$194*weightn)+(PRB!$I$194*EFW!AD62*weightn)+(PRB!$J$194*parity1)+(PRB!$K$194*parity2)+(PRB!$L$194*parity3)+(PRB!$M$194*EFW!AD62*parity1)+(PRB!$N$194*EFW!AD62*parity2)+(PRB!$O$194*EFW!AD62*parity3)) -> 367.6395428 | J41: =EXP((PRB!$B$195*1)+(PRB!$C$195*EFW!AD62)+(PRB!$D$195*EFW!AD62^2)+(PRB!$E$195*EFW!AD62^3)+(PRB!$F$195*sexm)+(PRB!$G$195*heightn)+(PRB!$H$195*weightn)+(PRB!$I$195*EFW!AD62*weightn)+(PRB!$J$195*parity1)+(PRB!$K$195*parity2)+(PRB!$L$195*parity3)+(PRB!$M$195*EFW!AD62*parity1)+(PRB!$N$195*EFW!AD62*parity2)+(PRB!$O$195*EFW!AD62*parity3)) -> 378.6139041
A42: 19.71428571 | B42: =EXP((PRB!B187*1)+(PRB!C187*EFW!AD63)+(PRB!D187*EFW!AD63^2)+(PRB!E187*EFW!AD63^3)+(PRB!F187*sexm)+(PRB!G187*heightn)+(PRB!H187*weightn)+(PRB!I187*EFW!AD63*weightn)+(PRB!J187*parity1)+(PRB!K187*parity2)+(PRB!L187*parity3)+(PRB!M187*EFW!AD63*parity1)+(PRB!N187*EFW!AD63*parity2)+(PRB!O187*EFW!AD63*parity3)) -> 247.7182495 | C42: =EXP((PRB!B188*1)+(PRB!C188*EFW!AD63)+(PRB!D188*EFW!AD63^2)+(PRB!E188*EFW!AD63^3)+(PRB!F188*sexm)+(PRB!G188*heightn)+(PRB!H188*weightn)+(PRB!I188*EFW!AD63*weightn)+(PRB!J188*parity1)+(PRB!K188*parity2)+(PRB!L188*parity3)+(PRB!M188*EFW!AD63*parity1)+(PRB!N188*EFW!AD63*parity2)+(PRB!O188*EFW!AD63*parity3)) -> 257.1210043 | D42: =EXP((PRB!B189*1)+(PRB!C189*EFW!AD63)+(PRB!D189*EFW!AD63^2)+(PRB!E189*EFW!AD63^3)+(PRB!F189*sexm)+(PRB!G189*heightn)+(PRB!H189*weightn)+(PRB!I189*EFW!AD63*weightn)+(PRB!J189*parity1)+(PRB!K189*parity2)+(PRB!L189*parity3)+(PRB!M189*EFW!AD63*parity1)+(PRB!N189*EFW!AD63*parity2)+(PRB!O189*EFW!AD63*parity3)) -> 268.98365 | E42: =EXP((PRB!B190*1)+(PRB!C190*EFW!AD63)+(PRB!D190*EFW!AD63^2)+(PRB!E190*EFW!AD63^3)+(PRB!F190*sexm)+(PRB!G190*heightn)+(PRB!H190*weightn)+(PRB!I190*EFW!AD63*weightn)+(PRB!J190*parity1)+(PRB!K190*parity2)+(PRB!L190*parity3)+(PRB!M190*EFW!AD63*parity1)+(PRB!N190*EFW!AD63*parity2)+(PRB!O190*EFW!AD63*parity3)) -> 288.6885629 | F42: =EXP((PRB!B191*1)+(PRB!C191*EFW!AD63)+(PRB!D191*EFW!AD63^2)+(PRB!E191*EFW!AD63^3)+(PRB!F191*sexm)+(PRB!G191*heightn)+(PRB!H191*weightn)+(PRB!I191*EFW!AD63*weightn)+(PRB!J191*parity1)+(PRB!K191*parity2)+(PRB!L191*parity3)+(PRB!M191*EFW!AD63*parity1)+(PRB!N191*EFW!AD63*parity2)+(PRB!O191*EFW!AD63*parity3)) -> 310.3732162 | G42: =EXP((PRB!$B$192*1)+(PRB!$C$192*EFW!AD63)+(PRB!$D$192*EFW!AD63^2)+(PRB!$E$192*EFW!AD63^3)+(PRB!$F$192*sexm)+(PRB!$G$192*heightn)+(PRB!$H$192*weightn)+(PRB!$I$192*EFW!AD63*weightn)+(PRB!$J$192*parity1)+(PRB!$K$192*parity2)+(PRB!$L$192*parity3)+(PRB!$M$192*EFW!AD63*parity1)+(PRB!$N$192*EFW!AD63*parity2)+(PRB!$O$192*EFW!AD63*parity3)) -> 335.2042278 | H42: =EXP((PRB!$B$193*1)+(PRB!$C$193*EFW!AD63)+(PRB!$D$193*EFW!AD63^2)+(PRB!$E$193*EFW!AD63^3)+(PRB!$F$193*sexm)+(PRB!$G$193*heightn)+(PRB!$H$193*weightn)+(PRB!$I$193*EFW!AD63*weightn)+(PRB!$J$193*parity1)+(PRB!$K$193*parity2)+(PRB!$L$193*parity3)+(PRB!$M$193*EFW!AD63*parity1)+(PRB!$N$193*EFW!AD63*parity2)+(PRB!$O$193*EFW!AD63*parity3)) -> 361.2556649 | I42: =EXP((PRB!$B$194*1)+(PRB!$C$194*EFW!AD63)+(PRB!$D$194*EFW!AD63^2)+(PRB!$E$194*EFW!AD63^3)+(PRB!$F$194*sexm)+(PRB!$G$194*heightn)+(PRB!$H$194*weightn)+(PRB!$I$194*EFW!AD63*weightn)+(PRB!$J$194*parity1)+(PRB!$K$194*parity2)+(PRB!$L$194*parity3)+(PRB!$M$194*EFW!AD63*parity1)+(PRB!$N$194*EFW!AD63*parity2)+(PRB!$O$194*EFW!AD63*parity3)) -> 377.5248893 | J42: =EXP((PRB!$B$195*1)+(PRB!$C$195*EFW!AD63)+(PRB!$D$195*EFW!AD63^2)+(PRB!$E$195*EFW!AD63^3)+(PRB!$F$195*sexm)+(PRB!$G$195*heightn)+(PRB!$H$195*weightn)+(PRB!$I$195*EFW!AD63*weightn)+(PRB!$J$195*parity1)+(PRB!$K$195*parity2)+(PRB!$L$195*parity3)+(PRB!$M$195*EFW!AD63*parity1)+(PRB!$N$195*EFW!AD63*parity2)+(PRB!$O$195*EFW!AD63*parity3)) -> 388.8116404
A43: 19.85714286 | B43: =EXP((PRB!B187*1)+(PRB!C187*EFW!AD64)+(PRB!D187*EFW!AD64^2)+(PRB!E187*EFW!AD64^3)+(PRB!F187*sexm)+(PRB!G187*heightn)+(PRB!H187*weightn)+(PRB!I187*EFW!AD64*weightn)+(PRB!J187*parity1)+(PRB!K187*parity2)+(PRB!L187*parity3)+(PRB!M187*EFW!AD64*parity1)+(PRB!N187*EFW!AD64*parity2)+(PRB!O187*EFW!AD64*parity3)) -> 254.5885584 | C43: =EXP((PRB!B188*1)+(PRB!C188*EFW!AD64)+(PRB!D188*EFW!AD64^2)+(PRB!E188*EFW!AD64^3)+(PRB!F188*sexm)+(PRB!G188*heightn)+(PRB!H188*weightn)+(PRB!I188*EFW!AD64*weightn)+(PRB!J188*parity1)+(PRB!K188*parity2)+(PRB!L188*parity3)+(PRB!M188*EFW!AD64*parity1)+(PRB!N188*EFW!AD64*parity2)+(PRB!O188*EFW!AD64*parity3)) -> 264.2727646 | D43: =EXP((PRB!B189*1)+(PRB!C189*EFW!AD64)+(PRB!D189*EFW!AD64^2)+(PRB!E189*EFW!AD64^3)+(PRB!F189*sexm)+(PRB!G189*heightn)+(PRB!H189*weightn)+(PRB!I189*EFW!AD64*weightn)+(PRB!J189*parity1)+(PRB!K189*parity2)+(PRB!L189*parity3)+(PRB!M189*EFW!AD64*parity1)+(PRB!N189*EFW!AD64*parity2)+(PRB!O189*EFW!AD64*parity3)) -> 276.4213551 | E43: =EXP((PRB!B190*1)+(PRB!C190*EFW!AD64)+(PRB!D190*EFW!AD64^2)+(PRB!E190*EFW!AD64^3)+(PRB!F190*sexm)+(PRB!G190*heightn)+(PRB!H190*weightn)+(PRB!I190*EFW!AD64*weightn)+(PRB!J190*parity1)+(PRB!K190*parity2)+(PRB!L190*parity3)+(PRB!M190*EFW!AD64*parity1)+(PRB!N190*EFW!AD64*parity2)+(PRB!O190*EFW!AD64*parity3)) -> 296.5964053 | F43: =EXP((PRB!B191*1)+(PRB!C191*EFW!AD64)+(PRB!D191*EFW!AD64^2)+(PRB!E191*EFW!AD64^3)+(PRB!F191*sexm)+(PRB!G191*heightn)+(PRB!H191*weightn)+(PRB!I191*EFW!AD64*weightn)+(PRB!J191*parity1)+(PRB!K191*parity2)+(PRB!L191*parity3)+(PRB!M191*EFW!AD64*parity1)+(PRB!N191*EFW!AD64*parity2)+(PRB!O191*EFW!AD64*parity3)) -> 318.8612744 | G43: =EXP((PRB!$B$192*1)+(PRB!$C$192*EFW!AD64)+(PRB!$D$192*EFW!AD64^2)+(PRB!$E$192*EFW!AD64^3)+(PRB!$F$192*sexm)+(PRB!$G$192*heightn)+(PRB!$H$192*weightn)+(PRB!$I$192*EFW!AD64*weightn)+(PRB!$J$192*parity1)+(PRB!$K$192*parity2)+(PRB!$L$192*parity3)+(PRB!$M$192*EFW!AD64*parity1)+(PRB!$N$192*EFW!AD64*parity2)+(PRB!$O$192*EFW!AD64*parity3)) -> 344.2849929 | H43: =EXP((PRB!$B$193*1)+(PRB!$C$193*EFW!AD64)+(PRB!$D$193*EFW!AD64^2)+(PRB!$E$193*EFW!AD64^3)+(PRB!$F$193*sexm)+(PRB!$G$193*heightn)+(PRB!$H$193*weightn)+(PRB!$I$193*EFW!AD64*weightn)+(PRB!$J$193*parity1)+(PRB!$K$193*parity2)+(PRB!$L$193*parity3)+(PRB!$M$193*EFW!AD64*parity1)+(PRB!$N$193*EFW!AD64*parity2)+(PRB!$O$193*EFW!AD64*parity3)) -> 370.9909031 | I43: =EXP((PRB!$B$194*1)+(PRB!$C$194*EFW!AD64)+(PRB!$D$194*EFW!AD64^2)+(PRB!$E$194*EFW!AD64^3)+(PRB!$F$194*sexm)+(PRB!$G$194*heightn)+(PRB!$H$194*weightn)+(PRB!$I$194*EFW!AD64*weightn)+(PRB!$J$194*parity1)+(PRB!$K$194*parity2)+(PRB!$L$194*parity3)+(PRB!$M$194*EFW!AD64*parity1)+(PRB!$N$194*EFW!AD64*parity2)+(PRB!$O$194*EFW!AD64*parity3)) -> 387.6217844 | J43: =EXP((PRB!$B$195*1)+(PRB!$C$195*EFW!AD64)+(PRB!$D$195*EFW!AD64^2)+(PRB!$E$195*EFW!AD64^3)+(PRB!$F$195*sexm)+(PRB!$G$195*heightn)+(PRB!$H$195*weightn)+(PRB!$I$195*EFW!AD64*weightn)+(PRB!$J$195*parity1)+(PRB!$K$195*parity2)+(PRB!$L$195*parity3)+(PRB!$M$195*EFW!AD64*parity1)+(PRB!$N$195*EFW!AD64*parity2)+(PRB!$O$195*EFW!AD64*parity3)) -> 399.2306112
A44: 20 | B44: =EXP((PRB!B187*1)+(PRB!C187*EFW!AD65)+(PRB!D187*EFW!AD65^2)+(PRB!E187*EFW!AD65^3)+(PRB!F187*sexm)+(PRB!G187*heightn)+(PRB!H187*weightn)+(PRB!I187*EFW!AD65*weightn)+(PRB!J187*parity1)+(PRB!K187*parity2)+(PRB!L187*parity3)+(PRB!M187*EFW!AD65*parity1)+(PRB!N187*EFW!AD65*parity2)+(PRB!O187*EFW!AD65*parity3)) -> 261.6048913 | C44: =EXP((PRB!B188*1)+(PRB!C188*EFW!AD65)+(PRB!D188*EFW!AD65^2)+(PRB!E188*EFW!AD65^3)+(PRB!F188*sexm)+(PRB!G188*heightn)+(PRB!H188*weightn)+(PRB!I188*EFW!AD65*weightn)+(PRB!J188*parity1)+(PRB!K188*parity2)+(PRB!L188*parity3)+(PRB!M188*EFW!AD65*parity1)+(PRB!N188*EFW!AD65*parity2)+(PRB!O188*EFW!AD65*parity3)) -> 271.5766724 | D44: =EXP((PRB!B189*1)+(PRB!C189*EFW!AD65)+(PRB!D189*EFW!AD65^2)+(PRB!E189*EFW!AD65^3)+(PRB!F189*sexm)+(PRB!G189*heightn)+(PRB!H189*weightn)+(PRB!I189*EFW!AD65*weightn)+(PRB!J189*parity1)+(PRB!K189*parity2)+(PRB!L189*parity3)+(PRB!M189*EFW!AD65*parity1)+(PRB!N189*EFW!AD65*parity2)+(PRB!O189*EFW!AD65*parity3)) -> 284.0175664 | E44: =EXP((PRB!B190*1)+(PRB!C190*EFW!AD65)+(PRB!D190*EFW!AD65^2)+(PRB!E190*EFW!AD65^3)+(PRB!F190*sexm)+(PRB!G190*heightn)+(PRB!H190*weightn)+(PRB!I190*EFW!AD65*weightn)+(PRB!J190*parity1)+(PRB!K190*parity2)+(PRB!L190*parity3)+(PRB!M190*EFW!AD65*parity1)+(PRB!N190*EFW!AD65*parity2)+(PRB!O190*EFW!AD65*parity3)) -> 304.6730288 | F44: =EXP((PRB!B191*1)+(PRB!C191*EFW!AD65)+(PRB!D191*EFW!AD65^2)+(PRB!E191*EFW!AD65^3)+(PRB!F191*sexm)+(PRB!G191*heightn)+(PRB!H191*weightn)+(PRB!I191*EFW!AD65*weightn)+(PRB!J191*parity1)+(PRB!K191*parity2)+(PRB!L191*parity3)+(PRB!M191*EFW!AD65*parity1)+(PRB!N191*EFW!AD65*parity2)+(PRB!O191*EFW!AD65*parity3)) -> 327.5293984 | G44: =EXP((PRB!$B$192*1)+(PRB!$C$192*EFW!AD65)+(PRB!$D$192*EFW!AD65^2)+(PRB!$E$192*EFW!AD65^3)+(PRB!$F$192*sexm)+(PRB!$G$192*heightn)+(PRB!$H$192*weightn)+(PRB!$I$192*EFW!AD65*weightn)+(PRB!$J$192*parity1)+(PRB!$K$192*parity2)+(PRB!$L$192*parity3)+(PRB!$M$192*EFW!AD65*parity1)+(PRB!$N$192*EFW!AD65*parity2)+(PRB!$O$192*EFW!AD65*parity3)) -> 353.5580801 | H44: =EXP((PRB!$B$193*1)+(PRB!$C$193*EFW!AD65)+(PRB!$D$193*EFW!AD65^2)+(PRB!$E$193*EFW!AD65^3)+(PRB!$F$193*sexm)+(PRB!$G$193*heightn)+(PRB!$H$193*weightn)+(PRB!$I$193*EFW!AD65*weightn)+(PRB!$J$193*parity1)+(PRB!$K$193*parity2)+(PRB!$L$193*parity3)+(PRB!$M$193*EFW!AD65*parity1)+(PRB!$N$193*EFW!AD65*parity2)+(PRB!$O$193*EFW!AD65*parity3)) -> 380.9310501 | I44: =EXP((PRB!$B$194*1)+(PRB!$C$194*EFW!AD65)+(PRB!$D$194*EFW!AD65^2)+(PRB!$E$194*EFW!AD65^3)+(PRB!$F$194*sexm)+(PRB!$G$194*heightn)+(PRB!$H$194*weightn)+(PRB!$I$194*EFW!AD65*weightn)+(PRB!$J$194*parity1)+(PRB!$K$194*parity2)+(PRB!$L$194*parity3)+(PRB!$M$194*EFW!AD65*parity1)+(PRB!$N$194*EFW!AD65*parity2)+(PRB!$O$194*EFW!AD65*parity3)) -> 397.9330444 | J44: =EXP((PRB!$B$195*1)+(PRB!$C$195*EFW!AD65)+(PRB!$D$195*EFW!AD65^2)+(PRB!$E$195*EFW!AD65^3)+(PRB!$F$195*sexm)+(PRB!$G$195*heightn)+(PRB!$H$195*weightn)+(PRB!$I$195*EFW!AD65*weightn)+(PRB!$J$195*parity1)+(PRB!$K$195*parity2)+(PRB!$L$195*parity3)+(PRB!$M$195*EFW!AD65*parity1)+(PRB!$N$195*EFW!AD65*parity2)+(PRB!$O$195*EFW!AD65*parity3)) -> 409.8738902
A45: 20.14285714 | B45: =EXP((PRB!B187*1)+(PRB!C187*EFW!AD66)+(PRB!D187*EFW!AD66^2)+(PRB!E187*EFW!AD66^3)+(PRB!F187*sexm)+(PRB!G187*heightn)+(PRB!H187*weightn)+(PRB!I187*EFW!AD66*weightn)+(PRB!J187*parity1)+(PRB!K187*parity2)+(PRB!L187*parity3)+(PRB!M187*EFW!AD66*parity1)+(PRB!N187*EFW!AD66*parity2)+(PRB!O187*EFW!AD66*parity3)) -> 268.7689626 | C45: =EXP((PRB!B188*1)+(PRB!C188*EFW!AD66)+(PRB!D188*EFW!AD66^2)+(PRB!E188*EFW!AD66^3)+(PRB!F188*sexm)+(PRB!G188*heightn)+(PRB!H188*weightn)+(PRB!I188*EFW!AD66*weightn)+(PRB!J188*parity1)+(PRB!K188*parity2)+(PRB!L188*parity3)+(PRB!M188*EFW!AD66*parity1)+(PRB!N188*EFW!AD66*parity2)+(PRB!O188*EFW!AD66*parity3)) -> 279.0345186 | D45: =EXP((PRB!B189*1)+(PRB!C189*EFW!AD66)+(PRB!D189*EFW!AD66^2)+(PRB!E189*EFW!AD66^3)+(PRB!F189*sexm)+(PRB!G189*heightn)+(PRB!H189*weightn)+(PRB!I189*EFW!AD66*weightn)+(PRB!J189*parity1)+(PRB!K189*parity2)+(PRB!L189*parity3)+(PRB!M189*EFW!AD66*parity1)+(PRB!N189*EFW!AD66*parity2)+(PRB!O189*EFW!AD66*parity3)) -> 291.7742051 | E45: =EXP((PRB!B190*1)+(PRB!C190*EFW!AD66)+(PRB!D190*EFW!AD66^2)+(PRB!E190*EFW!AD66^3)+(PRB!F190*sexm)+(PRB!G190*heightn)+(PRB!H190*weightn)+(PRB!I190*EFW!AD66*weightn)+(PRB!J190*parity1)+(PRB!K190*parity2)+(PRB!L190*parity3)+(PRB!M190*EFW!AD66*parity1)+(PRB!N190*EFW!AD66*parity2)+(PRB!O190*EFW!AD66*parity3)) -> 312.9205525 | F45: =EXP((PRB!B191*1)+(PRB!C191*EFW!AD66)+(PRB!D191*EFW!AD66^2)+(PRB!E191*EFW!AD66^3)+(PRB!F191*sexm)+(PRB!G191*heightn)+(PRB!H191*weightn)+(PRB!I191*EFW!AD66*weightn)+(PRB!J191*parity1)+(PRB!K191*parity2)+(PRB!L191*parity3)+(PRB!M191*EFW!AD66*parity1)+(PRB!N191*EFW!AD66*parity2)+(PRB!O191*EFW!AD66*parity3)) -> 336.3798129 | G45: =EXP((PRB!$B$192*1)+(PRB!$C$192*EFW!AD66)+(PRB!$D$192*EFW!AD66^2)+(PRB!$E$192*EFW!AD66^3)+(PRB!$F$192*sexm)+(PRB!$G$192*heightn)+(PRB!$H$192*weightn)+(PRB!$I$192*EFW!AD66*weightn)+(PRB!$J$192*parity1)+(PRB!$K$192*parity2)+(PRB!$L$192*parity3)+(PRB!$M$192*EFW!AD66*parity1)+(PRB!$N$192*EFW!AD66*parity2)+(PRB!$O$192*EFW!AD66*parity3)) -> 363.0259052 | H45: =EXP((PRB!$B$193*1)+(PRB!$C$193*EFW!AD66)+(PRB!$D$193*EFW!AD66^2)+(PRB!$E$193*EFW!AD66^3)+(PRB!$F$193*sexm)+(PRB!$G$193*heightn)+(PRB!$H$193*weightn)+(PRB!$I$193*EFW!AD66*weightn)+(PRB!$J$193*parity1)+(PRB!$K$193*parity2)+(PRB!$L$193*parity3)+(PRB!$M$193*EFW!AD66*parity1)+(PRB!$N$193*EFW!AD66*parity2)+(PRB!$O$193*EFW!AD66*parity3)) -> 391.0786556 | I45: =EXP((PRB!$B$194*1)+(PRB!$C$194*EFW!AD66)+(PRB!$D$194*EFW!AD66^2)+(PRB!$E$194*EFW!AD66^3)+(PRB!$F$194*sexm)+(PRB!$G$194*heightn)+(PRB!$H$194*weightn)+(PRB!$I$194*EFW!AD66*weightn)+(PRB!$J$194*parity1)+(PRB!$K$194*parity2)+(PRB!$L$194*parity3)+(PRB!$M$194*EFW!AD66*parity1)+(PRB!$N$194*EFW!AD66*parity2)+(PRB!$O$194*EFW!AD66*parity3)) -> 408.4614715 | J45: =EXP((PRB!$B$195*1)+(PRB!$C$195*EFW!AD66)+(PRB!$D$195*EFW!AD66^2)+(PRB!$E$195*EFW!AD66^3)+(PRB!$F$195*sexm)+(PRB!$G$195*heightn)+(PRB!$H$195*weightn)+(PRB!$I$195*EFW!AD66*weightn)+(PRB!$J$195*parity1)+(PRB!$K$195*parity2)+(PRB!$L$195*parity3)+(PRB!$M$195*EFW!AD66*parity1)+(PRB!$N$195*EFW!AD66*parity2)+(PRB!$O$195*EFW!AD66*parity3)) -> 420.7445398
A46: 20.28571429 | B46: =EXP((PRB!B187*1)+(PRB!C187*EFW!AD67)+(PRB!D187*EFW!AD67^2)+(PRB!E187*EFW!AD67^3)+(PRB!F187*sexm)+(PRB!G187*heightn)+(PRB!H187*weightn)+(PRB!I187*EFW!AD67*weightn)+(PRB!J187*parity1)+(PRB!K187*parity2)+(PRB!L187*parity3)+(PRB!M187*EFW!AD67*parity1)+(PRB!N187*EFW!AD67*parity2)+(PRB!O187*EFW!AD67*parity3)) -> 276.0824665 | C46: =EXP((PRB!B188*1)+(PRB!C188*EFW!AD67)+(PRB!D188*EFW!AD67^2)+(PRB!E188*EFW!AD67^3)+(PRB!F188*sexm)+(PRB!G188*heightn)+(PRB!H188*weightn)+(PRB!I188*EFW!AD67*weightn)+(PRB!J188*parity1)+(PRB!K188*parity2)+(PRB!L188*parity3)+(PRB!M188*EFW!AD67*parity1)+(PRB!N188*EFW!AD67*parity2)+(PRB!O188*EFW!AD67*parity3)) -> 286.6480744 | D46: =EXP((PRB!B189*1)+(PRB!C189*EFW!AD67)+(PRB!D189*EFW!AD67^2)+(PRB!E189*EFW!AD67^3)+(PRB!F189*sexm)+(PRB!G189*heightn)+(PRB!H189*weightn)+(PRB!I189*EFW!AD67*weightn)+(PRB!J189*parity1)+(PRB!K189*parity2)+(PRB!L189*parity3)+(PRB!M189*EFW!AD67*parity1)+(PRB!N189*EFW!AD67*parity2)+(PRB!O189*EFW!AD67*parity3)) -> 299.6931743 | E46: =EXP((PRB!B190*1)+(PRB!C190*EFW!AD67)+(PRB!D190*EFW!AD67^2)+(PRB!E190*EFW!AD67^3)+(PRB!F190*sexm)+(PRB!G190*heightn)+(PRB!H190*weightn)+(PRB!I190*EFW!AD67*weightn)+(PRB!J190*parity1)+(PRB!K190*parity2)+(PRB!L190*parity3)+(PRB!M190*EFW!AD67*parity1)+(PRB!N190*EFW!AD67*parity2)+(PRB!O190*EFW!AD67*parity3)) -> 321.3410792 | F46: =EXP((PRB!B191*1)+(PRB!C191*EFW!AD67)+(PRB!D191*EFW!AD67^2)+(PRB!E191*EFW!AD67^3)+(PRB!F191*sexm)+(PRB!G191*heightn)+(PRB!H191*weightn)+(PRB!I191*EFW!AD67*weightn)+(PRB!J191*parity1)+(PRB!K191*parity2)+(PRB!L191*parity3)+(PRB!M191*EFW!AD67*parity1)+(PRB!N191*EFW!AD67*parity2)+(PRB!O191*EFW!AD67*parity3)) -> 345.4147248 | G46: =EXP((PRB!$B$192*1)+(PRB!$C$192*EFW!AD67)+(PRB!$D$192*EFW!AD67^2)+(PRB!$E$192*EFW!AD67^3)+(PRB!$F$192*sexm)+(PRB!$G$192*heightn)+(PRB!$H$192*weightn)+(PRB!$I$192*EFW!AD67*weightn)+(PRB!$J$192*parity1)+(PRB!$K$192*parity2)+(PRB!$L$192*parity3)+(PRB!$M$192*EFW!AD67*parity1)+(PRB!$N$192*EFW!AD67*parity2)+(PRB!$O$192*EFW!AD67*parity3)) -> 372.6908661 | H46: =EXP((PRB!$B$193*1)+(PRB!$C$193*EFW!AD67)+(PRB!$D$193*EFW!AD67^2)+(PRB!$E$193*EFW!AD67^3)+(PRB!$F$193*sexm)+(PRB!$G$193*heightn)+(PRB!$H$193*weightn)+(PRB!$I$193*EFW!AD67*weightn)+(PRB!$J$193*parity1)+(PRB!$K$193*parity2)+(PRB!$L$193*parity3)+(PRB!$M$193*EFW!AD67*parity1)+(PRB!$N$193*EFW!AD67*parity2)+(PRB!$O$193*EFW!AD67*parity3)) -> 401.43625 | I46: =EXP((PRB!$B$194*1)+(PRB!$C$194*EFW!AD67)+(PRB!$D$194*EFW!AD67^2)+(PRB!$E$194*EFW!AD67^3)+(PRB!$F$194*sexm)+(PRB!$G$194*heightn)+(PRB!$H$194*weightn)+(PRB!$I$194*EFW!AD67*weightn)+(PRB!$J$194*parity1)+(PRB!$K$194*parity2)+(PRB!$L$194*parity3)+(PRB!$M$194*EFW!AD67*parity1)+(PRB!$N$194*EFW!AD67*parity2)+(PRB!$O$194*EFW!AD67*parity3)) -> 419.2098516 | J46: =EXP((PRB!$B$195*1)+(PRB!$C$195*EFW!AD67)+(PRB!$D$195*EFW!AD67^2)+(PRB!$E$195*EFW!AD67^3)+(PRB!$F$195*sexm)+(PRB!$G$195*heightn)+(PRB!$H$195*weightn)+(PRB!$I$195*EFW!AD67*weightn)+(PRB!$J$195*parity1)+(PRB!$K$195*parity2)+(PRB!$L$195*parity3)+(PRB!$M$195*EFW!AD67*parity1)+(PRB!$N$195*EFW!AD67*parity2)+(PRB!$O$195*EFW!AD67*parity3)) -> 431.845609
A47: 20.42857143 | B47: =EXP((PRB!B187*1)+(PRB!C187*EFW!AD68)+(PRB!D187*EFW!AD68^2)+(PRB!E187*EFW!AD68^3)+(PRB!F187*sexm)+(PRB!G187*heightn)+(PRB!H187*weightn)+(PRB!I187*EFW!AD68*weightn)+(PRB!J187*parity1)+(PRB!K187*parity2)+(PRB!L187*parity3)+(PRB!M187*EFW!AD68*parity1)+(PRB!N187*EFW!AD68*parity2)+(PRB!O187*EFW!AD68*parity3)) -> 283.5470756 | C47: =EXP((PRB!B188*1)+(PRB!C188*EFW!AD68)+(PRB!D188*EFW!AD68^2)+(PRB!E188*EFW!AD68^3)+(PRB!F188*sexm)+(PRB!G188*heightn)+(PRB!H188*weightn)+(PRB!I188*EFW!AD68*weightn)+(PRB!J188*parity1)+(PRB!K188*parity2)+(PRB!L188*parity3)+(PRB!M188*EFW!AD68*parity1)+(PRB!N188*EFW!AD68*parity2)+(PRB!O188*EFW!AD68*parity3)) -> 294.4190893 | D47: =EXP((PRB!B189*1)+(PRB!C189*EFW!AD68)+(PRB!D189*EFW!AD68^2)+(PRB!E189*EFW!AD68^3)+(PRB!F189*sexm)+(PRB!G189*heightn)+(PRB!H189*weightn)+(PRB!I189*EFW!AD68*weightn)+(PRB!J189*parity1)+(PRB!K189*parity2)+(PRB!L189*parity3)+(PRB!M189*EFW!AD68*parity1)+(PRB!N189*EFW!AD68*parity2)+(PRB!O189*EFW!AD68*parity3)) -> 307.7763575 | E47: =EXP((PRB!B190*1)+(PRB!C190*EFW!AD68)+(PRB!D190*EFW!AD68^2)+(PRB!E190*EFW!AD68^3)+(PRB!F190*sexm)+(PRB!G190*heightn)+(PRB!H190*weightn)+(PRB!I190*EFW!AD68*weightn)+(PRB!J190*parity1)+(PRB!K190*parity2)+(PRB!L190*parity3)+(PRB!M190*EFW!AD68*parity1)+(PRB!N190*EFW!AD68*parity2)+(PRB!O190*EFW!AD68*parity3)) -> 329.9366937 | F47: =EXP((PRB!B191*1)+(PRB!C191*EFW!AD68)+(PRB!D191*EFW!AD68^2)+(PRB!E191*EFW!AD68^3)+(PRB!F191*sexm)+(PRB!G191*heightn)+(PRB!H191*weightn)+(PRB!I191*EFW!AD68*weightn)+(PRB!J191*parity1)+(PRB!K191*parity2)+(PRB!L191*parity3)+(PRB!M191*EFW!AD68*parity1)+(PRB!N191*EFW!AD68*parity2)+(PRB!O191*EFW!AD68*parity3)) -> 354.6363215 | G47: =EXP((PRB!$B$192*1)+(PRB!$C$192*EFW!AD68)+(PRB!$D$192*EFW!AD68^2)+(PRB!$E$192*EFW!AD68^3)+(PRB!$F$192*sexm)+(PRB!$G$192*heightn)+(PRB!$H$192*weightn)+(PRB!$I$192*EFW!AD68*weightn)+(PRB!$J$192*parity1)+(PRB!$K$192*parity2)+(PRB!$L$192*parity3)+(PRB!$M$192*EFW!AD68*parity1)+(PRB!$N$192*EFW!AD68*parity2)+(PRB!$O$192*EFW!AD68*parity3)) -> 382.5553412 | H47: =EXP((PRB!$B$193*1)+(PRB!$C$193*EFW!AD68)+(PRB!$D$193*EFW!AD68^2)+(PRB!$E$193*EFW!AD68^3)+(PRB!$F$193*sexm)+(PRB!$G$193*heightn)+(PRB!$H$193*weightn)+(PRB!$I$193*EFW!AD68*weightn)+(PRB!$J$193*parity1)+(PRB!$K$193*parity2)+(PRB!$L$193*parity3)+(PRB!$M$193*EFW!AD68*parity1)+(PRB!$N$193*EFW!AD68*parity2)+(PRB!$O$193*EFW!AD68*parity3)) -> 412.0063427 | I47: =EXP((PRB!$B$194*1)+(PRB!$C$194*EFW!AD68)+(PRB!$D$194*EFW!AD68^2)+(PRB!$E$194*EFW!AD68^3)+(PRB!$F$194*sexm)+(PRB!$G$194*heightn)+(PRB!$H$194*weightn)+(PRB!$I$194*EFW!AD68*weightn)+(PRB!$J$194*parity1)+(PRB!$K$194*parity2)+(PRB!$L$194*parity3)+(PRB!$M$194*EFW!AD68*parity1)+(PRB!$N$194*EFW!AD68*parity2)+(PRB!$O$194*EFW!AD68*parity3)) -> 430.1809526 | J47: =EXP((PRB!$B$195*1)+(PRB!$C$195*EFW!AD68)+(PRB!$D$195*EFW!AD68^2)+(PRB!$E$195*EFW!AD68^3)+(PRB!$F$195*sexm)+(PRB!$G$195*heightn)+(PRB!$H$195*weightn)+(PRB!$I$195*EFW!AD68*weightn)+(PRB!$J$195*parity1)+(PRB!$K$195*parity2)+(PRB!$L$195*parity3)+(PRB!$M$195*EFW!AD68*parity1)+(PRB!$N$195*EFW!AD68*parity2)+(PRB!$O$195*EFW!AD68*parity3)) -> 443.1801312
A48: 20.57142857 | B48: =EXP((PRB!B187*1)+(PRB!C187*EFW!AD69)+(PRB!D187*EFW!AD69^2)+(PRB!E187*EFW!AD69^3)+(PRB!F187*sexm)+(PRB!G187*heightn)+(PRB!H187*weightn)+(PRB!I187*EFW!AD69*weightn)+(PRB!J187*parity1)+(PRB!K187*parity2)+(PRB!L187*parity3)+(PRB!M187*EFW!AD69*parity1)+(PRB!N187*EFW!AD69*parity2)+(PRB!O187*EFW!AD69*parity3)) -> 291.1644395 | C48: =EXP((PRB!B188*1)+(PRB!C188*EFW!AD69)+(PRB!D188*EFW!AD69^2)+(PRB!E188*EFW!AD69^3)+(PRB!F188*sexm)+(PRB!G188*heightn)+(PRB!H188*weightn)+(PRB!I188*EFW!AD69*weightn)+(PRB!J188*parity1)+(PRB!K188*parity2)+(PRB!L188*parity3)+(PRB!M188*EFW!AD69*parity1)+(PRB!N188*EFW!AD69*parity2)+(PRB!O188*EFW!AD69*parity3)) -> 302.3492901 | D48: =EXP((PRB!B189*1)+(PRB!C189*EFW!AD69)+(PRB!D189*EFW!AD69^2)+(PRB!E189*EFW!AD69^3)+(PRB!F189*sexm)+(PRB!G189*heightn)+(PRB!H189*weightn)+(PRB!I189*EFW!AD69*weightn)+(PRB!J189*parity1)+(PRB!K189*parity2)+(PRB!L189*parity3)+(PRB!M189*EFW!AD69*parity1)+(PRB!N189*EFW!AD69*parity2)+(PRB!O189*EFW!AD69*parity3)) -> 316.0256168 | E48: =EXP((PRB!B190*1)+(PRB!C190*EFW!AD69)+(PRB!D190*EFW!AD69^2)+(PRB!E190*EFW!AD69^3)+(PRB!F190*sexm)+(PRB!G190*heightn)+(PRB!H190*weightn)+(PRB!I190*EFW!AD69*weightn)+(PRB!J190*parity1)+(PRB!K190*parity2)+(PRB!L190*parity3)+(PRB!M190*EFW!AD69*parity1)+(PRB!N190*EFW!AD69*parity2)+(PRB!O190*EFW!AD69*parity3)) -> 338.7094611 | F48: =EXP((PRB!B191*1)+(PRB!C191*EFW!AD69)+(PRB!D191*EFW!AD69^2)+(PRB!E191*EFW!AD69^3)+(PRB!F191*sexm)+(PRB!G191*heightn)+(PRB!H191*weightn)+(PRB!I191*EFW!AD69*weightn)+(PRB!J191*parity1)+(PRB!K191*parity2)+(PRB!L191*parity3)+(PRB!M191*EFW!AD69*parity1)+(PRB!N191*EFW!AD69*parity2)+(PRB!O191*EFW!AD69*parity3)) -> 364.0467698 | G48: =EXP((PRB!$B$192*1)+(PRB!$C$192*EFW!AD69)+(PRB!$D$192*EFW!AD69^2)+(PRB!$E$192*EFW!AD69^3)+(PRB!$F$192*sexm)+(PRB!$G$192*heightn)+(PRB!$H$192*weightn)+(PRB!$I$192*EFW!AD69*weightn)+(PRB!$J$192*parity1)+(PRB!$K$192*parity2)+(PRB!$L$192*parity3)+(PRB!$M$192*EFW!AD69*parity1)+(PRB!$N$192*EFW!AD69*parity2)+(PRB!$O$192*EFW!AD69*parity3)) -> 392.6216878 | H48: =EXP((PRB!$B$193*1)+(PRB!$C$193*EFW!AD69)+(PRB!$D$193*EFW!AD69^2)+(PRB!$E$193*EFW!AD69^3)+(PRB!$F$193*sexm)+(PRB!$G$193*heightn)+(PRB!$H$193*weightn)+(PRB!$I$193*EFW!AD69*weightn)+(PRB!$J$193*parity1)+(PRB!$K$193*parity2)+(PRB!$L$193*parity3)+(PRB!$M$193*EFW!AD69*parity1)+(PRB!$N$193*EFW!AD69*parity2)+(PRB!$O$193*EFW!AD69*parity3)) -> 422.7914204 | I48: =EXP((PRB!$B$194*1)+(PRB!$C$194*EFW!AD69)+(PRB!$D$194*EFW!AD69^2)+(PRB!$E$194*EFW!AD69^3)+(PRB!$F$194*sexm)+(PRB!$G$194*heightn)+(PRB!$H$194*weightn)+(PRB!$I$194*EFW!AD69*weightn)+(PRB!$J$194*parity1)+(PRB!$K$194*parity2)+(PRB!$L$194*parity3)+(PRB!$M$194*EFW!AD69*parity1)+(PRB!$N$194*EFW!AD69*parity2)+(PRB!$O$194*EFW!AD69*parity3)) -> 441.3775222 | J48: =EXP((PRB!$B$195*1)+(PRB!$C$195*EFW!AD69)+(PRB!$D$195*EFW!AD69^2)+(PRB!$E$195*EFW!AD69^3)+(PRB!$F$195*sexm)+(PRB!$G$195*heightn)+(PRB!$H$195*weightn)+(PRB!$I$195*EFW!AD69*weightn)+(PRB!$J$195*parity1)+(PRB!$K$195*parity2)+(PRB!$L$195*parity3)+(PRB!$M$195*EFW!AD69*parity1)+(PRB!$N$195*EFW!AD69*parity2)+(PRB!$O$195*EFW!AD69*parity3)) -> 454.7511221
A49: 20.71428571 | B49: =EXP((PRB!B187*1)+(PRB!C187*EFW!AD70)+(PRB!D187*EFW!AD70^2)+(PRB!E187*EFW!AD70^3)+(PRB!F187*sexm)+(PRB!G187*heightn)+(PRB!H187*weightn)+(PRB!I187*EFW!AD70*weightn)+(PRB!J187*parity1)+(PRB!K187*parity2)+(PRB!L187*parity3)+(PRB!M187*EFW!AD70*parity1)+(PRB!N187*EFW!AD70*parity2)+(PRB!O187*EFW!AD70*parity3)) -> 298.9361833 | C49: =EXP((PRB!B188*1)+(PRB!C188*EFW!AD70)+(PRB!D188*EFW!AD70^2)+(PRB!E188*EFW!AD70^3)+(PRB!F188*sexm)+(PRB!G188*heightn)+(PRB!H188*weightn)+(PRB!I188*EFW!AD70*weightn)+(PRB!J188*parity1)+(PRB!K188*parity2)+(PRB!L188*parity3)+(PRB!M188*EFW!AD70*parity1)+(PRB!N188*EFW!AD70*parity2)+(PRB!O188*EFW!AD70*parity3)) -> 310.4403798 | D49: =EXP((PRB!B189*1)+(PRB!C189*EFW!AD70)+(PRB!D189*EFW!AD70^2)+(PRB!E189*EFW!AD70^3)+(PRB!F189*sexm)+(PRB!G189*heightn)+(PRB!H189*weightn)+(PRB!I189*EFW!AD70*weightn)+(PRB!J189*parity1)+(PRB!K189*parity2)+(PRB!L189*parity3)+(PRB!M189*EFW!AD70*parity1)+(PRB!N189*EFW!AD70*parity2)+(PRB!O189*EFW!AD70*parity3)) -> 324.442792 | E49: =EXP((PRB!B190*1)+(PRB!C190*EFW!AD70)+(PRB!D190*EFW!AD70^2)+(PRB!E190*EFW!AD70^3)+(PRB!F190*sexm)+(PRB!G190*heightn)+(PRB!H190*weightn)+(PRB!I190*EFW!AD70*weightn)+(PRB!J190*parity1)+(PRB!K190*parity2)+(PRB!L190*parity3)+(PRB!M190*EFW!AD70*parity1)+(PRB!N190*EFW!AD70*parity2)+(PRB!O190*EFW!AD70*parity3)) -> 347.661426 | F49: =EXP((PRB!B191*1)+(PRB!C191*EFW!AD70)+(PRB!D191*EFW!AD70^2)+(PRB!E191*EFW!AD70^3)+(PRB!F191*sexm)+(PRB!G191*heightn)+(PRB!H191*weightn)+(PRB!I191*EFW!AD70*weightn)+(PRB!J191*parity1)+(PRB!K191*parity2)+(PRB!L191*parity3)+(PRB!M191*EFW!AD70*parity1)+(PRB!N191*EFW!AD70*parity2)+(PRB!O191*EFW!AD70*parity3)) -> 373.6482137 | G49: =EXP((PRB!$B$192*1)+(PRB!$C$192*EFW!AD70)+(PRB!$D$192*EFW!AD70^2)+(PRB!$E$192*EFW!AD70^3)+(PRB!$F$192*sexm)+(PRB!$G$192*heightn)+(PRB!$H$192*weightn)+(PRB!$I$192*EFW!AD70*weightn)+(PRB!$J$192*parity1)+(PRB!$K$192*parity2)+(PRB!$L$192*parity3)+(PRB!$M$192*EFW!AD70*parity1)+(PRB!$N$192*EFW!AD70*parity2)+(PRB!$O$192*EFW!AD70*parity3)) -> 402.8922401 | H49: =EXP((PRB!$B$193*1)+(PRB!$C$193*EFW!AD70)+(PRB!$D$193*EFW!AD70^2)+(PRB!$E$193*EFW!AD70^3)+(PRB!$F$193*sexm)+(PRB!$G$193*heightn)+(PRB!$H$193*weightn)+(PRB!$I$193*EFW!AD70*weightn)+(PRB!$J$193*parity1)+(PRB!$K$193*parity2)+(PRB!$L$193*parity3)+(PRB!$M$193*EFW!AD70*parity1)+(PRB!$N$193*EFW!AD70*parity2)+(PRB!$O$193*EFW!AD70*parity3)) -> 433.7939453 | I49: =EXP((PRB!$B$194*1)+(PRB!$C$194*EFW!AD70)+(PRB!$D$194*EFW!AD70^2)+(PRB!$E$194*EFW!AD70^3)+(PRB!$F$194*sexm)+(PRB!$G$194*heightn)+(PRB!$H$194*weightn)+(PRB!$I$194*EFW!AD70*weightn)+(PRB!$J$194*parity1)+(PRB!$K$194*parity2)+(PRB!$L$194*parity3)+(PRB!$M$194*EFW!AD70*parity1)+(PRB!$N$194*EFW!AD70*parity2)+(PRB!$O$194*EFW!AD70*parity3)) -> 452.802286 | J49: =EXP((PRB!$B$195*1)+(PRB!$C$195*EFW!AD70)+(PRB!$D$195*EFW!AD70^2)+(PRB!$E$195*EFW!AD70^3)+(PRB!$F$195*sexm)+(PRB!$G$195*heightn)+(PRB!$H$195*weightn)+(PRB!$I$195*EFW!AD70*weightn)+(PRB!$J$195*parity1)+(PRB!$K$195*parity2)+(PRB!$L$195*parity3)+(PRB!$M$195*EFW!AD70*parity1)+(PRB!$N$195*EFW!AD70*parity2)+(PRB!$O$195*EFW!AD70*parity3)) -> 466.5615774
A50: 20.85714286 | B50: =EXP((PRB!B187*1)+(PRB!C187*EFW!AD71)+(PRB!D187*EFW!AD71^2)+(PRB!E187*EFW!AD71^3)+(PRB!F187*sexm)+(PRB!G187*heightn)+(PRB!H187*weightn)+(PRB!I187*EFW!AD71*weightn)+(PRB!J187*parity1)+(PRB!K187*parity2)+(PRB!L187*parity3)+(PRB!M187*EFW!AD71*parity1)+(PRB!N187*EFW!AD71*parity2)+(PRB!O187*EFW!AD71*parity3)) -> 306.8639066 | C50: =EXP((PRB!B188*1)+(PRB!C188*EFW!AD71)+(PRB!D188*EFW!AD71^2)+(PRB!E188*EFW!AD71^3)+(PRB!F188*sexm)+(PRB!G188*heightn)+(PRB!H188*weightn)+(PRB!I188*EFW!AD71*weightn)+(PRB!J188*parity1)+(PRB!K188*parity2)+(PRB!L188*parity3)+(PRB!M188*EFW!AD71*parity1)+(PRB!N188*EFW!AD71*parity2)+(PRB!O188*EFW!AD71*parity3)) -> 318.6940358 | D50: =EXP((PRB!B189*1)+(PRB!C189*EFW!AD71)+(PRB!D189*EFW!AD71^2)+(PRB!E189*EFW!AD71^3)+(PRB!F189*sexm)+(PRB!G189*heightn)+(PRB!H189*weightn)+(PRB!I189*EFW!AD71*weightn)+(PRB!J189*parity1)+(PRB!K189*parity2)+(PRB!L189*parity3)+(PRB!M189*EFW!AD71*parity1)+(PRB!N189*EFW!AD71*parity2)+(PRB!O189*EFW!AD71*parity3)) -> 333.0296988 | E50: =EXP((PRB!B190*1)+(PRB!C190*EFW!AD71)+(PRB!D190*EFW!AD71^2)+(PRB!E190*EFW!AD71^3)+(PRB!F190*sexm)+(PRB!G190*heightn)+(PRB!H190*weightn)+(PRB!I190*EFW!AD71*weightn)+(PRB!J190*parity1)+(PRB!K190*parity2)+(PRB!L190*parity3)+(PRB!M190*EFW!AD71*parity1)+(PRB!N190*EFW!AD71*parity2)+(PRB!O190*EFW!AD71*parity3)) -> 356.7946102 | F50: =EXP((PRB!B191*1)+(PRB!C191*EFW!AD71)+(PRB!D191*EFW!AD71^2)+(PRB!E191*EFW!AD71^3)+(PRB!F191*sexm)+(PRB!G191*heightn)+(PRB!H191*weightn)+(PRB!I191*EFW!AD71*weightn)+(PRB!J191*parity1)+(PRB!K191*parity2)+(PRB!L191*parity3)+(PRB!M191*EFW!AD71*parity1)+(PRB!N191*EFW!AD71*parity2)+(PRB!O191*EFW!AD71*parity3)) -> 383.4427735 | G50: =EXP((PRB!$B$192*1)+(PRB!$C$192*EFW!AD71)+(PRB!$D$192*EFW!AD71^2)+(PRB!$E$192*EFW!AD71^3)+(PRB!$F$192*sexm)+(PRB!$G$192*heightn)+(PRB!$H$192*weightn)+(PRB!$I$192*EFW!AD71*weightn)+(PRB!$J$192*parity1)+(PRB!$K$192*parity2)+(PRB!$L$192*parity3)+(PRB!$M$192*EFW!AD71*parity1)+(PRB!$N$192*EFW!AD71*parity2)+(PRB!$O$192*EFW!AD71*parity3)) -> 413.3693079 | H50: =EXP((PRB!$B$193*1)+(PRB!$C$193*EFW!AD71)+(PRB!$D$193*EFW!AD71^2)+(PRB!$E$193*EFW!AD71^3)+(PRB!$F$193*sexm)+(PRB!$G$193*heightn)+(PRB!$H$193*weightn)+(PRB!$I$193*EFW!AD71*weightn)+(PRB!$J$193*parity1)+(PRB!$K$193*parity2)+(PRB!$L$193*parity3)+(PRB!$M$193*EFW!AD71*parity1)+(PRB!$N$193*EFW!AD71*parity2)+(PRB!$O$193*EFW!AD71*parity3)) -> 445.0163531 | I50: =EXP((PRB!$B$194*1)+(PRB!$C$194*EFW!AD71)+(PRB!$D$194*EFW!AD71^2)+(PRB!$E$194*EFW!AD71^3)+(PRB!$F$194*sexm)+(PRB!$G$194*heightn)+(PRB!$H$194*weightn)+(PRB!$I$194*EFW!AD71*weightn)+(PRB!$J$194*parity1)+(PRB!$K$194*parity2)+(PRB!$L$194*parity3)+(PRB!$M$194*EFW!AD71*parity1)+(PRB!$N$194*EFW!AD71*parity2)+(PRB!$O$194*EFW!AD71*parity3)) -> 464.4579456 | J50: =EXP((PRB!$B$195*1)+(PRB!$C$195*EFW!AD71)+(PRB!$D$195*EFW!AD71^2)+(PRB!$E$195*EFW!AD71^3)+(PRB!$F$195*sexm)+(PRB!$G$195*heightn)+(PRB!$H$195*weightn)+(PRB!$I$195*EFW!AD71*weightn)+(PRB!$J$195*parity1)+(PRB!$K$195*parity2)+(PRB!$L$195*parity3)+(PRB!$M$195*EFW!AD71*parity1)+(PRB!$N$195*EFW!AD71*parity2)+(PRB!$O$195*EFW!AD71*parity3)) -> 478.614471
A51: 21 | B51: =EXP((PRB!B187*1)+(PRB!C187*EFW!AD72)+(PRB!D187*EFW!AD72^2)+(PRB!E187*EFW!AD72^3)+(PRB!F187*sexm)+(PRB!G187*heightn)+(PRB!H187*weightn)+(PRB!I187*EFW!AD72*weightn)+(PRB!J187*parity1)+(PRB!K187*parity2)+(PRB!L187*parity3)+(PRB!M187*EFW!AD72*parity1)+(PRB!N187*EFW!AD72*parity2)+(PRB!O187*EFW!AD72*parity3)) -> 314.9491816 | C51: =EXP((PRB!B188*1)+(PRB!C188*EFW!AD72)+(PRB!D188*EFW!AD72^2)+(PRB!E188*EFW!AD72^3)+(PRB!F188*sexm)+(PRB!G188*heightn)+(PRB!H188*weightn)+(PRB!I188*EFW!AD72*weightn)+(PRB!J188*parity1)+(PRB!K188*parity2)+(PRB!L188*parity3)+(PRB!M188*EFW!AD72*parity1)+(PRB!N188*EFW!AD72*parity2)+(PRB!O188*EFW!AD72*parity3)) -> 327.1119086 | D51: =EXP((PRB!B189*1)+(PRB!C189*EFW!AD72)+(PRB!D189*EFW!AD72^2)+(PRB!E189*EFW!AD72^3)+(PRB!F189*sexm)+(PRB!G189*heightn)+(PRB!H189*weightn)+(PRB!I189*EFW!AD72*weightn)+(PRB!J189*parity1)+(PRB!K189*parity2)+(PRB!L189*parity3)+(PRB!M189*EFW!AD72*parity1)+(PRB!N189*EFW!AD72*parity2)+(PRB!O189*EFW!AD72*parity3)) -> 341.7881278 | E51: =EXP((PRB!B190*1)+(PRB!C190*EFW!AD72)+(PRB!D190*EFW!AD72^2)+(PRB!E190*EFW!AD72^3)+(PRB!F190*sexm)+(PRB!G190*heightn)+(PRB!H190*weightn)+(PRB!I190*EFW!AD72*weightn)+(PRB!J190*parity1)+(PRB!K190*parity2)+(PRB!L190*parity3)+(PRB!M190*EFW!AD72*parity1)+(PRB!N190*EFW!AD72*parity2)+(PRB!O190*EFW!AD72*parity3)) -> 366.1110116 | F51: =EXP((PRB!B191*1)+(PRB!C191*EFW!AD72)+(PRB!D191*EFW!AD72^2)+(PRB!E191*EFW!AD72^3)+(PRB!F191*sexm)+(PRB!G191*heightn)+(PRB!H191*weightn)+(PRB!I191*EFW!AD72*weightn)+(PRB!J191*parity1)+(PRB!K191*parity2)+(PRB!L191*parity3)+(PRB!M191*EFW!AD72*parity1)+(PRB!N191*EFW!AD72*parity2)+(PRB!O191*EFW!AD72*parity3)) -> 393.4325438 | G51: =EXP((PRB!$B$192*1)+(PRB!$C$192*EFW!AD72)+(PRB!$D$192*EFW!AD72^2)+(PRB!$E$192*EFW!AD72^3)+(PRB!$F$192*sexm)+(PRB!$G$192*heightn)+(PRB!$H$192*weightn)+(PRB!$I$192*EFW!AD72*weightn)+(PRB!$J$192*parity1)+(PRB!$K$192*parity2)+(PRB!$L$192*parity3)+(PRB!$M$192*EFW!AD72*parity1)+(PRB!$N$192*EFW!AD72*parity2)+(PRB!$O$192*EFW!AD72*parity3)) -> 424.0551744 | H51: =EXP((PRB!$B$193*1)+(PRB!$C$193*EFW!AD72)+(PRB!$D$193*EFW!AD72^2)+(PRB!$E$193*EFW!AD72^3)+(PRB!$F$193*sexm)+(PRB!$G$193*heightn)+(PRB!$H$193*weightn)+(PRB!$I$193*EFW!AD72*weightn)+(PRB!$J$193*parity1)+(PRB!$K$193*parity2)+(PRB!$L$193*parity3)+(PRB!$M$193*EFW!AD72*parity1)+(PRB!$N$193*EFW!AD72*parity2)+(PRB!$O$193*EFW!AD72*parity3)) -> 456.4610515 | I51: =EXP((PRB!$B$194*1)+(PRB!$C$194*EFW!AD72)+(PRB!$D$194*EFW!AD72^2)+(PRB!$E$194*EFW!AD72^3)+(PRB!$F$194*sexm)+(PRB!$G$194*heightn)+(PRB!$H$194*weightn)+(PRB!$I$194*EFW!AD72*weightn)+(PRB!$J$194*parity1)+(PRB!$K$194*parity2)+(PRB!$L$194*parity3)+(PRB!$M$194*EFW!AD72*parity1)+(PRB!$N$194*EFW!AD72*parity2)+(PRB!$O$194*EFW!AD72*parity3)) -> 476.3471763 | J51: =EXP((PRB!$B$195*1)+(PRB!$C$195*EFW!AD72)+(PRB!$D$195*EFW!AD72^2)+(PRB!$E$195*EFW!AD72^3)+(PRB!$F$195*sexm)+(PRB!$G$195*heightn)+(PRB!$H$195*weightn)+(PRB!$I$195*EFW!AD72*weightn)+(PRB!$J$195*parity1)+(PRB!$K$195*parity2)+(PRB!$L$195*parity3)+(PRB!$M$195*EFW!AD72*parity1)+(PRB!$N$195*EFW!AD72*parity2)+(PRB!$O$195*EFW!AD72*parity3)) -> 490.9127518
A52: 21.14285714 | B52: =EXP((PRB!B187*1)+(PRB!C187*EFW!AD73)+(PRB!D187*EFW!AD73^2)+(PRB!E187*EFW!AD73^3)+(PRB!F187*sexm)+(PRB!G187*heightn)+(PRB!H187*weightn)+(PRB!I187*EFW!AD73*weightn)+(PRB!J187*parity1)+(PRB!K187*parity2)+(PRB!L187*parity3)+(PRB!M187*EFW!AD73*parity1)+(PRB!N187*EFW!AD73*parity2)+(PRB!O187*EFW!AD73*parity3)) -> 323.1935523 | C52: =EXP((PRB!B188*1)+(PRB!C188*EFW!AD73)+(PRB!D188*EFW!AD73^2)+(PRB!E188*EFW!AD73^3)+(PRB!F188*sexm)+(PRB!G188*heightn)+(PRB!H188*weightn)+(PRB!I188*EFW!AD73*weightn)+(PRB!J188*parity1)+(PRB!K188*parity2)+(PRB!L188*parity3)+(PRB!M188*EFW!AD73*parity1)+(PRB!N188*EFW!AD73*parity2)+(PRB!O188*EFW!AD73*parity3)) -> 335.6956208 | D52: =EXP((PRB!B189*1)+(PRB!C189*EFW!AD73)+(PRB!D189*EFW!AD73^2)+(PRB!E189*EFW!AD73^3)+(PRB!F189*sexm)+(PRB!G189*heightn)+(PRB!H189*weightn)+(PRB!I189*EFW!AD73*weightn)+(PRB!J189*parity1)+(PRB!K189*parity2)+(PRB!L189*parity3)+(PRB!M189*EFW!AD73*parity1)+(PRB!N189*EFW!AD73*parity2)+(PRB!O189*EFW!AD73*parity3)) -> 350.7198428 | E52: =EXP((PRB!B190*1)+(PRB!C190*EFW!AD73)+(PRB!D190*EFW!AD73^2)+(PRB!E190*EFW!AD73^3)+(PRB!F190*sexm)+(PRB!G190*heightn)+(PRB!H190*weightn)+(PRB!I190*EFW!AD73*weightn)+(PRB!J190*parity1)+(PRB!K190*parity2)+(PRB!L190*parity3)+(PRB!M190*EFW!AD73*parity1)+(PRB!N190*EFW!AD73*parity2)+(PRB!O190*EFW!AD73*parity3)) -> 375.6126026 | F52: =EXP((PRB!B191*1)+(PRB!C191*EFW!AD73)+(PRB!D191*EFW!AD73^2)+(PRB!E191*EFW!AD73^3)+(PRB!F191*sexm)+(PRB!G191*heightn)+(PRB!H191*weightn)+(PRB!I191*EFW!AD73*weightn)+(PRB!J191*parity1)+(PRB!K191*parity2)+(PRB!L191*parity3)+(PRB!M191*EFW!AD73*parity1)+(PRB!N191*EFW!AD73*parity2)+(PRB!O191*EFW!AD73*parity3)) -> 403.6195924 | G52: =EXP((PRB!$B$192*1)+(PRB!$C$192*EFW!AD73)+(PRB!$D$192*EFW!AD73^2)+(PRB!$E$192*EFW!AD73^3)+(PRB!$F$192*sexm)+(PRB!$G$192*heightn)+(PRB!$H$192*weightn)+(PRB!$I$192*EFW!AD73*weightn)+(PRB!$J$192*parity1)+(PRB!$K$192*parity2)+(PRB!$L$192*parity3)+(PRB!$M$192*EFW!AD73*parity1)+(PRB!$N$192*EFW!AD73*parity2)+(PRB!$O$192*EFW!AD73*parity3)) -> 434.9520948 | H52: =EXP((PRB!$B$193*1)+(PRB!$C$193*EFW!AD73)+(PRB!$D$193*EFW!AD73^2)+(PRB!$E$193*EFW!AD73^3)+(PRB!$F$193*sexm)+(PRB!$G$193*heightn)+(PRB!$H$193*weightn)+(PRB!$I$193*EFW!AD73*weightn)+(PRB!$J$193*parity1)+(PRB!$K$193*parity2)+(PRB!$L$193*parity3)+(PRB!$M$193*EFW!AD73*parity1)+(PRB!$N$193*EFW!AD73*parity2)+(PRB!$O$193*EFW!AD73*parity3)) -> 468.130418 | I52: =EXP((PRB!$B$194*1)+(PRB!$C$194*EFW!AD73)+(PRB!$D$194*EFW!AD73^2)+(PRB!$E$194*EFW!AD73^3)+(PRB!$F$194*sexm)+(PRB!$G$194*heightn)+(PRB!$H$194*weightn)+(PRB!$I$194*EFW!AD73*weightn)+(PRB!$J$194*parity1)+(PRB!$K$194*parity2)+(PRB!$L$194*parity3)+(PRB!$M$194*EFW!AD73*parity1)+(PRB!$N$194*EFW!AD73*parity2)+(PRB!$O$194*EFW!AD73*parity3)) -> 488.4726252 | J52: =EXP((PRB!$B$195*1)+(PRB!$C$195*EFW!AD73)+(PRB!$D$195*EFW!AD73^2)+(PRB!$E$195*EFW!AD73^3)+(PRB!$F$195*sexm)+(PRB!$G$195*heightn)+(PRB!$H$195*weightn)+(PRB!$I$195*EFW!AD73*weightn)+(PRB!$J$195*parity1)+(PRB!$K$195*parity2)+(PRB!$L$195*parity3)+(PRB!$M$195*EFW!AD73*parity1)+(PRB!$N$195*EFW!AD73*parity2)+(PRB!$O$195*EFW!AD73*parity3)) -> 503.4593423
A53: 21.28571429 | B53: =EXP((PRB!B187*1)+(PRB!C187*EFW!AD74)+(PRB!D187*EFW!AD74^2)+(PRB!E187*EFW!AD74^3)+(PRB!F187*sexm)+(PRB!G187*heightn)+(PRB!H187*weightn)+(PRB!I187*EFW!AD74*weightn)+(PRB!J187*parity1)+(PRB!K187*parity2)+(PRB!L187*parity3)+(PRB!M187*EFW!AD74*parity1)+(PRB!N187*EFW!AD74*parity2)+(PRB!O187*EFW!AD74*parity3)) -> 331.5985325 | C53: =EXP((PRB!B188*1)+(PRB!C188*EFW!AD74)+(PRB!D188*EFW!AD74^2)+(PRB!E188*EFW!AD74^3)+(PRB!F188*sexm)+(PRB!G188*heightn)+(PRB!H188*weightn)+(PRB!I188*EFW!AD74*weightn)+(PRB!J188*parity1)+(PRB!K188*parity2)+(PRB!L188*parity3)+(PRB!M188*EFW!AD74*parity1)+(PRB!N188*EFW!AD74*parity2)+(PRB!O188*EFW!AD74*parity3)) -> 344.4467654 | D53: =EXP((PRB!B189*1)+(PRB!C189*EFW!AD74)+(PRB!D189*EFW!AD74^2)+(PRB!E189*EFW!AD74^3)+(PRB!F189*sexm)+(PRB!G189*heightn)+(PRB!H189*weightn)+(PRB!I189*EFW!AD74*weightn)+(PRB!J189*parity1)+(PRB!K189*parity2)+(PRB!L189*parity3)+(PRB!M189*EFW!AD74*parity1)+(PRB!N189*EFW!AD74*parity2)+(PRB!O189*EFW!AD74*parity3)) -> 359.8265794 | E53: =EXP((PRB!B190*1)+(PRB!C190*EFW!AD74)+(PRB!D190*EFW!AD74^2)+(PRB!E190*EFW!AD74^3)+(PRB!F190*sexm)+(PRB!G190*heightn)+(PRB!H190*weightn)+(PRB!I190*EFW!AD74*weightn)+(PRB!J190*parity1)+(PRB!K190*parity2)+(PRB!L190*parity3)+(PRB!M190*EFW!AD74*parity1)+(PRB!N190*EFW!AD74*parity2)+(PRB!O190*EFW!AD74*parity3)) -> 385.3013283 | F53: =EXP((PRB!B191*1)+(PRB!C191*EFW!AD74)+(PRB!D191*EFW!AD74^2)+(PRB!E191*EFW!AD74^3)+(PRB!F191*sexm)+(PRB!G191*heightn)+(PRB!H191*weightn)+(PRB!I191*EFW!AD74*weightn)+(PRB!J191*parity1)+(PRB!K191*parity2)+(PRB!L191*parity3)+(PRB!M191*EFW!AD74*parity1)+(PRB!N191*EFW!AD74*parity2)+(PRB!O191*EFW!AD74*parity3)) -> 414.0059581 | G53: =EXP((PRB!$B$192*1)+(PRB!$C$192*EFW!AD74)+(PRB!$D$192*EFW!AD74^2)+(PRB!$E$192*EFW!AD74^3)+(PRB!$F$192*sexm)+(PRB!$G$192*heightn)+(PRB!$H$192*weightn)+(PRB!$I$192*EFW!AD74*weightn)+(PRB!$J$192*parity1)+(PRB!$K$192*parity2)+(PRB!$L$192*parity3)+(PRB!$M$192*EFW!AD74*parity1)+(PRB!$N$192*EFW!AD74*parity2)+(PRB!$O$192*EFW!AD74*parity3)) -> 446.0622942 | H53: =EXP((PRB!$B$193*1)+(PRB!$C$193*EFW!AD74)+(PRB!$D$193*EFW!AD74^2)+(PRB!$E$193*EFW!AD74^3)+(PRB!$F$193*sexm)+(PRB!$G$193*heightn)+(PRB!$H$193*weightn)+(PRB!$I$193*EFW!AD74*weightn)+(PRB!$J$193*parity1)+(PRB!$K$193*parity2)+(PRB!$L$193*parity3)+(PRB!$M$193*EFW!AD74*parity1)+(PRB!$N$193*EFW!AD74*parity2)+(PRB!$O$193*EFW!AD74*parity3)) -> 480.0267983 | I53: =EXP((PRB!$B$194*1)+(PRB!$C$194*EFW!AD74)+(PRB!$D$194*EFW!AD74^2)+(PRB!$E$194*EFW!AD74^3)+(PRB!$F$194*sexm)+(PRB!$G$194*heightn)+(PRB!$H$194*weightn)+(PRB!$I$194*EFW!AD74*weightn)+(PRB!$J$194*parity1)+(PRB!$K$194*parity2)+(PRB!$L$194*parity3)+(PRB!$M$194*EFW!AD74*parity1)+(PRB!$N$194*EFW!AD74*parity2)+(PRB!$O$194*EFW!AD74*parity3)) -> 500.8369087 | J53: =EXP((PRB!$B$195*1)+(PRB!$C$195*EFW!AD74)+(PRB!$D$195*EFW!AD74^2)+(PRB!$E$195*EFW!AD74^3)+(PRB!$F$195*sexm)+(PRB!$G$195*heightn)+(PRB!$H$195*weightn)+(PRB!$I$195*EFW!AD74*weightn)+(PRB!$J$195*parity1)+(PRB!$K$195*parity2)+(PRB!$L$195*parity3)+(PRB!$M$195*EFW!AD74*parity1)+(PRB!$N$195*EFW!AD74*parity2)+(PRB!$O$195*EFW!AD74*parity3)) -> 516.2571358
A54: 21.42857143 | B54: =EXP((PRB!B187*1)+(PRB!C187*EFW!AD75)+(PRB!D187*EFW!AD75^2)+(PRB!E187*EFW!AD75^3)+(PRB!F187*sexm)+(PRB!G187*heightn)+(PRB!H187*weightn)+(PRB!I187*EFW!AD75*weightn)+(PRB!J187*parity1)+(PRB!K187*parity2)+(PRB!L187*parity3)+(PRB!M187*EFW!AD75*parity1)+(PRB!N187*EFW!AD75*parity2)+(PRB!O187*EFW!AD75*parity3)) -> 340.1656049 | C54: =EXP((PRB!B188*1)+(PRB!C188*EFW!AD75)+(PRB!D188*EFW!AD75^2)+(PRB!E188*EFW!AD75^3)+(PRB!F188*sexm)+(PRB!G188*heightn)+(PRB!H188*weightn)+(PRB!I188*EFW!AD75*weightn)+(PRB!J188*parity1)+(PRB!K188*parity2)+(PRB!L188*parity3)+(PRB!M188*EFW!AD75*parity1)+(PRB!N188*EFW!AD75*parity2)+(PRB!O188*EFW!AD75*parity3)) -> 353.3669048 | D54: =EXP((PRB!B189*1)+(PRB!C189*EFW!AD75)+(PRB!D189*EFW!AD75^2)+(PRB!E189*EFW!AD75^3)+(PRB!F189*sexm)+(PRB!G189*heightn)+(PRB!H189*weightn)+(PRB!I189*EFW!AD75*weightn)+(PRB!J189*parity1)+(PRB!K189*parity2)+(PRB!L189*parity3)+(PRB!M189*EFW!AD75*parity1)+(PRB!N189*EFW!AD75*parity2)+(PRB!O189*EFW!AD75*parity3)) -> 369.1100436 | E54: =EXP((PRB!B190*1)+(PRB!C190*EFW!AD75)+(PRB!D190*EFW!AD75^2)+(PRB!E190*EFW!AD75^3)+(PRB!F190*sexm)+(PRB!G190*heightn)+(PRB!H190*weightn)+(PRB!I190*EFW!AD75*weightn)+(PRB!J190*parity1)+(PRB!K190*parity2)+(PRB!L190*parity3)+(PRB!M190*EFW!AD75*parity1)+(PRB!N190*EFW!AD75*parity2)+(PRB!O190*EFW!AD75*parity3)) -> 395.1791054 | F54: =EXP((PRB!B191*1)+(PRB!C191*EFW!AD75)+(PRB!D191*EFW!AD75^2)+(PRB!E191*EFW!AD75^3)+(PRB!F191*sexm)+(PRB!G191*heightn)+(PRB!H191*weightn)+(PRB!I191*EFW!AD75*weightn)+(PRB!J191*parity1)+(PRB!K191*parity2)+(PRB!L191*parity3)+(PRB!M191*EFW!AD75*parity1)+(PRB!N191*EFW!AD75*parity2)+(PRB!O191*EFW!AD75*parity3)) -> 424.5936497 | G54: =EXP((PRB!$B$192*1)+(PRB!$C$192*EFW!AD75)+(PRB!$D$192*EFW!AD75^2)+(PRB!$E$192*EFW!AD75^3)+(PRB!$F$192*sexm)+(PRB!$G$192*heightn)+(PRB!$H$192*weightn)+(PRB!$I$192*EFW!AD75*weightn)+(PRB!$J$192*parity1)+(PRB!$K$192*parity2)+(PRB!$L$192*parity3)+(PRB!$M$192*EFW!AD75*parity1)+(PRB!$N$192*EFW!AD75*parity2)+(PRB!$O$192*EFW!AD75*parity3)) -> 457.3879661 | H54: =EXP((PRB!$B$193*1)+(PRB!$C$193*EFW!AD75)+(PRB!$D$193*EFW!AD75^2)+(PRB!$E$193*EFW!AD75^3)+(PRB!$F$193*sexm)+(PRB!$G$193*heightn)+(PRB!$H$193*weightn)+(PRB!$I$193*EFW!AD75*weightn)+(PRB!$J$193*parity1)+(PRB!$K$193*parity2)+(PRB!$L$193*parity3)+(PRB!$M$193*EFW!AD75*parity1)+(PRB!$N$193*EFW!AD75*parity2)+(PRB!$O$193*EFW!AD75*parity3)) -> 492.1525043 | I54: =EXP((PRB!$B$194*1)+(PRB!$C$194*EFW!AD75)+(PRB!$D$194*EFW!AD75^2)+(PRB!$E$194*EFW!AD75^3)+(PRB!$F$194*sexm)+(PRB!$G$194*heightn)+(PRB!$H$194*weightn)+(PRB!$I$194*EFW!AD75*weightn)+(PRB!$J$194*parity1)+(PRB!$K$194*parity2)+(PRB!$L$194*parity3)+(PRB!$M$194*EFW!AD75*parity1)+(PRB!$N$194*EFW!AD75*parity2)+(PRB!$O$194*EFW!AD75*parity3)) -> 513.4426109 | J54: =EXP((PRB!$B$195*1)+(PRB!$C$195*EFW!AD75)+(PRB!$D$195*EFW!AD75^2)+(PRB!$E$195*EFW!AD75^3)+(PRB!$F$195*sexm)+(PRB!$G$195*heightn)+(PRB!$H$195*weightn)+(PRB!$I$195*EFW!AD75*weightn)+(PRB!$J$195*parity1)+(PRB!$K$195*parity2)+(PRB!$L$195*parity3)+(PRB!$M$195*EFW!AD75*parity1)+(PRB!$N$195*EFW!AD75*parity2)+(PRB!$O$195*EFW!AD75*parity3)) -> 529.3089938
A55: 21.57142857 | B55: =EXP((PRB!B187*1)+(PRB!C187*EFW!AD76)+(PRB!D187*EFW!AD76^2)+(PRB!E187*EFW!AD76^3)+(PRB!F187*sexm)+(PRB!G187*heightn)+(PRB!H187*weightn)+(PRB!I187*EFW!AD76*weightn)+(PRB!J187*parity1)+(PRB!K187*parity2)+(PRB!L187*parity3)+(PRB!M187*EFW!AD76*parity1)+(PRB!N187*EFW!AD76*parity2)+(PRB!O187*EFW!AD76*parity3)) -> 348.8962193 | C55: =EXP((PRB!B188*1)+(PRB!C188*EFW!AD76)+(PRB!D188*EFW!AD76^2)+(PRB!E188*EFW!AD76^3)+(PRB!F188*sexm)+(PRB!G188*heightn)+(PRB!H188*weightn)+(PRB!I188*EFW!AD76*weightn)+(PRB!J188*parity1)+(PRB!K188*parity2)+(PRB!L188*parity3)+(PRB!M188*EFW!AD76*parity1)+(PRB!N188*EFW!AD76*parity2)+(PRB!O188*EFW!AD76*parity3)) -> 362.4575688 | D55: =EXP((PRB!B189*1)+(PRB!C189*EFW!AD76)+(PRB!D189*EFW!AD76^2)+(PRB!E189*EFW!AD76^3)+(PRB!F189*sexm)+(PRB!G189*heightn)+(PRB!H189*weightn)+(PRB!I189*EFW!AD76*weightn)+(PRB!J189*parity1)+(PRB!K189*parity2)+(PRB!L189*parity3)+(PRB!M189*EFW!AD76*parity1)+(PRB!N189*EFW!AD76*parity2)+(PRB!O189*EFW!AD76*parity3)) -> 378.5719103 | E55: =EXP((PRB!B190*1)+(PRB!C190*EFW!AD76)+(PRB!D190*EFW!AD76^2)+(PRB!E190*EFW!AD76^3)+(PRB!F190*sexm)+(PRB!G190*heightn)+(PRB!H190*weightn)+(PRB!I190*EFW!AD76*weightn)+(PRB!J190*parity1)+(PRB!K190*parity2)+(PRB!L190*parity3)+(PRB!M190*EFW!AD76*parity1)+(PRB!N190*EFW!AD76*parity2)+(PRB!O190*EFW!AD76*parity3)) -> 405.2478198 | F55: =EXP((PRB!B191*1)+(PRB!C191*EFW!AD76)+(PRB!D191*EFW!AD76^2)+(PRB!E191*EFW!AD76^3)+(PRB!F191*sexm)+(PRB!G191*heightn)+(PRB!H191*weightn)+(PRB!I191*EFW!AD76*weightn)+(PRB!J191*parity1)+(PRB!K191*parity2)+(PRB!L191*parity3)+(PRB!M191*EFW!AD76*parity1)+(PRB!N191*EFW!AD76*parity2)+(PRB!O191*EFW!AD76*parity3)) -> 435.384644 | G55: =EXP((PRB!$B$192*1)+(PRB!$C$192*EFW!AD76)+(PRB!$D$192*EFW!AD76^2)+(PRB!$E$192*EFW!AD76^3)+(PRB!$F$192*sexm)+(PRB!$G$192*heightn)+(PRB!$H$192*weightn)+(PRB!$I$192*EFW!AD76*weightn)+(PRB!$J$192*parity1)+(PRB!$K$192*parity2)+(PRB!$L$192*parity3)+(PRB!$M$192*EFW!AD76*parity1)+(PRB!$N$192*EFW!AD76*parity2)+(PRB!$O$192*EFW!AD76*parity3)) -> 468.9312704 | H55: =EXP((PRB!$B$193*1)+(PRB!$C$193*EFW!AD76)+(PRB!$D$193*EFW!AD76^2)+(PRB!$E$193*EFW!AD76^3)+(PRB!$F$193*sexm)+(PRB!$G$193*heightn)+(PRB!$H$193*weightn)+(PRB!$I$193*EFW!AD76*weightn)+(PRB!$J$193*parity1)+(PRB!$K$193*parity2)+(PRB!$L$193*parity3)+(PRB!$M$193*EFW!AD76*parity1)+(PRB!$N$193*EFW!AD76*parity2)+(PRB!$O$193*EFW!AD76*parity3)) -> 504.5098122 | I55: =EXP((PRB!$B$194*1)+(PRB!$C$194*EFW!AD76)+(PRB!$D$194*EFW!AD76^2)+(PRB!$E$194*EFW!AD76^3)+(PRB!$F$194*sexm)+(PRB!$G$194*heightn)+(PRB!$H$194*weightn)+(PRB!$I$194*EFW!AD76*weightn)+(PRB!$J$194*parity1)+(PRB!$K$194*parity2)+(PRB!$L$194*parity3)+(PRB!$M$194*EFW!AD76*parity1)+(PRB!$N$194*EFW!AD76*parity2)+(PRB!$O$194*EFW!AD76*parity3)) -> 526.292281 | J55: =EXP((PRB!$B$195*1)+(PRB!$C$195*EFW!AD76)+(PRB!$D$195*EFW!AD76^2)+(PRB!$E$195*EFW!AD76^3)+(PRB!$F$195*sexm)+(PRB!$G$195*heightn)+(PRB!$H$195*weightn)+(PRB!$I$195*EFW!AD76*weightn)+(PRB!$J$195*parity1)+(PRB!$K$195*parity2)+(PRB!$L$195*parity3)+(PRB!$M$195*EFW!AD76*parity1)+(PRB!$N$195*EFW!AD76*parity2)+(PRB!$O$195*EFW!AD76*parity3)) -> 542.6177438
A56: 21.71428571 | B56: =EXP((PRB!B187*1)+(PRB!C187*EFW!AD77)+(PRB!D187*EFW!AD77^2)+(PRB!E187*EFW!AD77^3)+(PRB!F187*sexm)+(PRB!G187*heightn)+(PRB!H187*weightn)+(PRB!I187*EFW!AD77*weightn)+(PRB!J187*parity1)+(PRB!K187*parity2)+(PRB!L187*parity3)+(PRB!M187*EFW!AD77*parity1)+(PRB!N187*EFW!AD77*parity2)+(PRB!O187*EFW!AD77*parity3)) -> 357.7917914 | C56: =EXP((PRB!B188*1)+(PRB!C188*EFW!AD77)+(PRB!D188*EFW!AD77^2)+(PRB!E188*EFW!AD77^3)+(PRB!F188*sexm)+(PRB!G188*heightn)+(PRB!H188*weightn)+(PRB!I188*EFW!AD77*weightn)+(PRB!J188*parity1)+(PRB!K188*parity2)+(PRB!L188*parity3)+(PRB!M188*EFW!AD77*parity1)+(PRB!N188*EFW!AD77*parity2)+(PRB!O188*EFW!AD77*parity3)) -> 371.7202539 | D56: =EXP((PRB!B189*1)+(PRB!C189*EFW!AD77)+(PRB!D189*EFW!AD77^2)+(PRB!E189*EFW!AD77^3)+(PRB!F189*sexm)+(PRB!G189*heightn)+(PRB!H189*weightn)+(PRB!I189*EFW!AD77*weightn)+(PRB!J189*parity1)+(PRB!K189*parity2)+(PRB!L189*parity3)+(PRB!M189*EFW!AD77*parity1)+(PRB!N189*EFW!AD77*parity2)+(PRB!O189*EFW!AD77*parity3)) -> 388.2138221 | E56: =EXP((PRB!B190*1)+(PRB!C190*EFW!AD77)+(PRB!D190*EFW!AD77^2)+(PRB!E190*EFW!AD77^3)+(PRB!F190*sexm)+(PRB!G190*heightn)+(PRB!H190*weightn)+(PRB!I190*EFW!AD77*weightn)+(PRB!J190*parity1)+(PRB!K190*parity2)+(PRB!L190*parity3)+(PRB!M190*EFW!AD77*parity1)+(PRB!N190*EFW!AD77*parity2)+(PRB!O190*EFW!AD77*parity3)) -> 415.5093259 | F56: =EXP((PRB!B191*1)+(PRB!C191*EFW!AD77)+(PRB!D191*EFW!AD77^2)+(PRB!E191*EFW!AD77^3)+(PRB!F191*sexm)+(PRB!G191*heightn)+(PRB!H191*weightn)+(PRB!I191*EFW!AD77*weightn)+(PRB!J191*parity1)+(PRB!K191*parity2)+(PRB!L191*parity3)+(PRB!M191*EFW!AD77*parity1)+(PRB!N191*EFW!AD77*parity2)+(PRB!O191*EFW!AD77*parity3)) -> 446.3808844 | G56: =EXP((PRB!$B$192*1)+(PRB!$C$192*EFW!AD77)+(PRB!$D$192*EFW!AD77^2)+(PRB!$E$192*EFW!AD77^3)+(PRB!$F$192*sexm)+(PRB!$G$192*heightn)+(PRB!$H$192*weightn)+(PRB!$I$192*EFW!AD77*weightn)+(PRB!$J$192*parity1)+(PRB!$K$192*parity2)+(PRB!$L$192*parity3)+(PRB!$M$192*EFW!AD77*parity1)+(PRB!$N$192*EFW!AD77*parity2)+(PRB!$O$192*EFW!AD77*parity3)) -> 480.6943318 | H56: =EXP((PRB!$B$193*1)+(PRB!$C$193*EFW!AD77)+(PRB!$D$193*EFW!AD77^2)+(PRB!$E$193*EFW!AD77^3)+(PRB!$F$193*sexm)+(PRB!$G$193*heightn)+(PRB!$H$193*weightn)+(PRB!$I$193*EFW!AD77*weightn)+(PRB!$J$193*parity1)+(PRB!$K$193*parity2)+(PRB!$L$193*parity3)+(PRB!$M$193*EFW!AD77*parity1)+(PRB!$N$193*EFW!AD77*parity2)+(PRB!$O$193*EFW!AD77*parity3)) -> 517.1009606 | I56: =EXP((PRB!$B$194*1)+(PRB!$C$194*EFW!AD77)+(PRB!$D$194*EFW!AD77^2)+(PRB!$E$194*EFW!AD77^3)+(PRB!$F$194*sexm)+(PRB!$G$194*heightn)+(PRB!$H$194*weightn)+(PRB!$I$194*EFW!AD77*weightn)+(PRB!$J$194*parity1)+(PRB!$K$194*parity2)+(PRB!$L$194*parity3)+(PRB!$M$194*EFW!AD77*parity1)+(PRB!$N$194*EFW!AD77*parity2)+(PRB!$O$194*EFW!AD77*parity3)) -> 539.388431 | J56: =EXP((PRB!$B$195*1)+(PRB!$C$195*EFW!AD77)+(PRB!$D$195*EFW!AD77^2)+(PRB!$E$195*EFW!AD77^3)+(PRB!$F$195*sexm)+(PRB!$G$195*heightn)+(PRB!$H$195*weightn)+(PRB!$I$195*EFW!AD77*weightn)+(PRB!$J$195*parity1)+(PRB!$K$195*parity2)+(PRB!$L$195*parity3)+(PRB!$M$195*EFW!AD77*parity1)+(PRB!$N$195*EFW!AD77*parity2)+(PRB!$O$195*EFW!AD77*parity3)) -> 556.1861768
A57: 21.85714286 | B57: =EXP((PRB!B187*1)+(PRB!C187*EFW!AD78)+(PRB!D187*EFW!AD78^2)+(PRB!E187*EFW!AD78^3)+(PRB!F187*sexm)+(PRB!G187*heightn)+(PRB!H187*weightn)+(PRB!I187*EFW!AD78*weightn)+(PRB!J187*parity1)+(PRB!K187*parity2)+(PRB!L187*parity3)+(PRB!M187*EFW!AD78*parity1)+(PRB!N187*EFW!AD78*parity2)+(PRB!O187*EFW!AD78*parity3)) -> 366.8537014 | C57: =EXP((PRB!B188*1)+(PRB!C188*EFW!AD78)+(PRB!D188*EFW!AD78^2)+(PRB!E188*EFW!AD78^3)+(PRB!F188*sexm)+(PRB!G188*heightn)+(PRB!H188*weightn)+(PRB!I188*EFW!AD78*weightn)+(PRB!J188*parity1)+(PRB!K188*parity2)+(PRB!L188*parity3)+(PRB!M188*EFW!AD78*parity1)+(PRB!N188*EFW!AD78*parity2)+(PRB!O188*EFW!AD78*parity3)) -> 381.1564216 | D57: =EXP((PRB!B189*1)+(PRB!C189*EFW!AD78)+(PRB!D189*EFW!AD78^2)+(PRB!E189*EFW!AD78^3)+(PRB!F189*sexm)+(PRB!G189*heightn)+(PRB!H189*weightn)+(PRB!I189*EFW!AD78*weightn)+(PRB!J189*parity1)+(PRB!K189*parity2)+(PRB!L189*parity3)+(PRB!M189*EFW!AD78*parity1)+(PRB!N189*EFW!AD78*parity2)+(PRB!O189*EFW!AD78*parity3)) -> 398.0373875 | E57: =EXP((PRB!B190*1)+(PRB!C190*EFW!AD78)+(PRB!D190*EFW!AD78^2)+(PRB!E190*EFW!AD78^3)+(PRB!F190*sexm)+(PRB!G190*heightn)+(PRB!H190*weightn)+(PRB!I190*EFW!AD78*weightn)+(PRB!J190*parity1)+(PRB!K190*parity2)+(PRB!L190*parity3)+(PRB!M190*EFW!AD78*parity1)+(PRB!N190*EFW!AD78*parity2)+(PRB!O190*EFW!AD78*parity3)) -> 425.9654444 | F57: =EXP((PRB!B191*1)+(PRB!C191*EFW!AD78)+(PRB!D191*EFW!AD78^2)+(PRB!E191*EFW!AD78^3)+(PRB!F191*sexm)+(PRB!G191*heightn)+(PRB!H191*weightn)+(PRB!I191*EFW!AD78*weightn)+(PRB!J191*parity1)+(PRB!K191*parity2)+(PRB!L191*parity3)+(PRB!M191*EFW!AD78*parity1)+(PRB!N191*EFW!AD78*parity2)+(PRB!O191*EFW!AD78*parity3)) -> 457.5842793 | G57: =EXP((PRB!$B$192*1)+(PRB!$C$192*EFW!AD78)+(PRB!$D$192*EFW!AD78^2)+(PRB!$E$192*EFW!AD78^3)+(PRB!$F$192*sexm)+(PRB!$G$192*heightn)+(PRB!$H$192*weightn)+(PRB!$I$192*EFW!AD78*weightn)+(PRB!$J$192*parity1)+(PRB!$K$192*parity2)+(PRB!$L$192*parity3)+(PRB!$M$192*EFW!AD78*parity1)+(PRB!$N$192*EFW!AD78*parity2)+(PRB!$O$192*EFW!AD78*parity3)) -> 492.6792373 | H57: =EXP((PRB!$B$193*1)+(PRB!$C$193*EFW!AD78)+(PRB!$D$193*EFW!AD78^2)+(PRB!$E$193*EFW!AD78^3)+(PRB!$F$193*sexm)+(PRB!$G$193*heightn)+(PRB!$H$193*weightn)+(PRB!$I$193*EFW!AD78*weightn)+(PRB!$J$193*parity1)+(PRB!$K$193*parity2)+(PRB!$L$193*parity3)+(PRB!$M$193*EFW!AD78*parity1)+(PRB!$N$193*EFW!AD78*parity2)+(PRB!$O$193*EFW!AD78*parity3)) -> 529.9281484 | I57: =EXP((PRB!$B$194*1)+(PRB!$C$194*EFW!AD78)+(PRB!$D$194*EFW!AD78^2)+(PRB!$E$194*EFW!AD78^3)+(PRB!$F$194*sexm)+(PRB!$G$194*heightn)+(PRB!$H$194*weightn)+(PRB!$I$194*EFW!AD78*weightn)+(PRB!$J$194*parity1)+(PRB!$K$194*parity2)+(PRB!$L$194*parity3)+(PRB!$M$194*EFW!AD78*parity1)+(PRB!$N$194*EFW!AD78*parity2)+(PRB!$O$194*EFW!AD78*parity3)) -> 552.7335337 | J57: =EXP((PRB!$B$195*1)+(PRB!$C$195*EFW!AD78)+(PRB!$D$195*EFW!AD78^2)+(PRB!$E$195*EFW!AD78^3)+(PRB!$F$195*sexm)+(PRB!$G$195*heightn)+(PRB!$H$195*weightn)+(PRB!$I$195*EFW!AD78*weightn)+(PRB!$J$195*parity1)+(PRB!$K$195*parity2)+(PRB!$L$195*parity3)+(PRB!$M$195*EFW!AD78*parity1)+(PRB!$N$195*EFW!AD78*parity2)+(PRB!$O$195*EFW!AD78*parity3)) -> 570.0170446
A58: 22 | B58: =EXP((PRB!B187*1)+(PRB!C187*EFW!AD79)+(PRB!D187*EFW!AD79^2)+(PRB!E187*EFW!AD79^3)+(PRB!F187*sexm)+(PRB!G187*heightn)+(PRB!H187*weightn)+(PRB!I187*EFW!AD79*weightn)+(PRB!J187*parity1)+(PRB!K187*parity2)+(PRB!L187*parity3)+(PRB!M187*EFW!AD79*parity1)+(PRB!N187*EFW!AD79*parity2)+(PRB!O187*EFW!AD79*parity3)) -> 376.0832925 | C58: =EXP((PRB!B188*1)+(PRB!C188*EFW!AD79)+(PRB!D188*EFW!AD79^2)+(PRB!E188*EFW!AD79^3)+(PRB!F188*sexm)+(PRB!G188*heightn)+(PRB!H188*weightn)+(PRB!I188*EFW!AD79*weightn)+(PRB!J188*parity1)+(PRB!K188*parity2)+(PRB!L188*parity3)+(PRB!M188*EFW!AD79*parity1)+(PRB!N188*EFW!AD79*parity2)+(PRB!O188*EFW!AD79*parity3)) -> 390.7674971 | D58: =EXP((PRB!B189*1)+(PRB!C189*EFW!AD79)+(PRB!D189*EFW!AD79^2)+(PRB!E189*EFW!AD79^3)+(PRB!F189*sexm)+(PRB!G189*heightn)+(PRB!H189*weightn)+(PRB!I189*EFW!AD79*weightn)+(PRB!J189*parity1)+(PRB!K189*parity2)+(PRB!L189*parity3)+(PRB!M189*EFW!AD79*parity1)+(PRB!N189*EFW!AD79*parity2)+(PRB!O189*EFW!AD79*parity3)) -> 408.0441797 | E58: =EXP((PRB!B190*1)+(PRB!C190*EFW!AD79)+(PRB!D190*EFW!AD79^2)+(PRB!E190*EFW!AD79^3)+(PRB!F190*sexm)+(PRB!G190*heightn)+(PRB!H190*weightn)+(PRB!I190*EFW!AD79*weightn)+(PRB!J190*parity1)+(PRB!K190*parity2)+(PRB!L190*parity3)+(PRB!M190*EFW!AD79*parity1)+(PRB!N190*EFW!AD79*parity2)+(PRB!O190*EFW!AD79*parity3)) -> 436.6179607 | F58: =EXP((PRB!B191*1)+(PRB!C191*EFW!AD79)+(PRB!D191*EFW!AD79^2)+(PRB!E191*EFW!AD79^3)+(PRB!F191*sexm)+(PRB!G191*heightn)+(PRB!H191*weightn)+(PRB!I191*EFW!AD79*weightn)+(PRB!J191*parity1)+(PRB!K191*parity2)+(PRB!L191*parity3)+(PRB!M191*EFW!AD79*parity1)+(PRB!N191*EFW!AD79*parity2)+(PRB!O191*EFW!AD79*parity3)) -> 468.9967001 | G58: =EXP((PRB!$B$192*1)+(PRB!$C$192*EFW!AD79)+(PRB!$D$192*EFW!AD79^2)+(PRB!$E$192*EFW!AD79^3)+(PRB!$F$192*sexm)+(PRB!$G$192*heightn)+(PRB!$H$192*weightn)+(PRB!$I$192*EFW!AD79*weightn)+(PRB!$J$192*parity1)+(PRB!$K$192*parity2)+(PRB!$L$192*parity3)+(PRB!$M$192*EFW!AD79*parity1)+(PRB!$N$192*EFW!AD79*parity2)+(PRB!$O$192*EFW!AD79*parity3)) -> 504.8880352 | H58: =EXP((PRB!$B$193*1)+(PRB!$C$193*EFW!AD79)+(PRB!$D$193*EFW!AD79^2)+(PRB!$E$193*EFW!AD79^3)+(PRB!$F$193*sexm)+(PRB!$G$193*heightn)+(PRB!$H$193*weightn)+(PRB!$I$193*EFW!AD79*weightn)+(PRB!$J$193*parity1)+(PRB!$K$193*parity2)+(PRB!$L$193*parity3)+(PRB!$M$193*EFW!AD79*parity1)+(PRB!$N$193*EFW!AD79*parity2)+(PRB!$O$193*EFW!AD79*parity3)) -> 542.9935331 | I58: =EXP((PRB!$B$194*1)+(PRB!$C$194*EFW!AD79)+(PRB!$D$194*EFW!AD79^2)+(PRB!$E$194*EFW!AD79^3)+(PRB!$F$194*sexm)+(PRB!$G$194*heightn)+(PRB!$H$194*weightn)+(PRB!$I$194*EFW!AD79*weightn)+(PRB!$J$194*parity1)+(PRB!$K$194*parity2)+(PRB!$L$194*parity3)+(PRB!$M$194*EFW!AD79*parity1)+(PRB!$N$194*EFW!AD79*parity2)+(PRB!$O$194*EFW!AD79*parity3)) -> 566.3300204 | J58: =EXP((PRB!$B$195*1)+(PRB!$C$195*EFW!AD79)+(PRB!$D$195*EFW!AD79^2)+(PRB!$E$195*EFW!AD79^3)+(PRB!$F$195*sexm)+(PRB!$G$195*heightn)+(PRB!$H$195*weightn)+(PRB!$I$195*EFW!AD79*weightn)+(PRB!$J$195*parity1)+(PRB!$K$195*parity2)+(PRB!$L$195*parity3)+(PRB!$M$195*EFW!AD79*parity1)+(PRB!$N$195*EFW!AD79*parity2)+(PRB!$O$195*EFW!AD79*parity3)) -> 584.1130573
A59: 22.14285714 | B59: =EXP((PRB!B187*1)+(PRB!C187*EFW!AD80)+(PRB!D187*EFW!AD80^2)+(PRB!E187*EFW!AD80^3)+(PRB!F187*sexm)+(PRB!G187*heightn)+(PRB!H187*weightn)+(PRB!I187*EFW!AD80*weightn)+(PRB!J187*parity1)+(PRB!K187*parity2)+(PRB!L187*parity3)+(PRB!M187*EFW!AD80*parity1)+(PRB!N187*EFW!AD80*parity2)+(PRB!O187*EFW!AD80*parity3)) -> 385.4818695 | C59: =EXP((PRB!B188*1)+(PRB!C188*EFW!AD80)+(PRB!D188*EFW!AD80^2)+(PRB!E188*EFW!AD80^3)+(PRB!F188*sexm)+(PRB!G188*heightn)+(PRB!H188*weightn)+(PRB!I188*EFW!AD80*weightn)+(PRB!J188*parity1)+(PRB!K188*parity2)+(PRB!L188*parity3)+(PRB!M188*EFW!AD80*parity1)+(PRB!N188*EFW!AD80*parity2)+(PRB!O188*EFW!AD80*parity3)) -> 400.5548679 | D59: =EXP((PRB!B189*1)+(PRB!C189*EFW!AD80)+(PRB!D189*EFW!AD80^2)+(PRB!E189*EFW!AD80^3)+(PRB!F189*sexm)+(PRB!G189*heightn)+(PRB!H189*weightn)+(PRB!I189*EFW!AD80*weightn)+(PRB!J189*parity1)+(PRB!K189*parity2)+(PRB!L189*parity3)+(PRB!M189*EFW!AD80*parity1)+(PRB!N189*EFW!AD80*parity2)+(PRB!O189*EFW!AD80*parity3)) -> 418.2357351 | E59: =EXP((PRB!B190*1)+(PRB!C190*EFW!AD80)+(PRB!D190*EFW!AD80^2)+(PRB!E190*EFW!AD80^3)+(PRB!F190*sexm)+(PRB!G190*heightn)+(PRB!H190*weightn)+(PRB!I190*EFW!AD80*weightn)+(PRB!J190*parity1)+(PRB!K190*parity2)+(PRB!L190*parity3)+(PRB!M190*EFW!AD80*parity1)+(PRB!N190*EFW!AD80*parity2)+(PRB!O190*EFW!AD80*parity3)) -> 447.4686237 | F59: =EXP((PRB!B191*1)+(PRB!C191*EFW!AD80)+(PRB!D191*EFW!AD80^2)+(PRB!E191*EFW!AD80^3)+(PRB!F191*sexm)+(PRB!G191*heightn)+(PRB!H191*weightn)+(PRB!I191*EFW!AD80*weightn)+(PRB!J191*parity1)+(PRB!K191*parity2)+(PRB!L191*parity3)+(PRB!M191*EFW!AD80*parity1)+(PRB!N191*EFW!AD80*parity2)+(PRB!O191*EFW!AD80*parity3)) -> 480.6199803 | G59: =EXP((PRB!$B$192*1)+(PRB!$C$192*EFW!AD80)+(PRB!$D$192*EFW!AD80^2)+(PRB!$E$192*EFW!AD80^3)+(PRB!$F$192*sexm)+(PRB!$G$192*heightn)+(PRB!$H$192*weightn)+(PRB!$I$192*EFW!AD80*weightn)+(PRB!$J$192*parity1)+(PRB!$K$192*parity2)+(PRB!$L$192*parity3)+(PRB!$M$192*EFW!AD80*parity1)+(PRB!$N$192*EFW!AD80*parity2)+(PRB!$O$192*EFW!AD80*parity3)) -> 517.3227328 | H59: =EXP((PRB!$B$193*1)+(PRB!$C$193*EFW!AD80)+(PRB!$D$193*EFW!AD80^2)+(PRB!$E$193*EFW!AD80^3)+(PRB!$F$193*sexm)+(PRB!$G$193*heightn)+(PRB!$H$193*weightn)+(PRB!$I$193*EFW!AD80*weightn)+(PRB!$J$193*parity1)+(PRB!$K$193*parity2)+(PRB!$L$193*parity3)+(PRB!$M$193*EFW!AD80*parity1)+(PRB!$N$193*EFW!AD80*parity2)+(PRB!$O$193*EFW!AD80*parity3)) -> 556.2992289 | I59: =EXP((PRB!$B$194*1)+(PRB!$C$194*EFW!AD80)+(PRB!$D$194*EFW!AD80^2)+(PRB!$E$194*EFW!AD80^3)+(PRB!$F$194*sexm)+(PRB!$G$194*heightn)+(PRB!$H$194*weightn)+(PRB!$I$194*EFW!AD80*weightn)+(PRB!$J$194*parity1)+(PRB!$K$194*parity2)+(PRB!$L$194*parity3)+(PRB!$M$194*EFW!AD80*parity1)+(PRB!$N$194*EFW!AD80*parity2)+(PRB!$O$194*EFW!AD80*parity3)) -> 580.1802782 | J59: =EXP((PRB!$B$195*1)+(PRB!$C$195*EFW!AD80)+(PRB!$D$195*EFW!AD80^2)+(PRB!$E$195*EFW!AD80^3)+(PRB!$F$195*sexm)+(PRB!$G$195*heightn)+(PRB!$H$195*weightn)+(PRB!$I$195*EFW!AD80*weightn)+(PRB!$J$195*parity1)+(PRB!$K$195*parity2)+(PRB!$L$195*parity3)+(PRB!$M$195*EFW!AD80*parity1)+(PRB!$N$195*EFW!AD80*parity2)+(PRB!$O$195*EFW!AD80*parity3)) -> 598.4768805
A60: 22.28571429 | B60: =EXP((PRB!B187*1)+(PRB!C187*EFW!AD81)+(PRB!D187*EFW!AD81^2)+(PRB!E187*EFW!AD81^3)+(PRB!F187*sexm)+(PRB!G187*heightn)+(PRB!H187*weightn)+(PRB!I187*EFW!AD81*weightn)+(PRB!J187*parity1)+(PRB!K187*parity2)+(PRB!L187*parity3)+(PRB!M187*EFW!AD81*parity1)+(PRB!N187*EFW!AD81*parity2)+(PRB!O187*EFW!AD81*parity3)) -> 395.0506973 | C60: =EXP((PRB!B188*1)+(PRB!C188*EFW!AD81)+(PRB!D188*EFW!AD81^2)+(PRB!E188*EFW!AD81^3)+(PRB!F188*sexm)+(PRB!G188*heightn)+(PRB!H188*weightn)+(PRB!I188*EFW!AD81*weightn)+(PRB!J188*parity1)+(PRB!K188*parity2)+(PRB!L188*parity3)+(PRB!M188*EFW!AD81*parity1)+(PRB!N188*EFW!AD81*parity2)+(PRB!O188*EFW!AD81*parity3)) -> 410.5198826 | D60: =EXP((PRB!B189*1)+(PRB!C189*EFW!AD81)+(PRB!D189*EFW!AD81^2)+(PRB!E189*EFW!AD81^3)+(PRB!F189*sexm)+(PRB!G189*heightn)+(PRB!H189*weightn)+(PRB!I189*EFW!AD81*weightn)+(PRB!J189*parity1)+(PRB!K189*parity2)+(PRB!L189*parity3)+(PRB!M189*EFW!AD81*parity1)+(PRB!N189*EFW!AD81*parity2)+(PRB!O189*EFW!AD81*parity3)) -> 428.6135516 | E60: =EXP((PRB!B190*1)+(PRB!C190*EFW!AD81)+(PRB!D190*EFW!AD81^2)+(PRB!E190*EFW!AD81^3)+(PRB!F190*sexm)+(PRB!G190*heightn)+(PRB!H190*weightn)+(PRB!I190*EFW!AD81*weightn)+(PRB!J190*parity1)+(PRB!K190*parity2)+(PRB!L190*parity3)+(PRB!M190*EFW!AD81*parity1)+(PRB!N190*EFW!AD81*parity2)+(PRB!O190*EFW!AD81*parity3)) -> 458.5191436 | F60: =EXP((PRB!B191*1)+(PRB!C191*EFW!AD81)+(PRB!D191*EFW!AD81^2)+(PRB!E191*EFW!AD81^3)+(PRB!F191*sexm)+(PRB!G191*heightn)+(PRB!H191*weightn)+(PRB!I191*EFW!AD81*weightn)+(PRB!J191*parity1)+(PRB!K191*parity2)+(PRB!L191*parity3)+(PRB!M191*EFW!AD81*parity1)+(PRB!N191*EFW!AD81*parity2)+(PRB!O191*EFW!AD81*parity3)) -> 492.455913 | G60: =EXP((PRB!$B$192*1)+(PRB!$C$192*EFW!AD81)+(PRB!$D$192*EFW!AD81^2)+(PRB!$E$192*EFW!AD81^3)+(PRB!$F$192*sexm)+(PRB!$G$192*heightn)+(PRB!$H$192*weightn)+(PRB!$I$192*EFW!AD81*weightn)+(PRB!$J$192*parity1)+(PRB!$K$192*parity2)+(PRB!$L$192*parity3)+(PRB!$M$192*EFW!AD81*parity1)+(PRB!$N$192*EFW!AD81*parity2)+(PRB!$O$192*EFW!AD81*parity3)) -> 529.9852943 | H60: =EXP((PRB!$B$193*1)+(PRB!$C$193*EFW!AD81)+(PRB!$D$193*EFW!AD81^2)+(PRB!$E$193*EFW!AD81^3)+(PRB!$F$193*sexm)+(PRB!$G$193*heightn)+(PRB!$H$193*weightn)+(PRB!$I$193*EFW!AD81*weightn)+(PRB!$J$193*parity1)+(PRB!$K$193*parity2)+(PRB!$L$193*parity3)+(PRB!$M$193*EFW!AD81*parity1)+(PRB!$N$193*EFW!AD81*parity2)+(PRB!$O$193*EFW!AD81*parity3)) -> 569.8473044 | I60: =EXP((PRB!$B$194*1)+(PRB!$C$194*EFW!AD81)+(PRB!$D$194*EFW!AD81^2)+(PRB!$E$194*EFW!AD81^3)+(PRB!$F$194*sexm)+(PRB!$G$194*heightn)+(PRB!$H$194*weightn)+(PRB!$I$194*EFW!AD81*weightn)+(PRB!$J$194*parity1)+(PRB!$K$194*parity2)+(PRB!$L$194*parity3)+(PRB!$M$194*EFW!AD81*parity1)+(PRB!$N$194*EFW!AD81*parity2)+(PRB!$O$194*EFW!AD81*parity3)) -> 594.2866483 | J60: =EXP((PRB!$B$195*1)+(PRB!$C$195*EFW!AD81)+(PRB!$D$195*EFW!AD81^2)+(PRB!$E$195*EFW!AD81^3)+(PRB!$F$195*sexm)+(PRB!$G$195*heightn)+(PRB!$H$195*weightn)+(PRB!$I$195*EFW!AD81*weightn)+(PRB!$J$195*parity1)+(PRB!$K$195*parity2)+(PRB!$L$195*parity3)+(PRB!$M$195*EFW!AD81*parity1)+(PRB!$N$195*EFW!AD81*parity2)+(PRB!$O$195*EFW!AD81*parity3)) -> 613.111133
A61: 22.42857143 | B61: =EXP((PRB!B187*1)+(PRB!C187*EFW!AD82)+(PRB!D187*EFW!AD82^2)+(PRB!E187*EFW!AD82^3)+(PRB!F187*sexm)+(PRB!G187*heightn)+(PRB!H187*weightn)+(PRB!I187*EFW!AD82*weightn)+(PRB!J187*parity1)+(PRB!K187*parity2)+(PRB!L187*parity3)+(PRB!M187*EFW!AD82*parity1)+(PRB!N187*EFW!AD82*parity2)+(PRB!O187*EFW!AD82*parity3)) -> 404.7909999 | C61: =EXP((PRB!B188*1)+(PRB!C188*EFW!AD82)+(PRB!D188*EFW!AD82^2)+(PRB!E188*EFW!AD82^3)+(PRB!F188*sexm)+(PRB!G188*heightn)+(PRB!H188*weightn)+(PRB!I188*EFW!AD82*weightn)+(PRB!J188*parity1)+(PRB!K188*parity2)+(PRB!L188*parity3)+(PRB!M188*EFW!AD82*parity1)+(PRB!N188*EFW!AD82*parity2)+(PRB!O188*EFW!AD82*parity3)) -> 420.6638493 | D61: =EXP((PRB!B189*1)+(PRB!C189*EFW!AD82)+(PRB!D189*EFW!AD82^2)+(PRB!E189*EFW!AD82^3)+(PRB!F189*sexm)+(PRB!G189*heightn)+(PRB!H189*weightn)+(PRB!I189*EFW!AD82*weightn)+(PRB!J189*parity1)+(PRB!K189*parity2)+(PRB!L189*parity3)+(PRB!M189*EFW!AD82*parity1)+(PRB!N189*EFW!AD82*parity2)+(PRB!O189*EFW!AD82*parity3)) -> 439.1790876 | E61: =EXP((PRB!B190*1)+(PRB!C190*EFW!AD82)+(PRB!D190*EFW!AD82^2)+(PRB!E190*EFW!AD82^3)+(PRB!F190*sexm)+(PRB!G190*heightn)+(PRB!H190*weightn)+(PRB!I190*EFW!AD82*weightn)+(PRB!J190*parity1)+(PRB!K190*parity2)+(PRB!L190*parity3)+(PRB!M190*EFW!AD82*parity1)+(PRB!N190*EFW!AD82*parity2)+(PRB!O190*EFW!AD82*parity3)) -> 469.7711906 | F61: =EXP((PRB!B191*1)+(PRB!C191*EFW!AD82)+(PRB!D191*EFW!AD82^2)+(PRB!E191*EFW!AD82^3)+(PRB!F191*sexm)+(PRB!G191*heightn)+(PRB!H191*weightn)+(PRB!I191*EFW!AD82*weightn)+(PRB!J191*parity1)+(PRB!K191*parity2)+(PRB!L191*parity3)+(PRB!M191*EFW!AD82*parity1)+(PRB!N191*EFW!AD82*parity2)+(PRB!O191*EFW!AD82*parity3)) -> 504.5062502 | G61: =EXP((PRB!$B$192*1)+(PRB!$C$192*EFW!AD82)+(PRB!$D$192*EFW!AD82^2)+(PRB!$E$192*EFW!AD82^3)+(PRB!$F$192*sexm)+(PRB!$G$192*heightn)+(PRB!$H$192*weightn)+(PRB!$I$192*EFW!AD82*weightn)+(PRB!$J$192*parity1)+(PRB!$K$192*parity2)+(PRB!$L$192*parity3)+(PRB!$M$192*EFW!AD82*parity1)+(PRB!$N$192*EFW!AD82*parity2)+(PRB!$O$192*EFW!AD82*parity3)) -> 542.8776393 | H61: =EXP((PRB!$B$193*1)+(PRB!$C$193*EFW!AD82)+(PRB!$D$193*EFW!AD82^2)+(PRB!$E$193*EFW!AD82^3)+(PRB!$F$193*sexm)+(PRB!$G$193*heightn)+(PRB!$H$193*weightn)+(PRB!$I$193*EFW!AD82*weightn)+(PRB!$J$193*parity1)+(PRB!$K$193*parity2)+(PRB!$L$193*parity3)+(PRB!$M$193*EFW!AD82*parity1)+(PRB!$N$193*EFW!AD82*parity2)+(PRB!$O$193*EFW!AD82*parity3)) -> 583.6397806 | I61: =EXP((PRB!$B$194*1)+(PRB!$C$194*EFW!AD82)+(PRB!$D$194*EFW!AD82^2)+(PRB!$E$194*EFW!AD82^3)+(PRB!$F$194*sexm)+(PRB!$G$194*heightn)+(PRB!$H$194*weightn)+(PRB!$I$194*EFW!AD82*weightn)+(PRB!$J$194*parity1)+(PRB!$K$194*parity2)+(PRB!$L$194*parity3)+(PRB!$M$194*EFW!AD82*parity1)+(PRB!$N$194*EFW!AD82*parity2)+(PRB!$O$194*EFW!AD82*parity3)) -> 608.6514231 | J61: =EXP((PRB!$B$195*1)+(PRB!$C$195*EFW!AD82)+(PRB!$D$195*EFW!AD82^2)+(PRB!$E$195*EFW!AD82^3)+(PRB!$F$195*sexm)+(PRB!$G$195*heightn)+(PRB!$H$195*weightn)+(PRB!$I$195*EFW!AD82*weightn)+(PRB!$J$195*parity1)+(PRB!$K$195*parity2)+(PRB!$L$195*parity3)+(PRB!$M$195*EFW!AD82*parity1)+(PRB!$N$195*EFW!AD82*parity2)+(PRB!$O$195*EFW!AD82*parity3)) -> 628.0183837
A62: 22.57142857 | B62: =EXP((PRB!B187*1)+(PRB!C187*EFW!AD83)+(PRB!D187*EFW!AD83^2)+(PRB!E187*EFW!AD83^3)+(PRB!F187*sexm)+(PRB!G187*heightn)+(PRB!H187*weightn)+(PRB!I187*EFW!AD83*weightn)+(PRB!J187*parity1)+(PRB!K187*parity2)+(PRB!L187*parity3)+(PRB!M187*EFW!AD83*parity1)+(PRB!N187*EFW!AD83*parity2)+(PRB!O187*EFW!AD83*parity3)) -> 414.7039583 | C62: =EXP((PRB!B188*1)+(PRB!C188*EFW!AD83)+(PRB!D188*EFW!AD83^2)+(PRB!E188*EFW!AD83^3)+(PRB!F188*sexm)+(PRB!G188*heightn)+(PRB!H188*weightn)+(PRB!I188*EFW!AD83*weightn)+(PRB!J188*parity1)+(PRB!K188*parity2)+(PRB!L188*parity3)+(PRB!M188*EFW!AD83*parity1)+(PRB!N188*EFW!AD83*parity2)+(PRB!O188*EFW!AD83*parity3)) -> 430.9880345 | D62: =EXP((PRB!B189*1)+(PRB!C189*EFW!AD83)+(PRB!D189*EFW!AD83^2)+(PRB!E189*EFW!AD83^3)+(PRB!F189*sexm)+(PRB!G189*heightn)+(PRB!H189*weightn)+(PRB!I189*EFW!AD83*weightn)+(PRB!J189*parity1)+(PRB!K189*parity2)+(PRB!L189*parity3)+(PRB!M189*EFW!AD83*parity1)+(PRB!N189*EFW!AD83*parity2)+(PRB!O189*EFW!AD83*parity3)) -> 449.9337602 | E62: =EXP((PRB!B190*1)+(PRB!C190*EFW!AD83)+(PRB!D190*EFW!AD83^2)+(PRB!E190*EFW!AD83^3)+(PRB!F190*sexm)+(PRB!G190*heightn)+(PRB!H190*weightn)+(PRB!I190*EFW!AD83*weightn)+(PRB!J190*parity1)+(PRB!K190*parity2)+(PRB!L190*parity3)+(PRB!M190*EFW!AD83*parity1)+(PRB!N190*EFW!AD83*parity2)+(PRB!O190*EFW!AD83*parity3)) -> 481.2263929 | F62: =EXP((PRB!B191*1)+(PRB!C191*EFW!AD83)+(PRB!D191*EFW!AD83^2)+(PRB!E191*EFW!AD83^3)+(PRB!F191*sexm)+(PRB!G191*heightn)+(PRB!H191*weightn)+(PRB!I191*EFW!AD83*weightn)+(PRB!J191*parity1)+(PRB!K191*parity2)+(PRB!L191*parity3)+(PRB!M191*EFW!AD83*parity1)+(PRB!N191*EFW!AD83*parity2)+(PRB!O191*EFW!AD83*parity3)) -> 516.7727001 | G62: =EXP((PRB!$B$192*1)+(PRB!$C$192*EFW!AD83)+(PRB!$D$192*EFW!AD83^2)+(PRB!$E$192*EFW!AD83^3)+(PRB!$F$192*sexm)+(PRB!$G$192*heightn)+(PRB!$H$192*weightn)+(PRB!$I$192*EFW!AD83*weightn)+(PRB!$J$192*parity1)+(PRB!$K$192*parity2)+(PRB!$L$192*parity3)+(PRB!$M$192*EFW!AD83*parity1)+(PRB!$N$192*EFW!AD83*parity2)+(PRB!$O$192*EFW!AD83*parity3)) -> 556.0016407 | H62: =EXP((PRB!$B$193*1)+(PRB!$C$193*EFW!AD83)+(PRB!$D$193*EFW!AD83^2)+(PRB!$E$193*EFW!AD83^3)+(PRB!$F$193*sexm)+(PRB!$G$193*heightn)+(PRB!$H$193*weightn)+(PRB!$I$193*EFW!AD83*weightn)+(PRB!$J$193*parity1)+(PRB!$K$193*parity2)+(PRB!$L$193*parity3)+(PRB!$M$193*EFW!AD83*parity1)+(PRB!$N$193*EFW!AD83*parity2)+(PRB!$O$193*EFW!AD83*parity3)) -> 597.6786295 | I62: =EXP((PRB!$B$194*1)+(PRB!$C$194*EFW!AD83)+(PRB!$D$194*EFW!AD83^2)+(PRB!$E$194*EFW!AD83^3)+(PRB!$F$194*sexm)+(PRB!$G$194*heightn)+(PRB!$H$194*weightn)+(PRB!$I$194*EFW!AD83*weightn)+(PRB!$J$194*parity1)+(PRB!$K$194*parity2)+(PRB!$L$194*parity3)+(PRB!$M$194*EFW!AD83*parity1)+(PRB!$N$194*EFW!AD83*parity2)+(PRB!$O$194*EFW!AD83*parity3)) -> 623.2768441 | J62: =EXP((PRB!$B$195*1)+(PRB!$C$195*EFW!AD83)+(PRB!$D$195*EFW!AD83^2)+(PRB!$E$195*EFW!AD83^3)+(PRB!$F$195*sexm)+(PRB!$G$195*heightn)+(PRB!$H$195*weightn)+(PRB!$I$195*EFW!AD83*weightn)+(PRB!$J$195*parity1)+(PRB!$K$195*parity2)+(PRB!$L$195*parity3)+(PRB!$M$195*EFW!AD83*parity1)+(PRB!$N$195*EFW!AD83*parity2)+(PRB!$O$195*EFW!AD83*parity3)) -> 643.2011491
A63: 22.71428571 | B63: =EXP((PRB!B187*1)+(PRB!C187*EFW!AD84)+(PRB!D187*EFW!AD84^2)+(PRB!E187*EFW!AD84^3)+(PRB!F187*sexm)+(PRB!G187*heightn)+(PRB!H187*weightn)+(PRB!I187*EFW!AD84*weightn)+(PRB!J187*parity1)+(PRB!K187*parity2)+(PRB!L187*parity3)+(PRB!M187*EFW!AD84*parity1)+(PRB!N187*EFW!AD84*parity2)+(PRB!O187*EFW!AD84*parity3)) -> 424.7907098 | C63: =EXP((PRB!B188*1)+(PRB!C188*EFW!AD84)+(PRB!D188*EFW!AD84^2)+(PRB!E188*EFW!AD84^3)+(PRB!F188*sexm)+(PRB!G188*heightn)+(PRB!H188*weightn)+(PRB!I188*EFW!AD84*weightn)+(PRB!J188*parity1)+(PRB!K188*parity2)+(PRB!L188*parity3)+(PRB!M188*EFW!AD84*parity1)+(PRB!N188*EFW!AD84*parity2)+(PRB!O188*EFW!AD84*parity3)) -> 441.4936616 | D63: =EXP((PRB!B189*1)+(PRB!C189*EFW!AD84)+(PRB!D189*EFW!AD84^2)+(PRB!E189*EFW!AD84^3)+(PRB!F189*sexm)+(PRB!G189*heightn)+(PRB!H189*weightn)+(PRB!I189*EFW!AD84*weightn)+(PRB!J189*parity1)+(PRB!K189*parity2)+(PRB!L189*parity3)+(PRB!M189*EFW!AD84*parity1)+(PRB!N189*EFW!AD84*parity2)+(PRB!O189*EFW!AD84*parity3)) -> 460.8789438 | E63: =EXP((PRB!B190*1)+(PRB!C190*EFW!AD84)+(PRB!D190*EFW!AD84^2)+(PRB!E190*EFW!AD84^3)+(PRB!F190*sexm)+(PRB!G190*heightn)+(PRB!H190*weightn)+(PRB!I190*EFW!AD84*weightn)+(PRB!J190*parity1)+(PRB!K190*parity2)+(PRB!L190*parity3)+(PRB!M190*EFW!AD84*parity1)+(PRB!N190*EFW!AD84*parity2)+(PRB!O190*EFW!AD84*parity3)) -> 492.8863358 | F63: =EXP((PRB!B191*1)+(PRB!C191*EFW!AD84)+(PRB!D191*EFW!AD84^2)+(PRB!E191*EFW!AD84^3)+(PRB!F191*sexm)+(PRB!G191*heightn)+(PRB!H191*weightn)+(PRB!I191*EFW!AD84*weightn)+(PRB!J191*parity1)+(PRB!K191*parity2)+(PRB!L191*parity3)+(PRB!M191*EFW!AD84*parity1)+(PRB!N191*EFW!AD84*parity2)+(PRB!O191*EFW!AD84*parity3)) -> 529.2569265 | G63: =EXP((PRB!$B$192*1)+(PRB!$C$192*EFW!AD84)+(PRB!$D$192*EFW!AD84^2)+(PRB!$E$192*EFW!AD84^3)+(PRB!$F$192*sexm)+(PRB!$G$192*heightn)+(PRB!$H$192*weightn)+(PRB!$I$192*EFW!AD84*weightn)+(PRB!$J$192*parity1)+(PRB!$K$192*parity2)+(PRB!$L$192*parity3)+(PRB!$M$192*EFW!AD84*parity1)+(PRB!$N$192*EFW!AD84*parity2)+(PRB!$O$192*EFW!AD84*parity3)) -> 569.3591228 | H63: =EXP((PRB!$B$193*1)+(PRB!$C$193*EFW!AD84)+(PRB!$D$193*EFW!AD84^2)+(PRB!$E$193*EFW!AD84^3)+(PRB!$F$193*sexm)+(PRB!$G$193*heightn)+(PRB!$H$193*weightn)+(PRB!$I$193*EFW!AD84*weightn)+(PRB!$J$193*parity1)+(PRB!$K$193*parity2)+(PRB!$L$193*parity3)+(PRB!$M$193*EFW!AD84*parity1)+(PRB!$N$193*EFW!AD84*parity2)+(PRB!$O$193*EFW!AD84*parity3)) -> 611.9657714 | I63: =EXP((PRB!$B$194*1)+(PRB!$C$194*EFW!AD84)+(PRB!$D$194*EFW!AD84^2)+(PRB!$E$194*EFW!AD84^3)+(PRB!$F$194*sexm)+(PRB!$G$194*heightn)+(PRB!$H$194*weightn)+(PRB!$I$194*EFW!AD84*weightn)+(PRB!$J$194*parity1)+(PRB!$K$194*parity2)+(PRB!$L$194*parity3)+(PRB!$M$194*EFW!AD84*parity1)+(PRB!$N$194*EFW!AD84*parity2)+(PRB!$O$194*EFW!AD84*parity3)) -> 638.1650992 | J63: =EXP((PRB!$B$195*1)+(PRB!$C$195*EFW!AD84)+(PRB!$D$195*EFW!AD84^2)+(PRB!$E$195*EFW!AD84^3)+(PRB!$F$195*sexm)+(PRB!$G$195*heightn)+(PRB!$H$195*weightn)+(PRB!$I$195*EFW!AD84*weightn)+(PRB!$J$195*parity1)+(PRB!$K$195*parity2)+(PRB!$L$195*parity3)+(PRB!$M$195*EFW!AD84*parity1)+(PRB!$N$195*EFW!AD84*parity2)+(PRB!$O$195*EFW!AD84*parity3)) -> 658.6618905
A64: 22.85714286 | B64: =EXP((PRB!B187*1)+(PRB!C187*EFW!AD85)+(PRB!D187*EFW!AD85^2)+(PRB!E187*EFW!AD85^3)+(PRB!F187*sexm)+(PRB!G187*heightn)+(PRB!H187*weightn)+(PRB!I187*EFW!AD85*weightn)+(PRB!J187*parity1)+(PRB!K187*parity2)+(PRB!L187*parity3)+(PRB!M187*EFW!AD85*parity1)+(PRB!N187*EFW!AD85*parity2)+(PRB!O187*EFW!AD85*parity3)) -> 435.052346 | C64: =EXP((PRB!B188*1)+(PRB!C188*EFW!AD85)+(PRB!D188*EFW!AD85^2)+(PRB!E188*EFW!AD85^3)+(PRB!F188*sexm)+(PRB!G188*heightn)+(PRB!H188*weightn)+(PRB!I188*EFW!AD85*weightn)+(PRB!J188*parity1)+(PRB!K188*parity2)+(PRB!L188*parity3)+(PRB!M188*EFW!AD85*parity1)+(PRB!N188*EFW!AD85*parity2)+(PRB!O188*EFW!AD85*parity3)) -> 452.1819096 | D64: =EXP((PRB!B189*1)+(PRB!C189*EFW!AD85)+(PRB!D189*EFW!AD85^2)+(PRB!E189*EFW!AD85^3)+(PRB!F189*sexm)+(PRB!G189*heightn)+(PRB!H189*weightn)+(PRB!I189*EFW!AD85*weightn)+(PRB!J189*parity1)+(PRB!K189*parity2)+(PRB!L189*parity3)+(PRB!M189*EFW!AD85*parity1)+(PRB!N189*EFW!AD85*parity2)+(PRB!O189*EFW!AD85*parity3)) -> 472.0159689 | E64: =EXP((PRB!B190*1)+(PRB!C190*EFW!AD85)+(PRB!D190*EFW!AD85^2)+(PRB!E190*EFW!AD85^3)+(PRB!F190*sexm)+(PRB!G190*heightn)+(PRB!H190*weightn)+(PRB!I190*EFW!AD85*weightn)+(PRB!J190*parity1)+(PRB!K190*parity2)+(PRB!L190*parity3)+(PRB!M190*EFW!AD85*parity1)+(PRB!N190*EFW!AD85*parity2)+(PRB!O190*EFW!AD85*parity3)) -> 504.7525589 | F64: =EXP((PRB!B191*1)+(PRB!C191*EFW!AD85)+(PRB!D191*EFW!AD85^2)+(PRB!E191*EFW!AD85^3)+(PRB!F191*sexm)+(PRB!G191*heightn)+(PRB!H191*weightn)+(PRB!I191*EFW!AD85*weightn)+(PRB!J191*parity1)+(PRB!K191*parity2)+(PRB!L191*parity3)+(PRB!M191*EFW!AD85*parity1)+(PRB!N191*EFW!AD85*parity2)+(PRB!O191*EFW!AD85*parity3)) -> 541.9605464 | G64: =EXP((PRB!$B$192*1)+(PRB!$C$192*EFW!AD85)+(PRB!$D$192*EFW!AD85^2)+(PRB!$E$192*EFW!AD85^3)+(PRB!$F$192*sexm)+(PRB!$G$192*heightn)+(PRB!$H$192*weightn)+(PRB!$I$192*EFW!AD85*weightn)+(PRB!$J$192*parity1)+(PRB!$K$192*parity2)+(PRB!$L$192*parity3)+(PRB!$M$192*EFW!AD85*parity1)+(PRB!$N$192*EFW!AD85*parity2)+(PRB!$O$192*EFW!AD85*parity3)) -> 582.9518596 | H64: =EXP((PRB!$B$193*1)+(PRB!$C$193*EFW!AD85)+(PRB!$D$193*EFW!AD85^2)+(PRB!$E$193*EFW!AD85^3)+(PRB!$F$193*sexm)+(PRB!$G$193*heightn)+(PRB!$H$193*weightn)+(PRB!$I$193*EFW!AD85*weightn)+(PRB!$J$193*parity1)+(PRB!$K$193*parity2)+(PRB!$L$193*parity3)+(PRB!$M$193*EFW!AD85*parity1)+(PRB!$N$193*EFW!AD85*parity2)+(PRB!$O$193*EFW!AD85*parity3)) -> 626.5030734 | I64: =EXP((PRB!$B$194*1)+(PRB!$C$194*EFW!AD85)+(PRB!$D$194*EFW!AD85^2)+(PRB!$E$194*EFW!AD85^3)+(PRB!$F$194*sexm)+(PRB!$G$194*heightn)+(PRB!$H$194*weightn)+(PRB!$I$194*EFW!AD85*weightn)+(PRB!$J$194*parity1)+(PRB!$K$194*parity2)+(PRB!$L$194*parity3)+(PRB!$M$194*EFW!AD85*parity1)+(PRB!$N$194*EFW!AD85*parity2)+(PRB!$O$194*EFW!AD85*parity3)) -> 653.3183207 | J64: =EXP((PRB!$B$195*1)+(PRB!$C$195*EFW!AD85)+(PRB!$D$195*EFW!AD85^2)+(PRB!$E$195*EFW!AD85^3)+(PRB!$F$195*sexm)+(PRB!$G$195*heightn)+(PRB!$H$195*weightn)+(PRB!$I$195*EFW!AD85*weightn)+(PRB!$J$195*parity1)+(PRB!$K$195*parity2)+(PRB!$L$195*parity3)+(PRB!$M$195*EFW!AD85*parity1)+(PRB!$N$195*EFW!AD85*parity2)+(PRB!$O$195*EFW!AD85*parity3)) -> 674.4030111
A65: 23 | B65: =EXP((PRB!B187*1)+(PRB!C187*EFW!AD86)+(PRB!D187*EFW!AD86^2)+(PRB!E187*EFW!AD86^3)+(PRB!F187*sexm)+(PRB!G187*heightn)+(PRB!H187*weightn)+(PRB!I187*EFW!AD86*weightn)+(PRB!J187*parity1)+(PRB!K187*parity2)+(PRB!L187*parity3)+(PRB!M187*EFW!AD86*parity1)+(PRB!N187*EFW!AD86*parity2)+(PRB!O187*EFW!AD86*parity3)) -> 445.4899121 | C65: =EXP((PRB!B188*1)+(PRB!C188*EFW!AD86)+(PRB!D188*EFW!AD86^2)+(PRB!E188*EFW!AD86^3)+(PRB!F188*sexm)+(PRB!G188*heightn)+(PRB!H188*weightn)+(PRB!I188*EFW!AD86*weightn)+(PRB!J188*parity1)+(PRB!K188*parity2)+(PRB!L188*parity3)+(PRB!M188*EFW!AD86*parity1)+(PRB!N188*EFW!AD86*parity2)+(PRB!O188*EFW!AD86*parity3)) -> 463.0539118 | D65: =EXP((PRB!B189*1)+(PRB!C189*EFW!AD86)+(PRB!D189*EFW!AD86^2)+(PRB!E189*EFW!AD86^3)+(PRB!F189*sexm)+(PRB!G189*heightn)+(PRB!H189*weightn)+(PRB!I189*EFW!AD86*weightn)+(PRB!J189*parity1)+(PRB!K189*parity2)+(PRB!L189*parity3)+(PRB!M189*EFW!AD86*parity1)+(PRB!N189*EFW!AD86*parity2)+(PRB!O189*EFW!AD86*parity3)) -> 483.3461203 | E65: =EXP((PRB!B190*1)+(PRB!C190*EFW!AD86)+(PRB!D190*EFW!AD86^2)+(PRB!E190*EFW!AD86^3)+(PRB!F190*sexm)+(PRB!G190*heightn)+(PRB!H190*weightn)+(PRB!I190*EFW!AD86*weightn)+(PRB!J190*parity1)+(PRB!K190*parity2)+(PRB!L190*parity3)+(PRB!M190*EFW!AD86*parity1)+(PRB!N190*EFW!AD86*parity2)+(PRB!O190*EFW!AD86*parity3)) -> 516.8265556 | F65: =EXP((PRB!B191*1)+(PRB!C191*EFW!AD86)+(PRB!D191*EFW!AD86^2)+(PRB!E191*EFW!AD86^3)+(PRB!F191*sexm)+(PRB!G191*heightn)+(PRB!H191*weightn)+(PRB!I191*EFW!AD86*weightn)+(PRB!J191*parity1)+(PRB!K191*parity2)+(PRB!L191*parity3)+(PRB!M191*EFW!AD86*parity1)+(PRB!N191*EFW!AD86*parity2)+(PRB!O191*EFW!AD86*parity3)) -> 554.8851289 | G65: =EXP((PRB!$B$192*1)+(PRB!$C$192*EFW!AD86)+(PRB!$D$192*EFW!AD86^2)+(PRB!$E$192*EFW!AD86^3)+(PRB!$F$192*sexm)+(PRB!$G$192*heightn)+(PRB!$H$192*weightn)+(PRB!$I$192*EFW!AD86*weightn)+(PRB!$J$192*parity1)+(PRB!$K$192*parity2)+(PRB!$L$192*parity3)+(PRB!$M$192*EFW!AD86*parity1)+(PRB!$N$192*EFW!AD86*parity2)+(PRB!$O$192*EFW!AD86*parity3)) -> 596.7815724 | H65: =EXP((PRB!$B$193*1)+(PRB!$C$193*EFW!AD86)+(PRB!$D$193*EFW!AD86^2)+(PRB!$E$193*EFW!AD86^3)+(PRB!$F$193*sexm)+(PRB!$G$193*heightn)+(PRB!$H$193*weightn)+(PRB!$I$193*EFW!AD86*weightn)+(PRB!$J$193*parity1)+(PRB!$K$193*parity2)+(PRB!$L$193*parity3)+(PRB!$M$193*EFW!AD86*parity1)+(PRB!$N$193*EFW!AD86*parity2)+(PRB!$O$193*EFW!AD86*parity3)) -> 641.2923469 | I65: =EXP((PRB!$B$194*1)+(PRB!$C$194*EFW!AD86)+(PRB!$D$194*EFW!AD86^2)+(PRB!$E$194*EFW!AD86^3)+(PRB!$F$194*sexm)+(PRB!$G$194*heightn)+(PRB!$H$194*weightn)+(PRB!$I$194*EFW!AD86*weightn)+(PRB!$J$194*parity1)+(PRB!$K$194*parity2)+(PRB!$L$194*parity3)+(PRB!$M$194*EFW!AD86*parity1)+(PRB!$N$194*EFW!AD86*parity2)+(PRB!$O$194*EFW!AD86*parity3)) -> 668.7385827 | J65: =EXP((PRB!$B$195*1)+(PRB!$C$195*EFW!AD86)+(PRB!$D$195*EFW!AD86^2)+(PRB!$E$195*EFW!AD86^3)+(PRB!$F$195*sexm)+(PRB!$G$195*heightn)+(PRB!$H$195*weightn)+(PRB!$I$195*EFW!AD86*weightn)+(PRB!$J$195*parity1)+(PRB!$K$195*parity2)+(PRB!$L$195*parity3)+(PRB!$M$195*EFW!AD86*parity1)+(PRB!$N$195*EFW!AD86*parity2)+(PRB!$O$195*EFW!AD86*parity3)) -> 690.4268532
A66: 23.14285714 | B66: =EXP((PRB!B187*1)+(PRB!C187*EFW!AD87)+(PRB!D187*EFW!AD87^2)+(PRB!E187*EFW!AD87^3)+(PRB!F187*sexm)+(PRB!G187*heightn)+(PRB!H187*weightn)+(PRB!I187*EFW!AD87*weightn)+(PRB!J187*parity1)+(PRB!K187*parity2)+(PRB!L187*parity3)+(PRB!M187*EFW!AD87*parity1)+(PRB!N187*EFW!AD87*parity2)+(PRB!O187*EFW!AD87*parity3)) -> 456.1044047 | C66: =EXP((PRB!B188*1)+(PRB!C188*EFW!AD87)+(PRB!D188*EFW!AD87^2)+(PRB!E188*EFW!AD87^3)+(PRB!F188*sexm)+(PRB!G188*heightn)+(PRB!H188*weightn)+(PRB!I188*EFW!AD87*weightn)+(PRB!J188*parity1)+(PRB!K188*parity2)+(PRB!L188*parity3)+(PRB!M188*EFW!AD87*parity1)+(PRB!N188*EFW!AD87*parity2)+(PRB!O188*EFW!AD87*parity3)) -> 474.1107547 | D66: =EXP((PRB!B189*1)+(PRB!C189*EFW!AD87)+(PRB!D189*EFW!AD87^2)+(PRB!E189*EFW!AD87^3)+(PRB!F189*sexm)+(PRB!G189*heightn)+(PRB!H189*weightn)+(PRB!I189*EFW!AD87*weightn)+(PRB!J189*parity1)+(PRB!K189*parity2)+(PRB!L189*parity3)+(PRB!M189*EFW!AD87*parity1)+(PRB!N189*EFW!AD87*parity2)+(PRB!O189*EFW!AD87*parity3)) -> 494.8706359 | E66: =EXP((PRB!B190*1)+(PRB!C190*EFW!AD87)+(PRB!D190*EFW!AD87^2)+(PRB!E190*EFW!AD87^3)+(PRB!F190*sexm)+(PRB!G190*heightn)+(PRB!H190*weightn)+(PRB!I190*EFW!AD87*weightn)+(PRB!J190*parity1)+(PRB!K190*parity2)+(PRB!L190*parity3)+(PRB!M190*EFW!AD87*parity1)+(PRB!N190*EFW!AD87*parity2)+(PRB!O190*EFW!AD87*parity3)) -> 529.1097705 | F66: =EXP((PRB!B191*1)+(PRB!C191*EFW!AD87)+(PRB!D191*EFW!AD87^2)+(PRB!E191*EFW!AD87^3)+(PRB!F191*sexm)+(PRB!G191*heightn)+(PRB!H191*weightn)+(PRB!I191*EFW!AD87*weightn)+(PRB!J191*parity1)+(PRB!K191*parity2)+(PRB!L191*parity3)+(PRB!M191*EFW!AD87*parity1)+(PRB!N191*EFW!AD87*parity2)+(PRB!O191*EFW!AD87*parity3)) -> 568.0321932 | G66: =EXP((PRB!$B$192*1)+(PRB!$C$192*EFW!AD87)+(PRB!$D$192*EFW!AD87^2)+(PRB!$E$192*EFW!AD87^3)+(PRB!$F$192*sexm)+(PRB!$G$192*heightn)+(PRB!$H$192*weightn)+(PRB!$I$192*EFW!AD87*weightn)+(PRB!$J$192*parity1)+(PRB!$K$192*parity2)+(PRB!$L$192*parity3)+(PRB!$M$192*EFW!AD87*parity1)+(PRB!$N$192*EFW!AD87*parity2)+(PRB!$O$192*EFW!AD87*parity3)) -> 610.8499284 | H66: =EXP((PRB!$B$193*1)+(PRB!$C$193*EFW!AD87)+(PRB!$D$193*EFW!AD87^2)+(PRB!$E$193*EFW!AD87^3)+(PRB!$F$193*sexm)+(PRB!$G$193*heightn)+(PRB!$H$193*weightn)+(PRB!$I$193*EFW!AD87*weightn)+(PRB!$J$193*parity1)+(PRB!$K$193*parity2)+(PRB!$L$193*parity3)+(PRB!$M$193*EFW!AD87*parity1)+(PRB!$N$193*EFW!AD87*parity2)+(PRB!$O$193*EFW!AD87*parity3)) -> 656.3353463 | I66: =EXP((PRB!$B$194*1)+(PRB!$C$194*EFW!AD87)+(PRB!$D$194*EFW!AD87^2)+(PRB!$E$194*EFW!AD87^3)+(PRB!$F$194*sexm)+(PRB!$G$194*heightn)+(PRB!$H$194*weightn)+(PRB!$I$194*EFW!AD87*weightn)+(PRB!$J$194*parity1)+(PRB!$K$194*parity2)+(PRB!$L$194*parity3)+(PRB!$M$194*EFW!AD87*parity1)+(PRB!$N$194*EFW!AD87*parity2)+(PRB!$O$194*EFW!AD87*parity3)) -> 684.4278984 | J66: =EXP((PRB!$B$195*1)+(PRB!$C$195*EFW!AD87)+(PRB!$D$195*EFW!AD87^2)+(PRB!$E$195*EFW!AD87^3)+(PRB!$F$195*sexm)+(PRB!$G$195*heightn)+(PRB!$H$195*weightn)+(PRB!$I$195*EFW!AD87*weightn)+(PRB!$J$195*parity1)+(PRB!$K$195*parity2)+(PRB!$L$195*parity3)+(PRB!$M$195*EFW!AD87*parity1)+(PRB!$N$195*EFW!AD87*parity2)+(PRB!$O$195*EFW!AD87*parity3)) -> 706.7356957
A67: 23.28571429 | B67: =EXP((PRB!B187*1)+(PRB!C187*EFW!AD88)+(PRB!D187*EFW!AD88^2)+(PRB!E187*EFW!AD88^3)+(PRB!F187*sexm)+(PRB!G187*heightn)+(PRB!H187*weightn)+(PRB!I187*EFW!AD88*weightn)+(PRB!J187*parity1)+(PRB!K187*parity2)+(PRB!L187*parity3)+(PRB!M187*EFW!AD88*parity1)+(PRB!N187*EFW!AD88*parity2)+(PRB!O187*EFW!AD88*parity3)) -> 466.8967712 | C67: =EXP((PRB!B188*1)+(PRB!C188*EFW!AD88)+(PRB!D188*EFW!AD88^2)+(PRB!E188*EFW!AD88^3)+(PRB!F188*sexm)+(PRB!G188*heightn)+(PRB!H188*weightn)+(PRB!I188*EFW!AD88*weightn)+(PRB!J188*parity1)+(PRB!K188*parity2)+(PRB!L188*parity3)+(PRB!M188*EFW!AD88*parity1)+(PRB!N188*EFW!AD88*parity2)+(PRB!O188*EFW!AD88*parity3)) -> 485.3534763 | D67: =EXP((PRB!B189*1)+(PRB!C189*EFW!AD88)+(PRB!D189*EFW!AD88^2)+(PRB!E189*EFW!AD88^3)+(PRB!F189*sexm)+(PRB!G189*heightn)+(PRB!H189*weightn)+(PRB!I189*EFW!AD88*weightn)+(PRB!J189*parity1)+(PRB!K189*parity2)+(PRB!L189*parity3)+(PRB!M189*EFW!AD88*parity1)+(PRB!N189*EFW!AD88*parity2)+(PRB!O189*EFW!AD88*parity3)) -> 506.5907054 | E67: =EXP((PRB!B190*1)+(PRB!C190*EFW!AD88)+(PRB!D190*EFW!AD88^2)+(PRB!E190*EFW!AD88^3)+(PRB!F190*sexm)+(PRB!G190*heightn)+(PRB!H190*weightn)+(PRB!I190*EFW!AD88*weightn)+(PRB!J190*parity1)+(PRB!K190*parity2)+(PRB!L190*parity3)+(PRB!M190*EFW!AD88*parity1)+(PRB!N190*EFW!AD88*parity2)+(PRB!O190*EFW!AD88*parity3)) -> 541.6035983 | F67: =EXP((PRB!B191*1)+(PRB!C191*EFW!AD88)+(PRB!D191*EFW!AD88^2)+(PRB!E191*EFW!AD88^3)+(PRB!F191*sexm)+(PRB!G191*heightn)+(PRB!H191*weightn)+(PRB!I191*EFW!AD88*weightn)+(PRB!J191*parity1)+(PRB!K191*parity2)+(PRB!L191*parity3)+(PRB!M191*EFW!AD88*parity1)+(PRB!N191*EFW!AD88*parity2)+(PRB!O191*EFW!AD88*parity3)) -> 581.4032069 | G67: =EXP((PRB!$B$192*1)+(PRB!$C$192*EFW!AD88)+(PRB!$D$192*EFW!AD88^2)+(PRB!$E$192*EFW!AD88^3)+(PRB!$F$192*sexm)+(PRB!$G$192*heightn)+(PRB!$H$192*weightn)+(PRB!$I$192*EFW!AD88*weightn)+(PRB!$J$192*parity1)+(PRB!$K$192*parity2)+(PRB!$L$192*parity3)+(PRB!$M$192*EFW!AD88*parity1)+(PRB!$N$192*EFW!AD88*parity2)+(PRB!$O$192*EFW!AD88*parity3)) -> 625.1585384 | H67: =EXP((PRB!$B$193*1)+(PRB!$C$193*EFW!AD88)+(PRB!$D$193*EFW!AD88^2)+(PRB!$E$193*EFW!AD88^3)+(PRB!$F$193*sexm)+(PRB!$G$193*heightn)+(PRB!$H$193*weightn)+(PRB!$I$193*EFW!AD88*weightn)+(PRB!$J$193*parity1)+(PRB!$K$193*parity2)+(PRB!$L$193*parity3)+(PRB!$M$193*EFW!AD88*parity1)+(PRB!$N$193*EFW!AD88*parity2)+(PRB!$O$193*EFW!AD88*parity3)) -> 671.6337661 | I67: =EXP((PRB!$B$194*1)+(PRB!$C$194*EFW!AD88)+(PRB!$D$194*EFW!AD88^2)+(PRB!$E$194*EFW!AD88^3)+(PRB!$F$194*sexm)+(PRB!$G$194*heightn)+(PRB!$H$194*weightn)+(PRB!$I$194*EFW!AD88*weightn)+(PRB!$J$194*parity1)+(PRB!$K$194*parity2)+(PRB!$L$194*parity3)+(PRB!$M$194*EFW!AD88*parity1)+(PRB!$N$194*EFW!AD88*parity2)+(PRB!$O$194*EFW!AD88*parity3)) -> 700.3882178 | J67: =EXP((PRB!$B$195*1)+(PRB!$C$195*EFW!AD88)+(PRB!$D$195*EFW!AD88^2)+(PRB!$E$195*EFW!AD88^3)+(PRB!$F$195*sexm)+(PRB!$G$195*heightn)+(PRB!$H$195*weightn)+(PRB!$I$195*EFW!AD88*weightn)+(PRB!$J$195*parity1)+(PRB!$K$195*parity2)+(PRB!$L$195*parity3)+(PRB!$M$195*EFW!AD88*parity1)+(PRB!$N$195*EFW!AD88*parity2)+(PRB!$O$195*EFW!AD88*parity3)) -> 723.3317505
A68: 23.42857143 | B68: =EXP((PRB!B187*1)+(PRB!C187*EFW!AD89)+(PRB!D187*EFW!AD89^2)+(PRB!E187*EFW!AD89^3)+(PRB!F187*sexm)+(PRB!G187*heightn)+(PRB!H187*weightn)+(PRB!I187*EFW!AD89*weightn)+(PRB!J187*parity1)+(PRB!K187*parity2)+(PRB!L187*parity3)+(PRB!M187*EFW!AD89*parity1)+(PRB!N187*EFW!AD89*parity2)+(PRB!O187*EFW!AD89*parity3)) -> 477.8679079 | C68: =EXP((PRB!B188*1)+(PRB!C188*EFW!AD89)+(PRB!D188*EFW!AD89^2)+(PRB!E188*EFW!AD89^3)+(PRB!F188*sexm)+(PRB!G188*heightn)+(PRB!H188*weightn)+(PRB!I188*EFW!AD89*weightn)+(PRB!J188*parity1)+(PRB!K188*parity2)+(PRB!L188*parity3)+(PRB!M188*EFW!AD89*parity1)+(PRB!N188*EFW!AD89*parity2)+(PRB!O188*EFW!AD89*parity3)) -> 496.783065 | D68: =EXP((PRB!B189*1)+(PRB!C189*EFW!AD89)+(PRB!D189*EFW!AD89^2)+(PRB!E189*EFW!AD89^3)+(PRB!F189*sexm)+(PRB!G189*heightn)+(PRB!H189*weightn)+(PRB!I189*EFW!AD89*weightn)+(PRB!J189*parity1)+(PRB!K189*parity2)+(PRB!L189*parity3)+(PRB!M189*EFW!AD89*parity1)+(PRB!N189*EFW!AD89*parity2)+(PRB!O189*EFW!AD89*parity3)) -> 518.5074684 | E68: =EXP((PRB!B190*1)+(PRB!C190*EFW!AD89)+(PRB!D190*EFW!AD89^2)+(PRB!E190*EFW!AD89^3)+(PRB!F190*sexm)+(PRB!G190*heightn)+(PRB!H190*weightn)+(PRB!I190*EFW!AD89*weightn)+(PRB!J190*parity1)+(PRB!K190*parity2)+(PRB!L190*parity3)+(PRB!M190*EFW!AD89*parity1)+(PRB!N190*EFW!AD89*parity2)+(PRB!O190*EFW!AD89*parity3)) -> 554.3093821 | F68: =EXP((PRB!B191*1)+(PRB!C191*EFW!AD89)+(PRB!D191*EFW!AD89^2)+(PRB!E191*EFW!AD89^3)+(PRB!F191*sexm)+(PRB!G191*heightn)+(PRB!H191*weightn)+(PRB!I191*EFW!AD89*weightn)+(PRB!J191*parity1)+(PRB!K191*parity2)+(PRB!L191*parity3)+(PRB!M191*EFW!AD89*parity1)+(PRB!N191*EFW!AD89*parity2)+(PRB!O191*EFW!AD89*parity3)) -> 594.9995851 | G68: =EXP((PRB!$B$192*1)+(PRB!$C$192*EFW!AD89)+(PRB!$D$192*EFW!AD89^2)+(PRB!$E$192*EFW!AD89^3)+(PRB!$F$192*sexm)+(PRB!$G$192*heightn)+(PRB!$H$192*weightn)+(PRB!$I$192*EFW!AD89*weightn)+(PRB!$J$192*parity1)+(PRB!$K$192*parity2)+(PRB!$L$192*parity3)+(PRB!$M$192*EFW!AD89*parity1)+(PRB!$N$192*EFW!AD89*parity2)+(PRB!$O$192*EFW!AD89*parity3)) -> 639.7089551 | H68: =EXP((PRB!$B$193*1)+(PRB!$C$193*EFW!AD89)+(PRB!$D$193*EFW!AD89^2)+(PRB!$E$193*EFW!AD89^3)+(PRB!$F$193*sexm)+(PRB!$G$193*heightn)+(PRB!$H$193*weightn)+(PRB!$I$193*EFW!AD89*weightn)+(PRB!$J$193*parity1)+(PRB!$K$193*parity2)+(PRB!$L$193*parity3)+(PRB!$M$193*EFW!AD89*parity1)+(PRB!$N$193*EFW!AD89*parity2)+(PRB!$O$193*EFW!AD89*parity3)) -> 687.1892399 | I68: =EXP((PRB!$B$194*1)+(PRB!$C$194*EFW!AD89)+(PRB!$D$194*EFW!AD89^2)+(PRB!$E$194*EFW!AD89^3)+(PRB!$F$194*sexm)+(PRB!$G$194*heightn)+(PRB!$H$194*weightn)+(PRB!$I$194*EFW!AD89*weightn)+(PRB!$J$194*parity1)+(PRB!$K$194*parity2)+(PRB!$L$194*parity3)+(PRB!$M$194*EFW!AD89*parity1)+(PRB!$N$194*EFW!AD89*parity2)+(PRB!$O$194*EFW!AD89*parity3)) -> 716.6214253 | J68: =EXP((PRB!$B$195*1)+(PRB!$C$195*EFW!AD89)+(PRB!$D$195*EFW!AD89^2)+(PRB!$E$195*EFW!AD89^3)+(PRB!$F$195*sexm)+(PRB!$G$195*heightn)+(PRB!$H$195*weightn)+(PRB!$I$195*EFW!AD89*weightn)+(PRB!$J$195*parity1)+(PRB!$K$195*parity2)+(PRB!$L$195*parity3)+(PRB!$M$195*EFW!AD89*parity1)+(PRB!$N$195*EFW!AD89*parity2)+(PRB!$O$195*EFW!AD89*parity3)) -> 740.2171601
A69: 23.57142857 | B69: =EXP((PRB!B187*1)+(PRB!C187*EFW!AD90)+(PRB!D187*EFW!AD90^2)+(PRB!E187*EFW!AD90^3)+(PRB!F187*sexm)+(PRB!G187*heightn)+(PRB!H187*weightn)+(PRB!I187*EFW!AD90*weightn)+(PRB!J187*parity1)+(PRB!K187*parity2)+(PRB!L187*parity3)+(PRB!M187*EFW!AD90*parity1)+(PRB!N187*EFW!AD90*parity2)+(PRB!O187*EFW!AD90*parity3)) -> 489.0186591 | C69: =EXP((PRB!B188*1)+(PRB!C188*EFW!AD90)+(PRB!D188*EFW!AD90^2)+(PRB!E188*EFW!AD90^3)+(PRB!F188*sexm)+(PRB!G188*heightn)+(PRB!H188*weightn)+(PRB!I188*EFW!AD90*weightn)+(PRB!J188*parity1)+(PRB!K188*parity2)+(PRB!L188*parity3)+(PRB!M188*EFW!AD90*parity1)+(PRB!N188*EFW!AD90*parity2)+(PRB!O188*EFW!AD90*parity3)) -> 508.4004585 | D69: =EXP((PRB!B189*1)+(PRB!C189*EFW!AD90)+(PRB!D189*EFW!AD90^2)+(PRB!E189*EFW!AD90^3)+(PRB!F189*sexm)+(PRB!G189*heightn)+(PRB!H189*weightn)+(PRB!I189*EFW!AD90*weightn)+(PRB!J189*parity1)+(PRB!K189*parity2)+(PRB!L189*parity3)+(PRB!M189*EFW!AD90*parity1)+(PRB!N189*EFW!AD90*parity2)+(PRB!O189*EFW!AD90*parity3)) -> 530.6220136 | E69: =EXP((PRB!B190*1)+(PRB!C190*EFW!AD90)+(PRB!D190*EFW!AD90^2)+(PRB!E190*EFW!AD90^3)+(PRB!F190*sexm)+(PRB!G190*heightn)+(PRB!H190*weightn)+(PRB!I190*EFW!AD90*weightn)+(PRB!J190*parity1)+(PRB!K190*parity2)+(PRB!L190*parity3)+(PRB!M190*EFW!AD90*parity1)+(PRB!N190*EFW!AD90*parity2)+(PRB!O190*EFW!AD90*parity3)) -> 567.2284113 | F69: =EXP((PRB!B191*1)+(PRB!C191*EFW!AD90)+(PRB!D191*EFW!AD90^2)+(PRB!E191*EFW!AD90^3)+(PRB!F191*sexm)+(PRB!G191*heightn)+(PRB!H191*weightn)+(PRB!I191*EFW!AD90*weightn)+(PRB!J191*parity1)+(PRB!K191*parity2)+(PRB!L191*parity3)+(PRB!M191*EFW!AD90*parity1)+(PRB!N191*EFW!AD90*parity2)+(PRB!O191*EFW!AD90*parity3)) -> 608.8226877 | G69: =EXP((PRB!$B$192*1)+(PRB!$C$192*EFW!AD90)+(PRB!$D$192*EFW!AD90^2)+(PRB!$E$192*EFW!AD90^3)+(PRB!$F$192*sexm)+(PRB!$G$192*heightn)+(PRB!$H$192*weightn)+(PRB!$I$192*EFW!AD90*weightn)+(PRB!$J$192*parity1)+(PRB!$K$192*parity2)+(PRB!$L$192*parity3)+(PRB!$M$192*EFW!AD90*parity1)+(PRB!$N$192*EFW!AD90*parity2)+(PRB!$O$192*EFW!AD90*parity3)) -> 654.502671 | H69: =EXP((PRB!$B$193*1)+(PRB!$C$193*EFW!AD90)+(PRB!$D$193*EFW!AD90^2)+(PRB!$E$193*EFW!AD90^3)+(PRB!$F$193*sexm)+(PRB!$G$193*heightn)+(PRB!$H$193*weightn)+(PRB!$I$193*EFW!AD90*weightn)+(PRB!$J$193*parity1)+(PRB!$K$193*parity2)+(PRB!$L$193*parity3)+(PRB!$M$193*EFW!AD90*parity1)+(PRB!$N$193*EFW!AD90*parity2)+(PRB!$O$193*EFW!AD90*parity3)) -> 703.0033374 | I69: =EXP((PRB!$B$194*1)+(PRB!$C$194*EFW!AD90)+(PRB!$D$194*EFW!AD90^2)+(PRB!$E$194*EFW!AD90^3)+(PRB!$F$194*sexm)+(PRB!$G$194*heightn)+(PRB!$H$194*weightn)+(PRB!$I$194*EFW!AD90*weightn)+(PRB!$J$194*parity1)+(PRB!$K$194*parity2)+(PRB!$L$194*parity3)+(PRB!$M$194*EFW!AD90*parity1)+(PRB!$N$194*EFW!AD90*parity2)+(PRB!$O$194*EFW!AD90*parity3)) -> 733.1293373 | J69: =EXP((PRB!$B$195*1)+(PRB!$C$195*EFW!AD90)+(PRB!$D$195*EFW!AD90^2)+(PRB!$E$195*EFW!AD90^3)+(PRB!$F$195*sexm)+(PRB!$G$195*heightn)+(PRB!$H$195*weightn)+(PRB!$I$195*EFW!AD90*weightn)+(PRB!$J$195*parity1)+(PRB!$K$195*parity2)+(PRB!$L$195*parity3)+(PRB!$M$195*EFW!AD90*parity1)+(PRB!$N$195*EFW!AD90*parity2)+(PRB!$O$195*EFW!AD90*parity3)) -> 757.3939948
A70: 23.71428571 | B70: =EXP((PRB!B187*1)+(PRB!C187*EFW!AD91)+(PRB!D187*EFW!AD91^2)+(PRB!E187*EFW!AD91^3)+(PRB!F187*sexm)+(PRB!G187*heightn)+(PRB!H187*weightn)+(PRB!I187*EFW!AD91*weightn)+(PRB!J187*parity1)+(PRB!K187*parity2)+(PRB!L187*parity3)+(PRB!M187*EFW!AD91*parity1)+(PRB!N187*EFW!AD91*parity2)+(PRB!O187*EFW!AD91*parity3)) -> 500.3498153 | C70: =EXP((PRB!B188*1)+(PRB!C188*EFW!AD91)+(PRB!D188*EFW!AD91^2)+(PRB!E188*EFW!AD91^3)+(PRB!F188*sexm)+(PRB!G188*heightn)+(PRB!H188*weightn)+(PRB!I188*EFW!AD91*weightn)+(PRB!J188*parity1)+(PRB!K188*parity2)+(PRB!L188*parity3)+(PRB!M188*EFW!AD91*parity1)+(PRB!N188*EFW!AD91*parity2)+(PRB!O188*EFW!AD91*parity3)) -> 520.2065425 | D70: =EXP((PRB!B189*1)+(PRB!C189*EFW!AD91)+(PRB!D189*EFW!AD91^2)+(PRB!E189*EFW!AD91^3)+(PRB!F189*sexm)+(PRB!G189*heightn)+(PRB!H189*weightn)+(PRB!I189*EFW!AD91*weightn)+(PRB!J189*parity1)+(PRB!K189*parity2)+(PRB!L189*parity3)+(PRB!M189*EFW!AD91*parity1)+(PRB!N189*EFW!AD91*parity2)+(PRB!O189*EFW!AD91*parity3)) -> 542.935377 | E70: =EXP((PRB!B190*1)+(PRB!C190*EFW!AD91)+(PRB!D190*EFW!AD91^2)+(PRB!E190*EFW!AD91^3)+(PRB!F190*sexm)+(PRB!G190*heightn)+(PRB!H190*weightn)+(PRB!I190*EFW!AD91*weightn)+(PRB!J190*parity1)+(PRB!K190*parity2)+(PRB!L190*parity3)+(PRB!M190*EFW!AD91*parity1)+(PRB!N190*EFW!AD91*parity2)+(PRB!O190*EFW!AD91*parity3)) -> 580.3619206 | F70: =EXP((PRB!B191*1)+(PRB!C191*EFW!AD91)+(PRB!D191*EFW!AD91^2)+(PRB!E191*EFW!AD91^3)+(PRB!F191*sexm)+(PRB!G191*heightn)+(PRB!H191*weightn)+(PRB!I191*EFW!AD91*weightn)+(PRB!J191*parity1)+(PRB!K191*parity2)+(PRB!L191*parity3)+(PRB!M191*EFW!AD91*parity1)+(PRB!N191*EFW!AD91*parity2)+(PRB!O191*EFW!AD91*parity3)) -> 622.8738187 | G70: =EXP((PRB!$B$192*1)+(PRB!$C$192*EFW!AD91)+(PRB!$D$192*EFW!AD91^2)+(PRB!$E$192*EFW!AD91^3)+(PRB!$F$192*sexm)+(PRB!$G$192*heightn)+(PRB!$H$192*weightn)+(PRB!$I$192*EFW!AD91*weightn)+(PRB!$J$192*parity1)+(PRB!$K$192*parity2)+(PRB!$L$192*parity3)+(PRB!$M$192*EFW!AD91*parity1)+(PRB!$N$192*EFW!AD91*parity2)+(PRB!$O$192*EFW!AD91*parity3)) -> 669.5411167 | H70: =EXP((PRB!$B$193*1)+(PRB!$C$193*EFW!AD91)+(PRB!$D$193*EFW!AD91^2)+(PRB!$E$193*EFW!AD91^3)+(PRB!$F$193*sexm)+(PRB!$G$193*heightn)+(PRB!$H$193*weightn)+(PRB!$I$193*EFW!AD91*weightn)+(PRB!$J$193*parity1)+(PRB!$K$193*parity2)+(PRB!$L$193*parity3)+(PRB!$M$193*EFW!AD91*parity1)+(PRB!$N$193*EFW!AD91*parity2)+(PRB!$O$193*EFW!AD91*parity3)) -> 719.0775632 | I70: =EXP((PRB!$B$194*1)+(PRB!$C$194*EFW!AD91)+(PRB!$D$194*EFW!AD91^2)+(PRB!$E$194*EFW!AD91^3)+(PRB!$F$194*sexm)+(PRB!$G$194*heightn)+(PRB!$H$194*weightn)+(PRB!$I$194*EFW!AD91*weightn)+(PRB!$J$194*parity1)+(PRB!$K$194*parity2)+(PRB!$L$194*parity3)+(PRB!$M$194*EFW!AD91*parity1)+(PRB!$N$194*EFW!AD91*parity2)+(PRB!$O$194*EFW!AD91*parity3)) -> 749.9136993 | J70: =EXP((PRB!$B$195*1)+(PRB!$C$195*EFW!AD91)+(PRB!$D$195*EFW!AD91^2)+(PRB!$E$195*EFW!AD91^3)+(PRB!$F$195*sexm)+(PRB!$G$195*heightn)+(PRB!$H$195*weightn)+(PRB!$I$195*EFW!AD91*weightn)+(PRB!$J$195*parity1)+(PRB!$K$195*parity2)+(PRB!$L$195*parity3)+(PRB!$M$195*EFW!AD91*parity1)+(PRB!$N$195*EFW!AD91*parity2)+(PRB!$O$195*EFW!AD91*parity3)) -> 774.8642493
A71: 23.85714286 | B71: =EXP((PRB!B187*1)+(PRB!C187*EFW!AD92)+(PRB!D187*EFW!AD92^2)+(PRB!E187*EFW!AD92^3)+(PRB!F187*sexm)+(PRB!G187*heightn)+(PRB!H187*weightn)+(PRB!I187*EFW!AD92*weightn)+(PRB!J187*parity1)+(PRB!K187*parity2)+(PRB!L187*parity3)+(PRB!M187*EFW!AD92*parity1)+(PRB!N187*EFW!AD92*parity2)+(PRB!O187*EFW!AD92*parity3)) -> 511.8621123 | C71: =EXP((PRB!B188*1)+(PRB!C188*EFW!AD92)+(PRB!D188*EFW!AD92^2)+(PRB!E188*EFW!AD92^3)+(PRB!F188*sexm)+(PRB!G188*heightn)+(PRB!H188*weightn)+(PRB!I188*EFW!AD92*weightn)+(PRB!J188*parity1)+(PRB!K188*parity2)+(PRB!L188*parity3)+(PRB!M188*EFW!AD92*parity1)+(PRB!N188*EFW!AD92*parity2)+(PRB!O188*EFW!AD92*parity3)) -> 532.202149 | D71: =EXP((PRB!B189*1)+(PRB!C189*EFW!AD92)+(PRB!D189*EFW!AD92^2)+(PRB!E189*EFW!AD92^3)+(PRB!F189*sexm)+(PRB!G189*heightn)+(PRB!H189*weightn)+(PRB!I189*EFW!AD92*weightn)+(PRB!J189*parity1)+(PRB!K189*parity2)+(PRB!L189*parity3)+(PRB!M189*EFW!AD92*parity1)+(PRB!N189*EFW!AD92*parity2)+(PRB!O189*EFW!AD92*parity3)) -> 555.4485407 | E71: =EXP((PRB!B190*1)+(PRB!C190*EFW!AD92)+(PRB!D190*EFW!AD92^2)+(PRB!E190*EFW!AD92^3)+(PRB!F190*sexm)+(PRB!G190*heightn)+(PRB!H190*weightn)+(PRB!I190*EFW!AD92*weightn)+(PRB!J190*parity1)+(PRB!K190*parity2)+(PRB!L190*parity3)+(PRB!M190*EFW!AD92*parity1)+(PRB!N190*EFW!AD92*parity2)+(PRB!O190*EFW!AD92*parity3)) -> 593.7110878 | F71: =EXP((PRB!B191*1)+(PRB!C191*EFW!AD92)+(PRB!D191*EFW!AD92^2)+(PRB!E191*EFW!AD92^3)+(PRB!F191*sexm)+(PRB!G191*heightn)+(PRB!H191*weightn)+(PRB!I191*EFW!AD92*weightn)+(PRB!J191*parity1)+(PRB!K191*parity2)+(PRB!L191*parity3)+(PRB!M191*EFW!AD92*parity1)+(PRB!N191*EFW!AD92*parity2)+(PRB!O191*EFW!AD92*parity3)) -> 637.1542244 | G71: =EXP((PRB!$B$192*1)+(PRB!$C$192*EFW!AD92)+(PRB!$D$192*EFW!AD92^2)+(PRB!$E$192*EFW!AD92^3)+(PRB!$F$192*sexm)+(PRB!$G$192*heightn)+(PRB!$H$192*weightn)+(PRB!$I$192*EFW!AD92*weightn)+(PRB!$J$192*parity1)+(PRB!$K$192*parity2)+(PRB!$L$192*parity3)+(PRB!$M$192*EFW!AD92*parity1)+(PRB!$N$192*EFW!AD92*parity2)+(PRB!$O$192*EFW!AD92*parity3)) -> 684.8256589 | H71: =EXP((PRB!$B$193*1)+(PRB!$C$193*EFW!AD92)+(PRB!$D$193*EFW!AD92^2)+(PRB!$E$193*EFW!AD92^3)+(PRB!$F$193*sexm)+(PRB!$G$193*heightn)+(PRB!$H$193*weightn)+(PRB!$I$193*EFW!AD92*weightn)+(PRB!$J$193*parity1)+(PRB!$K$193*parity2)+(PRB!$L$193*parity3)+(PRB!$M$193*EFW!AD92*parity1)+(PRB!$N$193*EFW!AD92*parity2)+(PRB!$O$193*EFW!AD92*parity3)) -> 735.4133543 | I71: =EXP((PRB!$B$194*1)+(PRB!$C$194*EFW!AD92)+(PRB!$D$194*EFW!AD92^2)+(PRB!$E$194*EFW!AD92^3)+(PRB!$F$194*sexm)+(PRB!$G$194*heightn)+(PRB!$H$194*weightn)+(PRB!$I$194*EFW!AD92*weightn)+(PRB!$J$194*parity1)+(PRB!$K$194*parity2)+(PRB!$L$194*parity3)+(PRB!$M$194*EFW!AD92*parity1)+(PRB!$N$194*EFW!AD92*parity2)+(PRB!$O$194*EFW!AD92*parity3)) -> 766.9761837 | J71: =EXP((PRB!$B$195*1)+(PRB!$C$195*EFW!AD92)+(PRB!$D$195*EFW!AD92^2)+(PRB!$E$195*EFW!AD92^3)+(PRB!$F$195*sexm)+(PRB!$G$195*heightn)+(PRB!$H$195*weightn)+(PRB!$I$195*EFW!AD92*weightn)+(PRB!$J$195*parity1)+(PRB!$K$195*parity2)+(PRB!$L$195*parity3)+(PRB!$M$195*EFW!AD92*parity1)+(PRB!$N$195*EFW!AD92*parity2)+(PRB!$O$195*EFW!AD92*parity3)) -> 792.6298399
A72: 24 | B72: =EXP((PRB!B187*1)+(PRB!C187*EFW!AD93)+(PRB!D187*EFW!AD93^2)+(PRB!E187*EFW!AD93^3)+(PRB!F187*sexm)+(PRB!G187*heightn)+(PRB!H187*weightn)+(PRB!I187*EFW!AD93*weightn)+(PRB!J187*parity1)+(PRB!K187*parity2)+(PRB!L187*parity3)+(PRB!M187*EFW!AD93*parity1)+(PRB!N187*EFW!AD93*parity2)+(PRB!O187*EFW!AD93*parity3)) -> 523.5562296 | C72: =EXP((PRB!B188*1)+(PRB!C188*EFW!AD93)+(PRB!D188*EFW!AD93^2)+(PRB!E188*EFW!AD93^3)+(PRB!F188*sexm)+(PRB!G188*heightn)+(PRB!H188*weightn)+(PRB!I188*EFW!AD93*weightn)+(PRB!J188*parity1)+(PRB!K188*parity2)+(PRB!L188*parity3)+(PRB!M188*EFW!AD93*parity1)+(PRB!N188*EFW!AD93*parity2)+(PRB!O188*EFW!AD93*parity3)) -> 544.388056 | D72: =EXP((PRB!B189*1)+(PRB!C189*EFW!AD93)+(PRB!D189*EFW!AD93^2)+(PRB!E189*EFW!AD93^3)+(PRB!F189*sexm)+(PRB!G189*heightn)+(PRB!H189*weightn)+(PRB!I189*EFW!AD93*weightn)+(PRB!J189*parity1)+(PRB!K189*parity2)+(PRB!L189*parity3)+(PRB!M189*EFW!AD93*parity1)+(PRB!N189*EFW!AD93*parity2)+(PRB!O189*EFW!AD93*parity3)) -> 568.1624315 | E72: =EXP((PRB!B190*1)+(PRB!C190*EFW!AD93)+(PRB!D190*EFW!AD93^2)+(PRB!E190*EFW!AD93^3)+(PRB!F190*sexm)+(PRB!G190*heightn)+(PRB!H190*weightn)+(PRB!I190*EFW!AD93*weightn)+(PRB!J190*parity1)+(PRB!K190*parity2)+(PRB!L190*parity3)+(PRB!M190*EFW!AD93*parity1)+(PRB!N190*EFW!AD93*parity2)+(PRB!O190*EFW!AD93*parity3)) -> 607.2770325 | F72: =EXP((PRB!B191*1)+(PRB!C191*EFW!AD93)+(PRB!D191*EFW!AD93^2)+(PRB!E191*EFW!AD93^3)+(PRB!F191*sexm)+(PRB!G191*heightn)+(PRB!H191*weightn)+(PRB!I191*EFW!AD93*weightn)+(PRB!J191*parity1)+(PRB!K191*parity2)+(PRB!L191*parity3)+(PRB!M191*EFW!AD93*parity1)+(PRB!N191*EFW!AD93*parity2)+(PRB!O191*EFW!AD93*parity3)) -> 651.6650913 | G72: =EXP((PRB!$B$192*1)+(PRB!$C$192*EFW!AD93)+(PRB!$D$192*EFW!AD93^2)+(PRB!$E$192*EFW!AD93^3)+(PRB!$F$192*sexm)+(PRB!$G$192*heightn)+(PRB!$H$192*weightn)+(PRB!$I$192*EFW!AD93*weightn)+(PRB!$J$192*parity1)+(PRB!$K$192*parity2)+(PRB!$L$192*parity3)+(PRB!$M$192*EFW!AD93*parity1)+(PRB!$N$192*EFW!AD93*parity2)+(PRB!$O$192*EFW!AD93*parity3)) -> 700.3575983 | H72: =EXP((PRB!$B$193*1)+(PRB!$C$193*EFW!AD93)+(PRB!$D$193*EFW!AD93^2)+(PRB!$E$193*EFW!AD93^3)+(PRB!$F$193*sexm)+(PRB!$G$193*heightn)+(PRB!$H$193*weightn)+(PRB!$I$193*EFW!AD93*weightn)+(PRB!$J$193*parity1)+(PRB!$K$193*parity2)+(PRB!$L$193*parity3)+(PRB!$M$193*EFW!AD93*parity1)+(PRB!$N$193*EFW!AD93*parity2)+(PRB!$O$193*EFW!AD93*parity3)) -> 752.0120783 | I72: =EXP((PRB!$B$194*1)+(PRB!$C$194*EFW!AD93)+(PRB!$D$194*EFW!AD93^2)+(PRB!$E$194*EFW!AD93^3)+(PRB!$F$194*sexm)+(PRB!$G$194*heightn)+(PRB!$H$194*weightn)+(PRB!$I$194*EFW!AD93*weightn)+(PRB!$J$194*parity1)+(PRB!$K$194*parity2)+(PRB!$L$194*parity3)+(PRB!$M$194*EFW!AD93*parity1)+(PRB!$N$194*EFW!AD93*parity2)+(PRB!$O$194*EFW!AD93*parity3)) -> 784.3183871 | J72: =EXP((PRB!$B$195*1)+(PRB!$C$195*EFW!AD93)+(PRB!$D$195*EFW!AD93^2)+(PRB!$E$195*EFW!AD93^3)+(PRB!$F$195*sexm)+(PRB!$G$195*heightn)+(PRB!$H$195*weightn)+(PRB!$I$195*EFW!AD93*weightn)+(PRB!$J$195*parity1)+(PRB!$K$195*parity2)+(PRB!$L$195*parity3)+(PRB!$M$195*EFW!AD93*parity1)+(PRB!$N$195*EFW!AD93*parity2)+(PRB!$O$195*EFW!AD93*parity3)) -> 810.6926017
A73: 24.14285714 | B73: =EXP((PRB!B187*1)+(PRB!C187*EFW!AD94)+(PRB!D187*EFW!AD94^2)+(PRB!E187*EFW!AD94^3)+(PRB!F187*sexm)+(PRB!G187*heightn)+(PRB!H187*weightn)+(PRB!I187*EFW!AD94*weightn)+(PRB!J187*parity1)+(PRB!K187*parity2)+(PRB!L187*parity3)+(PRB!M187*EFW!AD94*parity1)+(PRB!N187*EFW!AD94*parity2)+(PRB!O187*EFW!AD94*parity3)) -> 535.4327895 | C73: =EXP((PRB!B188*1)+(PRB!C188*EFW!AD94)+(PRB!D188*EFW!AD94^2)+(PRB!E188*EFW!AD94^3)+(PRB!F188*sexm)+(PRB!G188*heightn)+(PRB!H188*weightn)+(PRB!I188*EFW!AD94*weightn)+(PRB!J188*parity1)+(PRB!K188*parity2)+(PRB!L188*parity3)+(PRB!M188*EFW!AD94*parity1)+(PRB!N188*EFW!AD94*parity2)+(PRB!O188*EFW!AD94*parity3)) -> 556.7649853 | D73: =EXP((PRB!B189*1)+(PRB!C189*EFW!AD94)+(PRB!D189*EFW!AD94^2)+(PRB!E189*EFW!AD94^3)+(PRB!F189*sexm)+(PRB!G189*heightn)+(PRB!H189*weightn)+(PRB!I189*EFW!AD94*weightn)+(PRB!J189*parity1)+(PRB!K189*parity2)+(PRB!L189*parity3)+(PRB!M189*EFW!AD94*parity1)+(PRB!N189*EFW!AD94*parity2)+(PRB!O189*EFW!AD94*parity3)) -> 581.0779196 | E73: =EXP((PRB!B190*1)+(PRB!C190*EFW!AD94)+(PRB!D190*EFW!AD94^2)+(PRB!E190*EFW!AD94^3)+(PRB!F190*sexm)+(PRB!G190*heightn)+(PRB!H190*weightn)+(PRB!I190*EFW!AD94*weightn)+(PRB!J190*parity1)+(PRB!K190*parity2)+(PRB!L190*parity3)+(PRB!M190*EFW!AD94*parity1)+(PRB!N190*EFW!AD94*parity2)+(PRB!O190*EFW!AD94*parity3)) -> 621.0608144 | F73: =EXP((PRB!B191*1)+(PRB!C191*EFW!AD94)+(PRB!D191*EFW!AD94^2)+(PRB!E191*EFW!AD94^3)+(PRB!F191*sexm)+(PRB!G191*heightn)+(PRB!H191*weightn)+(PRB!I191*EFW!AD94*weightn)+(PRB!J191*parity1)+(PRB!K191*parity2)+(PRB!L191*parity3)+(PRB!M191*EFW!AD94*parity1)+(PRB!N191*EFW!AD94*parity2)+(PRB!O191*EFW!AD94*parity3)) -> 666.4075452 | G73: =EXP((PRB!$B$192*1)+(PRB!$C$192*EFW!AD94)+(PRB!$D$192*EFW!AD94^2)+(PRB!$E$192*EFW!AD94^3)+(PRB!$F$192*sexm)+(PRB!$G$192*heightn)+(PRB!$H$192*weightn)+(PRB!$I$192*EFW!AD94*weightn)+(PRB!$J$192*parity1)+(PRB!$K$192*parity2)+(PRB!$L$192*parity3)+(PRB!$M$192*EFW!AD94*parity1)+(PRB!$N$192*EFW!AD94*parity2)+(PRB!$O$192*EFW!AD94*parity3)) -> 716.138168 | H73: =EXP((PRB!$B$193*1)+(PRB!$C$193*EFW!AD94)+(PRB!$D$193*EFW!AD94^2)+(PRB!$E$193*EFW!AD94^3)+(PRB!$F$193*sexm)+(PRB!$G$193*heightn)+(PRB!$H$193*weightn)+(PRB!$I$193*EFW!AD94*weightn)+(PRB!$J$193*parity1)+(PRB!$K$193*parity2)+(PRB!$L$193*parity3)+(PRB!$M$193*EFW!AD94*parity1)+(PRB!$N$193*EFW!AD94*parity2)+(PRB!$O$193*EFW!AD94*parity3)) -> 768.8750314 | I73: =EXP((PRB!$B$194*1)+(PRB!$C$194*EFW!AD94)+(PRB!$D$194*EFW!AD94^2)+(PRB!$E$194*EFW!AD94^3)+(PRB!$F$194*sexm)+(PRB!$G$194*heightn)+(PRB!$H$194*weightn)+(PRB!$I$194*EFW!AD94*weightn)+(PRB!$J$194*parity1)+(PRB!$K$194*parity2)+(PRB!$L$194*parity3)+(PRB!$M$194*EFW!AD94*parity1)+(PRB!$N$194*EFW!AD94*parity2)+(PRB!$O$194*EFW!AD94*parity3)) -> 801.9418282 | J73: =EXP((PRB!$B$195*1)+(PRB!$C$195*EFW!AD94)+(PRB!$D$195*EFW!AD94^2)+(PRB!$E$195*EFW!AD94^3)+(PRB!$F$195*sexm)+(PRB!$G$195*heightn)+(PRB!$H$195*weightn)+(PRB!$I$195*EFW!AD94*weightn)+(PRB!$J$195*parity1)+(PRB!$K$195*parity2)+(PRB!$L$195*parity3)+(PRB!$M$195*EFW!AD94*parity1)+(PRB!$N$195*EFW!AD94*parity2)+(PRB!$O$195*EFW!AD94*parity3)) -> 829.0542855
A74: 24.28571429 | B74: =EXP((PRB!B187*1)+(PRB!C187*EFW!AD95)+(PRB!D187*EFW!AD95^2)+(PRB!E187*EFW!AD95^3)+(PRB!F187*sexm)+(PRB!G187*heightn)+(PRB!H187*weightn)+(PRB!I187*EFW!AD95*weightn)+(PRB!J187*parity1)+(PRB!K187*parity2)+(PRB!L187*parity3)+(PRB!M187*EFW!AD95*parity1)+(PRB!N187*EFW!AD95*parity2)+(PRB!O187*EFW!AD95*parity3)) -> 547.4923554 | C74: =EXP((PRB!B188*1)+(PRB!C188*EFW!AD95)+(PRB!D188*EFW!AD95^2)+(PRB!E188*EFW!AD95^3)+(PRB!F188*sexm)+(PRB!G188*heightn)+(PRB!H188*weightn)+(PRB!I188*EFW!AD95*weightn)+(PRB!J188*parity1)+(PRB!K188*parity2)+(PRB!L188*parity3)+(PRB!M188*EFW!AD95*parity1)+(PRB!N188*EFW!AD95*parity2)+(PRB!O188*EFW!AD95*parity3)) -> 569.3336021 | D74: =EXP((PRB!B189*1)+(PRB!C189*EFW!AD95)+(PRB!D189*EFW!AD95^2)+(PRB!E189*EFW!AD95^3)+(PRB!F189*sexm)+(PRB!G189*heightn)+(PRB!H189*weightn)+(PRB!I189*EFW!AD95*weightn)+(PRB!J189*parity1)+(PRB!K189*parity2)+(PRB!L189*parity3)+(PRB!M189*EFW!AD95*parity1)+(PRB!N189*EFW!AD95*parity2)+(PRB!O189*EFW!AD95*parity3)) -> 594.195817 | E74: =EXP((PRB!B190*1)+(PRB!C190*EFW!AD95)+(PRB!D190*EFW!AD95^2)+(PRB!E190*EFW!AD95^3)+(PRB!F190*sexm)+(PRB!G190*heightn)+(PRB!H190*weightn)+(PRB!I190*EFW!AD95*weightn)+(PRB!J190*parity1)+(PRB!K190*parity2)+(PRB!L190*parity3)+(PRB!M190*EFW!AD95*parity1)+(PRB!N190*EFW!AD95*parity2)+(PRB!O190*EFW!AD95*parity3)) -> 635.0634316 | F74: =EXP((PRB!B191*1)+(PRB!C191*EFW!AD95)+(PRB!D191*EFW!AD95^2)+(PRB!E191*EFW!AD95^3)+(PRB!F191*sexm)+(PRB!G191*heightn)+(PRB!H191*weightn)+(PRB!I191*EFW!AD95*weightn)+(PRB!J191*parity1)+(PRB!K191*parity2)+(PRB!L191*parity3)+(PRB!M191*EFW!AD95*parity1)+(PRB!N191*EFW!AD95*parity2)+(PRB!O191*EFW!AD95*parity3)) -> 681.3826493 | G74: =EXP((PRB!$B$192*1)+(PRB!$C$192*EFW!AD95)+(PRB!$D$192*EFW!AD95^2)+(PRB!$E$192*EFW!AD95^3)+(PRB!$F$192*sexm)+(PRB!$G$192*heightn)+(PRB!$H$192*weightn)+(PRB!$I$192*EFW!AD95*weightn)+(PRB!$J$192*parity1)+(PRB!$K$192*parity2)+(PRB!$L$192*parity3)+(PRB!$M$192*EFW!AD95*parity1)+(PRB!$N$192*EFW!AD95*parity2)+(PRB!$O$192*EFW!AD95*parity3)) -> 732.1685313 | H74: =EXP((PRB!$B$193*1)+(PRB!$C$193*EFW!AD95)+(PRB!$D$193*EFW!AD95^2)+(PRB!$E$193*EFW!AD95^3)+(PRB!$F$193*sexm)+(PRB!$G$193*heightn)+(PRB!$H$193*weightn)+(PRB!$I$193*EFW!AD95*weightn)+(PRB!$J$193*parity1)+(PRB!$K$193*parity2)+(PRB!$L$193*parity3)+(PRB!$M$193*EFW!AD95*parity1)+(PRB!$N$193*EFW!AD95*parity2)+(PRB!$O$193*EFW!AD95*parity3)) -> 786.0034366 | I74: =EXP((PRB!$B$194*1)+(PRB!$C$194*EFW!AD95)+(PRB!$D$194*EFW!AD95^2)+(PRB!$E$194*EFW!AD95^3)+(PRB!$F$194*sexm)+(PRB!$G$194*heightn)+(PRB!$H$194*weightn)+(PRB!$I$194*EFW!AD95*weightn)+(PRB!$J$194*parity1)+(PRB!$K$194*parity2)+(PRB!$L$194*parity3)+(PRB!$M$194*EFW!AD95*parity1)+(PRB!$N$194*EFW!AD95*parity2)+(PRB!$O$194*EFW!AD95*parity3)) -> 819.8479446 | J74: =EXP((PRB!$B$195*1)+(PRB!$C$195*EFW!AD95)+(PRB!$D$195*EFW!AD95^2)+(PRB!$E$195*EFW!AD95^3)+(PRB!$F$195*sexm)+(PRB!$G$195*heightn)+(PRB!$H$195*weightn)+(PRB!$I$195*EFW!AD95*weightn)+(PRB!$J$195*parity1)+(PRB!$K$195*parity2)+(PRB!$L$195*parity3)+(PRB!$M$195*EFW!AD95*parity1)+(PRB!$N$195*EFW!AD95*parity2)+(PRB!$O$195*EFW!AD95*parity3)) -> 847.7165546
A75: 24.42857143 | B75: =EXP((PRB!B187*1)+(PRB!C187*EFW!AD96)+(PRB!D187*EFW!AD96^2)+(PRB!E187*EFW!AD96^3)+(PRB!F187*sexm)+(PRB!G187*heightn)+(PRB!H187*weightn)+(PRB!I187*EFW!AD96*weightn)+(PRB!J187*parity1)+(PRB!K187*parity2)+(PRB!L187*parity3)+(PRB!M187*EFW!AD96*parity1)+(PRB!N187*EFW!AD96*parity2)+(PRB!O187*EFW!AD96*parity3)) -> 559.7354308 | C75: =EXP((PRB!B188*1)+(PRB!C188*EFW!AD96)+(PRB!D188*EFW!AD96^2)+(PRB!E188*EFW!AD96^3)+(PRB!F188*sexm)+(PRB!G188*heightn)+(PRB!H188*weightn)+(PRB!I188*EFW!AD96*weightn)+(PRB!J188*parity1)+(PRB!K188*parity2)+(PRB!L188*parity3)+(PRB!M188*EFW!AD96*parity1)+(PRB!N188*EFW!AD96*parity2)+(PRB!O188*EFW!AD96*parity3)) -> 582.0945135 | D75: =EXP((PRB!B189*1)+(PRB!C189*EFW!AD96)+(PRB!D189*EFW!AD96^2)+(PRB!E189*EFW!AD96^3)+(PRB!F189*sexm)+(PRB!G189*heightn)+(PRB!H189*weightn)+(PRB!I189*EFW!AD96*weightn)+(PRB!J189*parity1)+(PRB!K189*parity2)+(PRB!L189*parity3)+(PRB!M189*EFW!AD96*parity1)+(PRB!N189*EFW!AD96*parity2)+(PRB!O189*EFW!AD96*parity3)) -> 607.5168766 | E75: =EXP((PRB!B190*1)+(PRB!C190*EFW!AD96)+(PRB!D190*EFW!AD96^2)+(PRB!E190*EFW!AD96^3)+(PRB!F190*sexm)+(PRB!G190*heightn)+(PRB!H190*weightn)+(PRB!I190*EFW!AD96*weightn)+(PRB!J190*parity1)+(PRB!K190*parity2)+(PRB!L190*parity3)+(PRB!M190*EFW!AD96*parity1)+(PRB!N190*EFW!AD96*parity2)+(PRB!O190*EFW!AD96*parity3)) -> 649.285819 | F75: =EXP((PRB!B191*1)+(PRB!C191*EFW!AD96)+(PRB!D191*EFW!AD96^2)+(PRB!E191*EFW!AD96^3)+(PRB!F191*sexm)+(PRB!G191*heightn)+(PRB!H191*weightn)+(PRB!I191*EFW!AD96*weightn)+(PRB!J191*parity1)+(PRB!K191*parity2)+(PRB!L191*parity3)+(PRB!M191*EFW!AD96*parity1)+(PRB!N191*EFW!AD96*parity2)+(PRB!O191*EFW!AD96*parity3)) -> 696.5914028 | G75: =EXP((PRB!$B$192*1)+(PRB!$C$192*EFW!AD96)+(PRB!$D$192*EFW!AD96^2)+(PRB!$E$192*EFW!AD96^3)+(PRB!$F$192*sexm)+(PRB!$G$192*heightn)+(PRB!$H$192*weightn)+(PRB!$I$192*EFW!AD96*weightn)+(PRB!$J$192*parity1)+(PRB!$K$192*parity2)+(PRB!$L$192*parity3)+(PRB!$M$192*EFW!AD96*parity1)+(PRB!$N$192*EFW!AD96*parity2)+(PRB!$O$192*EFW!AD96*parity3)) -> 748.4497802 | H75: =EXP((PRB!$B$193*1)+(PRB!$C$193*EFW!AD96)+(PRB!$D$193*EFW!AD96^2)+(PRB!$E$193*EFW!AD96^3)+(PRB!$F$193*sexm)+(PRB!$G$193*heightn)+(PRB!$H$193*weightn)+(PRB!$I$193*EFW!AD96*weightn)+(PRB!$J$193*parity1)+(PRB!$K$193*parity2)+(PRB!$L$193*parity3)+(PRB!$M$193*EFW!AD96*parity1)+(PRB!$N$193*EFW!AD96*parity2)+(PRB!$O$193*EFW!AD96*parity3)) -> 803.3984413 | I75: =EXP((PRB!$B$194*1)+(PRB!$C$194*EFW!AD96)+(PRB!$D$194*EFW!AD96^2)+(PRB!$E$194*EFW!AD96^3)+(PRB!$F$194*sexm)+(PRB!$G$194*heightn)+(PRB!$H$194*weightn)+(PRB!$I$194*EFW!AD96*weightn)+(PRB!$J$194*parity1)+(PRB!$K$194*parity2)+(PRB!$L$194*parity3)+(PRB!$M$194*EFW!AD96*parity1)+(PRB!$N$194*EFW!AD96*parity2)+(PRB!$O$194*EFW!AD96*parity3)) -> 838.0380909 | J75: =EXP((PRB!$B$195*1)+(PRB!$C$195*EFW!AD96)+(PRB!$D$195*EFW!AD96^2)+(PRB!$E$195*EFW!AD96^3)+(PRB!$F$195*sexm)+(PRB!$G$195*heightn)+(PRB!$H$195*weightn)+(PRB!$I$195*EFW!AD96*weightn)+(PRB!$J$195*parity1)+(PRB!$K$195*parity2)+(PRB!$L$195*parity3)+(PRB!$M$195*EFW!AD96*parity1)+(PRB!$N$195*EFW!AD96*parity2)+(PRB!$O$195*EFW!AD96*parity3)) -> 866.6809821
A76: 24.57142857 | B76: =EXP((PRB!B187*1)+(PRB!C187*EFW!AD97)+(PRB!D187*EFW!AD97^2)+(PRB!E187*EFW!AD97^3)+(PRB!F187*sexm)+(PRB!G187*heightn)+(PRB!H187*weightn)+(PRB!I187*EFW!AD97*weightn)+(PRB!J187*parity1)+(PRB!K187*parity2)+(PRB!L187*parity3)+(PRB!M187*EFW!AD97*parity1)+(PRB!N187*EFW!AD97*parity2)+(PRB!O187*EFW!AD97*parity3)) -> 572.1624583 | C76: =EXP((PRB!B188*1)+(PRB!C188*EFW!AD97)+(PRB!D188*EFW!AD97^2)+(PRB!E188*EFW!AD97^3)+(PRB!F188*sexm)+(PRB!G188*heightn)+(PRB!H188*weightn)+(PRB!I188*EFW!AD97*weightn)+(PRB!J188*parity1)+(PRB!K188*parity2)+(PRB!L188*parity3)+(PRB!M188*EFW!AD97*parity1)+(PRB!N188*EFW!AD97*parity2)+(PRB!O188*EFW!AD97*parity3)) -> 595.0482673 | D76: =EXP((PRB!B189*1)+(PRB!C189*EFW!AD97)+(PRB!D189*EFW!AD97^2)+(PRB!E189*EFW!AD97^3)+(PRB!F189*sexm)+(PRB!G189*heightn)+(PRB!H189*weightn)+(PRB!I189*EFW!AD97*weightn)+(PRB!J189*parity1)+(PRB!K189*parity2)+(PRB!L189*parity3)+(PRB!M189*EFW!AD97*parity1)+(PRB!N189*EFW!AD97*parity2)+(PRB!O189*EFW!AD97*parity3)) -> 621.0417909 | E76: =EXP((PRB!B190*1)+(PRB!C190*EFW!AD97)+(PRB!D190*EFW!AD97^2)+(PRB!E190*EFW!AD97^3)+(PRB!F190*sexm)+(PRB!G190*heightn)+(PRB!H190*weightn)+(PRB!I190*EFW!AD97*weightn)+(PRB!J190*parity1)+(PRB!K190*parity2)+(PRB!L190*parity3)+(PRB!M190*EFW!AD97*parity1)+(PRB!N190*EFW!AD97*parity2)+(PRB!O190*EFW!AD97*parity3)) -> 663.7288469 | F76: =EXP((PRB!B191*1)+(PRB!C191*EFW!AD97)+(PRB!D191*EFW!AD97^2)+(PRB!E191*EFW!AD97^3)+(PRB!F191*sexm)+(PRB!G191*heightn)+(PRB!H191*weightn)+(PRB!I191*EFW!AD97*weightn)+(PRB!J191*parity1)+(PRB!K191*parity2)+(PRB!L191*parity3)+(PRB!M191*EFW!AD97*parity1)+(PRB!N191*EFW!AD97*parity2)+(PRB!O191*EFW!AD97*parity3)) -> 712.0347393 | G76: =EXP((PRB!$B$192*1)+(PRB!$C$192*EFW!AD97)+(PRB!$D$192*EFW!AD97^2)+(PRB!$E$192*EFW!AD97^3)+(PRB!$F$192*sexm)+(PRB!$G$192*heightn)+(PRB!$H$192*weightn)+(PRB!$I$192*EFW!AD97*weightn)+(PRB!$J$192*parity1)+(PRB!$K$192*parity2)+(PRB!$L$192*parity3)+(PRB!$M$192*EFW!AD97*parity1)+(PRB!$N$192*EFW!AD97*parity2)+(PRB!$O$192*EFW!AD97*parity3)) -> 764.9829333 | H76: =EXP((PRB!$B$193*1)+(PRB!$C$193*EFW!AD97)+(PRB!$D$193*EFW!AD97^2)+(PRB!$E$193*EFW!AD97^3)+(PRB!$F$193*sexm)+(PRB!$G$193*heightn)+(PRB!$H$193*weightn)+(PRB!$I$193*EFW!AD97*weightn)+(PRB!$J$193*parity1)+(PRB!$K$193*parity2)+(PRB!$L$193*parity3)+(PRB!$M$193*EFW!AD97*parity1)+(PRB!$N$193*EFW!AD97*parity2)+(PRB!$O$193*EFW!AD97*parity3)) -> 821.0611159 | I76: =EXP((PRB!$B$194*1)+(PRB!$C$194*EFW!AD97)+(PRB!$D$194*EFW!AD97^2)+(PRB!$E$194*EFW!AD97^3)+(PRB!$F$194*sexm)+(PRB!$G$194*heightn)+(PRB!$H$194*weightn)+(PRB!$I$194*EFW!AD97*weightn)+(PRB!$J$194*parity1)+(PRB!$K$194*parity2)+(PRB!$L$194*parity3)+(PRB!$M$194*EFW!AD97*parity1)+(PRB!$N$194*EFW!AD97*parity2)+(PRB!$O$194*EFW!AD97*parity3)) -> 856.5135358 | J76: =EXP((PRB!$B$195*1)+(PRB!$C$195*EFW!AD97)+(PRB!$D$195*EFW!AD97^2)+(PRB!$E$195*EFW!AD97^3)+(PRB!$F$195*sexm)+(PRB!$G$195*heightn)+(PRB!$H$195*weightn)+(PRB!$I$195*EFW!AD97*weightn)+(PRB!$J$195*parity1)+(PRB!$K$195*parity2)+(PRB!$L$195*parity3)+(PRB!$M$195*EFW!AD97*parity1)+(PRB!$N$195*EFW!AD97*parity2)+(PRB!$O$195*EFW!AD97*parity3)) -> 885.9490476
A77: 24.71428571 | B77: =EXP((PRB!B187*1)+(PRB!C187*EFW!AD98)+(PRB!D187*EFW!AD98^2)+(PRB!E187*EFW!AD98^3)+(PRB!F187*sexm)+(PRB!G187*heightn)+(PRB!H187*weightn)+(PRB!I187*EFW!AD98*weightn)+(PRB!J187*parity1)+(PRB!K187*parity2)+(PRB!L187*parity3)+(PRB!M187*EFW!AD98*parity1)+(PRB!N187*EFW!AD98*parity2)+(PRB!O187*EFW!AD98*parity3)) -> 584.7738179 | C77: =EXP((PRB!B188*1)+(PRB!C188*EFW!AD98)+(PRB!D188*EFW!AD98^2)+(PRB!E188*EFW!AD98^3)+(PRB!F188*sexm)+(PRB!G188*heightn)+(PRB!H188*weightn)+(PRB!I188*EFW!AD98*weightn)+(PRB!J188*parity1)+(PRB!K188*parity2)+(PRB!L188*parity3)+(PRB!M188*EFW!AD98*parity1)+(PRB!N188*EFW!AD98*parity2)+(PRB!O188*EFW!AD98*parity3)) -> 608.1953512 | D77: =EXP((PRB!B189*1)+(PRB!C189*EFW!AD98)+(PRB!D189*EFW!AD98^2)+(PRB!E189*EFW!AD98^3)+(PRB!F189*sexm)+(PRB!G189*heightn)+(PRB!H189*weightn)+(PRB!I189*EFW!AD98*weightn)+(PRB!J189*parity1)+(PRB!K189*parity2)+(PRB!L189*parity3)+(PRB!M189*EFW!AD98*parity1)+(PRB!N189*EFW!AD98*parity2)+(PRB!O189*EFW!AD98*parity3)) -> 634.7711901 | E77: =EXP((PRB!B190*1)+(PRB!C190*EFW!AD98)+(PRB!D190*EFW!AD98^2)+(PRB!E190*EFW!AD98^3)+(PRB!F190*sexm)+(PRB!G190*heightn)+(PRB!H190*weightn)+(PRB!I190*EFW!AD98*weightn)+(PRB!J190*parity1)+(PRB!K190*parity2)+(PRB!L190*parity3)+(PRB!M190*EFW!AD98*parity1)+(PRB!N190*EFW!AD98*parity2)+(PRB!O190*EFW!AD98*parity3)) -> 678.3933193 | F77: =EXP((PRB!B191*1)+(PRB!C191*EFW!AD98)+(PRB!D191*EFW!AD98^2)+(PRB!E191*EFW!AD98^3)+(PRB!F191*sexm)+(PRB!G191*heightn)+(PRB!H191*weightn)+(PRB!I191*EFW!AD98*weightn)+(PRB!J191*parity1)+(PRB!K191*parity2)+(PRB!L191*parity3)+(PRB!M191*EFW!AD98*parity1)+(PRB!N191*EFW!AD98*parity2)+(PRB!O191*EFW!AD98*parity3)) -> 727.7135251 | G77: =EXP((PRB!$B$192*1)+(PRB!$C$192*EFW!AD98)+(PRB!$D$192*EFW!AD98^2)+(PRB!$E$192*EFW!AD98^3)+(PRB!$F$192*sexm)+(PRB!$G$192*heightn)+(PRB!$H$192*weightn)+(PRB!$I$192*EFW!AD98*weightn)+(PRB!$J$192*parity1)+(PRB!$K$192*parity2)+(PRB!$L$192*parity3)+(PRB!$M$192*EFW!AD98*parity1)+(PRB!$N$192*EFW!AD98*parity2)+(PRB!$O$192*EFW!AD98*parity3)) -> 781.7689337 | H77: =EXP((PRB!$B$193*1)+(PRB!$C$193*EFW!AD98)+(PRB!$D$193*EFW!AD98^2)+(PRB!$E$193*EFW!AD98^3)+(PRB!$F$193*sexm)+(PRB!$G$193*heightn)+(PRB!$H$193*weightn)+(PRB!$I$193*EFW!AD98*weightn)+(PRB!$J$193*parity1)+(PRB!$K$193*parity2)+(PRB!$L$193*parity3)+(PRB!$M$193*EFW!AD98*parity1)+(PRB!$N$193*EFW!AD98*parity2)+(PRB!$O$193*EFW!AD98*parity3)) -> 838.9924515 | I77: =EXP((PRB!$B$194*1)+(PRB!$C$194*EFW!AD98)+(PRB!$D$194*EFW!AD98^2)+(PRB!$E$194*EFW!AD98^3)+(PRB!$F$194*sexm)+(PRB!$G$194*heightn)+(PRB!$H$194*weightn)+(PRB!$I$194*EFW!AD98*weightn)+(PRB!$J$194*parity1)+(PRB!$K$194*parity2)+(PRB!$L$194*parity3)+(PRB!$M$194*EFW!AD98*parity1)+(PRB!$N$194*EFW!AD98*parity2)+(PRB!$O$194*EFW!AD98*parity3)) -> 875.2754596 | J77: =EXP((PRB!$B$195*1)+(PRB!$C$195*EFW!AD98)+(PRB!$D$195*EFW!AD98^2)+(PRB!$E$195*EFW!AD98^3)+(PRB!$F$195*sexm)+(PRB!$G$195*heightn)+(PRB!$H$195*weightn)+(PRB!$I$195*EFW!AD98*weightn)+(PRB!$J$195*parity1)+(PRB!$K$195*parity2)+(PRB!$L$195*parity3)+(PRB!$M$195*EFW!AD98*parity1)+(PRB!$N$195*EFW!AD98*parity2)+(PRB!$O$195*EFW!AD98*parity3)) -> 905.5221343
A78: 24.85714286 | B78: =EXP((PRB!B187*1)+(PRB!C187*EFW!AD99)+(PRB!D187*EFW!AD99^2)+(PRB!E187*EFW!AD99^3)+(PRB!F187*sexm)+(PRB!G187*heightn)+(PRB!H187*weightn)+(PRB!I187*EFW!AD99*weightn)+(PRB!J187*parity1)+(PRB!K187*parity2)+(PRB!L187*parity3)+(PRB!M187*EFW!AD99*parity1)+(PRB!N187*EFW!AD99*parity2)+(PRB!O187*EFW!AD99*parity3)) -> 597.5698261 | C78: =EXP((PRB!B188*1)+(PRB!C188*EFW!AD99)+(PRB!D188*EFW!AD99^2)+(PRB!E188*EFW!AD99^3)+(PRB!F188*sexm)+(PRB!G188*heightn)+(PRB!H188*weightn)+(PRB!I188*EFW!AD99*weightn)+(PRB!J188*parity1)+(PRB!K188*parity2)+(PRB!L188*parity3)+(PRB!M188*EFW!AD99*parity1)+(PRB!N188*EFW!AD99*parity2)+(PRB!O188*EFW!AD99*parity3)) -> 621.5361915 | D78: =EXP((PRB!B189*1)+(PRB!C189*EFW!AD99)+(PRB!D189*EFW!AD99^2)+(PRB!E189*EFW!AD99^3)+(PRB!F189*sexm)+(PRB!G189*heightn)+(PRB!H189*weightn)+(PRB!I189*EFW!AD99*weightn)+(PRB!J189*parity1)+(PRB!K189*parity2)+(PRB!L189*parity3)+(PRB!M189*EFW!AD99*parity1)+(PRB!N189*EFW!AD99*parity2)+(PRB!O189*EFW!AD99*parity3)) -> 648.7056417 | E78: =EXP((PRB!B190*1)+(PRB!C190*EFW!AD99)+(PRB!D190*EFW!AD99^2)+(PRB!E190*EFW!AD99^3)+(PRB!F190*sexm)+(PRB!G190*heightn)+(PRB!H190*weightn)+(PRB!I190*EFW!AD99*weightn)+(PRB!J190*parity1)+(PRB!K190*parity2)+(PRB!L190*parity3)+(PRB!M190*EFW!AD99*parity1)+(PRB!N190*EFW!AD99*parity2)+(PRB!O190*EFW!AD99*parity3)) -> 693.2799722 | F78: =EXP((PRB!B191*1)+(PRB!C191*EFW!AD99)+(PRB!D191*EFW!AD99^2)+(PRB!E191*EFW!AD99^3)+(PRB!F191*sexm)+(PRB!G191*heightn)+(PRB!H191*weightn)+(PRB!I191*EFW!AD99*weightn)+(PRB!J191*parity1)+(PRB!K191*parity2)+(PRB!L191*parity3)+(PRB!M191*EFW!AD99*parity1)+(PRB!N191*EFW!AD99*parity2)+(PRB!O191*EFW!AD99*parity3)) -> 743.6285581 | G78: =EXP((PRB!$B$192*1)+(PRB!$C$192*EFW!AD99)+(PRB!$D$192*EFW!AD99^2)+(PRB!$E$192*EFW!AD99^3)+(PRB!$F$192*sexm)+(PRB!$G$192*heightn)+(PRB!$H$192*weightn)+(PRB!$I$192*EFW!AD99*weightn)+(PRB!$J$192*parity1)+(PRB!$K$192*parity2)+(PRB!$L$192*parity3)+(PRB!$M$192*EFW!AD99*parity1)+(PRB!$N$192*EFW!AD99*parity2)+(PRB!$O$192*EFW!AD99*parity3)) -> 798.8086478 | H78: =EXP((PRB!$B$193*1)+(PRB!$C$193*EFW!AD99)+(PRB!$D$193*EFW!AD99^2)+(PRB!$E$193*EFW!AD99^3)+(PRB!$F$193*sexm)+(PRB!$G$193*heightn)+(PRB!$H$193*weightn)+(PRB!$I$193*EFW!AD99*weightn)+(PRB!$J$193*parity1)+(PRB!$K$193*parity2)+(PRB!$L$193*parity3)+(PRB!$M$193*EFW!AD99*parity1)+(PRB!$N$193*EFW!AD99*parity2)+(PRB!$O$193*EFW!AD99*parity3)) -> 857.193358 | I78: =EXP((PRB!$B$194*1)+(PRB!$C$194*EFW!AD99)+(PRB!$D$194*EFW!AD99^2)+(PRB!$E$194*EFW!AD99^3)+(PRB!$F$194*sexm)+(PRB!$G$194*heightn)+(PRB!$H$194*weightn)+(PRB!$I$194*EFW!AD99*weightn)+(PRB!$J$194*parity1)+(PRB!$K$194*parity2)+(PRB!$L$194*parity3)+(PRB!$M$194*EFW!AD99*parity1)+(PRB!$N$194*EFW!AD99*parity2)+(PRB!$O$194*EFW!AD99*parity3)) -> 894.3249521 | J78: =EXP((PRB!$B$195*1)+(PRB!$C$195*EFW!AD99)+(PRB!$D$195*EFW!AD99^2)+(PRB!$E$195*EFW!AD99^3)+(PRB!$F$195*sexm)+(PRB!$G$195*heightn)+(PRB!$H$195*weightn)+(PRB!$I$195*EFW!AD99*weightn)+(PRB!$J$195*parity1)+(PRB!$K$195*parity2)+(PRB!$L$195*parity3)+(PRB!$M$195*EFW!AD99*parity1)+(PRB!$N$195*EFW!AD99*parity2)+(PRB!$O$195*EFW!AD99*parity3)) -> 925.4015259
A79: 25 | B79: =EXP((PRB!B187*1)+(PRB!C187*EFW!AD100)+(PRB!D187*EFW!AD100^2)+(PRB!E187*EFW!AD100^3)+(PRB!F187*sexm)+(PRB!G187*heightn)+(PRB!H187*weightn)+(PRB!I187*EFW!AD100*weightn)+(PRB!J187*parity1)+(PRB!K187*parity2)+(PRB!L187*parity3)+(PRB!M187*EFW!AD100*parity1)+(PRB!N187*EFW!AD100*parity2)+(PRB!O187*EFW!AD100*parity3)) -> 610.5507351 | C79: =EXP((PRB!B188*1)+(PRB!C188*EFW!AD100)+(PRB!D188*EFW!AD100^2)+(PRB!E188*EFW!AD100^3)+(PRB!F188*sexm)+(PRB!G188*heightn)+(PRB!H188*weightn)+(PRB!I188*EFW!AD100*weightn)+(PRB!J188*parity1)+(PRB!K188*parity2)+(PRB!L188*parity3)+(PRB!M188*EFW!AD100*parity1)+(PRB!N188*EFW!AD100*parity2)+(PRB!O188*EFW!AD100*parity3)) -> 635.071152 | D79: =EXP((PRB!B189*1)+(PRB!C189*EFW!AD100)+(PRB!D189*EFW!AD100^2)+(PRB!E189*EFW!AD100^3)+(PRB!F189*sexm)+(PRB!G189*heightn)+(PRB!H189*weightn)+(PRB!I189*EFW!AD100*weightn)+(PRB!J189*parity1)+(PRB!K189*parity2)+(PRB!L189*parity3)+(PRB!M189*EFW!AD100*parity1)+(PRB!N189*EFW!AD100*parity2)+(PRB!O189*EFW!AD100*parity3)) -> 662.8456487 | E79: =EXP((PRB!B190*1)+(PRB!C190*EFW!AD100)+(PRB!D190*EFW!AD100^2)+(PRB!E190*EFW!AD100^3)+(PRB!F190*sexm)+(PRB!G190*heightn)+(PRB!H190*weightn)+(PRB!I190*EFW!AD100*weightn)+(PRB!J190*parity1)+(PRB!K190*parity2)+(PRB!L190*parity3)+(PRB!M190*EFW!AD100*parity1)+(PRB!N190*EFW!AD100*parity2)+(PRB!O190*EFW!AD100*parity3)) -> 708.3894724 | F79: =EXP((PRB!B191*1)+(PRB!C191*EFW!AD100)+(PRB!D191*EFW!AD100^2)+(PRB!E191*EFW!AD100^3)+(PRB!F191*sexm)+(PRB!G191*heightn)+(PRB!H191*weightn)+(PRB!I191*EFW!AD100*weightn)+(PRB!J191*parity1)+(PRB!K191*parity2)+(PRB!L191*parity3)+(PRB!M191*EFW!AD100*parity1)+(PRB!N191*EFW!AD100*parity2)+(PRB!O191*EFW!AD100*parity3)) -> 759.7805664 | G79: =EXP((PRB!$B$192*1)+(PRB!$C$192*EFW!AD100)+(PRB!$D$192*EFW!AD100^2)+(PRB!$E$192*EFW!AD100^3)+(PRB!$F$192*sexm)+(PRB!$G$192*heightn)+(PRB!$H$192*weightn)+(PRB!$I$192*EFW!AD100*weightn)+(PRB!$J$192*parity1)+(PRB!$K$192*parity2)+(PRB!$L$192*parity3)+(PRB!$M$192*EFW!AD100*parity1)+(PRB!$N$192*EFW!AD100*parity2)+(PRB!$O$192*EFW!AD100*parity3)) -> 816.1028629 | H79: =EXP((PRB!$B$193*1)+(PRB!$C$193*EFW!AD100)+(PRB!$D$193*EFW!AD100^2)+(PRB!$E$193*EFW!AD100^3)+(PRB!$F$193*sexm)+(PRB!$G$193*heightn)+(PRB!$H$193*weightn)+(PRB!$I$193*EFW!AD100*weightn)+(PRB!$J$193*parity1)+(PRB!$K$193*parity2)+(PRB!$L$193*parity3)+(PRB!$M$193*EFW!AD100*parity1)+(PRB!$N$193*EFW!AD100*parity2)+(PRB!$O$193*EFW!AD100*parity3)) -> 875.6646624 | I79: =EXP((PRB!$B$194*1)+(PRB!$C$194*EFW!AD100)+(PRB!$D$194*EFW!AD100^2)+(PRB!$E$194*EFW!AD100^3)+(PRB!$F$194*sexm)+(PRB!$G$194*heightn)+(PRB!$H$194*weightn)+(PRB!$I$194*EFW!AD100*weightn)+(PRB!$J$194*parity1)+(PRB!$K$194*parity2)+(PRB!$L$194*parity3)+(PRB!$M$194*EFW!AD100*parity1)+(PRB!$N$194*EFW!AD100*parity2)+(PRB!$O$194*EFW!AD100*parity3)) -> 913.6630095 | J79: =EXP((PRB!$B$195*1)+(PRB!$C$195*EFW!AD100)+(PRB!$D$195*EFW!AD100^2)+(PRB!$E$195*EFW!AD100^3)+(PRB!$F$195*sexm)+(PRB!$G$195*heightn)+(PRB!$H$195*weightn)+(PRB!$I$195*EFW!AD100*weightn)+(PRB!$J$195*parity1)+(PRB!$K$195*parity2)+(PRB!$L$195*parity3)+(PRB!$M$195*EFW!AD100*parity1)+(PRB!$N$195*EFW!AD100*parity2)+(PRB!$O$195*EFW!AD100*parity3)) -> 945.5884038
A80: 25.14285714 | B80: =EXP((PRB!B187*1)+(PRB!C187*EFW!AD101)+(PRB!D187*EFW!AD101^2)+(PRB!E187*EFW!AD101^3)+(PRB!F187*sexm)+(PRB!G187*heightn)+(PRB!H187*weightn)+(PRB!I187*EFW!AD101*weightn)+(PRB!J187*parity1)+(PRB!K187*parity2)+(PRB!L187*parity3)+(PRB!M187*EFW!AD101*parity1)+(PRB!N187*EFW!AD101*parity2)+(PRB!O187*EFW!AD101*parity3)) -> 623.716731 | C80: =EXP((PRB!B188*1)+(PRB!C188*EFW!AD101)+(PRB!D188*EFW!AD101^2)+(PRB!E188*EFW!AD101^3)+(PRB!F188*sexm)+(PRB!G188*heightn)+(PRB!H188*weightn)+(PRB!I188*EFW!AD101*weightn)+(PRB!J188*parity1)+(PRB!K188*parity2)+(PRB!L188*parity3)+(PRB!M188*EFW!AD101*parity1)+(PRB!N188*EFW!AD101*parity2)+(PRB!O188*EFW!AD101*parity3)) -> 648.8005331 | D80: =EXP((PRB!B189*1)+(PRB!C189*EFW!AD101)+(PRB!D189*EFW!AD101^2)+(PRB!E189*EFW!AD101^3)+(PRB!F189*sexm)+(PRB!G189*heightn)+(PRB!H189*weightn)+(PRB!I189*EFW!AD101*weightn)+(PRB!J189*parity1)+(PRB!K189*parity2)+(PRB!L189*parity3)+(PRB!M189*EFW!AD101*parity1)+(PRB!N189*EFW!AD101*parity2)+(PRB!O189*EFW!AD101*parity3)) -> 677.1916486 | E80: =EXP((PRB!B190*1)+(PRB!C190*EFW!AD101)+(PRB!D190*EFW!AD101^2)+(PRB!E190*EFW!AD101^3)+(PRB!F190*sexm)+(PRB!G190*heightn)+(PRB!H190*weightn)+(PRB!I190*EFW!AD101*weightn)+(PRB!J190*parity1)+(PRB!K190*parity2)+(PRB!L190*parity3)+(PRB!M190*EFW!AD101*parity1)+(PRB!N190*EFW!AD101*parity2)+(PRB!O190*EFW!AD101*parity3)) -> 723.7224156 | F80: =EXP((PRB!B191*1)+(PRB!C191*EFW!AD101)+(PRB!D191*EFW!AD101^2)+(PRB!E191*EFW!AD101^3)+(PRB!F191*sexm)+(PRB!G191*heightn)+(PRB!H191*weightn)+(PRB!I191*EFW!AD101*weightn)+(PRB!J191*parity1)+(PRB!K191*parity2)+(PRB!L191*parity3)+(PRB!M191*EFW!AD101*parity1)+(PRB!N191*EFW!AD101*parity2)+(PRB!O191*EFW!AD101*parity3)) -> 776.1702061 | G80: =EXP((PRB!$B$192*1)+(PRB!$C$192*EFW!AD101)+(PRB!$D$192*EFW!AD101^2)+(PRB!$E$192*EFW!AD101^3)+(PRB!$F$192*sexm)+(PRB!$G$192*heightn)+(PRB!$H$192*weightn)+(PRB!$I$192*EFW!AD101*weightn)+(PRB!$J$192*parity1)+(PRB!$K$192*parity2)+(PRB!$L$192*parity3)+(PRB!$M$192*EFW!AD101*parity1)+(PRB!$N$192*EFW!AD101*parity2)+(PRB!$O$192*EFW!AD101*parity3)) -> 833.6522858 | H80: =EXP((PRB!$B$193*1)+(PRB!$C$193*EFW!AD101)+(PRB!$D$193*EFW!AD101^2)+(PRB!$E$193*EFW!AD101^3)+(PRB!$F$193*sexm)+(PRB!$G$193*heightn)+(PRB!$H$193*weightn)+(PRB!$I$193*EFW!AD101*weightn)+(PRB!$J$193*parity1)+(PRB!$K$193*parity2)+(PRB!$L$193*parity3)+(PRB!$M$193*EFW!AD101*parity1)+(PRB!$N$193*EFW!AD101*parity2)+(PRB!$O$193*EFW!AD101*parity3)) -> 894.407107 | I80: =EXP((PRB!$B$194*1)+(PRB!$C$194*EFW!AD101)+(PRB!$D$194*EFW!AD101^2)+(PRB!$E$194*EFW!AD101^3)+(PRB!$F$194*sexm)+(PRB!$G$194*heightn)+(PRB!$H$194*weightn)+(PRB!$I$194*EFW!AD101*weightn)+(PRB!$J$194*parity1)+(PRB!$K$194*parity2)+(PRB!$L$194*parity3)+(PRB!$M$194*EFW!AD101*parity1)+(PRB!$N$194*EFW!AD101*parity2)+(PRB!$O$194*EFW!AD101*parity3)) -> 933.2905325 | J80: =EXP((PRB!$B$195*1)+(PRB!$C$195*EFW!AD101)+(PRB!$D$195*EFW!AD101^2)+(PRB!$E$195*EFW!AD101^3)+(PRB!$F$195*sexm)+(PRB!$G$195*heightn)+(PRB!$H$195*weightn)+(PRB!$I$195*EFW!AD101*weightn)+(PRB!$J$195*parity1)+(PRB!$K$195*parity2)+(PRB!$L$195*parity3)+(PRB!$M$195*EFW!AD101*parity1)+(PRB!$N$195*EFW!AD101*parity2)+(PRB!$O$195*EFW!AD101*parity3)) -> 966.0838437
A81: 25.28571429 | B81: =EXP((PRB!B187*1)+(PRB!C187*EFW!AD102)+(PRB!D187*EFW!AD102^2)+(PRB!E187*EFW!AD102^3)+(PRB!F187*sexm)+(PRB!G187*heightn)+(PRB!H187*weightn)+(PRB!I187*EFW!AD102*weightn)+(PRB!J187*parity1)+(PRB!K187*parity2)+(PRB!L187*parity3)+(PRB!M187*EFW!AD102*parity1)+(PRB!N187*EFW!AD102*parity2)+(PRB!O187*EFW!AD102*parity3)) -> 637.0679332 | C81: =EXP((PRB!B188*1)+(PRB!C188*EFW!AD102)+(PRB!D188*EFW!AD102^2)+(PRB!E188*EFW!AD102^3)+(PRB!F188*sexm)+(PRB!G188*heightn)+(PRB!H188*weightn)+(PRB!I188*EFW!AD102*weightn)+(PRB!J188*parity1)+(PRB!K188*parity2)+(PRB!L188*parity3)+(PRB!M188*EFW!AD102*parity1)+(PRB!N188*EFW!AD102*parity2)+(PRB!O188*EFW!AD102*parity3)) -> 662.724571 | D81: =EXP((PRB!B189*1)+(PRB!C189*EFW!AD102)+(PRB!D189*EFW!AD102^2)+(PRB!E189*EFW!AD102^3)+(PRB!F189*sexm)+(PRB!G189*heightn)+(PRB!H189*weightn)+(PRB!I189*EFW!AD102*weightn)+(PRB!J189*parity1)+(PRB!K189*parity2)+(PRB!L189*parity3)+(PRB!M189*EFW!AD102*parity1)+(PRB!N189*EFW!AD102*parity2)+(PRB!O189*EFW!AD102*parity3)) -> 691.7440124 | E81: =EXP((PRB!B190*1)+(PRB!C190*EFW!AD102)+(PRB!D190*EFW!AD102^2)+(PRB!E190*EFW!AD102^3)+(PRB!F190*sexm)+(PRB!G190*heightn)+(PRB!H190*weightn)+(PRB!I190*EFW!AD102*weightn)+(PRB!J190*parity1)+(PRB!K190*parity2)+(PRB!L190*parity3)+(PRB!M190*EFW!AD102*parity1)+(PRB!N190*EFW!AD102*parity2)+(PRB!O190*EFW!AD102*parity3)) -> 739.2793253 | F81: =EXP((PRB!B191*1)+(PRB!C191*EFW!AD102)+(PRB!D191*EFW!AD102^2)+(PRB!E191*EFW!AD102^3)+(PRB!F191*sexm)+(PRB!G191*heightn)+(PRB!H191*weightn)+(PRB!I191*EFW!AD102*weightn)+(PRB!J191*parity1)+(PRB!K191*parity2)+(PRB!L191*parity3)+(PRB!M191*EFW!AD102*parity1)+(PRB!N191*EFW!AD102*parity2)+(PRB!O191*EFW!AD102*parity3)) -> 792.7980608 | G81: =EXP((PRB!$B$192*1)+(PRB!$C$192*EFW!AD102)+(PRB!$D$192*EFW!AD102^2)+(PRB!$E$192*EFW!AD102^3)+(PRB!$F$192*sexm)+(PRB!$G$192*heightn)+(PRB!$H$192*weightn)+(PRB!$I$192*EFW!AD102*weightn)+(PRB!$J$192*parity1)+(PRB!$K$192*parity2)+(PRB!$L$192*parity3)+(PRB!$M$192*EFW!AD102*parity1)+(PRB!$N$192*EFW!AD102*parity2)+(PRB!$O$192*EFW!AD102*parity3)) -> 851.4575406 | H81: =EXP((PRB!$B$193*1)+(PRB!$C$193*EFW!AD102)+(PRB!$D$193*EFW!AD102^2)+(PRB!$E$193*EFW!AD102^3)+(PRB!$F$193*sexm)+(PRB!$G$193*heightn)+(PRB!$H$193*weightn)+(PRB!$I$193*EFW!AD102*weightn)+(PRB!$J$193*parity1)+(PRB!$K$193*parity2)+(PRB!$L$193*parity3)+(PRB!$M$193*EFW!AD102*parity1)+(PRB!$N$193*EFW!AD102*parity2)+(PRB!$O$193*EFW!AD102*parity3)) -> 913.4213471 | I81: =EXP((PRB!$B$194*1)+(PRB!$C$194*EFW!AD102)+(PRB!$D$194*EFW!AD102^2)+(PRB!$E$194*EFW!AD102^3)+(PRB!$F$194*sexm)+(PRB!$G$194*heightn)+(PRB!$H$194*weightn)+(PRB!$I$194*EFW!AD102*weightn)+(PRB!$J$194*parity1)+(PRB!$K$194*parity2)+(PRB!$L$194*parity3)+(PRB!$M$194*EFW!AD102*parity1)+(PRB!$N$194*EFW!AD102*parity2)+(PRB!$O$194*EFW!AD102*parity3)) -> 953.2083232 | J81: =EXP((PRB!$B$195*1)+(PRB!$C$195*EFW!AD102)+(PRB!$D$195*EFW!AD102^2)+(PRB!$E$195*EFW!AD102^3)+(PRB!$F$195*sexm)+(PRB!$G$195*heightn)+(PRB!$H$195*weightn)+(PRB!$I$195*EFW!AD102*weightn)+(PRB!$J$195*parity1)+(PRB!$K$195*parity2)+(PRB!$L$195*parity3)+(PRB!$M$195*EFW!AD102*parity1)+(PRB!$N$195*EFW!AD102*parity2)+(PRB!$O$195*EFW!AD102*parity3)) -> 986.8888128
A82: 25.42857143 | B82: =EXP((PRB!B187*1)+(PRB!C187*EFW!AD103)+(PRB!D187*EFW!AD103^2)+(PRB!E187*EFW!AD103^3)+(PRB!F187*sexm)+(PRB!G187*heightn)+(PRB!H187*weightn)+(PRB!I187*EFW!AD103*weightn)+(PRB!J187*parity1)+(PRB!K187*parity2)+(PRB!L187*parity3)+(PRB!M187*EFW!AD103*parity1)+(PRB!N187*EFW!AD103*parity2)+(PRB!O187*EFW!AD103*parity3)) -> 650.6043934 | C82: =EXP((PRB!B188*1)+(PRB!C188*EFW!AD103)+(PRB!D188*EFW!AD103^2)+(PRB!E188*EFW!AD103^3)+(PRB!F188*sexm)+(PRB!G188*heightn)+(PRB!H188*weightn)+(PRB!I188*EFW!AD103*weightn)+(PRB!J188*parity1)+(PRB!K188*parity2)+(PRB!L188*parity3)+(PRB!M188*EFW!AD103*parity1)+(PRB!N188*EFW!AD103*parity2)+(PRB!O188*EFW!AD103*parity3)) -> 676.8434362 | D82: =EXP((PRB!B189*1)+(PRB!C189*EFW!AD103)+(PRB!D189*EFW!AD103^2)+(PRB!E189*EFW!AD103^3)+(PRB!F189*sexm)+(PRB!G189*heightn)+(PRB!H189*weightn)+(PRB!I189*EFW!AD103*weightn)+(PRB!J189*parity1)+(PRB!K189*parity2)+(PRB!L189*parity3)+(PRB!M189*EFW!AD103*parity1)+(PRB!N189*EFW!AD103*parity2)+(PRB!O189*EFW!AD103*parity3)) -> 706.503043 | E82: =EXP((PRB!B190*1)+(PRB!C190*EFW!AD103)+(PRB!D190*EFW!AD103^2)+(PRB!E190*EFW!AD103^3)+(PRB!F190*sexm)+(PRB!G190*heightn)+(PRB!H190*weightn)+(PRB!I190*EFW!AD103*weightn)+(PRB!J190*parity1)+(PRB!K190*parity2)+(PRB!L190*parity3)+(PRB!M190*EFW!AD103*parity1)+(PRB!N190*EFW!AD103*parity2)+(PRB!O190*EFW!AD103*parity3)) -> 755.060651 | F82: =EXP((PRB!B191*1)+(PRB!C191*EFW!AD103)+(PRB!D191*EFW!AD103^2)+(PRB!E191*EFW!AD103^3)+(PRB!F191*sexm)+(PRB!G191*heightn)+(PRB!H191*weightn)+(PRB!I191*EFW!AD103*weightn)+(PRB!J191*parity1)+(PRB!K191*parity2)+(PRB!L191*parity3)+(PRB!M191*EFW!AD103*parity1)+(PRB!N191*EFW!AD103*parity2)+(PRB!O191*EFW!AD103*parity3)) -> 809.6646398 | G82: =EXP((PRB!$B$192*1)+(PRB!$C$192*EFW!AD103)+(PRB!$D$192*EFW!AD103^2)+(PRB!$E$192*EFW!AD103^3)+(PRB!$F$192*sexm)+(PRB!$G$192*heightn)+(PRB!$H$192*weightn)+(PRB!$I$192*EFW!AD103*weightn)+(PRB!$J$192*parity1)+(PRB!$K$192*parity2)+(PRB!$L$192*parity3)+(PRB!$M$192*EFW!AD103*parity1)+(PRB!$N$192*EFW!AD103*parity2)+(PRB!$O$192*EFW!AD103*parity3)) -> 869.5191674 | H82: =EXP((PRB!$B$193*1)+(PRB!$C$193*EFW!AD103)+(PRB!$D$193*EFW!AD103^2)+(PRB!$E$193*EFW!AD103^3)+(PRB!$F$193*sexm)+(PRB!$G$193*heightn)+(PRB!$H$193*weightn)+(PRB!$I$193*EFW!AD103*weightn)+(PRB!$J$193*parity1)+(PRB!$K$193*parity2)+(PRB!$L$193*parity3)+(PRB!$M$193*EFW!AD103*parity1)+(PRB!$N$193*EFW!AD103*parity2)+(PRB!$O$193*EFW!AD103*parity3)) -> 932.7079496 | I82: =EXP((PRB!$B$194*1)+(PRB!$C$194*EFW!AD103)+(PRB!$D$194*EFW!AD103^2)+(PRB!$E$194*EFW!AD103^3)+(PRB!$F$194*sexm)+(PRB!$G$194*heightn)+(PRB!$H$194*weightn)+(PRB!$I$194*EFW!AD103*weightn)+(PRB!$J$194*parity1)+(PRB!$K$194*parity2)+(PRB!$L$194*parity3)+(PRB!$M$194*EFW!AD103*parity1)+(PRB!$N$194*EFW!AD103*parity2)+(PRB!$O$194*EFW!AD103*parity3)) -> 973.4170833 | J82: =EXP((PRB!$B$195*1)+(PRB!$C$195*EFW!AD103)+(PRB!$D$195*EFW!AD103^2)+(PRB!$E$195*EFW!AD103^3)+(PRB!$F$195*sexm)+(PRB!$G$195*heightn)+(PRB!$H$195*weightn)+(PRB!$I$195*EFW!AD103*weightn)+(PRB!$J$195*parity1)+(PRB!$K$195*parity2)+(PRB!$L$195*parity3)+(PRB!$M$195*EFW!AD103*parity1)+(PRB!$N$195*EFW!AD103*parity2)+(PRB!$O$195*EFW!AD103*parity3)) -> 1008.004167
A83: 25.57142857 | B83: =EXP((PRB!B187*1)+(PRB!C187*EFW!AD104)+(PRB!D187*EFW!AD104^2)+(PRB!E187*EFW!AD104^3)+(PRB!F187*sexm)+(PRB!G187*heightn)+(PRB!H187*weightn)+(PRB!I187*EFW!AD104*weightn)+(PRB!J187*parity1)+(PRB!K187*parity2)+(PRB!L187*parity3)+(PRB!M187*EFW!AD104*parity1)+(PRB!N187*EFW!AD104*parity2)+(PRB!O187*EFW!AD104*parity3)) -> 664.3260941 | C83: =EXP((PRB!B188*1)+(PRB!C188*EFW!AD104)+(PRB!D188*EFW!AD104^2)+(PRB!E188*EFW!AD104^3)+(PRB!F188*sexm)+(PRB!G188*heightn)+(PRB!H188*weightn)+(PRB!I188*EFW!AD104*weightn)+(PRB!J188*parity1)+(PRB!K188*parity2)+(PRB!L188*parity3)+(PRB!M188*EFW!AD104*parity1)+(PRB!N188*EFW!AD104*parity2)+(PRB!O188*EFW!AD104*parity3)) -> 691.1572332 | D83: =EXP((PRB!B189*1)+(PRB!C189*EFW!AD104)+(PRB!D189*EFW!AD104^2)+(PRB!E189*EFW!AD104^3)+(PRB!F189*sexm)+(PRB!G189*heightn)+(PRB!H189*weightn)+(PRB!I189*EFW!AD104*weightn)+(PRB!J189*parity1)+(PRB!K189*parity2)+(PRB!L189*parity3)+(PRB!M189*EFW!AD104*parity1)+(PRB!N189*EFW!AD104*parity2)+(PRB!O189*EFW!AD104*parity3)) -> 721.4689745 | E83: =EXP((PRB!B190*1)+(PRB!C190*EFW!AD104)+(PRB!D190*EFW!AD104^2)+(PRB!E190*EFW!AD104^3)+(PRB!F190*sexm)+(PRB!G190*heightn)+(PRB!H190*weightn)+(PRB!I190*EFW!AD104*weightn)+(PRB!J190*parity1)+(PRB!K190*parity2)+(PRB!L190*parity3)+(PRB!M190*EFW!AD104*parity1)+(PRB!N190*EFW!AD104*parity2)+(PRB!O190*EFW!AD104*parity3)) -> 771.066767 | F83: =EXP((PRB!B191*1)+(PRB!C191*EFW!AD104)+(PRB!D191*EFW!AD104^2)+(PRB!E191*EFW!AD104^3)+(PRB!F191*sexm)+(PRB!G191*heightn)+(PRB!H191*weightn)+(PRB!I191*EFW!AD104*weightn)+(PRB!J191*parity1)+(PRB!K191*parity2)+(PRB!L191*parity3)+(PRB!M191*EFW!AD104*parity1)+(PRB!N191*EFW!AD104*parity2)+(PRB!O191*EFW!AD104*parity3)) -> 826.7703765 | G83: =EXP((PRB!$B$192*1)+(PRB!$C$192*EFW!AD104)+(PRB!$D$192*EFW!AD104^2)+(PRB!$E$192*EFW!AD104^3)+(PRB!$F$192*sexm)+(PRB!$G$192*heightn)+(PRB!$H$192*weightn)+(PRB!$I$192*EFW!AD104*weightn)+(PRB!$J$192*parity1)+(PRB!$K$192*parity2)+(PRB!$L$192*parity3)+(PRB!$M$192*EFW!AD104*parity1)+(PRB!$N$192*EFW!AD104*parity2)+(PRB!$O$192*EFW!AD104*parity3)) -> 887.8376202 | H83: =EXP((PRB!$B$193*1)+(PRB!$C$193*EFW!AD104)+(PRB!$D$193*EFW!AD104^2)+(PRB!$E$193*EFW!AD104^3)+(PRB!$F$193*sexm)+(PRB!$G$193*heightn)+(PRB!$H$193*weightn)+(PRB!$I$193*EFW!AD104*weightn)+(PRB!$J$193*parity1)+(PRB!$K$193*parity2)+(PRB!$L$193*parity3)+(PRB!$M$193*EFW!AD104*parity1)+(PRB!$N$193*EFW!AD104*parity2)+(PRB!$O$193*EFW!AD104*parity3)) -> 952.2673911 | I83: =EXP((PRB!$B$194*1)+(PRB!$C$194*EFW!AD104)+(PRB!$D$194*EFW!AD104^2)+(PRB!$E$194*EFW!AD104^3)+(PRB!$F$194*sexm)+(PRB!$G$194*heightn)+(PRB!$H$194*weightn)+(PRB!$I$194*EFW!AD104*weightn)+(PRB!$J$194*parity1)+(PRB!$K$194*parity2)+(PRB!$L$194*parity3)+(PRB!$M$194*EFW!AD104*parity1)+(PRB!$N$194*EFW!AD104*parity2)+(PRB!$O$194*EFW!AD104*parity3)) -> 993.9174112 | J83: =EXP((PRB!$B$195*1)+(PRB!$C$195*EFW!AD104)+(PRB!$D$195*EFW!AD104^2)+(PRB!$E$195*EFW!AD104^3)+(PRB!$F$195*sexm)+(PRB!$G$195*heightn)+(PRB!$H$195*weightn)+(PRB!$I$195*EFW!AD104*weightn)+(PRB!$J$195*parity1)+(PRB!$K$195*parity2)+(PRB!$L$195*parity3)+(PRB!$M$195*EFW!AD104*parity1)+(PRB!$N$195*EFW!AD104*parity2)+(PRB!$O$195*EFW!AD104*parity3)) -> 1029.430647
A84: 25.71428571 | B84: =EXP((PRB!B187*1)+(PRB!C187*EFW!AD105)+(PRB!D187*EFW!AD105^2)+(PRB!E187*EFW!AD105^3)+(PRB!F187*sexm)+(PRB!G187*heightn)+(PRB!H187*weightn)+(PRB!I187*EFW!AD105*weightn)+(PRB!J187*parity1)+(PRB!K187*parity2)+(PRB!L187*parity3)+(PRB!M187*EFW!AD105*parity1)+(PRB!N187*EFW!AD105*parity2)+(PRB!O187*EFW!AD105*parity3)) -> 678.2329481 | C84: =EXP((PRB!B188*1)+(PRB!C188*EFW!AD105)+(PRB!D188*EFW!AD105^2)+(PRB!E188*EFW!AD105^3)+(PRB!F188*sexm)+(PRB!G188*heightn)+(PRB!H188*weightn)+(PRB!I188*EFW!AD105*weightn)+(PRB!J188*parity1)+(PRB!K188*parity2)+(PRB!L188*parity3)+(PRB!M188*EFW!AD105*parity1)+(PRB!N188*EFW!AD105*parity2)+(PRB!O188*EFW!AD105*parity3)) -> 705.665999 | D84: =EXP((PRB!B189*1)+(PRB!C189*EFW!AD105)+(PRB!D189*EFW!AD105^2)+(PRB!E189*EFW!AD105^3)+(PRB!F189*sexm)+(PRB!G189*heightn)+(PRB!H189*weightn)+(PRB!I189*EFW!AD105*weightn)+(PRB!J189*parity1)+(PRB!K189*parity2)+(PRB!L189*parity3)+(PRB!M189*EFW!AD105*parity1)+(PRB!N189*EFW!AD105*parity2)+(PRB!O189*EFW!AD105*parity3)) -> 736.6419709 | E84: =EXP((PRB!B190*1)+(PRB!C190*EFW!AD105)+(PRB!D190*EFW!AD105^2)+(PRB!E190*EFW!AD105^3)+(PRB!F190*sexm)+(PRB!G190*heightn)+(PRB!H190*weightn)+(PRB!I190*EFW!AD105*weightn)+(PRB!J190*parity1)+(PRB!K190*parity2)+(PRB!L190*parity3)+(PRB!M190*EFW!AD105*parity1)+(PRB!N190*EFW!AD105*parity2)+(PRB!O190*EFW!AD105*parity3)) -> 787.2979706 | F84: =EXP((PRB!B191*1)+(PRB!C191*EFW!AD105)+(PRB!D191*EFW!AD105^2)+(PRB!E191*EFW!AD105^3)+(PRB!F191*sexm)+(PRB!G191*heightn)+(PRB!H191*weightn)+(PRB!I191*EFW!AD105*weightn)+(PRB!J191*parity1)+(PRB!K191*parity2)+(PRB!L191*parity3)+(PRB!M191*EFW!AD105*parity1)+(PRB!N191*EFW!AD105*parity2)+(PRB!O191*EFW!AD105*parity3)) -> 844.1156275 | G84: =EXP((PRB!$B$192*1)+(PRB!$C$192*EFW!AD105)+(PRB!$D$192*EFW!AD105^2)+(PRB!$E$192*EFW!AD105^3)+(PRB!$F$192*sexm)+(PRB!$G$192*heightn)+(PRB!$H$192*weightn)+(PRB!$I$192*EFW!AD105*weightn)+(PRB!$J$192*parity1)+(PRB!$K$192*parity2)+(PRB!$L$192*parity3)+(PRB!$M$192*EFW!AD105*parity1)+(PRB!$N$192*EFW!AD105*parity2)+(PRB!$O$192*EFW!AD105*parity3)) -> 906.4132656 | H84: =EXP((PRB!$B$193*1)+(PRB!$C$193*EFW!AD105)+(PRB!$D$193*EFW!AD105^2)+(PRB!$E$193*EFW!AD105^3)+(PRB!$F$193*sexm)+(PRB!$G$193*heightn)+(PRB!$H$193*weightn)+(PRB!$I$193*EFW!AD105*weightn)+(PRB!$J$193*parity1)+(PRB!$K$193*parity2)+(PRB!$L$193*parity3)+(PRB!$M$193*EFW!AD105*parity1)+(PRB!$N$193*EFW!AD105*parity2)+(PRB!$O$193*EFW!AD105*parity3)) -> 972.1000562 | I84: =EXP((PRB!$B$194*1)+(PRB!$C$194*EFW!AD105)+(PRB!$D$194*EFW!AD105^2)+(PRB!$E$194*EFW!AD105^3)+(PRB!$F$194*sexm)+(PRB!$G$194*heightn)+(PRB!$H$194*weightn)+(PRB!$I$194*EFW!AD105*weightn)+(PRB!$J$194*parity1)+(PRB!$K$194*parity2)+(PRB!$L$194*parity3)+(PRB!$M$194*EFW!AD105*parity1)+(PRB!$N$194*EFW!AD105*parity2)+(PRB!$O$194*EFW!AD105*parity3)) -> 1014.7098 | J84: =EXP((PRB!$B$195*1)+(PRB!$C$195*EFW!AD105)+(PRB!$D$195*EFW!AD105^2)+(PRB!$E$195*EFW!AD105^3)+(PRB!$F$195*sexm)+(PRB!$G$195*heightn)+(PRB!$H$195*weightn)+(PRB!$I$195*EFW!AD105*weightn)+(PRB!$J$195*parity1)+(PRB!$K$195*parity2)+(PRB!$L$195*parity3)+(PRB!$M$195*EFW!AD105*parity1)+(PRB!$N$195*EFW!AD105*parity2)+(PRB!$O$195*EFW!AD105*parity3)) -> 1051.168876
A85: 25.85714286 | B85: =EXP((PRB!B187*1)+(PRB!C187*EFW!AD106)+(PRB!D187*EFW!AD106^2)+(PRB!E187*EFW!AD106^3)+(PRB!F187*sexm)+(PRB!G187*heightn)+(PRB!H187*weightn)+(PRB!I187*EFW!AD106*weightn)+(PRB!J187*parity1)+(PRB!K187*parity2)+(PRB!L187*parity3)+(PRB!M187*EFW!AD106*parity1)+(PRB!N187*EFW!AD106*parity2)+(PRB!O187*EFW!AD106*parity3)) -> 692.3247974 | C85: =EXP((PRB!B188*1)+(PRB!C188*EFW!AD106)+(PRB!D188*EFW!AD106^2)+(PRB!E188*EFW!AD106^3)+(PRB!F188*sexm)+(PRB!G188*heightn)+(PRB!H188*weightn)+(PRB!I188*EFW!AD106*weightn)+(PRB!J188*parity1)+(PRB!K188*parity2)+(PRB!L188*parity3)+(PRB!M188*EFW!AD106*parity1)+(PRB!N188*EFW!AD106*parity2)+(PRB!O188*EFW!AD106*parity3)) -> 720.3697027 | D85: =EXP((PRB!B189*1)+(PRB!C189*EFW!AD106)+(PRB!D189*EFW!AD106^2)+(PRB!E189*EFW!AD106^3)+(PRB!F189*sexm)+(PRB!G189*heightn)+(PRB!H189*weightn)+(PRB!I189*EFW!AD106*weightn)+(PRB!J189*parity1)+(PRB!K189*parity2)+(PRB!L189*parity3)+(PRB!M189*EFW!AD106*parity1)+(PRB!N189*EFW!AD106*parity2)+(PRB!O189*EFW!AD106*parity3)) -> 752.0221252 | E85: =EXP((PRB!B190*1)+(PRB!C190*EFW!AD106)+(PRB!D190*EFW!AD106^2)+(PRB!E190*EFW!AD106^3)+(PRB!F190*sexm)+(PRB!G190*heightn)+(PRB!H190*weightn)+(PRB!I190*EFW!AD106*weightn)+(PRB!J190*parity1)+(PRB!K190*parity2)+(PRB!L190*parity3)+(PRB!M190*EFW!AD106*parity1)+(PRB!N190*EFW!AD106*parity2)+(PRB!O190*EFW!AD106*parity3)) -> 803.7544813 | F85: =EXP((PRB!B191*1)+(PRB!C191*EFW!AD106)+(PRB!D191*EFW!AD106^2)+(PRB!E191*EFW!AD106^3)+(PRB!F191*sexm)+(PRB!G191*heightn)+(PRB!H191*weightn)+(PRB!I191*EFW!AD106*weightn)+(PRB!J191*parity1)+(PRB!K191*parity2)+(PRB!L191*parity3)+(PRB!M191*EFW!AD106*parity1)+(PRB!N191*EFW!AD106*parity2)+(PRB!O191*EFW!AD106*parity3)) -> 861.7006712 | G85: =EXP((PRB!$B$192*1)+(PRB!$C$192*EFW!AD106)+(PRB!$D$192*EFW!AD106^2)+(PRB!$E$192*EFW!AD106^3)+(PRB!$F$192*sexm)+(PRB!$G$192*heightn)+(PRB!$H$192*weightn)+(PRB!$I$192*EFW!AD106*weightn)+(PRB!$J$192*parity1)+(PRB!$K$192*parity2)+(PRB!$L$192*parity3)+(PRB!$M$192*EFW!AD106*parity1)+(PRB!$N$192*EFW!AD106*parity2)+(PRB!$O$192*EFW!AD106*parity3)) -> 925.2463807 | H85: =EXP((PRB!$B$193*1)+(PRB!$C$193*EFW!AD106)+(PRB!$D$193*EFW!AD106^2)+(PRB!$E$193*EFW!AD106^3)+(PRB!$F$193*sexm)+(PRB!$G$193*heightn)+(PRB!$H$193*weightn)+(PRB!$I$193*EFW!AD106*weightn)+(PRB!$J$193*parity1)+(PRB!$K$193*parity2)+(PRB!$L$193*parity3)+(PRB!$M$193*EFW!AD106*parity1)+(PRB!$N$193*EFW!AD106*parity2)+(PRB!$O$193*EFW!AD106*parity3)) -> 992.2062353 | I85: =EXP((PRB!$B$194*1)+(PRB!$C$194*EFW!AD106)+(PRB!$D$194*EFW!AD106^2)+(PRB!$E$194*EFW!AD106^3)+(PRB!$F$194*sexm)+(PRB!$G$194*heightn)+(PRB!$H$194*weightn)+(PRB!$I$194*EFW!AD106*weightn)+(PRB!$J$194*parity1)+(PRB!$K$194*parity2)+(PRB!$L$194*parity3)+(PRB!$M$194*EFW!AD106*parity1)+(PRB!$N$194*EFW!AD106*parity2)+(PRB!$O$194*EFW!AD106*parity3)) -> 1035.794634 | J85: =EXP((PRB!$B$195*1)+(PRB!$C$195*EFW!AD106)+(PRB!$D$195*EFW!AD106^2)+(PRB!$E$195*EFW!AD106^3)+(PRB!$F$195*sexm)+(PRB!$G$195*heightn)+(PRB!$H$195*weightn)+(PRB!$I$195*EFW!AD106*weightn)+(PRB!$J$195*parity1)+(PRB!$K$195*parity2)+(PRB!$L$195*parity3)+(PRB!$M$195*EFW!AD106*parity1)+(PRB!$N$195*EFW!AD106*parity2)+(PRB!$O$195*EFW!AD106*parity3)) -> 1073.219358
A86: 26 | B86: =EXP((PRB!B187*1)+(PRB!C187*EFW!AD107)+(PRB!D187*EFW!AD107^2)+(PRB!E187*EFW!AD107^3)+(PRB!F187*sexm)+(PRB!G187*heightn)+(PRB!H187*weightn)+(PRB!I187*EFW!AD107*weightn)+(PRB!J187*parity1)+(PRB!K187*parity2)+(PRB!L187*parity3)+(PRB!M187*EFW!AD107*parity1)+(PRB!N187*EFW!AD107*parity2)+(PRB!O187*EFW!AD107*parity3)) -> 706.6014121 | C86: =EXP((PRB!B188*1)+(PRB!C188*EFW!AD107)+(PRB!D188*EFW!AD107^2)+(PRB!E188*EFW!AD107^3)+(PRB!F188*sexm)+(PRB!G188*heightn)+(PRB!H188*weightn)+(PRB!I188*EFW!AD107*weightn)+(PRB!J188*parity1)+(PRB!K188*parity2)+(PRB!L188*parity3)+(PRB!M188*EFW!AD107*parity1)+(PRB!N188*EFW!AD107*parity2)+(PRB!O188*EFW!AD107*parity3)) -> 735.2682445 | D86: =EXP((PRB!B189*1)+(PRB!C189*EFW!AD107)+(PRB!D189*EFW!AD107^2)+(PRB!E189*EFW!AD107^3)+(PRB!F189*sexm)+(PRB!G189*heightn)+(PRB!H189*weightn)+(PRB!I189*EFW!AD107*weightn)+(PRB!J189*parity1)+(PRB!K189*parity2)+(PRB!L189*parity3)+(PRB!M189*EFW!AD107*parity1)+(PRB!N189*EFW!AD107*parity2)+(PRB!O189*EFW!AD107*parity3)) -> 767.6094582 | E86: =EXP((PRB!B190*1)+(PRB!C190*EFW!AD107)+(PRB!D190*EFW!AD107^2)+(PRB!E190*EFW!AD107^3)+(PRB!F190*sexm)+(PRB!G190*heightn)+(PRB!H190*weightn)+(PRB!I190*EFW!AD107*weightn)+(PRB!J190*parity1)+(PRB!K190*parity2)+(PRB!L190*parity3)+(PRB!M190*EFW!AD107*parity1)+(PRB!N190*EFW!AD107*parity2)+(PRB!O190*EFW!AD107*parity3)) -> 820.436439 | F86: =EXP((PRB!B191*1)+(PRB!C191*EFW!AD107)+(PRB!D191*EFW!AD107^2)+(PRB!E191*EFW!AD107^3)+(PRB!F191*sexm)+(PRB!G191*heightn)+(PRB!H191*weightn)+(PRB!I191*EFW!AD107*weightn)+(PRB!J191*parity1)+(PRB!K191*parity2)+(PRB!L191*parity3)+(PRB!M191*EFW!AD107*parity1)+(PRB!N191*EFW!AD107*parity2)+(PRB!O191*EFW!AD107*parity3)) -> 879.5257063 | G86: =EXP((PRB!$B$192*1)+(PRB!$C$192*EFW!AD107)+(PRB!$D$192*EFW!AD107^2)+(PRB!$E$192*EFW!AD107^3)+(PRB!$F$192*sexm)+(PRB!$G$192*heightn)+(PRB!$H$192*weightn)+(PRB!$I$192*EFW!AD107*weightn)+(PRB!$J$192*parity1)+(PRB!$K$192*parity2)+(PRB!$L$192*parity3)+(PRB!$M$192*EFW!AD107*parity1)+(PRB!$N$192*EFW!AD107*parity2)+(PRB!$O$192*EFW!AD107*parity3)) -> 944.3371516 | H86: =EXP((PRB!$B$193*1)+(PRB!$C$193*EFW!AD107)+(PRB!$D$193*EFW!AD107^2)+(PRB!$E$193*EFW!AD107^3)+(PRB!$F$193*sexm)+(PRB!$G$193*heightn)+(PRB!$H$193*weightn)+(PRB!$I$193*EFW!AD107*weightn)+(PRB!$J$193*parity1)+(PRB!$K$193*parity2)+(PRB!$L$193*parity3)+(PRB!$M$193*EFW!AD107*parity1)+(PRB!$N$193*EFW!AD107*parity2)+(PRB!$O$193*EFW!AD107*parity3)) -> 1012.586124 | I86: =EXP((PRB!$B$194*1)+(PRB!$C$194*EFW!AD107)+(PRB!$D$194*EFW!AD107^2)+(PRB!$E$194*EFW!AD107^3)+(PRB!$F$194*sexm)+(PRB!$G$194*heightn)+(PRB!$H$194*weightn)+(PRB!$I$194*EFW!AD107*weightn)+(PRB!$J$194*parity1)+(PRB!$K$194*parity2)+(PRB!$L$194*parity3)+(PRB!$M$194*EFW!AD107*parity1)+(PRB!$N$194*EFW!AD107*parity2)+(PRB!$O$194*EFW!AD107*parity3)) -> 1057.172188 | J86: =EXP((PRB!$B$195*1)+(PRB!$C$195*EFW!AD107)+(PRB!$D$195*EFW!AD107^2)+(PRB!$E$195*EFW!AD107^3)+(PRB!$F$195*sexm)+(PRB!$G$195*heightn)+(PRB!$H$195*weightn)+(PRB!$I$195*EFW!AD107*weightn)+(PRB!$J$195*parity1)+(PRB!$K$195*parity2)+(PRB!$L$195*parity3)+(PRB!$M$195*EFW!AD107*parity1)+(PRB!$N$195*EFW!AD107*parity2)+(PRB!$O$195*EFW!AD107*parity3)) -> 1095.582471
A87: 26.14285714 | B87: =EXP((PRB!B187*1)+(PRB!C187*EFW!AD108)+(PRB!D187*EFW!AD108^2)+(PRB!E187*EFW!AD108^3)+(PRB!F187*sexm)+(PRB!G187*heightn)+(PRB!H187*weightn)+(PRB!I187*EFW!AD108*weightn)+(PRB!J187*parity1)+(PRB!K187*parity2)+(PRB!L187*parity3)+(PRB!M187*EFW!AD108*parity1)+(PRB!N187*EFW!AD108*parity2)+(PRB!O187*EFW!AD108*parity3)) -> 721.0624897 | C87: =EXP((PRB!B188*1)+(PRB!C188*EFW!AD108)+(PRB!D188*EFW!AD108^2)+(PRB!E188*EFW!AD108^3)+(PRB!F188*sexm)+(PRB!G188*heightn)+(PRB!H188*weightn)+(PRB!I188*EFW!AD108*weightn)+(PRB!J188*parity1)+(PRB!K188*parity2)+(PRB!L188*parity3)+(PRB!M188*EFW!AD108*parity1)+(PRB!N188*EFW!AD108*parity2)+(PRB!O188*EFW!AD108*parity3)) -> 750.3614549 | D87: =EXP((PRB!B189*1)+(PRB!C189*EFW!AD108)+(PRB!D189*EFW!AD108^2)+(PRB!E189*EFW!AD108^3)+(PRB!F189*sexm)+(PRB!G189*heightn)+(PRB!H189*weightn)+(PRB!I189*EFW!AD108*weightn)+(PRB!J189*parity1)+(PRB!K189*parity2)+(PRB!L189*parity3)+(PRB!M189*EFW!AD108*parity1)+(PRB!N189*EFW!AD108*parity2)+(PRB!O189*EFW!AD108*parity3)) -> 783.4039176 | E87: =EXP((PRB!B190*1)+(PRB!C190*EFW!AD108)+(PRB!D190*EFW!AD108^2)+(PRB!E190*EFW!AD108^3)+(PRB!F190*sexm)+(PRB!G190*heightn)+(PRB!H190*weightn)+(PRB!I190*EFW!AD108*weightn)+(PRB!J190*parity1)+(PRB!K190*parity2)+(PRB!L190*parity3)+(PRB!M190*EFW!AD108*parity1)+(PRB!N190*EFW!AD108*parity2)+(PRB!O190*EFW!AD108*parity3)) -> 837.3439025 | F87: =EXP((PRB!B191*1)+(PRB!C191*EFW!AD108)+(PRB!D191*EFW!AD108^2)+(PRB!E191*EFW!AD108^3)+(PRB!F191*sexm)+(PRB!G191*heightn)+(PRB!H191*weightn)+(PRB!I191*EFW!AD108*weightn)+(PRB!J191*parity1)+(PRB!K191*parity2)+(PRB!L191*parity3)+(PRB!M191*EFW!AD108*parity1)+(PRB!N191*EFW!AD108*parity2)+(PRB!O191*EFW!AD108*parity3)) -> 897.5908507 | G87: =EXP((PRB!$B$192*1)+(PRB!$C$192*EFW!AD108)+(PRB!$D$192*EFW!AD108^2)+(PRB!$E$192*EFW!AD108^3)+(PRB!$F$192*sexm)+(PRB!$G$192*heightn)+(PRB!$H$192*weightn)+(PRB!$I$192*EFW!AD108*weightn)+(PRB!$J$192*parity1)+(PRB!$K$192*parity2)+(PRB!$L$192*parity3)+(PRB!$M$192*EFW!AD108*parity1)+(PRB!$N$192*EFW!AD108*parity2)+(PRB!$O$192*EFW!AD108*parity3)) -> 963.6856719 | H87: =EXP((PRB!$B$193*1)+(PRB!$C$193*EFW!AD108)+(PRB!$D$193*EFW!AD108^2)+(PRB!$E$193*EFW!AD108^3)+(PRB!$F$193*sexm)+(PRB!$G$193*heightn)+(PRB!$H$193*weightn)+(PRB!$I$193*EFW!AD108*weightn)+(PRB!$J$193*parity1)+(PRB!$K$193*parity2)+(PRB!$L$193*parity3)+(PRB!$M$193*EFW!AD108*parity1)+(PRB!$N$193*EFW!AD108*parity2)+(PRB!$O$193*EFW!AD108*parity3)) -> 1033.239819 | I87: =EXP((PRB!$B$194*1)+(PRB!$C$194*EFW!AD108)+(PRB!$D$194*EFW!AD108^2)+(PRB!$E$194*EFW!AD108^3)+(PRB!$F$194*sexm)+(PRB!$G$194*heightn)+(PRB!$H$194*weightn)+(PRB!$I$194*EFW!AD108*weightn)+(PRB!$J$194*parity1)+(PRB!$K$194*parity2)+(PRB!$L$194*parity3)+(PRB!$M$194*EFW!AD108*parity1)+(PRB!$N$194*EFW!AD108*parity2)+(PRB!$O$194*EFW!AD108*parity3)) -> 1078.842623 | J87: =EXP((PRB!$B$195*1)+(PRB!$C$195*EFW!AD108)+(PRB!$D$195*EFW!AD108^2)+(PRB!$E$195*EFW!AD108^3)+(PRB!$F$195*sexm)+(PRB!$G$195*heightn)+(PRB!$H$195*weightn)+(PRB!$I$195*EFW!AD108*weightn)+(PRB!$J$195*parity1)+(PRB!$K$195*parity2)+(PRB!$L$195*parity3)+(PRB!$M$195*EFW!AD108*parity1)+(PRB!$N$195*EFW!AD108*parity2)+(PRB!$O$195*EFW!AD108*parity3)) -> 1118.25847
A88: 26.28571429 | B88: =EXP((PRB!B187*1)+(PRB!C187*EFW!AD109)+(PRB!D187*EFW!AD109^2)+(PRB!E187*EFW!AD109^3)+(PRB!F187*sexm)+(PRB!G187*heightn)+(PRB!H187*weightn)+(PRB!I187*EFW!AD109*weightn)+(PRB!J187*parity1)+(PRB!K187*parity2)+(PRB!L187*parity3)+(PRB!M187*EFW!AD109*parity1)+(PRB!N187*EFW!AD109*parity2)+(PRB!O187*EFW!AD109*parity3)) -> 735.7076541 | C88: =EXP((PRB!B188*1)+(PRB!C188*EFW!AD109)+(PRB!D188*EFW!AD109^2)+(PRB!E188*EFW!AD109^3)+(PRB!F188*sexm)+(PRB!G188*heightn)+(PRB!H188*weightn)+(PRB!I188*EFW!AD109*weightn)+(PRB!J188*parity1)+(PRB!K188*parity2)+(PRB!L188*parity3)+(PRB!M188*EFW!AD109*parity1)+(PRB!N188*EFW!AD109*parity2)+(PRB!O188*EFW!AD109*parity3)) -> 765.6490938 | D88: =EXP((PRB!B189*1)+(PRB!C189*EFW!AD109)+(PRB!D189*EFW!AD109^2)+(PRB!E189*EFW!AD109^3)+(PRB!F189*sexm)+(PRB!G189*heightn)+(PRB!H189*weightn)+(PRB!I189*EFW!AD109*weightn)+(PRB!J189*parity1)+(PRB!K189*parity2)+(PRB!L189*parity3)+(PRB!M189*EFW!AD109*parity1)+(PRB!N189*EFW!AD109*parity2)+(PRB!O189*EFW!AD109*parity3)) -> 799.4053771 | E88: =EXP((PRB!B190*1)+(PRB!C190*EFW!AD109)+(PRB!D190*EFW!AD109^2)+(PRB!E190*EFW!AD109^3)+(PRB!F190*sexm)+(PRB!G190*heightn)+(PRB!H190*weightn)+(PRB!I190*EFW!AD109*weightn)+(PRB!J190*parity1)+(PRB!K190*parity2)+(PRB!L190*parity3)+(PRB!M190*EFW!AD109*parity1)+(PRB!N190*EFW!AD109*parity2)+(PRB!O190*EFW!AD109*parity3)) -> 854.4768488 | F88: =EXP((PRB!B191*1)+(PRB!C191*EFW!AD109)+(PRB!D191*EFW!AD109^2)+(PRB!E191*EFW!AD109^3)+(PRB!F191*sexm)+(PRB!G191*heightn)+(PRB!H191*weightn)+(PRB!I191*EFW!AD109*weightn)+(PRB!J191*parity1)+(PRB!K191*parity2)+(PRB!L191*parity3)+(PRB!M191*EFW!AD109*parity1)+(PRB!N191*EFW!AD109*parity2)+(PRB!O191*EFW!AD109*parity3)) -> 915.8961403 | G88: =EXP((PRB!$B$192*1)+(PRB!$C$192*EFW!AD109)+(PRB!$D$192*EFW!AD109^2)+(PRB!$E$192*EFW!AD109^3)+(PRB!$F$192*sexm)+(PRB!$G$192*heightn)+(PRB!$H$192*weightn)+(PRB!$I$192*EFW!AD109*weightn)+(PRB!$J$192*parity1)+(PRB!$K$192*parity2)+(PRB!$L$192*parity3)+(PRB!$M$192*EFW!AD109*parity1)+(PRB!$N$192*EFW!AD109*parity2)+(PRB!$O$192*EFW!AD109*parity3)) -> 983.2919412 | H88: =EXP((PRB!$B$193*1)+(PRB!$C$193*EFW!AD109)+(PRB!$D$193*EFW!AD109^2)+(PRB!$E$193*EFW!AD109^3)+(PRB!$F$193*sexm)+(PRB!$G$193*heightn)+(PRB!$H$193*weightn)+(PRB!$I$193*EFW!AD109*weightn)+(PRB!$J$193*parity1)+(PRB!$K$193*parity2)+(PRB!$L$193*parity3)+(PRB!$M$193*EFW!AD109*parity1)+(PRB!$N$193*EFW!AD109*parity2)+(PRB!$O$193*EFW!AD109*parity3)) -> 1054.16732 | I88: =EXP((PRB!$B$194*1)+(PRB!$C$194*EFW!AD109)+(PRB!$D$194*EFW!AD109^2)+(PRB!$E$194*EFW!AD109^3)+(PRB!$F$194*sexm)+(PRB!$G$194*heightn)+(PRB!$H$194*weightn)+(PRB!$I$194*EFW!AD109*weightn)+(PRB!$J$194*parity1)+(PRB!$K$194*parity2)+(PRB!$L$194*parity3)+(PRB!$M$194*EFW!AD109*parity1)+(PRB!$N$194*EFW!AD109*parity2)+(PRB!$O$194*EFW!AD109*parity3)) -> 1100.805988 | J88: =EXP((PRB!$B$195*1)+(PRB!$C$195*EFW!AD109)+(PRB!$D$195*EFW!AD109^2)+(PRB!$E$195*EFW!AD109^3)+(PRB!$F$195*sexm)+(PRB!$G$195*heightn)+(PRB!$H$195*weightn)+(PRB!$I$195*EFW!AD109*weightn)+(PRB!$J$195*parity1)+(PRB!$K$195*parity2)+(PRB!$L$195*parity3)+(PRB!$M$195*EFW!AD109*parity1)+(PRB!$N$195*EFW!AD109*parity2)+(PRB!$O$195*EFW!AD109*parity3)) -> 1141.247477
A89: 26.42857143 | B89: =EXP((PRB!B187*1)+(PRB!C187*EFW!AD110)+(PRB!D187*EFW!AD110^2)+(PRB!E187*EFW!AD110^3)+(PRB!F187*sexm)+(PRB!G187*heightn)+(PRB!H187*weightn)+(PRB!I187*EFW!AD110*weightn)+(PRB!J187*parity1)+(PRB!K187*parity2)+(PRB!L187*parity3)+(PRB!M187*EFW!AD110*parity1)+(PRB!N187*EFW!AD110*parity2)+(PRB!O187*EFW!AD110*parity3)) -> 750.5364551 | C89: =EXP((PRB!B188*1)+(PRB!C188*EFW!AD110)+(PRB!D188*EFW!AD110^2)+(PRB!E188*EFW!AD110^3)+(PRB!F188*sexm)+(PRB!G188*heightn)+(PRB!H188*weightn)+(PRB!I188*EFW!AD110*weightn)+(PRB!J188*parity1)+(PRB!K188*parity2)+(PRB!L188*parity3)+(PRB!M188*EFW!AD110*parity1)+(PRB!N188*EFW!AD110*parity2)+(PRB!O188*EFW!AD110*parity3)) -> 781.13085 | D89: =EXP((PRB!B189*1)+(PRB!C189*EFW!AD110)+(PRB!D189*EFW!AD110^2)+(PRB!E189*EFW!AD110^3)+(PRB!F189*sexm)+(PRB!G189*heightn)+(PRB!H189*weightn)+(PRB!I189*EFW!AD110*weightn)+(PRB!J189*parity1)+(PRB!K189*parity2)+(PRB!L189*parity3)+(PRB!M189*EFW!AD110*parity1)+(PRB!N189*EFW!AD110*parity2)+(PRB!O189*EFW!AD110*parity3)) -> 815.6136352 | E89: =EXP((PRB!B190*1)+(PRB!C190*EFW!AD110)+(PRB!D190*EFW!AD110^2)+(PRB!E190*EFW!AD110^3)+(PRB!F190*sexm)+(PRB!G190*heightn)+(PRB!H190*weightn)+(PRB!I190*EFW!AD110*weightn)+(PRB!J190*parity1)+(PRB!K190*parity2)+(PRB!L190*parity3)+(PRB!M190*EFW!AD110*parity1)+(PRB!N190*EFW!AD110*parity2)+(PRB!O190*EFW!AD110*parity3)) -> 871.8351714 | F89: =EXP((PRB!B191*1)+(PRB!C191*EFW!AD110)+(PRB!D191*EFW!AD110^2)+(PRB!E191*EFW!AD110^3)+(PRB!F191*sexm)+(PRB!G191*heightn)+(PRB!H191*weightn)+(PRB!I191*EFW!AD110*weightn)+(PRB!J191*parity1)+(PRB!K191*parity2)+(PRB!L191*parity3)+(PRB!M191*EFW!AD110*parity1)+(PRB!N191*EFW!AD110*parity2)+(PRB!O191*EFW!AD110*parity3)) -> 934.4415279 | G89: =EXP((PRB!$B$192*1)+(PRB!$C$192*EFW!AD110)+(PRB!$D$192*EFW!AD110^2)+(PRB!$E$192*EFW!AD110^3)+(PRB!$F$192*sexm)+(PRB!$G$192*heightn)+(PRB!$H$192*weightn)+(PRB!$I$192*EFW!AD110*weightn)+(PRB!$J$192*parity1)+(PRB!$K$192*parity2)+(PRB!$L$192*parity3)+(PRB!$M$192*EFW!AD110*parity1)+(PRB!$N$192*EFW!AD110*parity2)+(PRB!$O$192*EFW!AD110*parity3)) -> 1003.155863 | H89: =EXP((PRB!$B$193*1)+(PRB!$C$193*EFW!AD110)+(PRB!$D$193*EFW!AD110^2)+(PRB!$E$193*EFW!AD110^3)+(PRB!$F$193*sexm)+(PRB!$G$193*heightn)+(PRB!$H$193*weightn)+(PRB!$I$193*EFW!AD110*weightn)+(PRB!$J$193*parity1)+(PRB!$K$193*parity2)+(PRB!$L$193*parity3)+(PRB!$M$193*EFW!AD110*parity1)+(PRB!$N$193*EFW!AD110*parity2)+(PRB!$O$193*EFW!AD110*parity3)) -> 1075.368526 | I89: =EXP((PRB!$B$194*1)+(PRB!$C$194*EFW!AD110)+(PRB!$D$194*EFW!AD110^2)+(PRB!$E$194*EFW!AD110^3)+(PRB!$F$194*sexm)+(PRB!$G$194*heightn)+(PRB!$H$194*weightn)+(PRB!$I$194*EFW!AD110*weightn)+(PRB!$J$194*parity1)+(PRB!$K$194*parity2)+(PRB!$L$194*parity3)+(PRB!$M$194*EFW!AD110*parity1)+(PRB!$N$194*EFW!AD110*parity2)+(PRB!$O$194*EFW!AD110*parity3)) -> 1123.06221 | J89: =EXP((PRB!$B$195*1)+(PRB!$C$195*EFW!AD110)+(PRB!$D$195*EFW!AD110^2)+(PRB!$E$195*EFW!AD110^3)+(PRB!$F$195*sexm)+(PRB!$G$195*heightn)+(PRB!$H$195*weightn)+(PRB!$I$195*EFW!AD110*weightn)+(PRB!$J$195*parity1)+(PRB!$K$195*parity2)+(PRB!$L$195*parity3)+(PRB!$M$195*EFW!AD110*parity1)+(PRB!$N$195*EFW!AD110*parity2)+(PRB!$O$195*EFW!AD110*parity3)) -> 1164.549485
A90: 26.57142857 | B90: =EXP((PRB!B187*1)+(PRB!C187*EFW!AD111)+(PRB!D187*EFW!AD111^2)+(PRB!E187*EFW!AD111^3)+(PRB!F187*sexm)+(PRB!G187*heightn)+(PRB!H187*weightn)+(PRB!I187*EFW!AD111*weightn)+(PRB!J187*parity1)+(PRB!K187*parity2)+(PRB!L187*parity3)+(PRB!M187*EFW!AD111*parity1)+(PRB!N187*EFW!AD111*parity2)+(PRB!O187*EFW!AD111*parity3)) -> 765.5483672 | C90: =EXP((PRB!B188*1)+(PRB!C188*EFW!AD111)+(PRB!D188*EFW!AD111^2)+(PRB!E188*EFW!AD111^3)+(PRB!F188*sexm)+(PRB!G188*heightn)+(PRB!H188*weightn)+(PRB!I188*EFW!AD111*weightn)+(PRB!J188*parity1)+(PRB!K188*parity2)+(PRB!L188*parity3)+(PRB!M188*EFW!AD111*parity1)+(PRB!N188*EFW!AD111*parity2)+(PRB!O188*EFW!AD111*parity3)) -> 796.8063405 | D90: =EXP((PRB!B189*1)+(PRB!C189*EFW!AD111)+(PRB!D189*EFW!AD111^2)+(PRB!E189*EFW!AD111^3)+(PRB!F189*sexm)+(PRB!G189*heightn)+(PRB!H189*weightn)+(PRB!I189*EFW!AD111*weightn)+(PRB!J189*parity1)+(PRB!K189*parity2)+(PRB!L189*parity3)+(PRB!M189*EFW!AD111*parity1)+(PRB!N189*EFW!AD111*parity2)+(PRB!O189*EFW!AD111*parity3)) -> 832.0284149 | E90: =EXP((PRB!B190*1)+(PRB!C190*EFW!AD111)+(PRB!D190*EFW!AD111^2)+(PRB!E190*EFW!AD111^3)+(PRB!F190*sexm)+(PRB!G190*heightn)+(PRB!H190*weightn)+(PRB!I190*EFW!AD111*weightn)+(PRB!J190*parity1)+(PRB!K190*parity2)+(PRB!L190*parity3)+(PRB!M190*EFW!AD111*parity1)+(PRB!N190*EFW!AD111*parity2)+(PRB!O190*EFW!AD111*parity3)) -> 889.418679 | F90: =EXP((PRB!B191*1)+(PRB!C191*EFW!AD111)+(PRB!D191*EFW!AD111^2)+(PRB!E191*EFW!AD111^3)+(PRB!F191*sexm)+(PRB!G191*heightn)+(PRB!H191*weightn)+(PRB!I191*EFW!AD111*weightn)+(PRB!J191*parity1)+(PRB!K191*parity2)+(PRB!L191*parity3)+(PRB!M191*EFW!AD111*parity1)+(PRB!N191*EFW!AD111*parity2)+(PRB!O191*EFW!AD111*parity3)) -> 953.2268817 | G90: =EXP((PRB!$B$192*1)+(PRB!$C$192*EFW!AD111)+(PRB!$D$192*EFW!AD111^2)+(PRB!$E$192*EFW!AD111^3)+(PRB!$F$192*sexm)+(PRB!$G$192*heightn)+(PRB!$H$192*weightn)+(PRB!$I$192*EFW!AD111*weightn)+(PRB!$J$192*parity1)+(PRB!$K$192*parity2)+(PRB!$L$192*parity3)+(PRB!$M$192*EFW!AD111*parity1)+(PRB!$N$192*EFW!AD111*parity2)+(PRB!$O$192*EFW!AD111*parity3)) -> 1023.277244 | H90: =EXP((PRB!$B$193*1)+(PRB!$C$193*EFW!AD111)+(PRB!$D$193*EFW!AD111^2)+(PRB!$E$193*EFW!AD111^3)+(PRB!$F$193*sexm)+(PRB!$G$193*heightn)+(PRB!$H$193*weightn)+(PRB!$I$193*EFW!AD111*weightn)+(PRB!$J$193*parity1)+(PRB!$K$193*parity2)+(PRB!$L$193*parity3)+(PRB!$M$193*EFW!AD111*parity1)+(PRB!$N$193*EFW!AD111*parity2)+(PRB!$O$193*EFW!AD111*parity3)) -> 1096.843233 | I90: =EXP((PRB!$B$194*1)+(PRB!$C$194*EFW!AD111)+(PRB!$D$194*EFW!AD111^2)+(PRB!$E$194*EFW!AD111^3)+(PRB!$F$194*sexm)+(PRB!$G$194*heightn)+(PRB!$H$194*weightn)+(PRB!$I$194*EFW!AD111*weightn)+(PRB!$J$194*parity1)+(PRB!$K$194*parity2)+(PRB!$L$194*parity3)+(PRB!$M$194*EFW!AD111*parity1)+(PRB!$N$194*EFW!AD111*parity2)+(PRB!$O$194*EFW!AD111*parity3)) -> 1145.611101 | J90: =EXP((PRB!$B$195*1)+(PRB!$C$195*EFW!AD111)+(PRB!$D$195*EFW!AD111^2)+(PRB!$E$195*EFW!AD111^3)+(PRB!$F$195*sexm)+(PRB!$G$195*heightn)+(PRB!$H$195*weightn)+(PRB!$I$195*EFW!AD111*weightn)+(PRB!$J$195*parity1)+(PRB!$K$195*parity2)+(PRB!$L$195*parity3)+(PRB!$M$195*EFW!AD111*parity1)+(PRB!$N$195*EFW!AD111*parity2)+(PRB!$O$195*EFW!AD111*parity3)) -> 1188.164349
A91: 26.71428571 | B91: =EXP((PRB!B187*1)+(PRB!C187*EFW!AD112)+(PRB!D187*EFW!AD112^2)+(PRB!E187*EFW!AD112^3)+(PRB!F187*sexm)+(PRB!G187*heightn)+(PRB!H187*weightn)+(PRB!I187*EFW!AD112*weightn)+(PRB!J187*parity1)+(PRB!K187*parity2)+(PRB!L187*parity3)+(PRB!M187*EFW!AD112*parity1)+(PRB!N187*EFW!AD112*parity2)+(PRB!O187*EFW!AD112*parity3)) -> 780.7427892 | C91: =EXP((PRB!B188*1)+(PRB!C188*EFW!AD112)+(PRB!D188*EFW!AD112^2)+(PRB!E188*EFW!AD112^3)+(PRB!F188*sexm)+(PRB!G188*heightn)+(PRB!H188*weightn)+(PRB!I188*EFW!AD112*weightn)+(PRB!J188*parity1)+(PRB!K188*parity2)+(PRB!L188*parity3)+(PRB!M188*EFW!AD112*parity1)+(PRB!N188*EFW!AD112*parity2)+(PRB!O188*EFW!AD112*parity3)) -> 812.6751096 | D91: =EXP((PRB!B189*1)+(PRB!C189*EFW!AD112)+(PRB!D189*EFW!AD112^2)+(PRB!E189*EFW!AD112^3)+(PRB!F189*sexm)+(PRB!G189*heightn)+(PRB!H189*weightn)+(PRB!I189*EFW!AD112*weightn)+(PRB!J189*parity1)+(PRB!K189*parity2)+(PRB!L189*parity3)+(PRB!M189*EFW!AD112*parity1)+(PRB!N189*EFW!AD112*parity2)+(PRB!O189*EFW!AD112*parity3)) -> 848.6493621 | E91: =EXP((PRB!B190*1)+(PRB!C190*EFW!AD112)+(PRB!D190*EFW!AD112^2)+(PRB!E190*EFW!AD112^3)+(PRB!F190*sexm)+(PRB!G190*heightn)+(PRB!H190*weightn)+(PRB!I190*EFW!AD112*weightn)+(PRB!J190*parity1)+(PRB!K190*parity2)+(PRB!L190*parity3)+(PRB!M190*EFW!AD112*parity1)+(PRB!N190*EFW!AD112*parity2)+(PRB!O190*EFW!AD112*parity3)) -> 907.2270946 | F91: =EXP((PRB!B191*1)+(PRB!C191*EFW!AD112)+(PRB!D191*EFW!AD112^2)+(PRB!E191*EFW!AD112^3)+(PRB!F191*sexm)+(PRB!G191*heightn)+(PRB!H191*weightn)+(PRB!I191*EFW!AD112*weightn)+(PRB!J191*parity1)+(PRB!K191*parity2)+(PRB!L191*parity3)+(PRB!M191*EFW!AD112*parity1)+(PRB!N191*EFW!AD112*parity2)+(PRB!O191*EFW!AD112*parity3)) -> 972.2519849 | G91: =EXP((PRB!$B$192*1)+(PRB!$C$192*EFW!AD112)+(PRB!$D$192*EFW!AD112^2)+(PRB!$E$192*EFW!AD112^3)+(PRB!$F$192*sexm)+(PRB!$G$192*heightn)+(PRB!$H$192*weightn)+(PRB!$I$192*EFW!AD112*weightn)+(PRB!$J$192*parity1)+(PRB!$K$192*parity2)+(PRB!$L$192*parity3)+(PRB!$M$192*EFW!AD112*parity1)+(PRB!$N$192*EFW!AD112*parity2)+(PRB!$O$192*EFW!AD112*parity3)) -> 1043.655792 | H91: =EXP((PRB!$B$193*1)+(PRB!$C$193*EFW!AD112)+(PRB!$D$193*EFW!AD112^2)+(PRB!$E$193*EFW!AD112^3)+(PRB!$F$193*sexm)+(PRB!$G$193*heightn)+(PRB!$H$193*weightn)+(PRB!$I$193*EFW!AD112*weightn)+(PRB!$J$193*parity1)+(PRB!$K$193*parity2)+(PRB!$L$193*parity3)+(PRB!$M$193*EFW!AD112*parity1)+(PRB!$N$193*EFW!AD112*parity2)+(PRB!$O$193*EFW!AD112*parity3)) -> 1118.591134 | I91: =EXP((PRB!$B$194*1)+(PRB!$C$194*EFW!AD112)+(PRB!$D$194*EFW!AD112^2)+(PRB!$E$194*EFW!AD112^3)+(PRB!$F$194*sexm)+(PRB!$G$194*heightn)+(PRB!$H$194*weightn)+(PRB!$I$194*EFW!AD112*weightn)+(PRB!$J$194*parity1)+(PRB!$K$194*parity2)+(PRB!$L$194*parity3)+(PRB!$M$194*EFW!AD112*parity1)+(PRB!$N$194*EFW!AD112*parity2)+(PRB!$O$194*EFW!AD112*parity3)) -> 1168.452347 | J91: =EXP((PRB!$B$195*1)+(PRB!$C$195*EFW!AD112)+(PRB!$D$195*EFW!AD112^2)+(PRB!$E$195*EFW!AD112^3)+(PRB!$F$195*sexm)+(PRB!$G$195*heightn)+(PRB!$H$195*weightn)+(PRB!$I$195*EFW!AD112*weightn)+(PRB!$J$195*parity1)+(PRB!$K$195*parity2)+(PRB!$L$195*parity3)+(PRB!$M$195*EFW!AD112*parity1)+(PRB!$N$195*EFW!AD112*parity2)+(PRB!$O$195*EFW!AD112*parity3)) -> 1212.091789
A92: 26.85714286 | B92: =EXP((PRB!B187*1)+(PRB!C187*EFW!AD113)+(PRB!D187*EFW!AD113^2)+(PRB!E187*EFW!AD113^3)+(PRB!F187*sexm)+(PRB!G187*heightn)+(PRB!H187*weightn)+(PRB!I187*EFW!AD113*weightn)+(PRB!J187*parity1)+(PRB!K187*parity2)+(PRB!L187*parity3)+(PRB!M187*EFW!AD113*parity1)+(PRB!N187*EFW!AD113*parity2)+(PRB!O187*EFW!AD113*parity3)) -> 796.1190433 | C92: =EXP((PRB!B188*1)+(PRB!C188*EFW!AD113)+(PRB!D188*EFW!AD113^2)+(PRB!E188*EFW!AD113^3)+(PRB!F188*sexm)+(PRB!G188*heightn)+(PRB!H188*weightn)+(PRB!I188*EFW!AD113*weightn)+(PRB!J188*parity1)+(PRB!K188*parity2)+(PRB!L188*parity3)+(PRB!M188*EFW!AD113*parity1)+(PRB!N188*EFW!AD113*parity2)+(PRB!O188*EFW!AD113*parity3)) -> 828.7366287 | D92: =EXP((PRB!B189*1)+(PRB!C189*EFW!AD113)+(PRB!D189*EFW!AD113^2)+(PRB!E189*EFW!AD113^3)+(PRB!F189*sexm)+(PRB!G189*heightn)+(PRB!H189*weightn)+(PRB!I189*EFW!AD113*weightn)+(PRB!J189*parity1)+(PRB!K189*parity2)+(PRB!L189*parity3)+(PRB!M189*EFW!AD113*parity1)+(PRB!N189*EFW!AD113*parity2)+(PRB!O189*EFW!AD113*parity3)) -> 865.4760453 | E92: =EXP((PRB!B190*1)+(PRB!C190*EFW!AD113)+(PRB!D190*EFW!AD113^2)+(PRB!E190*EFW!AD113^3)+(PRB!F190*sexm)+(PRB!G190*heightn)+(PRB!H190*weightn)+(PRB!I190*EFW!AD113*weightn)+(PRB!J190*parity1)+(PRB!K190*parity2)+(PRB!L190*parity3)+(PRB!M190*EFW!AD113*parity1)+(PRB!N190*EFW!AD113*parity2)+(PRB!O190*EFW!AD113*parity3)) -> 925.2600542 | F92: =EXP((PRB!B191*1)+(PRB!C191*EFW!AD113)+(PRB!D191*EFW!AD113^2)+(PRB!E191*EFW!AD113^3)+(PRB!F191*sexm)+(PRB!G191*heightn)+(PRB!H191*weightn)+(PRB!I191*EFW!AD113*weightn)+(PRB!J191*parity1)+(PRB!K191*parity2)+(PRB!L191*parity3)+(PRB!M191*EFW!AD113*parity1)+(PRB!N191*EFW!AD113*parity2)+(PRB!O191*EFW!AD113*parity3)) -> 991.5165339 | G92: =EXP((PRB!$B$192*1)+(PRB!$C$192*EFW!AD113)+(PRB!$D$192*EFW!AD113^2)+(PRB!$E$192*EFW!AD113^3)+(PRB!$F$192*sexm)+(PRB!$G$192*heightn)+(PRB!$H$192*weightn)+(PRB!$I$192*EFW!AD113*weightn)+(PRB!$J$192*parity1)+(PRB!$K$192*parity2)+(PRB!$L$192*parity3)+(PRB!$M$192*EFW!AD113*parity1)+(PRB!$N$192*EFW!AD113*parity2)+(PRB!$O$192*EFW!AD113*parity3)) -> 1064.291115 | H92: =EXP((PRB!$B$193*1)+(PRB!$C$193*EFW!AD113)+(PRB!$D$193*EFW!AD113^2)+(PRB!$E$193*EFW!AD113^3)+(PRB!$F$193*sexm)+(PRB!$G$193*heightn)+(PRB!$H$193*weightn)+(PRB!$I$193*EFW!AD113*weightn)+(PRB!$J$193*parity1)+(PRB!$K$193*parity2)+(PRB!$L$193*parity3)+(PRB!$M$193*EFW!AD113*parity1)+(PRB!$N$193*EFW!AD113*parity2)+(PRB!$O$193*EFW!AD113*parity3)) -> 1140.611816 | I92: =EXP((PRB!$B$194*1)+(PRB!$C$194*EFW!AD113)+(PRB!$D$194*EFW!AD113^2)+(PRB!$E$194*EFW!AD113^3)+(PRB!$F$194*sexm)+(PRB!$G$194*heightn)+(PRB!$H$194*weightn)+(PRB!$I$194*EFW!AD113*weightn)+(PRB!$J$194*parity1)+(PRB!$K$194*parity2)+(PRB!$L$194*parity3)+(PRB!$M$194*EFW!AD113*parity1)+(PRB!$N$194*EFW!AD113*parity2)+(PRB!$O$194*EFW!AD113*parity3)) -> 1191.585515 | J92: =EXP((PRB!$B$195*1)+(PRB!$C$195*EFW!AD113)+(PRB!$D$195*EFW!AD113^2)+(PRB!$E$195*EFW!AD113^3)+(PRB!$F$195*sexm)+(PRB!$G$195*heightn)+(PRB!$H$195*weightn)+(PRB!$I$195*EFW!AD113*weightn)+(PRB!$J$195*parity1)+(PRB!$K$195*parity2)+(PRB!$L$195*parity3)+(PRB!$M$195*EFW!AD113*parity1)+(PRB!$N$195*EFW!AD113*parity2)+(PRB!$O$195*EFW!AD113*parity3)) -> 1236.331383
A93: 27 | B93: =EXP((PRB!B187*1)+(PRB!C187*EFW!AD114)+(PRB!D187*EFW!AD114^2)+(PRB!E187*EFW!AD114^3)+(PRB!F187*sexm)+(PRB!G187*heightn)+(PRB!H187*weightn)+(PRB!I187*EFW!AD114*weightn)+(PRB!J187*parity1)+(PRB!K187*parity2)+(PRB!L187*parity3)+(PRB!M187*EFW!AD114*parity1)+(PRB!N187*EFW!AD114*parity2)+(PRB!O187*EFW!AD114*parity3)) -> 811.6763745 | C93: =EXP((PRB!B188*1)+(PRB!C188*EFW!AD114)+(PRB!D188*EFW!AD114^2)+(PRB!E188*EFW!AD114^3)+(PRB!F188*sexm)+(PRB!G188*heightn)+(PRB!H188*weightn)+(PRB!I188*EFW!AD114*weightn)+(PRB!J188*parity1)+(PRB!K188*parity2)+(PRB!L188*parity3)+(PRB!M188*EFW!AD114*parity1)+(PRB!N188*EFW!AD114*parity2)+(PRB!O188*EFW!AD114*parity3)) -> 844.9902953 | D93: =EXP((PRB!B189*1)+(PRB!C189*EFW!AD114)+(PRB!D189*EFW!AD114^2)+(PRB!E189*EFW!AD114^3)+(PRB!F189*sexm)+(PRB!G189*heightn)+(PRB!H189*weightn)+(PRB!I189*EFW!AD114*weightn)+(PRB!J189*parity1)+(PRB!K189*parity2)+(PRB!L189*parity3)+(PRB!M189*EFW!AD114*parity1)+(PRB!N189*EFW!AD114*parity2)+(PRB!O189*EFW!AD114*parity3)) -> 882.5079548 | E93: =EXP((PRB!B190*1)+(PRB!C190*EFW!AD114)+(PRB!D190*EFW!AD114^2)+(PRB!E190*EFW!AD114^3)+(PRB!F190*sexm)+(PRB!G190*heightn)+(PRB!H190*weightn)+(PRB!I190*EFW!AD114*weightn)+(PRB!J190*parity1)+(PRB!K190*parity2)+(PRB!L190*parity3)+(PRB!M190*EFW!AD114*parity1)+(PRB!N190*EFW!AD114*parity2)+(PRB!O190*EFW!AD114*parity3)) -> 943.5171054 | F93: =EXP((PRB!B191*1)+(PRB!C191*EFW!AD114)+(PRB!D191*EFW!AD114^2)+(PRB!E191*EFW!AD114^3)+(PRB!F191*sexm)+(PRB!G191*heightn)+(PRB!H191*weightn)+(PRB!I191*EFW!AD114*weightn)+(PRB!J191*parity1)+(PRB!K191*parity2)+(PRB!L191*parity3)+(PRB!M191*EFW!AD114*parity1)+(PRB!N191*EFW!AD114*parity2)+(PRB!O191*EFW!AD114*parity3)) -> 1011.020138 | G93: =EXP((PRB!$B$192*1)+(PRB!$C$192*EFW!AD114)+(PRB!$D$192*EFW!AD114^2)+(PRB!$E$192*EFW!AD114^3)+(PRB!$F$192*sexm)+(PRB!$G$192*heightn)+(PRB!$H$192*weightn)+(PRB!$I$192*EFW!AD114*weightn)+(PRB!$J$192*parity1)+(PRB!$K$192*parity2)+(PRB!$L$192*parity3)+(PRB!$M$192*EFW!AD114*parity1)+(PRB!$N$192*EFW!AD114*parity2)+(PRB!$O$192*EFW!AD114*parity3)) -> 1085.182719 | H93: =EXP((PRB!$B$193*1)+(PRB!$C$193*EFW!AD114)+(PRB!$D$193*EFW!AD114^2)+(PRB!$E$193*EFW!AD114^3)+(PRB!$F$193*sexm)+(PRB!$G$193*heightn)+(PRB!$H$193*weightn)+(PRB!$I$193*EFW!AD114*weightn)+(PRB!$J$193*parity1)+(PRB!$K$193*parity2)+(PRB!$L$193*parity3)+(PRB!$M$193*EFW!AD114*parity1)+(PRB!$N$193*EFW!AD114*parity2)+(PRB!$O$193*EFW!AD114*parity3)) -> 1162.904761 | I93: =EXP((PRB!$B$194*1)+(PRB!$C$194*EFW!AD114)+(PRB!$D$194*EFW!AD114^2)+(PRB!$E$194*EFW!AD114^3)+(PRB!$F$194*sexm)+(PRB!$G$194*heightn)+(PRB!$H$194*weightn)+(PRB!$I$194*EFW!AD114*weightn)+(PRB!$J$194*parity1)+(PRB!$K$194*parity2)+(PRB!$L$194*parity3)+(PRB!$M$194*EFW!AD114*parity1)+(PRB!$N$194*EFW!AD114*parity2)+(PRB!$O$194*EFW!AD114*parity3)) -> 1215.010041 | J93: =EXP((PRB!$B$195*1)+(PRB!$C$195*EFW!AD114)+(PRB!$D$195*EFW!AD114^2)+(PRB!$E$195*EFW!AD114^3)+(PRB!$F$195*sexm)+(PRB!$G$195*heightn)+(PRB!$H$195*weightn)+(PRB!$I$195*EFW!AD114*weightn)+(PRB!$J$195*parity1)+(PRB!$K$195*parity2)+(PRB!$L$195*parity3)+(PRB!$M$195*EFW!AD114*parity1)+(PRB!$N$195*EFW!AD114*parity2)+(PRB!$O$195*EFW!AD114*parity3)) -> 1260.882564
A94: 27.14285714 | B94: =EXP((PRB!B187*1)+(PRB!C187*EFW!AD115)+(PRB!D187*EFW!AD115^2)+(PRB!E187*EFW!AD115^3)+(PRB!F187*sexm)+(PRB!G187*heightn)+(PRB!H187*weightn)+(PRB!I187*EFW!AD115*weightn)+(PRB!J187*parity1)+(PRB!K187*parity2)+(PRB!L187*parity3)+(PRB!M187*EFW!AD115*parity1)+(PRB!N187*EFW!AD115*parity2)+(PRB!O187*EFW!AD115*parity3)) -> 827.4139501 | C94: =EXP((PRB!B188*1)+(PRB!C188*EFW!AD115)+(PRB!D188*EFW!AD115^2)+(PRB!E188*EFW!AD115^3)+(PRB!F188*sexm)+(PRB!G188*heightn)+(PRB!H188*weightn)+(PRB!I188*EFW!AD115*weightn)+(PRB!J188*parity1)+(PRB!K188*parity2)+(PRB!L188*parity3)+(PRB!M188*EFW!AD115*parity1)+(PRB!N188*EFW!AD115*parity2)+(PRB!O188*EFW!AD115*parity3)) -> 861.4354329 | D94: =EXP((PRB!B189*1)+(PRB!C189*EFW!AD115)+(PRB!D189*EFW!AD115^2)+(PRB!E189*EFW!AD115^3)+(PRB!F189*sexm)+(PRB!G189*heightn)+(PRB!H189*weightn)+(PRB!I189*EFW!AD115*weightn)+(PRB!J189*parity1)+(PRB!K189*parity2)+(PRB!L189*parity3)+(PRB!M189*EFW!AD115*parity1)+(PRB!N189*EFW!AD115*parity2)+(PRB!O189*EFW!AD115*parity3)) -> 899.7445017 | E94: =EXP((PRB!B190*1)+(PRB!C190*EFW!AD115)+(PRB!D190*EFW!AD115^2)+(PRB!E190*EFW!AD115^3)+(PRB!F190*sexm)+(PRB!G190*heightn)+(PRB!H190*weightn)+(PRB!I190*EFW!AD115*weightn)+(PRB!J190*parity1)+(PRB!K190*parity2)+(PRB!L190*parity3)+(PRB!M190*EFW!AD115*parity1)+(PRB!N190*EFW!AD115*parity2)+(PRB!O190*EFW!AD115*parity3)) -> 961.9977069 | F94: =EXP((PRB!B191*1)+(PRB!C191*EFW!AD115)+(PRB!D191*EFW!AD115^2)+(PRB!E191*EFW!AD115^3)+(PRB!F191*sexm)+(PRB!G191*heightn)+(PRB!H191*weightn)+(PRB!I191*EFW!AD115*weightn)+(PRB!J191*parity1)+(PRB!K191*parity2)+(PRB!L191*parity3)+(PRB!M191*EFW!AD115*parity1)+(PRB!N191*EFW!AD115*parity2)+(PRB!O191*EFW!AD115*parity3)) -> 1030.762317 | G94: =EXP((PRB!$B$192*1)+(PRB!$C$192*EFW!AD115)+(PRB!$D$192*EFW!AD115^2)+(PRB!$E$192*EFW!AD115^3)+(PRB!$F$192*sexm)+(PRB!$G$192*heightn)+(PRB!$H$192*weightn)+(PRB!$I$192*EFW!AD115*weightn)+(PRB!$J$192*parity1)+(PRB!$K$192*parity2)+(PRB!$L$192*parity3)+(PRB!$M$192*EFW!AD115*parity1)+(PRB!$N$192*EFW!AD115*parity2)+(PRB!$O$192*EFW!AD115*parity3)) -> 1106.330008 | H94: =EXP((PRB!$B$193*1)+(PRB!$C$193*EFW!AD115)+(PRB!$D$193*EFW!AD115^2)+(PRB!$E$193*EFW!AD115^3)+(PRB!$F$193*sexm)+(PRB!$G$193*heightn)+(PRB!$H$193*weightn)+(PRB!$I$193*EFW!AD115*weightn)+(PRB!$J$193*parity1)+(PRB!$K$193*parity2)+(PRB!$L$193*parity3)+(PRB!$M$193*EFW!AD115*parity1)+(PRB!$N$193*EFW!AD115*parity2)+(PRB!$O$193*EFW!AD115*parity3)) -> 1185.469343 | I94: =EXP((PRB!$B$194*1)+(PRB!$C$194*EFW!AD115)+(PRB!$D$194*EFW!AD115^2)+(PRB!$E$194*EFW!AD115^3)+(PRB!$F$194*sexm)+(PRB!$G$194*heightn)+(PRB!$H$194*weightn)+(PRB!$I$194*EFW!AD115*weightn)+(PRB!$J$194*parity1)+(PRB!$K$194*parity2)+(PRB!$L$194*parity3)+(PRB!$M$194*EFW!AD115*parity1)+(PRB!$N$194*EFW!AD115*parity2)+(PRB!$O$194*EFW!AD115*parity3)) -> 1238.725236 | J94: =EXP((PRB!$B$195*1)+(PRB!$C$195*EFW!AD115)+(PRB!$D$195*EFW!AD115^2)+(PRB!$E$195*EFW!AD115^3)+(PRB!$F$195*sexm)+(PRB!$G$195*heightn)+(PRB!$H$195*weightn)+(PRB!$I$195*EFW!AD115*weightn)+(PRB!$J$195*parity1)+(PRB!$K$195*parity2)+(PRB!$L$195*parity3)+(PRB!$M$195*EFW!AD115*parity1)+(PRB!$N$195*EFW!AD115*parity2)+(PRB!$O$195*EFW!AD115*parity3)) -> 1285.744622
A95: 27.28571429 | B95: =EXP((PRB!B187*1)+(PRB!C187*EFW!AD116)+(PRB!D187*EFW!AD116^2)+(PRB!E187*EFW!AD116^3)+(PRB!F187*sexm)+(PRB!G187*heightn)+(PRB!H187*weightn)+(PRB!I187*EFW!AD116*weightn)+(PRB!J187*parity1)+(PRB!K187*parity2)+(PRB!L187*parity3)+(PRB!M187*EFW!AD116*parity1)+(PRB!N187*EFW!AD116*parity2)+(PRB!O187*EFW!AD116*parity3)) -> 843.330859 | C95: =EXP((PRB!B188*1)+(PRB!C188*EFW!AD116)+(PRB!D188*EFW!AD116^2)+(PRB!E188*EFW!AD116^3)+(PRB!F188*sexm)+(PRB!G188*heightn)+(PRB!H188*weightn)+(PRB!I188*EFW!AD116*weightn)+(PRB!J188*parity1)+(PRB!K188*parity2)+(PRB!L188*parity3)+(PRB!M188*EFW!AD116*parity1)+(PRB!N188*EFW!AD116*parity2)+(PRB!O188*EFW!AD116*parity3)) -> 878.0712901 | D95: =EXP((PRB!B189*1)+(PRB!C189*EFW!AD116)+(PRB!D189*EFW!AD116^2)+(PRB!E189*EFW!AD116^3)+(PRB!F189*sexm)+(PRB!G189*heightn)+(PRB!H189*weightn)+(PRB!I189*EFW!AD116*weightn)+(PRB!J189*parity1)+(PRB!K189*parity2)+(PRB!L189*parity3)+(PRB!M189*EFW!AD116*parity1)+(PRB!N189*EFW!AD116*parity2)+(PRB!O189*EFW!AD116*parity3)) -> 917.1850174 | E95: =EXP((PRB!B190*1)+(PRB!C190*EFW!AD116)+(PRB!D190*EFW!AD116^2)+(PRB!E190*EFW!AD116^3)+(PRB!F190*sexm)+(PRB!G190*heightn)+(PRB!H190*weightn)+(PRB!I190*EFW!AD116*weightn)+(PRB!J190*parity1)+(PRB!K190*parity2)+(PRB!L190*parity3)+(PRB!M190*EFW!AD116*parity1)+(PRB!N190*EFW!AD116*parity2)+(PRB!O190*EFW!AD116*parity3)) -> 980.701227 | F95: =EXP((PRB!B191*1)+(PRB!C191*EFW!AD116)+(PRB!D191*EFW!AD116^2)+(PRB!E191*EFW!AD116^3)+(PRB!F191*sexm)+(PRB!G191*heightn)+(PRB!H191*weightn)+(PRB!I191*EFW!AD116*weightn)+(PRB!J191*parity1)+(PRB!K191*parity2)+(PRB!L191*parity3)+(PRB!M191*EFW!AD116*parity1)+(PRB!N191*EFW!AD116*parity2)+(PRB!O191*EFW!AD116*parity3)) -> 1050.742502 | G95: =EXP((PRB!$B$192*1)+(PRB!$C$192*EFW!AD116)+(PRB!$D$192*EFW!AD116^2)+(PRB!$E$192*EFW!AD116^3)+(PRB!$F$192*sexm)+(PRB!$G$192*heightn)+(PRB!$H$192*weightn)+(PRB!$I$192*EFW!AD116*weightn)+(PRB!$J$192*parity1)+(PRB!$K$192*parity2)+(PRB!$L$192*parity3)+(PRB!$M$192*EFW!AD116*parity1)+(PRB!$N$192*EFW!AD116*parity2)+(PRB!$O$192*EFW!AD116*parity3)) -> 1127.73228 | H95: =EXP((PRB!$B$193*1)+(PRB!$C$193*EFW!AD116)+(PRB!$D$193*EFW!AD116^2)+(PRB!$E$193*EFW!AD116^3)+(PRB!$F$193*sexm)+(PRB!$G$193*heightn)+(PRB!$H$193*weightn)+(PRB!$I$193*EFW!AD116*weightn)+(PRB!$J$193*parity1)+(PRB!$K$193*parity2)+(PRB!$L$193*parity3)+(PRB!$M$193*EFW!AD116*parity1)+(PRB!$N$193*EFW!AD116*parity2)+(PRB!$O$193*EFW!AD116*parity3)) -> 1208.304826 | I95: =EXP((PRB!$B$194*1)+(PRB!$C$194*EFW!AD116)+(PRB!$D$194*EFW!AD116^2)+(PRB!$E$194*EFW!AD116^3)+(PRB!$F$194*sexm)+(PRB!$G$194*heightn)+(PRB!$H$194*weightn)+(PRB!$I$194*EFW!AD116*weightn)+(PRB!$J$194*parity1)+(PRB!$K$194*parity2)+(PRB!$L$194*parity3)+(PRB!$M$194*EFW!AD116*parity1)+(PRB!$N$194*EFW!AD116*parity2)+(PRB!$O$194*EFW!AD116*parity3)) -> 1262.73028 | J95: =EXP((PRB!$B$195*1)+(PRB!$C$195*EFW!AD116)+(PRB!$D$195*EFW!AD116^2)+(PRB!$E$195*EFW!AD116^3)+(PRB!$F$195*sexm)+(PRB!$G$195*heightn)+(PRB!$H$195*weightn)+(PRB!$I$195*EFW!AD116*weightn)+(PRB!$J$195*parity1)+(PRB!$K$195*parity2)+(PRB!$L$195*parity3)+(PRB!$M$195*EFW!AD116*parity1)+(PRB!$N$195*EFW!AD116*parity2)+(PRB!$O$195*EFW!AD116*parity3)) -> 1310.916697
A96: 27.42857143 | B96: =EXP((PRB!B187*1)+(PRB!C187*EFW!AD117)+(PRB!D187*EFW!AD117^2)+(PRB!E187*EFW!AD117^3)+(PRB!F187*sexm)+(PRB!G187*heightn)+(PRB!H187*weightn)+(PRB!I187*EFW!AD117*weightn)+(PRB!J187*parity1)+(PRB!K187*parity2)+(PRB!L187*parity3)+(PRB!M187*EFW!AD117*parity1)+(PRB!N187*EFW!AD117*parity2)+(PRB!O187*EFW!AD117*parity3)) -> 859.4261112 | C96: =EXP((PRB!B188*1)+(PRB!C188*EFW!AD117)+(PRB!D188*EFW!AD117^2)+(PRB!E188*EFW!AD117^3)+(PRB!F188*sexm)+(PRB!G188*heightn)+(PRB!H188*weightn)+(PRB!I188*EFW!AD117*weightn)+(PRB!J188*parity1)+(PRB!K188*parity2)+(PRB!L188*parity3)+(PRB!M188*EFW!AD117*parity1)+(PRB!N188*EFW!AD117*parity2)+(PRB!O188*EFW!AD117*parity3)) -> 894.8970403 | D96: =EXP((PRB!B189*1)+(PRB!C189*EFW!AD117)+(PRB!D189*EFW!AD117^2)+(PRB!E189*EFW!AD117^3)+(PRB!F189*sexm)+(PRB!G189*heightn)+(PRB!H189*weightn)+(PRB!I189*EFW!AD117*weightn)+(PRB!J189*parity1)+(PRB!K189*parity2)+(PRB!L189*parity3)+(PRB!M189*EFW!AD117*parity1)+(PRB!N189*EFW!AD117*parity2)+(PRB!O189*EFW!AD117*parity3)) -> 934.8287529 | E96: =EXP((PRB!B190*1)+(PRB!C190*EFW!AD117)+(PRB!D190*EFW!AD117^2)+(PRB!E190*EFW!AD117^3)+(PRB!F190*sexm)+(PRB!G190*heightn)+(PRB!H190*weightn)+(PRB!I190*EFW!AD117*weightn)+(PRB!J190*parity1)+(PRB!K190*parity2)+(PRB!L190*parity3)+(PRB!M190*EFW!AD117*parity1)+(PRB!N190*EFW!AD117*parity2)+(PRB!O190*EFW!AD117*parity3)) -> 999.6269425 | F96: =EXP((PRB!B191*1)+(PRB!C191*EFW!AD117)+(PRB!D191*EFW!AD117^2)+(PRB!E191*EFW!AD117^3)+(PRB!F191*sexm)+(PRB!G191*heightn)+(PRB!H191*weightn)+(PRB!I191*EFW!AD117*weightn)+(PRB!J191*parity1)+(PRB!K191*parity2)+(PRB!L191*parity3)+(PRB!M191*EFW!AD117*parity1)+(PRB!N191*EFW!AD117*parity2)+(PRB!O191*EFW!AD117*parity3)) -> 1070.960034 | G96: =EXP((PRB!$B$192*1)+(PRB!$C$192*EFW!AD117)+(PRB!$D$192*EFW!AD117^2)+(PRB!$E$192*EFW!AD117^3)+(PRB!$F$192*sexm)+(PRB!$G$192*heightn)+(PRB!$H$192*weightn)+(PRB!$I$192*EFW!AD117*weightn)+(PRB!$J$192*parity1)+(PRB!$K$192*parity2)+(PRB!$L$192*parity3)+(PRB!$M$192*EFW!AD117*parity1)+(PRB!$N$192*EFW!AD117*parity2)+(PRB!$O$192*EFW!AD117*parity3)) -> 1149.38873 | H96: =EXP((PRB!$B$193*1)+(PRB!$C$193*EFW!AD117)+(PRB!$D$193*EFW!AD117^2)+(PRB!$E$193*EFW!AD117^3)+(PRB!$F$193*sexm)+(PRB!$G$193*heightn)+(PRB!$H$193*weightn)+(PRB!$I$193*EFW!AD117*weightn)+(PRB!$J$193*parity1)+(PRB!$K$193*parity2)+(PRB!$L$193*parity3)+(PRB!$M$193*EFW!AD117*parity1)+(PRB!$N$193*EFW!AD117*parity2)+(PRB!$O$193*EFW!AD117*parity3)) -> 1231.410363 | I96: =EXP((PRB!$B$194*1)+(PRB!$C$194*EFW!AD117)+(PRB!$D$194*EFW!AD117^2)+(PRB!$E$194*EFW!AD117^3)+(PRB!$F$194*sexm)+(PRB!$G$194*heightn)+(PRB!$H$194*weightn)+(PRB!$I$194*EFW!AD117*weightn)+(PRB!$J$194*parity1)+(PRB!$K$194*parity2)+(PRB!$L$194*parity3)+(PRB!$M$194*EFW!AD117*parity1)+(PRB!$N$194*EFW!AD117*parity2)+(PRB!$O$194*EFW!AD117*parity3)) -> 1287.024221 | J96: =EXP((PRB!$B$195*1)+(PRB!$C$195*EFW!AD117)+(PRB!$D$195*EFW!AD117^2)+(PRB!$E$195*EFW!AD117^3)+(PRB!$F$195*sexm)+(PRB!$G$195*heightn)+(PRB!$H$195*weightn)+(PRB!$I$195*EFW!AD117*weightn)+(PRB!$J$195*parity1)+(PRB!$K$195*parity2)+(PRB!$L$195*parity3)+(PRB!$M$195*EFW!AD117*parity1)+(PRB!$N$195*EFW!AD117*parity2)+(PRB!$O$195*EFW!AD117*parity3)) -> 1336.397777
A97: 27.57142857 | B97: =EXP((PRB!B187*1)+(PRB!C187*EFW!AD118)+(PRB!D187*EFW!AD118^2)+(PRB!E187*EFW!AD118^3)+(PRB!F187*sexm)+(PRB!G187*heightn)+(PRB!H187*weightn)+(PRB!I187*EFW!AD118*weightn)+(PRB!J187*parity1)+(PRB!K187*parity2)+(PRB!L187*parity3)+(PRB!M187*EFW!AD118*parity1)+(PRB!N187*EFW!AD118*parity2)+(PRB!O187*EFW!AD118*parity3)) -> 875.6986376 | C97: =EXP((PRB!B188*1)+(PRB!C188*EFW!AD118)+(PRB!D188*EFW!AD118^2)+(PRB!E188*EFW!AD118^3)+(PRB!F188*sexm)+(PRB!G188*heightn)+(PRB!H188*weightn)+(PRB!I188*EFW!AD118*weightn)+(PRB!J188*parity1)+(PRB!K188*parity2)+(PRB!L188*parity3)+(PRB!M188*EFW!AD118*parity1)+(PRB!N188*EFW!AD118*parity2)+(PRB!O188*EFW!AD118*parity3)) -> 911.9117818 | D97: =EXP((PRB!B189*1)+(PRB!C189*EFW!AD118)+(PRB!D189*EFW!AD118^2)+(PRB!E189*EFW!AD118^3)+(PRB!F189*sexm)+(PRB!G189*heightn)+(PRB!H189*weightn)+(PRB!I189*EFW!AD118*weightn)+(PRB!J189*parity1)+(PRB!K189*parity2)+(PRB!L189*parity3)+(PRB!M189*EFW!AD118*parity1)+(PRB!N189*EFW!AD118*parity2)+(PRB!O189*EFW!AD118*parity3)) -> 952.6748784 | E97: =EXP((PRB!B190*1)+(PRB!C190*EFW!AD118)+(PRB!D190*EFW!AD118^2)+(PRB!E190*EFW!AD118^3)+(PRB!F190*sexm)+(PRB!G190*heightn)+(PRB!H190*weightn)+(PRB!I190*EFW!AD118*weightn)+(PRB!J190*parity1)+(PRB!K190*parity2)+(PRB!L190*parity3)+(PRB!M190*EFW!AD118*parity1)+(PRB!N190*EFW!AD118*parity2)+(PRB!O190*EFW!AD118*parity3)) -> 1018.774038 | F97: =EXP((PRB!B191*1)+(PRB!C191*EFW!AD118)+(PRB!D191*EFW!AD118^2)+(PRB!E191*EFW!AD118^3)+(PRB!F191*sexm)+(PRB!G191*heightn)+(PRB!H191*weightn)+(PRB!I191*EFW!AD118*weightn)+(PRB!J191*parity1)+(PRB!K191*parity2)+(PRB!L191*parity3)+(PRB!M191*EFW!AD118*parity1)+(PRB!N191*EFW!AD118*parity2)+(PRB!O191*EFW!AD118*parity3)) -> 1091.414162 | G97: =EXP((PRB!$B$192*1)+(PRB!$C$192*EFW!AD118)+(PRB!$D$192*EFW!AD118^2)+(PRB!$E$192*EFW!AD118^3)+(PRB!$F$192*sexm)+(PRB!$G$192*heightn)+(PRB!$H$192*weightn)+(PRB!$I$192*EFW!AD118*weightn)+(PRB!$J$192*parity1)+(PRB!$K$192*parity2)+(PRB!$L$192*parity3)+(PRB!$M$192*EFW!AD118*parity1)+(PRB!$N$192*EFW!AD118*parity2)+(PRB!$O$192*EFW!AD118*parity3)) -> 1171.298444 | H97: =EXP((PRB!$B$193*1)+(PRB!$C$193*EFW!AD118)+(PRB!$D$193*EFW!AD118^2)+(PRB!$E$193*EFW!AD118^3)+(PRB!$F$193*sexm)+(PRB!$G$193*heightn)+(PRB!$H$193*weightn)+(PRB!$I$193*EFW!AD118*weightn)+(PRB!$J$193*parity1)+(PRB!$K$193*parity2)+(PRB!$L$193*parity3)+(PRB!$M$193*EFW!AD118*parity1)+(PRB!$N$193*EFW!AD118*parity2)+(PRB!$O$193*EFW!AD118*parity3)) -> 1254.784997 | I97: =EXP((PRB!$B$194*1)+(PRB!$C$194*EFW!AD118)+(PRB!$D$194*EFW!AD118^2)+(PRB!$E$194*EFW!AD118^3)+(PRB!$F$194*sexm)+(PRB!$G$194*heightn)+(PRB!$H$194*weightn)+(PRB!$I$194*EFW!AD118*weightn)+(PRB!$J$194*parity1)+(PRB!$K$194*parity2)+(PRB!$L$194*parity3)+(PRB!$M$194*EFW!AD118*parity1)+(PRB!$N$194*EFW!AD118*parity2)+(PRB!$O$194*EFW!AD118*parity3)) -> 1311.605972 | J97: =EXP((PRB!$B$195*1)+(PRB!$C$195*EFW!AD118)+(PRB!$D$195*EFW!AD118^2)+(PRB!$E$195*EFW!AD118^3)+(PRB!$F$195*sexm)+(PRB!$G$195*heightn)+(PRB!$H$195*weightn)+(PRB!$I$195*EFW!AD118*weightn)+(PRB!$J$195*parity1)+(PRB!$K$195*parity2)+(PRB!$L$195*parity3)+(PRB!$M$195*EFW!AD118*parity1)+(PRB!$N$195*EFW!AD118*parity2)+(PRB!$O$195*EFW!AD118*parity3)) -> 1362.186697
